Workbook

Sheet Mode d'emploi (hidden)
B2: Chemin du dossier Visionet : | C2: S:\NOTES_CONJONCTURE\1_ANIMAL\3_COTATIONS\Bases de données\COT-VIA-cotations_csv-A23-S06 | G2: Nom du fichier : | H2: =MID(CELL("filename",E1),SEARCH("[",CELL("filename",E1))+1,SEARCH("]",CELL("filename",E1))-SEARCH("[",CELL("filename",E1))-6) -> CotationsOutil_2024_LS
B3: Chemin de l'extraction RNM : | C3: S:\NOTES_CONJONCTURE\1_ANIMAL\3_COTATIONS\Bases de données\COT-MUL-prd_RNM-A23.csv
B4: Chemin du fichier TNO : | C4: S:\NOTES_CONJONCTURE\1_ANIMAL\3_COTATIONS\Bases de données\TNO.ods
B5: Chemin du fichier PLERIN COTATIONS : | C5: S:\NOTES_CONJONCTURE\1_ANIMAL\3_COTATIONS\Bases de données\PLERIN COTATIONS.ods | F5: Gros bovins
B6: Chemin du fichier des IPPAP : | C6: S:\NOTES_CONJONCTURE\1_ANIMAL\3_COTATIONS\Bases de données\selection_serie_17022023\valeurs_mensuelles.csv
B7: Chemin du fichier Valeurs_mensuelles : | C7: S:\NOTES_CONJONCTURE\1_ANIMAL\3_COTATIONS\Bases de données\IPPAP Volailles_ls.ods | F7: GBEA | G7: Nom du fichier GBEA : | H7: COT-VRO-GBST_regionale | J7: ="Fichier '" &H7&"'" -> Fichier 'COT-VRO-GBST_regionale'
G8: Lieu | H8: GRAND-OUEST | J8: Catégorie | K8: Nom de la colonne
B9: Année | C9: 2024 | G9: N° ligne des catégories | H9: 8 | J9: Jeunes bovins 12 à 24 mois | K9: Viande hors Bl/Parth.
B10: Semaine | C10: 6 | G10: N° ligne viande | H10: 9
G11: N° de la colonne lieu | H11: 1 | J11: Bœufs
G12: N° de la colonne classification | H12: 2 | J12: Vaches | K12: Viande hors Bl/Parth. -10 a +350kg
G13: N° de la colonne cot | H13: 3 | K13: Blonde/Parth. -10 ans +350Kg
F14: Gros bovins maigres | G14: Nom du fichier : Gros bovins maigres | H14: COT-VRO-GB_maigres
G15: Lieu | H15: NANTES
G16: Race | H16: CHAROLAIS | J16: Génisses | K16: Viande +350Kg
B17: Mode d'emploi | G17: Sexe | H17: M
G18: Age | H18: *6/12
G19: Tonnage (en kg) | H19: 350
B20: Champs à remplir à chaque utilisation | G20: Classification | H20: U
B21: Champs à vérifier | G21: N° de la ligne race | H21: 7
G22: N° de la ligne sexe | H22: 8
B23: Lien pour le site Visionet : | G23: N° de la ligne age | H23: 9
B24: https://visionet.franceagrimer.fr/Pages/Statistiques.aspx?menuurl=Statistiques/productions%20animales/viandes/cotations%20en%20format%20csv/ZIP%20csv%20toutes%20esp%C3%A8ces | G24: N° de la colonne lieu | H24: 1
G25: N° de la colonne classification | H25: 3
G27: ="Feuille de "&H2 -> Feuille de CotationsOutil_2024_LS | H27: =RIGHT(CELL("nomfichier",GrosBovinsAnneeEnCours!A1),LEN(CELL("nomfichier",GrosBovinsAnneeEnCours!A1))-FIND("]",CELL("nomfichier",GrosBovinsAnneeEnCours!A1))) -> GrosBovinsAnneeEnCours
H28: =RIGHT(CELL("nomfichier",GraphGrosBovins!A1),LEN(CELL("nomfichier",GraphGrosBovins!A1))-FIND("]",CELL("nomfichier",GraphGrosBovins!A1))) -> GraphGrosBovins
H29: =RIGHT(CELL("nomfichier",MoyQuinqHebdoGB!A1),LEN(CELL("nomfichier",MoyQuinqHebdoGB!A1))-FIND("]",CELL("nomfichier",MoyQuinqHebdoGB!A1))) -> MoyQuinqHebdoGB
F31: Veaux
B33: A noter un changement de nom de fichier cellule H7 | F33: Veaux Grand Nord | G33: Nom du fichier Veaux Grand Nord : | H33: COT-VRO-veaux_bouch_synthese
B34: COT-VRO-GBEA_regionale | C34: jusqu'en semaine 29-2022 | G34: Lieu | H34: NORD
G35: N° de la ligne race | H35: 7
B36: COT-VRO-GBST_regionale | C36: à partir de la semaine 30-2022 | G36: N° de la ligne classification | H36: 8
G37: N° de la colonne lieu | H37: 1
G38: Viande | H38: ROSE TRES CLAIR
B39: disparition du fichier COT-VRO-veaux14j_9_marches en semaine 47-2022 | H39: ROSE CLAIR
B40: pas de porc en semaine 2 et 3 2023? | H40: ROSE
F41: Veaux Château Gontier | G41: Nom du fichier Veaux Château Gontier : | H41: COT-VRO-veaux14j_9_marches | J41: ="Fichier '"&H2&"'" -> Fichier 'CotationsOutil_2024_LS' | K41: ="Fichier '" &H41&"'" -> Fichier 'COT-VRO-veaux14j_9_marches'
G42: Lieu | H42: CHAG | J42: NORMAND | K42: Normande
G43: Poids | H43: 45 A 50 KG | J43: LAITIERS | K43: Prim'Holstein
G44: N° de la ligne Lieu | H44: 7
G45: N° de la colonne race | H45: 2
G46: N° de la colonne poids | H46: 4
G48: ="Feuille de "&H2 -> Feuille de CotationsOutil_2024_LS | H48: =RIGHT(CELL("nomfichier",VeauxAnneeEnCours!A1),LEN(CELL("nomfichier",VeauxAnneeEnCours!A1))-FIND("]",CELL("nomfichier",VeauxAnneeEnCours!A1))) -> VeauxAnneeEnCours
H49: =RIGHT(CELL("nomfichier",GraphVeaux!A1),LEN(CELL("nomfichier",GraphVeaux!A1))-FIND("]",CELL("nomfichier",GraphVeaux!A1))) -> GraphVeaux
H50: =RIGHT(CELL("nomfichier",MoyQuinqHebdoVeaux!A1),LEN(CELL("nomfichier",MoyQuinqHebdoVeaux!A1))-FIND("]",CELL("nomfichier",MoyQuinqHebdoVeaux!A1))) -> MoyQuinqHebdoVeaux
F52: Porcs
G54: N° de la colonne semaine | H54: 2
G55: N° de la colonne du code produit | H55: 5
G56: N° de la colonne valeur | H56: 7
F58: Marché | G58: code produit | H58: produit
F59: Cadran de Plérin : porc charcutier | G59: PORC (carcasse) Nantes classe E + S | H59: 90190
F60: France : porc charcutier entrée abattoir | G60: PORC (carcasse) Rennes classe E + S | H60: 100190
G61: PORC (carcasse) France classe E + S | H61: 120190
G62: PORC (carcasse) Nantes classe E | H62: 57222090
G63: PORC (carcasse) Rennes classe E | H63: 57222091
G64: PORC (carcasse) France classe E | H64: 57222087
G65: PORC (carcasse) Nantes classe S | H65: 57222095
G66: PORC (carcasse) Rennes classe S | H66: 57222094
G67: PORC (carcasse) France classe S | H67: 57222098
G68: PORC (carcasse) 56% taux-de-muscle-des-pièces Bretagne | H68: 70178
G70: ="Feuille de "&H2 -> Feuille de CotationsOutil_2024_LS | H70: =RIGHT(CELL("nomfichier",'Porcs2015-2024'!A1),LEN(CELL("nomfichier",'Porcs2015-2024'!A1))-FIND("]",CELL("nomfichier",'Porcs2015-2024'!A1))) -> Porcs2015-2024
H71: =RIGHT(CELL("nomfichier",GraphPorcs!A1),LEN(CELL("nomfichier",GraphPorcs!A1))-FIND("]",CELL("nomfichier",GraphPorcs!A1))) -> GraphPorcs
H72: =RIGHT(CELL("nomfichier",MoyQuinqHebdoPorcs!A1),LEN(CELL("nomfichier",MoyQuinqHebdoPorcs!A1))-FIND("]",CELL("nomfichier",MoyQuinqHebdoPorcs!A1))) -> MoyQuinqHebdoPorcs
F74: Ovins
G76: Nom du fichier Ovins : | H76: COT-VRO-ovins_PMP
G77: N° de la colonne cotation | H77: 1
G78: N° de la colonne : P.M.P AGNEAUX | H78: 2
G80: ="Feuille de "&H2 -> Feuille de CotationsOutil_2024_LS | H80: =RIGHT(CELL("nomfichier",'Ovins2019-2024'!A1),LEN(CELL("nomfichier",'Ovins2019-2024'!A1))-FIND("]",CELL("nomfichier",'Ovins2019-2024'!A1))) -> Ovins2019-2024
H81: =RIGHT(CELL("nomfichier",GraphOvins!A1),LEN(CELL("nomfichier",GraphOvins!A1))-FIND("]",CELL("nomfichier",GraphOvins!A1))) -> GraphOvins
H82: =RIGHT(CELL("nomfichier",MoyQuindHebdoOvins!A1),LEN(CELL("nomfichier",MoyQuindHebdoOvins!A1))-FIND("]",CELL("nomfichier",MoyQuindHebdoOvins!A1))) -> MoyQuindHebdoOvins
F84: VolaillesLapinsOeufs
F86: Marché | G86: Code produit | H86: Produit
F87: MIN de Rungis : volaille | G87: POULET (entier) prêt à cuire France standard | H87: 720156
G88: POULET (entier) prêt à cuire France label | H88: 730156
G89: DINDE (filet) France standard | H89: 1120156
G90: CANARD de Barbarie (filet) France standard | H90: 1030156
G91: PINTADE (entière) prêt à cuire France label | H91: 1950156
G92: LAPIN (entier) France standard | H92: 1280156
G94: ="Feuille de "&H2 -> Feuille de CotationsOutil_2024_LS | H94: =RIGHT(CELL("nomfichier",VolaillesLapinsOeufs!A1),LEN(CELL("nomfichier",VolaillesLapinsOeufs!A1))-FIND("]",CELL("nomfichier",VolaillesLapinsOeufs!A1))) -> VolaillesLapinsOeufs
H95: =RIGHT(CELL("nomfichier",GraphVolaillesOeufsLapins!A1),LEN(CELL("nomfichier",GraphVolaillesOeufsLapins!A1))-FIND("]",CELL("nomfichier",GraphVolaillesOeufsLapins!A1))) -> GraphVolaillesOeufsLapins

Sheet GraphHebdo (hidden)
R2: Commentaires
A4: COTATION REGIONALE ENTREE ABATTOIR GRAND OUEST FRANCEAGRIMER-HEBDOMADAIRE (€/Kg net)
A49: MOYENNE NATIONALE DES BOVINS MAIGRES DESTINES A L'ENGRAISSEMENT CHAROLAIS MALE de 6-12 mois catégorie U (350 kg) en €/kg vif
A64: Veaux de boucherie entrée abattoir région Grand Nord | G64: Prix "entrée abattoir" HT exprimé en Euro/Kg de carcasse (cinquième quartier compris) | O64: Veaux
A65: Source : DRAAF Pays de la Loire - SRISE - FranceAgriMer
A80: Marché de Château Gontier (marché de référence pour les petits veaux) : cotation des veaux destinés à l'engraissement
A81: Source : DRAAF Pays de la Loire - SRISE - FranceAgriMer
A97: Prix du porc entrée abattoir des carcasses de porcs charcutiers (€ HT/kg) | I97: Source : DRAAF Pays de la Loire - SRISE - FranceAgriMer | O97: Porcs
A113: COTATIONS AGNEAUX DE BOUCHERIE : ENTREE ABATTOIR | O113: Ovins
A114: Agneau de boucherie : Prix "entrée abattoir" HT en EURO/Kg de carcasse (cinquième quartier inclus)
A115: Etat d'engraissement : couvert
A116: Source : DRAAF Pays de la Loire-SRISE-FranceAgriMer
A131: Source : FranceAgriMer – RNM : Prix relevés sur le marché de Rungis | O131: Volailles

Sheet MoyQuinqHebdoGB (hidden)
A1: COTATION REGIONALE ENTREE ABATTOIR GRAND OUEST FRANCEAGRIMER-HEBDOMADAIRE (€/Kg net)
C3: 2019 | D3: 2020 | E3: 2021 | F3: 2022 | G3: 2023 | H3: MOYENNE 5 ANS | I3: 2019 | J3: 2020 | K3: 2021 | L3: 2022 | M3: 2023 | N3: MOYENNE 5 ANS | O3: 2019 | P3: 2020 | Q3: 2021 | R3: 2022 | S3: 2023 | T3: MOYENNE 5 ANS | U3: 2019 | V3: 2020 | W3: 2021 | X3: 2022 | Y3: 2023 | Z3: MOYENNE 5 ANS | AA3: 2019 | AB3: 2020 | AC3: 2021 | AD3: 2022 | AE3: 2023 | AF3: MOYENNE 5 ANS | AG3: 2019 | AH3: 2020 | AI3: 2021 | AJ3: 2022 | AK3: 2023 | AL3: MOYENNE 5 ANS | AM3: 2019 | AN3: 2020 | AO3: 2021 | AP3: 2022 | AQ3: 2023 | AR3: MOYENNE 5 ANS | AS3: 2019 | AT3: 2020 | AU3: 2021 | AV3: 2022 | AW3: 2023 | AX3: MOYENNE 5 ANS | AY3: 2019 | AZ3: 2020 | BA3: 2021 | BB3: 2022 | BC3: 2023 | BD3: MOYENNE 5 ANS | BE3: 2019 | BF3: 2020 | BG3: 2021 | BH3: 2022 | BI3: 2023 | BJ3: MOYENNE 5 ANS | BK3: 2019 | BL3: 2020 | BM3: 2021 | BN3: 2022 | BO3: 2023 | BP3: MOYENNE 5 ANS | BQ3: 2019 | BR3: 2020 | BS3: 2020 | BT3: 2022 | BU3: 2023 | BV3: MOYENNE 5 ANS
A4: Mois | B4: Sem. | C4: JB VIANDE U | I4: JB VIANDE R | O4: JB MIXTE O | U4: BOEUFS MIXTE O | AA4: VACHE VIANDE U | AG4: VACHE VIANDE R | AM4: VACHE BLONDE U | AS4: VACHE MIXTE O | AY4: VACHE LAIT P | BE4: GENISSE VIANDE U | BK4: GENISSE VIANDE R | BQ4: MAIGRE – CHAROLAIS 6/12 mois ( U )
B5: 1 | C5: 3.99 | D5: 4.07 | E5: 3.82 | F5: 4.6 | G5: 5.54 | H5: =AVERAGE(C5:G5) -> 4.404 | I5: 3.81 | J5: 3.9 | K5: 3.66 | L5: 4.44 | M5: 5.4 | N5: =AVERAGE(I5:M5) -> 4.242 | O5: 3.5 | P5: 3.46 | Q5: 3.39 | R5: 3.79 | S5: 5.1 | T5: =AVERAGE(O5:S5) -> 3.848 | U5: 3.3 | V5: 3.22 | W5: 3.14 | X5: 3.8 | Y5: 5.05 | Z5: =AVERAGE(U5:Y5) -> 3.702 | AA5: 4.34 | AB5: 4.42 | AC5: 4.45 | AD5: 4.88 | AE5: 5.71 | AF5: =AVERAGE(AA5:AE5) -> 4.76 | AG5: 3.78 | AH5: 3.72 | AI5: 4.03 | AJ5: 4.38 | AK5: 5.41 | AL5: =AVERAGE(AG5:AK5) -> 4.264 | AM5: 4.95 | AN5: 5.1 | AO5: 5.17 | AP5: 5.5 | AQ5: 6.05 | AR5: =AVERAGE(AM5:AQ5) -> 5.354 | AS5: 3.27 | AT5: 3.14 | AU5: 3.07 | AV5: 3.76 | AW5: 4.93 | AX5: =AVERAGE(AS5:AW5) -> 3.634 | AY5: 2.64 | AZ5: 2.54 | BA5: 2.76 | BB5: 3.48 | BC5: 4.59 | BD5: =AVERAGE(AY5:BC5) -> 3.202 | BE5: 4.6 | BF5: 4.63 | BG5: 4.87 | BH5: 5.1 | BI5: 5.84 | BJ5: =AVERAGE(BE5:BI5) -> 5.008 | BK5: 3.86 | BL5: 3.8 | BM5: 4.03 | BN5: 4.32 | BO5: 5.41 | BP5: =AVERAGE(BK5:BO5) -> 4.284 | BQ5: 2.73 | BR5: 2.69 | BS5: 2.62 | BU5: 3.39 | BV5: =AVERAGE(BQ5:BU5) -> 2.8575
B6: 2 | C6: 3.99 | D6: 4.07 | E6: 3.82 | F6: 4.62 | G6: 5.54 | H6: =AVERAGE(C6:G6) -> 4.408 | I6: 3.82 | J6: 3.91 | K6: 3.66 | L6: 4.46 | M6: 5.4 | N6: 4.25 | O6: 3.49 | P6: 3.51 | Q6: 3.37 | R6: 3.82 | S6: 5.09 | T6: 3.856 | U6: 3.34 | V6: 3.25 | W6: 3.15 | X6: 3.81 | Y6: 5.03 | Z6: 3.716 | AA6: 4.43 | AB6: 4.37 | AC6: 4.56 | AD6: 4.87 | AE6: 5.71 | AF6: 4.788 | AG6: 3.77 | AH6: 3.75 | AI6: 4.01 | AJ6: 4.41 | AK6: 5.43 | AL6: 4.274 | AM6: 5.03 | AN6: 5.07 | AO6: 5.2 | AP6: 5.52 | AQ6: 6.13 | AR6: 5.39 | AS6: 3.28 | AT6: 3.15 | AU6: 3.08 | AV6: 3.79 | AW6: 4.94 | AX6: 3.648 | AY6: 2.66 | AZ6: 2.57 | BA6: 2.77 | BB6: 3.52 | BC6: 4.6 | BD6: =AVERAGE(AY6:BC6) -> 3.224 | BE6: 4.64 | BF6: 4.63 | BG6: 4.88 | BH6: 5.08 | BI6: 5.83 | BJ6: 5.012 | BK6: 3.89 | BL6: 3.84 | BM6: 4.04 | BN6: 4.38 | BO6: 5.41 | BP6: 4.312 | BQ6: 2.73 | BR6: 2.69 | BS6: 2.62 | BT6: 2.82 | BU6: 3.39 | BV6: =AVERAGE(BQ6:BU6) -> 2.85
B7: 3 | C7: 4 | D7: 4.07 | E7: 3.83 | F7: 4.65 | G7: 5.55 | H7: 4.42 | I7: 3.82 | J7: 3.9 | K7: 3.65 | L7: 4.5 | M7: 5.41 | N7: 4.256 | O7: 3.49 | P7: 3.49 | Q7: 3.45 | R7: 3.82 | S7: 5.11 | T7: 3.872 | U7: 3.33 | V7: 3.24 | W7: 3.15 | X7: 3.85 | Y7: 5.02 | Z7: 3.718 | AA7: 4.38 | AB7: 4.38 | AC7: 4.48 | AD7: 4.97 | AE7: 5.76 | AF7: 4.794 | AG7: 3.77 | AH7: 3.72 | AI7: 4.02 | AJ7: 4.44 | AK7: 5.43 | AL7: 4.276 | AM7: 5.02 | AN7: 5.04 | AO7: 5.16 | AP7: 5.54 | AQ7: 6.13 | AR7: 5.378 | AS7: 3.28 | AT7: 3.16 | AU7: 3.1 | AV7: 3.82 | AW7: 4.94 | AX7: 3.66 | AY7: 2.67 | AZ7: 2.56 | BA7: 2.77 | BB7: 3.59 | BC7: 4.61 | BD7: 3.24 | BE7: 4.69 | BF7: 4.7 | BG7: 4.89 | BH7: 5.25 | BI7: 5.9 | BJ7: 5.086 | BK7: 3.86 | BL7: 3.85 | BM7: 4.02 | BN7: 4.4 | BO7: 5.42 | BP7: 4.31 | BQ7: 2.73 | BR7: 2.69 | BS7: 2.62 | BT7: 2.82 | BU7: 3.38 | BV7: 2.848
A8: J | B8: 4 | C8: 4.01 | D8: 4.07 | E8: 3.84 | F8: 4.69 | G8: 5.53 | H8: 4.428 | I8: 3.82 | J8: 3.89 | K8: 3.67 | L8: 4.51 | M8: 5.39 | N8: 4.256 | O8: 3.48 | P8: 3.52 | Q8: 3.41 | R8: 3.87 | S8: 5.1 | T8: 3.876 | U8: 3.34 | V8: 3.23 | W8: 3.17 | X8: 3.89 | Y8: 5.02 | Z8: 3.73 | AA8: 4.43 | AB8: 4.36 | AC8: 4.59 | AD8: 4.92 | AE8: 5.7 | AF8: 4.8 | AG8: 3.77 | AH8: 3.71 | AI8: 4.03 | AJ8: 4.46 | AK8: 5.42 | AL8: 4.278 | AM8: 5.11 | AN8: 5.05 | AO8: 5.17 | AP8: 5.6 | AQ8: 6.11 | AR8: 5.408 | AS8: 3.28 | AT8: 3.15 | AU8: 3.09 | AV8: 3.86 | AW8: 4.93 | AX8: 3.662 | AY8: 2.68 | AZ8: 2.55 | BA8: 2.78 | BB8: 3.65 | BC8: 4.59 | BD8: 3.25 | BE8: 4.73 | BF8: 4.7 | BG8: 4.77 | BH8: 5.21 | BI8: 5.87 | BJ8: 5.056 | BK8: 3.86 | BL8: 3.81 | BM8: 4.02 | BN8: 4.44 | BO8: 5.42 | BP8: 4.31 | BQ8: 2.73 | BR8: 2.69 | BS8: 2.59 | BT8: 2.85 | BU8: 3.4 | BV8: 2.852
B9: 5 | C9: 4.02 | D9: 4.06 | E9: 3.85 | F9: 4.73 | G9: 5.52 | H9: 4.436 | I9: 3.85 | J9: 3.88 | K9: 3.67 | L9: 4.57 | M9: 5.4 | N9: 4.274 | O9: 3.52 | P9: 3.52 | Q9: 3.43 | R9: 3.94 | S9: 5.07 | T9: 3.896 | U9: 3.36 | V9: 3.22 | W9: 3.17 | X9: 3.93 | Y9: 4.88 | Z9: 3.712 | AA9: 4.36 | AB9: 4.44 | AC9: 4.52 | AD9: 4.98 | AE9: 5.76 | AF9: 4.812 | AG9: 3.77 | AH9: 3.72 | AI9: 4.05 | AJ9: 4.52 | AK9: 5.42 | AL9: 4.296 | AM9: 5.03 | AN9: 5.02 | AO9: 5.21 | AP9: 5.54 | AQ9: 6.19 | AR9: 5.398 | AS9: 3.31 | AT9: 3.14 | AU9: 3.11 | AV9: 3.91 | AW9: 4.91 | AX9: 3.676 | AY9: 2.71 | AZ9: 2.54 | BA9: 2.78 | BB9: 3.75 | BC9: 4.56 | BD9: 3.268 | BE9: 4.64 | BF9: 4.64 | BG9: 4.84 | BH9: 5.24 | BI9: 5.9 | BJ9: 5.052 | BK9: 3.89 | BL9: 3.82 | BM9: 4 | BN9: 4.45 | BO9: 5.41 | BP9: 4.314 | BQ9: 2.73 | BR9: 2.69 | BS9: 2.59 | BT9: 2.85 | BU9: 3.43 | BV9: 2.858
B10: 6 | C10: 4.02 | D10: 4.05 | E10: 3.86 | F10: 4.8 | G10: 5.52 | H10: 4.45 | I10: 3.84 | J10: 3.88 | K10: 3.69 | L10: 4.63 | M10: 5.41 | N10: 4.29 | O10: 3.5 | P10: 3.51 | Q10: 3.41 | R10: 4.01 | T10: 3.6075 | U10: 3.36 | V10: 3.25 | W10: 3.19 | X10: 4.05 | Y10: 4.99 | Z10: 3.768 | AA10: 4.44 | AB10: 4.46 | AC10: 4.58 | AD10: 5.02 | AE10: 5.75 | AF10: 4.85 | AG10: 3.79 | AH10: 3.73 | AI10: 4.03 | AJ10: 4.59 | AK10: 5.42 | AL10: 4.312 | AM10: 5.05 | AN10: 5.06 | AO10: 5.21 | AP10: 5.62 | AQ10: 6.13 | AR10: 5.414 | AS10: 3.33 | AT10: 3.13 | AU10: 3.11 | AV10: 4.01 | AW10: 4.91 | AX10: 3.698 | AY10: 2.72 | AZ10: 2.53 | BA10: 2.79 | BB10: 3.84 | BC10: 4.56 | BD10: 3.288 | BE10: 4.66 | BF10: 4.62 | BG10: 4.92 | BH10: 5.3 | BI10: 5.92 | BJ10: 5.084 | BK10: 3.86 | BL10: 3.81 | BM10: 3.99 | BN10: 4.51 | BO10: 5.41 | BP10: 4.316 | BQ10: 2.73 | BR10: 2.69 | BS10: 2.59 | BT10: 2.85 | BU10: 3.44 | BV10: 2.86
B11: 7 | C11: 4.02 | D11: 4.04 | E11: 3.88 | F11: 4.86 | G11: 5.53 | H11: 4.466 | I11: 3.84 | J11: 3.85 | K11: 3.71 | L11: 4.71 | M11: 5.41 | N11: 4.304 | O11: 3.49 | P11: 3.49 | Q11: 3.43 | R11: 4.12 | T11: 3.6325 | U11: 3.36 | V11: 3.22 | W11: 3.18 | X11: 4.14 | Y11: 5.02 | Z11: 3.784 | AA11: 4.42 | AB11: 4.46 | AC11: 4.52 | AD11: 5.05 | AE11: 5.73 | AF11: 4.836 | AG11: 3.79 | AH11: 3.7 | AI11: 4.05 | AJ11: 4.65 | AK11: 5.42 | AL11: 4.322 | AM11: 4.99 | AN11: 5.02 | AO11: 5.2 | AP11: 5.63 | AQ11: 6.19 | AR11: 5.406 | AS11: 3.34 | AT11: 3.14 | AU11: 3.13 | AV11: 4.12 | AW11: 4.93 | AX11: 3.732 | AY11: 2.74 | AZ11: 2.55 | BA11: 2.81 | BB11: 3.96 | BC11: 4.6 | BD11: 3.332 | BE11: 4.71 | BF11: 4.61 | BG11: 4.79 | BH11: 5.24 | BI11: 5.84 | BJ11: 5.038 | BK11: 3.84 | BL11: 3.81 | BM11: 4 | BN11: 4.61 | BO11: 5.39 | BP11: 4.33 | BQ11: 2.78 | BR11: 2.69 | BS11: 2.59 | BT11: 2.88 | BU11: 3.43 | BV11: 2.874
B12: 8 | C12: 4.03 | D12: 4.01 | E12: 3.9 | F12: 4.94 | G12: 5.54 | H12: 4.484 | I12: 3.86 | J12: 3.84 | K12: 3.73 | L12: 4.76 | M12: 5.42 | N12: 4.322 | O12: 3.54 | P12: 3.49 | Q12: 3.45 | R12: 4.27 | T12: 3.6875 | U12: 3.4 | V12: 3.25 | W12: 3.2 | X12: 4.28 | Y12: 5.07 | Z12: 3.84 | AA12: 4.5 | AB12: 4.4 | AC12: 4.53 | AD12: 5.14 | AE12: 5.76 | AF12: 4.866 | AG12: 3.8 | AH12: 3.72 | AI12: 4.07 | AJ12: 4.76 | AK12: 5.44 | AL12: 4.358 | AM12: 5.11 | AN12: 5 | AO12: 5.27 | AP12: 5.65 | AQ12: 6.19 | AR12: 5.444 | AS12: 3.37 | AT12: 3.16 | AU12: 3.15 | AV12: 4.25 | AW12: 4.97 | AX12: 3.78 | AY12: 2.76 | AZ12: 2.58 | BA12: 2.83 | BB12: 4.14 | BC12: 4.64 | BD12: 3.39 | BE12: 4.74 | BF12: 4.6 | BG12: 4.8 | BH12: 5.34 | BI12: 5.93 | BJ12: 5.082 | BK12: 3.86 | BL12: 3.83 | BM12: 3.99 | BN12: 4.71 | BO12: 5.43 | BP12: 4.364 | BQ12: 2.78 | BR12: 2.72 | BS12: 2.59 | BT12: 2.93 | BU12: 3.46 | BV12: 2.896
A13: F | B13: 9 | C13: 4.04 | D13: 4 | E13: 3.91 | F13: 4.98 | G13: 5.56 | H13: 4.498 | I13: 3.86 | J13: 3.84 | K13: 3.75 | L13: 4.82 | M13: 5.43 | N13: 4.34 | O13: 3.54 | P13: 3.51 | Q13: 3.47 | R13: 4.34 | S13: 5.11 | T13: 3.994 | U13: 3.43 | V13: 3.26 | W13: 3.23 | X13: 4.33 | Y13: 5.08 | Z13: 3.866 | AA13: 4.52 | AB13: 4.42 | AC13: 4.7 | AD13: 5.1 | AE13: 5.88 | AF13: 4.924 | AG13: 3.81 | AH13: 3.75 | AI13: 4.09 | AJ13: 4.8 | AK13: 5.46 | AL13: 4.382 | AM13: 5.04 | AN13: 5.14 | AO13: 5.29 | AP13: 5.65 | AQ13: 6.2 | AR13: 5.464 | AS13: 3.38 | AT13: 3.16 | AU13: 3.17 | AV13: 4.33 | AW13: 5 | AX13: 3.808 | AY13: 2.78 | AZ13: 2.62 | BA13: 2.86 | BB13: 4.21 | BC13: 4.69 | BD13: 3.432 | BE13: 4.7 | BF13: 4.69 | BG13: 4.95 | BH13: 5.41 | BI13: 5.91 | BJ13: 5.132 | BK13: 3.86 | BL13: 3.82 | BM13: 4.03 | BN13: 4.74 | BO13: 5.46 | BP13: 4.382 | BQ13: 2.82 | BR13: 2.75 | BS13: 2.62 | BT13: 2.98 | BU13: 3.47 | BV13: 2.928
B14: 10 | C14: 4.05 | D14: 4 | E14: 3.96 | F14: 5.02 | G14: 5.57 | H14: 4.52 | I14: 3.86 | J14: 3.82 | K14: 3.78 | L14: 4.85 | M14: 5.46 | N14: 4.354 | O14: 3.55 | P14: 3.53 | Q14: 3.46 | R14: 4.42 | S14: 5.13 | T14: 4.018 | U14: 3.43 | V14: 3.27 | W14: 3.24 | X14: 4.4 | Y14: 5.11 | Z14: 3.89 | AA14: 4.46 | AB14: 4.44 | AC14: 4.7 | AD14: 5.19 | AE14: 5.8 | AF14: 4.918 | AG14: 3.81 | AH14: 3.77 | AI14: 4.1 | AJ14: 4.85 | AK14: 5.48 | AL14: 4.402 | AM14: 5.02 | AN14: 5.03 | AO14: 5.42 | AP14: 5.68 | AQ14: 6.21 | AR14: 5.472 | AS14: 3.39 | AT14: 3.18 | AU14: 3.19 | AV14: 4.39 | AW14: 5.04 | AX14: 3.838 | AY14: 2.79 | AZ14: 2.66 | BA14: 2.9 | BB14: 4.25 | BC14: 4.75 | BD14: 3.47 | BE14: 4.75 | BF14: 4.67 | BG14: 5.06 | BH14: 5.36 | BI14: 5.93 | BJ14: 5.154 | BK14: 3.9 | BL14: 3.84 | BM14: 4.02 | BN14: 4.78 | BO14: 5.47 | BP14: 4.402 | BQ14: 2.82 | BR14: 2.75 | BS14: 2.65 | BT14: 3.05 | BU14: 3.52 | BV14: 2.958
B15: 11 | C15: 4.03 | D15: 3.98 | E15: 3.99 | F15: 5.06 | G15: 5.6 | H15: 4.532 | I15: 3.85 | J15: 3.81 | K15: 3.81 | L15: 4.88 | M15: 5.47 | N15: 4.364 | O15: 3.52 | P15: 3.5 | Q15: 3.48 | R15: 4.47 | T15: 3.7425 | U15: 3.44 | V15: 3.28 | W15: 3.25 | X15: 4.5 | Y15: 5.12 | Z15: 3.918 | AA15: 4.62 | AB15: 4.43 | AC15: 4.73 | AD15: 5.28 | AE15: 5.8 | AF15: 4.972 | AG15: 3.83 | AH15: 3.78 | AI15: 4.09 | AJ15: 4.91 | AK15: 5.52 | AL15: 4.426 | AM15: 5.14 | AN15: 5.14 | AO15: 5.35 | AP15: 5.71 | AQ15: 6.21 | AR15: 5.51 | AS15: 3.42 | AT15: 3.18 | AU15: 3.21 | AV15: 4.45 | AW15: 5.07 | AX15: 3.866 | AY15: 2.8 | AZ15: 2.66 | BA15: 2.94 | BB15: 4.29 | BC15: 4.8 | BD15: 3.498 | BE15: 4.79 | BF15: 4.64 | BG15: 5.02 | BH15: 5.46 | BI15: 6 | BJ15: 5.182 | BK15: 3.87 | BL15: 3.84 | BM15: 4.01 | BN15: 4.85 | BO15: 5.49 | BP15: 4.412 | BQ15: 2.87 | BR15: 2.78 | BS15: 2.65 | BT15: 3.15 | BU15: 3.53 | BV15: 2.996
B16: 12 | C16: 4.02 | D16: 3.96 | E16: 4 | F16: 5.09 | G16: 5.62 | H16: 4.538 | I16: 3.84 | J16: 3.78 | K16: 3.83 | L16: 4.91 | M16: 5.47 | N16: 4.366 | O16: 3.54 | P16: 3.55 | Q16: 3.46 | R16: 4.51 | S16: 5.16 | T16: 4.044 | U16: 3.43 | V16: 3.27 | W16: 3.28 | X16: 4.56 | Y16: 5.15 | Z16: 3.938 | AA16: 4.52 | AB16: 4.49 | AC16: 4.97 | AD16: 5.27 | AF16: 4.8125 | AG16: 3.84 | AH16: 3.78 | AI16: 4.12 | AJ16: 4.94 | AK16: 5.53 | AL16: 4.442 | AM16: 4.99 | AN16: 5.12 | AO16: 5.4 | AP16: 5.7 | AQ16: 6.22 | AR16: 5.486 | AS16: 3.43 | AT16: 3.18 | AU16: 3.23 | AV16: 4.5 | AW16: 5.08 | AX16: 3.884 | AY16: 2.81 | AZ16: 2.67 | BA16: 2.95 | BB16: 4.34 | BC16: 4.82 | BD16: 3.518 | BE16: 4.74 | BF16: 4.65 | BG16: 5.15 | BH16: 5.47 | BI16: 6.05 | BJ16: 5.212 | BK16: 3.88 | BL16: 3.85 | BM16: 4.07 | BN16: 4.88 | BO16: 5.49 | BP16: 4.434 | BQ16: 2.87 | BR16: 2.8 | BS16: 2.68 | BT16: 3.2 | BU16: 3.54 | BV16: 3.018
A17: M | B17: 13 | C17: 4.01 | D17: 3.94 | E17: 4.02 | F17: 5.11 | G17: 5.62 | H17: 4.54 | I17: 3.81 | J17: 3.77 | K17: 3.85 | L17: 4.94 | M17: 5.48 | N17: 4.37 | O17: 3.52 | P17: 3.47 | Q17: 3.48 | R17: 4.56 | S17: 5.17 | T17: 4.04 | U17: 3.45 | V17: 3.25 | W17: 3.31 | X17: 4.61 | Y17: 5.16 | Z17: 3.956 | AA17: 4.52 | AB17: 4.44 | AC17: 4.62 | AD17: 5.3 | AE17: 6.16 | AF17: 5.008 | AG17: 3.85 | AH17: 3.74 | AI17: 4.1 | AJ17: 4.99 | AK17: 5.5 | AL17: 4.436 | AM17: 5.09 | AN17: 5.17 | AO17: 5.3 | AP17: 5.81 | AQ17: 6.37 | AR17: 5.548 | AS17: 3.41 | AT17: 3.17 | AU17: 3.25 | AV17: 4.55 | AW17: 5.09 | AX17: 3.894 | AY17: 2.81 | AZ17: 2.68 | BA17: 2.96 | BB17: 4.39 | BC17: 4.81 | BD17: 3.53 | BE17: 4.81 | BF17: 4.73 | BG17: 4.89 | BH17: 5.58 | BI17: 6.12 | BJ17: 5.226 | BK17: 3.88 | BL17: 3.85 | BM17: 4.06 | BN17: 4.93 | BO17: 5.49 | BP17: 4.442 | BQ17: 2.87 | BR17: 2.8 | BS17: 2.7 | BT17: 3.25 | BU17: 3.55 | BV17: 3.034
B18: 14 | C18: 3.99 | D18: 3.9 | E18: 4.03 | F18: 5.13 | G18: 5.6 | H18: 4.53 | I18: 3.81 | J18: 3.73 | K18: 3.84 | L18: 4.98 | M18: 5.45 | N18: 4.362 | O18: 3.54 | P18: 3.43 | Q18: 3.48 | R18: 4.61 | S18: 5.14 | T18: 4.04 | U18: 3.43 | V18: 3.19 | W18: 3.31 | X18: 4.64 | Y18: 5.15 | Z18: 3.944 | AA18: 4.56 | AB18: 4.5 | AC18: 4.63 | AD18: 5.59 | AE18: 5.87 | AF18: 5.03 | AG18: 3.84 | AH18: 3.74 | AI18: 4.09 | AJ18: 5.01 | AK18: 5.51 | AL18: 4.438 | AM18: 5.04 | AN18: 5.17 | AO18: 5.33 | AP18: 5.86 | AQ18: 6.25 | AR18: 5.53 | AS18: 3.4 | AT18: 3.09 | AU18: 3.26 | AV18: 4.6 | AW18: 5.07 | AX18: 3.884 | AY18: 2.81 | AZ18: 2.66 | BA18: 2.97 | BB18: 4.44 | BC18: 4.78 | BD18: 3.532 | BE18: 4.87 | BF18: 4.78 | BG18: 5.05 | BH18: 5.67 | BI18: 6.02 | BJ18: 5.278 | BK18: 3.89 | BL18: 3.84 | BM18: 4.09 | BN18: 4.99 | BO18: 5.48 | BP18: 4.458 | BQ18: 2.87 | BR18: 2.82 | BS18: 2.7 | BT18: 3.3 | BU18: 3.57 | BV18: 3.052
B19: 15 | C19: 3.98 | D19: 3.88 | E19: 4.02 | F19: 5.17 | G19: 5.58 | H19: 4.526 | I19: 3.8 | J19: 3.69 | K19: 3.85 | L19: 4.99 | M19: 5.44 | N19: 4.354 | O19: 3.5 | P19: 3.35 | Q19: 3.49 | R19: 4.67 | S19: 5.11 | T19: 4.024 | U19: 3.43 | V19: 3.08 | W19: 3.32 | X19: 4.69 | Y19: 5.11 | Z19: 3.926 | AA19: 5.06 | AB19: 4.45 | AC19: 4.62 | AD19: 5.38 | AF19: 4.8775 | AG19: 3.82 | AH19: 3.72 | AI19: 4.1 | AJ19: 5.06 | AK19: 5.43 | AL19: 4.426 | AM19: 5.2 | AN19: 5.1 | AO19: 5.39 | AP19: 5.77 | AQ19: 6.27 | AR19: 5.546 | AS19: 3.41 | AT19: 3.04 | AU19: 3.26 | AV19: 4.64 | AW19: 5.03 | AX19: 3.876 | AY19: 2.8 | AZ19: 2.64 | BA19: 2.97 | BB19: 4.49 | BC19: 4.73 | BD19: 3.526 | BE19: 4.94 | BF19: 4.7 | BG19: 5.07 | BH19: 5.59 | BI19: 6.02 | BJ19: 5.264 | BK19: 3.89 | BL19: 3.82 | BM19: 4.04 | BN19: 5.03 | BO19: 5.47 | BP19: 4.45 | BQ19: 2.87 | BR19: 2.82 | BS19: 2.72 | BT19: 3.35 | BU19: 3.57 | BV19: 3.066
B20: 16 | C20: 3.97 | D20: 3.86 | E20: 4.02 | F20: 5.21 | G20: 5.57 | H20: 4.526 | I20: 3.78 | J20: 3.71 | K20: 3.85 | L20: 5.02 | M20: 5.46 | N20: 4.364 | O20: 3.45 | P20: 3.36 | Q20: 3.49 | R20: 4.74 | S20: 5.11 | T20: 4.03 | U20: 3.43 | V20: 3.07 | W20: 3.32 | X20: 4.74 | Y20: 5.1 | Z20: 3.932 | AA20: 4.56 | AB20: 4.51 | AC20: 4.68 | AD20: 5.4 | AF20: 4.7875 | AG20: 3.83 | AH20: 3.72 | AI20: 4.09 | AJ20: 5.1 | AK20: 5.45 | AL20: 4.438 | AM20: 5.13 | AN20: 5.05 | AO20: 5.4 | AP20: 5.79 | AQ20: 6.24 | AR20: 5.522 | AS20: 3.42 | AT20: 3.01 | AU20: 3.27 | AV20: 4.7 | AW20: 5.01 | AX20: 3.882 | AY20: 2.82 | AZ20: 2.64 | BA20: 2.98 | BB20: 4.55 | BC20: 4.7 | BD20: 3.538 | BE20: 4.78 | BF20: 4.77 | BG20: 4.96 | BH20: 5.57 | BI20: 5.99 | BJ20: 5.214 | BK20: 3.9 | BL20: 3.86 | BM20: 4.07 | BN20: 5.09 | BO20: 5.47 | BP20: 4.478 | BQ20: 2.87 | BR20: 2.82 | BS20: 2.72 | BT20: 3.35 | BU20: 3.57 | BV20: 3.066
A21: A | B21: 17 | C21: 3.97 | D21: 3.85 | E21: 4.01 | F21: 5.24 | G21: 5.55 | H21: 4.524 | I21: 3.78 | J21: 3.69 | K21: 3.82 | L21: 5.07 | M21: 5.42 | N21: 4.356 | O21: 3.43 | P21: 3.34 | Q21: 3.47 | R21: 4.78 | S21: 5.09 | T21: 4.022 | U21: 3.45 | V21: 3.07 | W21: 3.33 | X21: 4.79 | Y21: 5.06 | Z21: 3.94 | AA21: 4.57 | AB21: 4.42 | AC21: 4.75 | AD21: 5.44 | AE21: 5.85 | AF21: 5.006 | AG21: 3.85 | AH21: 3.71 | AI21: 4.1 | AJ21: 5.14 | AK21: 5.44 | AL21: 4.448 | AM21: 5.12 | AN21: 5.12 | AO21: 5.36 | AP21: 5.8 | AQ21: 6.22 | AR21: 5.524 | AS21: 3.44 | AT21: 3.01 | AU21: 3.28 | AV21: 4.77 | AW21: 4.99 | AX21: 3.898 | AY21: 2.84 | AZ21: 2.67 | BA21: 2.98 | BB21: 4.64 | BC21: 4.67 | BD21: 3.56 | BE21: 4.8 | BF21: 4.75 | BG21: 5.04 | BH21: 5.58 | BI21: 6.05 | BJ21: 5.244 | BK21: 3.94 | BL21: 3.82 | BM21: 4.07 | BN21: 5.12 | BO21: 5.44 | BP21: 4.478 | BQ21: 2.87 | BR21: 2.84 | BS21: 2.75 | BT21: 3.4 | BU21: 3.57 | BV21: 3.086
B22: 18 | C22: 3.96 | D22: 3.85 | E22: 4.01 | F22: 5.28 | G22: 5.53 | H22: 4.526 | I22: 3.77 | J22: 3.68 | K22: 3.81 | L22: 5.12 | M22: 5.39 | N22: 4.354 | O22: 3.44 | P22: 3.37 | Q22: 3.48 | R22: 4.89 | T22: 3.795 | U22: 3.46 | V22: 3.11 | W22: 3.38 | X22: 4.9 | Y22: 5.05 | Z22: 3.98 | AA22: 4.51 | AB22: 4.39 | AC22: 4.7 | AD22: 5.46 | AE22: 5.85 | AF22: 4.982 | AG22: 3.84 | AH22: 3.75 | AI22: 4.1 | AJ22: 5.18 | AK22: 5.44 | AL22: 4.462 | AM22: 5.18 | AN22: 5.06 | AO22: 5.44 | AP22: 5.83 | AQ22: 6.27 | AR22: 5.556 | AS22: 3.42 | AT22: 3.03 | AU22: 3.29 | AV22: 4.88 | AW22: 4.97 | AX22: 3.918 | AY22: 2.86 | AZ22: 2.71 | BA22: 2.99 | BB22: 4.74 | BC22: 4.64 | BD22: 3.588 | BE22: 4.8 | BF22: 4.81 | BG22: 4.98 | BH22: 5.65 | BI22: 6.02 | BJ22: 5.252 | BK22: 3.87 | BL22: 3.82 | BM22: 4.03 | BN22: 5.17 | BO22: 5.45 | BP22: 4.468 | BQ22: 2.87 | BR22: 2.84 | BS22: 2.75 | BT22: 3.4 | BU22: 3.57 | BV22: 3.086
B23: 19 | C23: 3.96 | D23: 3.85 | E23: 3.99 | F23: 5.3 | G23: 5.5 | H23: 4.52 | I23: 3.77 | J23: 3.7 | K23: 3.81 | L23: 5.15 | M23: 5.37 | N23: 4.36 | O23: 3.42 | P23: 3.34 | Q23: 3.47 | R23: 4.97 | S23: 5.05 | T23: 4.05 | U23: 3.45 | V23: 3.11 | W23: 3.43 | X23: 4.98 | Y23: 5.05 | Z23: 4.004 | AA23: 4.63 | AB23: 4.47 | AC23: 4.69 | AD23: 5.45 | AE23: 5.9 | AF23: 5.028 | AG23: 3.85 | AH23: 3.76 | AI23: 4.08 | AJ23: 5.21 | AK23: 5.44 | AL23: 4.468 | AM23: 5.05 | AN23: 5.11 | AO23: 5.48 | AP23: 5.88 | AQ23: 6.32 | AR23: 5.568 | AS23: 3.43 | AT23: 3.05 | AU23: 3.3 | AV23: 4.94 | AW23: 4.96 | AX23: 3.936 | AY23: 2.88 | AZ23: 2.74 | BA23: 2.99 | BB23: 4.79 | BC23: 4.61 | BD23: 3.602 | BE23: 4.77 | BF23: 4.68 | BG23: 5 | BH23: 5.68 | BI23: 6.07 | BJ23: 5.24 | BK23: 3.9 | BL23: 3.84 | BM23: 4.04 | BN23: 5.22 | BO23: 5.43 | BP23: 4.486 | BR23: 2.84 | BS23: 2.75 | BT23: 3.4 | BU23: 3.57 | BV23: 3.14
B24: 20 | C24: 3.96 | D24: 3.84 | E24: 3.99 | F24: 5.31 | G24: 5.48 | H24: 4.516 | I24: 3.79 | J24: 3.69 | K24: 3.81 | L24: 5.18 | M24: 5.35 | N24: 4.364 | O24: 3.38 | P24: 3.37 | Q24: 3.44 | R24: 4.98 | S24: 5.02 | T24: 4.038 | U24: 3.47 | V24: 3.14 | W24: 3.4 | X24: 5.01 | Y24: 5.06 | Z24: 4.016 | AA24: 4.52 | AB24: 4.57 | AC24: 4.74 | AD24: 5.53 | AF24: 4.84 | AG24: 3.87 | AH24: 3.8 | AI24: 4.09 | AJ24: 5.24 | AK24: 5.45 | AL24: 4.49 | AM24: 5.13 | AN24: 5.12 | AO24: 5.43 | AP24: 5.88 | AQ24: 6.29 | AR24: 5.57 | AS24: 3.45 | AT24: 3.08 | AU24: 3.34 | AV24: 4.98 | AW24: 4.97 | AX24: 3.964 | AY24: 2.9 | AZ24: 2.79 | BA24: 3.01 | BB24: 4.83 | BC24: 4.62 | BD24: 3.63 | BE24: 4.72 | BF24: 4.71 | BG24: 4.99 | BH24: 5.76 | BI24: 6.09 | BJ24: 5.254 | BK24: 3.93 | BL24: 3.87 | BM24: 4.07 | BN24: 5.23 | BO24: 5.43 | BP24: 4.506 | BQ24: 2.92 | BR24: 2.84 | BS24: 2.75 | BT24: 3.4 | BU24: 3.59 | BV24: 3.1
B25: 21 | C25: 3.97 | D25: 3.84 | E25: 3.99 | F25: 5.32 | G25: 5.48 | H25: 4.52 | I25: 3.79 | J25: 3.68 | K25: 3.81 | L25: 5.17 | M25: 5.37 | N25: 4.364 | O25: 3.44 | P25: 3.38 | Q25: 3.49 | R25: 5 | T25: 3.8275 | U25: 3.47 | V25: 3.16 | W25: 3.44 | X25: 5.03 | Y25: 5.05 | Z25: 4.03 | AA25: 4.63 | AB25: 4.49 | AC25: 4.68 | AD25: 5.56 | AE25: 5.81 | AF25: 5.034 | AG25: 3.86 | AH25: 3.82 | AI25: 4.09 | AJ25: 5.27 | AK25: 5.45 | AL25: 4.498 | AM25: 5.08 | AN25: 5.08 | AO25: 5.45 | AP25: 5.9 | AQ25: 6.3 | AR25: 5.562 | AS25: 3.46 | AT25: 3.12 | AU25: 3.35 | AV25: 5 | AW25: 4.97 | AX25: 3.98 | AY25: 2.92 | AZ25: 2.83 | BA25: 3.03 | BB25: 4.84 | BC25: 4.63 | BD25: 3.65 | BE25: 4.82 | BF25: 4.76 | BG25: 5.03 | BH25: 5.74 | BI25: 6.09 | BJ25: 5.288 | BK25: 3.91 | BL25: 3.87 | BM25: 4.07 | BN25: 5.22 | BO25: 5.45 | BP25: 4.504 | BR25: 2.84 | BS25: 2.75 | BT25: 3.4 | BU25: 3.6 | BV25: 3.1475
A26: M | B26: 22 | C26: 3.97 | D26: 3.85 | E26: 3.99 | F26: 5.33 | G26: 5.46 | H26: 4.52 | I26: 3.79 | J26: 3.69 | K26: 3.83 | L26: 5.18 | M26: 5.33 | N26: 4.364 | O26: 3.41 | P26: 3.41 | Q26: 3.47 | R26: 5.02 | S26: 5.03 | T26: 4.068 | U26: 3.49 | V26: 3.2 | W26: 3.46 | X26: 5.04 | Y26: 5.08 | Z26: 4.054 | AA26: 4.59 | AB26: 4.6 | AC26: 4.7 | AD26: 5.65 | AF26: 4.885 | AG26: 3.86 | AH26: 3.88 | AI26: 4.1 | AJ26: 5.27 | AK26: 5.47 | AL26: 4.516 | AM26: 5.08 | AN26: 5.1 | AO26: 5.42 | AP26: 5.9 | AQ26: 6.27 | AR26: 5.554 | AS26: 3.46 | AT26: 3.15 | AU26: 3.38 | AV26: 5.02 | AW26: 4.98 | AX26: 3.998 | AY26: 2.92 | AZ26: 2.86 | BA26: 3.06 | BB26: 4.86 | BC26: 4.67 | BD26: 3.674 | BE26: 4.78 | BF26: 4.79 | BG26: 5.04 | BH26: 5.8 | BI26: 6.05 | BJ26: 5.292 | BK26: 3.88 | BL26: 3.97 | BM26: 4.09 | BN26: 5.28 | BO26: 5.45 | BP26: 4.534 | BR26: 2.84 | BS26: 2.75 | BT26: 3.45 | BU26: 3.61 | BV26: 3.1625
B27: 23 | C27: 3.97 | D27: 3.84 | E27: 3.99 | F27: 5.33 | G27: 5.46 | H27: 4.518 | I27: 3.78 | J27: 3.72 | K27: 3.81 | L27: 5.2 | M27: 5.33 | N27: 4.368 | O27: 3.38 | P27: 3.37 | Q27: 3.49 | R27: 5.02 | S27: 5.01 | T27: 4.054 | U27: 3.48 | V27: 3.22 | W27: 3.47 | X27: 5.08 | Y27: 5.09 | Z27: 4.068 | AA27: 4.45 | AB27: 4.59 | AC27: 4.72 | AD27: 5.57 | AF27: 4.8325 | AG27: 3.86 | AH27: 3.95 | AI27: 4.11 | AJ27: 5.29 | AK27: 5.49 | AL27: 4.54 | AM27: 5.08 | AN27: 5.16 | AO27: 5.42 | AP27: 5.96 | AQ27: 6.29 | AR27: 5.582 | AS27: 3.46 | AT27: 3.18 | AU27: 3.4 | AV27: 5.04 | AW27: 5.02 | AX27: 4.02 | AY27: 2.92 | AZ27: 2.87 | BA27: 3.08 | BB27: 4.87 | BC27: 4.71 | BD27: 3.69 | BE27: 4.78 | BF27: 4.83 | BG27: 5.1 | BH27: 5.7 | BI27: 6.1 | BJ27: 5.302 | BK27: 3.89 | BL27: 3.98 | BM27: 4.05 | BN27: 5.29 | BO27: 5.48 | BP27: 4.538 | BR27: 2.84 | BS27: 2.73 | BT27: 3.45 | BU27: 3.62 | BV27: 3.16
B28: 24 | C28: 3.96 | D28: 3.85 | E28: 4 | F28: 5.33 | G28: 5.45 | H28: 4.518 | I28: 3.77 | J28: 3.72 | K28: 3.84 | L28: 5.2 | M28: 5.31 | N28: 4.368 | O28: 3.41 | P28: 3.39 | Q28: 3.5 | R28: 5.03 | S28: 5.05 | T28: 4.076 | U28: 3.44 | V28: 3.23 | W28: 3.48 | X28: 5.1 | Y28: 5.09 | Z28: 4.068 | AA28: 4.51 | AB28: 4.53 | AC28: 4.73 | AD28: 5.56 | AF28: 4.8325 | AG28: 3.84 | AH28: 4.01 | AI28: 4.14 | AJ28: 5.29 | AK28: 5.5 | AL28: 4.556 | AM28: 5.09 | AN28: 5.17 | AO28: 5.36 | AP28: 5.95 | AQ28: 6.29 | AR28: 5.572 | AS28: 3.45 | AT28: 3.18 | AU28: 3.43 | AV28: 5.05 | AW28: 5.03 | AX28: 4.028 | AY28: 2.91 | AZ28: 2.88 | BA28: 3.11 | BB28: 4.87 | BC28: 4.71 | BD28: 3.696 | BE28: 4.75 | BF28: 4.73 | BG28: 5.02 | BH28: 5.74 | BI28: 6.06 | BJ28: 5.26 | BK28: 3.93 | BL28: 4.05 | BM28: 4.11 | BN28: 5.31 | BO28: 5.47 | BP28: 4.574 | BR28: 2.84 | BS28: 2.73 | BT28: 3.45 | BU28: 3.62 | BV28: 3.16
B29: 25 | C29: 3.95 | D29: 3.85 | E29: 4.01 | F29: 5.33 | G29: 5.43 | H29: 4.514 | I29: 3.77 | J29: 3.71 | K29: 3.84 | L29: 5.19 | M29: 5.27 | N29: 4.356 | O29: 3.36 | P29: 3.4 | Q29: 3.47 | R29: 5.03 | S29: 5.04 | T29: 4.06 | U29: 3.46 | V29: 3.23 | W29: 3.52 | X29: 5.12 | Y29: 5.09 | Z29: 4.084 | AA29: 4.4 | AB29: 4.62 | AC29: 4.78 | AD29: 5.52 | AF29: 4.83 | AG29: 3.83 | AH29: 4.03 | AI29: 4.1 | AJ29: 5.29 | AK29: 5.48 | AL29: 4.546 | AM29: 5.03 | AN29: 5.16 | AO29: 5.45 | AP29: 5.95 | AQ29: 6.29 | AR29: 5.576 | AS29: 3.44 | AT29: 3.18 | AU29: 3.44 | AV29: 5.05 | AW29: 5.02 | AX29: 4.026 | AY29: 2.89 | AZ29: 2.88 | BA29: 3.12 | BB29: 4.87 | BC29: 4.7 | BD29: 3.692 | BE29: 4.77 | BF29: 4.86 | BG29: 5.09 | BH29: 5.75 | BI29: 6.13 | BJ29: 5.32 | BK29: 3.89 | BL29: 4.07 | BM29: 4.06 | BN29: 5.3 | BO29: 5.46 | BP29: 4.556 | BR29: 2.82 | BS29: 2.73 | BT29: 3.45 | BU29: 3.62 | BV29: 3.155
A30: J | B30: 26 | C30: 3.94 | D30: 3.85 | E30: 4.01 | F30: 5.33 | G30: 5.39 | H30: 4.504 | I30: 3.75 | J30: 3.72 | K30: 3.82 | L30: 5.2 | M30: 5.24 | N30: 4.346 | O30: 3.37 | P30: 3.39 | Q30: 3.53 | R30: 5.01 | S30: 5.02 | T30: 4.064 | U30: 3.47 | V30: 3.23 | W30: 3.53 | X30: 5.11 | Y30: 5.05 | Z30: 4.078 | AA30: 4.54 | AB30: 4.6 | AC30: 4.68 | AD30: 5.49 | AF30: 4.8275 | AG30: 3.84 | AH30: 4.07 | AI30: 4.12 | AJ30: 5.3 | AK30: 5.48 | AL30: 4.562 | AM30: 5.07 | AN30: 5.13 | AO30: 5.45 | AP30: 5.98 | AQ30: 6.3 | AR30: 5.586 | AS30: 3.43 | AT30: 3.19 | AU30: 3.46 | AV30: 5.05 | AW30: 4.99 | AX30: 4.024 | AY30: 2.89 | AZ30: 2.87 | BA30: 3.14 | BB30: 4.88 | BC30: 4.66 | BD30: 3.688 | BE30: 4.75 | BF30: 4.97 | BG30: 5.06 | BH30: 5.68 | BI30: 6.05 | BJ30: 5.302 | BK30: 3.89 | BL30: 4.05 | BM30: 4.11 | BN30: 5.29 | BO30: 5.47 | BP30: 4.562 | BR30: 2.82 | BS30: 2.73 | BT30: 3.43 | BU30: 3.62 | BV30: 3.15
B31: 27 | C31: 3.94 | D31: 3.85 | E31: 4.01 | F31: 5.33 | G31: 5.37 | H31: 4.5 | I31: 3.76 | J31: 3.71 | K31: 3.85 | L31: 5.19 | M31: 5.21 | N31: 4.344 | O31: 3.33 | P31: 3.4 | Q31: 3.5 | R31: 5.05 | S31: 4.97 | T31: 4.05 | U31: 3.44 | V31: 3.23 | W31: 3.55 | X31: 5.13 | Y31: 5.01 | Z31: 4.072 | AA31: 4.51 | AB31: 4.59 | AC31: 4.76 | AD31: 5.61 | AF31: 4.8675 | AG31: 3.84 | AH31: 4.05 | AI31: 4.14 | AJ31: 5.29 | AK31: 5.46 | AL31: 4.556 | AM31: 5.07 | AN31: 5.13 | AO31: 5.37 | AP31: 5.94 | AQ31: 6.24 | AR31: 5.55 | AS31: 3.44 | AT31: 3.19 | AU31: 3.46 | AV31: 5.05 | AW31: 4.96 | AX31: 4.02 | AY31: 2.89 | AZ31: 2.87 | BA31: 3.15 | BB31: 4.87 | BC31: 4.62 | BD31: 3.68 | BE31: 4.72 | BF31: 4.79 | BG31: 4.99 | BH31: 5.8 | BI31: 6.09 | BJ31: 5.278 | BK31: 3.89 | BL31: 4.08 | BM31: 4.08 | BN31: 5.31 | BO31: 5.46 | BP31: 4.564 | BR31: 2.8 | BS31: 2.73 | BT31: 3.43 | BU31: 3.61 | BV31: 3.1425
B32: 28 | C32: 3.93 | D32: 3.85 | E32: 4.02 | F32: 5.31 | G32: 5.33 | H32: 4.488 | I32: 3.75 | J32: 3.7 | K32: 3.85 | L32: 5.17 | M32: 5.17 | N32: 4.328 | O32: 3.34 | P32: 3.37 | Q32: 3.51 | R32: 5.06 | S32: 4.92 | T32: 4.04 | U32: 3.44 | V32: 3.22 | W32: 3.53 | X32: 5.13 | Y32: 5 | Z32: 4.064 | AA32: 4.6 | AB32: 4.56 | AC32: 4.77 | AD32: 5.57 | AF32: 4.875 | AG32: 3.83 | AH32: 4.06 | AI32: 4.14 | AJ32: 5.28 | AK32: 5.44 | AL32: 4.55 | AM32: 5.09 | AN32: 5.16 | AO32: 5.39 | AP32: 5.95 | AQ32: 6.29 | AR32: 5.576 | AS32: 3.43 | AT32: 3.19 | AU32: 3.48 | AV32: 5.06 | AW32: 4.93 | AX32: 4.018 | AY32: 2.87 | AZ32: 2.88 | BA32: 3.16 | BB32: 4.87 | BC32: 4.57 | BD32: 3.67 | BE32: 4.7 | BF32: 4.84 | BG32: 5.13 | BH32: 5.75 | BI32: 6.1 | BJ32: 5.304 | BK32: 3.9 | BL32: 4.09 | BM32: 4.13 | BN32: 5.3 | BO32: 5.42 | BP32: 4.568 | BR32: 2.8 | BS32: 2.73 | BT32: 3.43 | BU32: 3.52 | BV32: 3.12
B33: 29 | C33: 3.94 | D33: 3.86 | E33: 4.03 | F33: 5.31 | G33: 5.31 | H33: 4.49 | I33: 3.73 | J33: 3.69 | K33: 3.87 | L33: 5.16 | M33: 5.16 | N33: 4.322 | O33: 3.35 | P33: 3.37 | Q33: 3.5 | R33: 5.04 | S33: 4.9 | T33: 4.032 | U33: 3.45 | V33: 3.24 | W33: 3.57 | X33: 5.14 | Y33: 5.01 | Z33: 4.082 | AA33: 4.47 | AB33: 4.53 | AC33: 4.75 | AD33: 5.6 | AF33: 4.8375 | AG33: 3.82 | AH33: 4.09 | AI33: 4.13 | AJ33: 5.3 | AK33: 5.44 | AL33: 4.556 | AM33: 5.06 | AN33: 5.2 | AO33: 5.38 | AP33: 5.97 | AQ33: 6.33 | AR33: 5.588 | AS33: 3.44 | AT33: 3.2 | AU33: 3.48 | AV33: 5.08 | AW33: 4.89 | AX33: 4.018 | AY33: 2.86 | AZ33: 2.88 | BA33: 3.18 | BB33: 4.9 | BC33: 4.53 | BD33: 3.67 | BE33: 4.81 | BF33: 4.79 | BG33: 4.98 | BH33: 5.78 | BI33: 6.01 | BJ33: 5.274 | BK33: 3.87 | BL33: 4.1 | BM33: 4.11 | BN33: 5.3 | BO33: 5.43 | BP33: 4.562 | BR33: 2.8 | BS33: 2.73 | BT33: 3.43 | BU33: 3.5 | BV33: 3.115
A34: J | B34: 30 | C34: 3.95 | D34: 3.85 | E34: 4.05 | F34: 5.3 | G34: 5.29 | H34: 4.488 | I34: 3.76 | J34: 3.69 | K34: 3.9 | L34: 5.16 | M34: 5.11 | N34: 4.324 | O34: 3.35 | P34: 3.38 | Q34: 3.54 | R34: 5.04 | S34: 4.86 | T34: 4.034 | U34: 3.43 | V34: 3.24 | W34: 3.59 | X34: 5.13 | Y34: 4.98 | Z34: 4.074 | AA34: 4.42 | AB34: 4.52 | AC34: 4.73 | AD34: 5.56 | AF34: 4.8075 | AG34: 3.77 | AH34: 4.08 | AI34: 4.13 | AJ34: 5.28 | AK34: 5.42 | AL34: 4.536 | AM34: 5.08 | AN34: 5.19 | AO34: 5.49 | AP34: 5.86 | AQ34: 6.3 | AR34: 5.584 | AS34: 3.4 | AT34: 3.21 | AU34: 3.5 | AV34: 5.08 | AW34: 4.88 | AX34: 4.014 | AY34: 2.84 | AZ34: 2.88 | BA34: 3.2 | BB34: 4.87 | BC34: 4.5 | BD34: 3.658 | BE34: 4.63 | BF34: 4.87 | BG34: 4.95 | BH34: 5.69 | BI34: 6.05 | BJ34: 5.238 | BK34: 3.84 | BL34: 4.06 | BM34: 4.1 | BN34: 5.29 | BO34: 5.43 | BP34: 4.544 | BQ34: 2.8 | BR34: 2.8 | BS34: 2.73 | BT34: 3.43 | BU34: 3.45 | BV34: 3.042
B35: 31 | C35: 3.96 | D35: 3.85 | E35: 4.07 | F35: 5.29 | G35: 5.24 | H35: 4.482 | I35: 3.78 | J35: 3.68 | K35: 3.9 | L35: 5.16 | M35: 5.09 | N35: 4.322 | O35: 3.34 | P35: 3.37 | Q35: 3.54 | R35: 5.04 | S35: 4.84 | T35: 4.026 | U35: 3.41 | V35: 3.24 | W35: 3.6 | X35: 5.14 | Y35: 4.96 | Z35: 4.07 | AA35: 4.52 | AB35: 4.52 | AC35: 4.67 | AD35: 5.5 | AF35: 4.8025 | AG35: 3.79 | AH35: 4.07 | AI35: 4.16 | AJ35: 5.19 | AK35: 5.44 | AL35: 4.53 | AM35: 5.05 | AN35: 5.24 | AO35: 5.44 | AP35: 5.9 | AQ35: 6.32 | AR35: 5.59 | AS35: 3.37 | AT35: 3.21 | AU35: 3.52 | AV35: 5.07 | AW35: 4.86 | AX35: 4.006 | AY35: 2.8 | AZ35: 2.88 | BA35: 3.22 | BB35: 4.86 | BC35: 4.48 | BD35: 3.648 | BE35: 4.66 | BF35: 4.81 | BG35: 4.97 | BH35: 5.65 | BI35: 6 | BJ35: 5.218 | BK35: 3.87 | BL35: 4.09 | BM35: 4.09 | BN35: 5.21 | BO35: 5.41 | BP35: 4.534 | BQ35: 2.8 | BR35: 2.77 | BS35: 2.73 | BT35: 3.4 | BU35: 3.45 | BV35: 3.03
B36: 32 | C36: 3.97 | D36: 3.83 | E36: 4.11 | F36: 5.28 | G36: 5.24 | H36: 4.486 | I36: 3.78 | J36: 3.66 | K36: 3.91 | L36: 5.15 | M36: 5.06 | N36: 4.312 | O36: 3.35 | P36: 3.35 | Q36: 3.56 | R36: 5.03 | S36: 4.83 | T36: 4.024 | U36: 3.41 | V36: 3.24 | W36: 3.61 | X36: 5.14 | Y36: 4.96 | Z36: 4.072 | AA36: 4.43 | AB36: 4.59 | AC36: 4.78 | AD36: 5.53 | AE36: 5.85 | AF36: 5.036 | AG36: 3.76 | AH36: 4.08 | AI36: 4.15 | AJ36: 5.28 | AK36: 5.45 | AL36: 4.544 | AM36: 5.02 | AN36: 5.13 | AO36: 5.41 | AP36: 5.92 | AQ36: 6.38 | AR36: 5.572 | AS36: 3.35 | AT36: 3.2 | AU36: 3.53 | AV36: 5.08 | AW36: 4.87 | AX36: 4.006 | AY36: 2.77 | AZ36: 2.87 | BA36: 3.25 | BB36: 4.86 | BC36: 4.49 | BD36: 3.648 | BE36: 4.69 | BF36: 4.93 | BG36: 5.05 | BH36: 5.79 | BI36: 6.02 | BJ36: 5.296 | BK36: 3.83 | BL36: 4.06 | BM36: 4.14 | BN36: 5.29 | BO36: 5.41 | BP36: 4.546 | BQ36: 2.8 | BR36: 2.77 | BS36: 2.73 | BT36: 3.35 | BU36: 3.45 | BV36: 3.02
B37: 33 | C37: 3.99 | D37: 3.82 | E37: 4.11 | F37: 5.29 | G37: 5.25 | H37: =AVERAGE(C37:G37) -> 4.492 | I37: 3.78 | J37: 3.66 | K37: 3.92 | L37: 5.14 | M37: 5.07 | N37: =AVERAGE(I37:M37) -> 4.314 | O37: 3.33 | P37: 3.35 | Q37: 3.56 | R37: 5.02 | S37: 4.86 | T37: =AVERAGE(O37:S37) -> 4.024 | U37: 3.4 | V37: 3.24 | W37: 3.63 | X37: 5.14 | Y37: 5.02 | Z37: =AVERAGE(U37:Y37) -> 4.086 | AA37: 4.46 | AB37: 4.46 | AC37: 4.79 | AD37: 5.61 | AF37: =AVERAGE(AA37:AE37) -> 4.83 | AG37: 3.75 | AH37: 4.09 | AI37: 4.16 | AJ37: 5.29 | AK37: 5.46 | AL37: =AVERAGE(AG37:AK37) -> 4.55 | AM37: 5.05 | AN37: 5.16 | AO37: 5.48 | AP37: 5.95 | AQ37: 6.33 | AR37: =AVERAGE(AM37:AQ37) -> 5.594 | AS37: 3.37 | AT37: 3.21 | AU37: 3.56 | AV37: 5.08 | AW37: 4.93 | AX37: =AVERAGE(AS37:AW37) -> 4.03 | AY37: 2.77 | AZ37: 2.88 | BA37: 3.26 | BB37: 4.87 | BC37: 4.54 | BD37: =AVERAGE(AY37:BC37) -> 3.664 | BE37: 4.77 | BF37: 4.83 | BG37: 5.07 | BH37: 5.75 | BJ37: =AVERAGE(BE37:BI37) -> 5.105 | BK37: 3.88 | BL37: 4.03 | BM37: 4.1 | BN37: 5.31 | BO37: 5.46 | BP37: =AVERAGE(BK37:BO37) -> 4.556 | BQ37: 2.8 | BR37: 2.77 | BS37: 2.73 | BT37: 3.35 | BU37: 3.45 | BV37: =AVERAGE(BQ37:BU37) -> 3.02
B38: 34 | C38: 4 | D38: 3.81 | E38: 4.14 | F38: 5.3 | G38: 5.27 | H38: 4.504 | I38: 3.82 | J38: 3.66 | K38: 3.96 | L38: 5.15 | M38: 5.12 | N38: 4.342 | O38: 3.36 | P38: 3.34 | Q38: 3.6 | R38: 5.04 | S38: 4.9 | T38: 4.048 | U38: 3.4 | V38: 3.25 | W38: 3.64 | X38: 5.13 | Y38: 5.04 | Z38: 4.092 | AA38: 4.45 | AB38: 4.57 | AC38: 4.78 | AD38: 5.58 | AF38: 4.845 | AG38: 3.76 | AH38: 4.08 | AI38: 4.19 | AJ38: 5.29 | AK38: 5.52 | AL38: 4.568 | AM38: 5.07 | AN38: 5.24 | AO38: 5.43 | AP38: 5.95 | AQ38: 6.37 | AR38: 5.612 | AS38: 3.39 | AT38: 3.21 | AU38: 3.58 | AV38: 5.08 | AW38: 4.96 | AX38: 4.044 | AY38: 2.79 | AZ38: 2.88 | BA38: 3.29 | BB38: 4.86 | BC38: 4.6 | BD38: 3.684 | BE38: 4.76 | BF38: 4.83 | BG38: 5.13 | BH38: 5.75 | BI38: 6.19 | BJ38: 5.332 | BK38: 3.83 | BL38: 4.03 | BM38: 4.14 | BN38: 5.3 | BO38: 5.46 | BP38: 4.552 | BQ38: 2.8 | BR38: 2.72 | BS38: 2.73 | BT38: 3.35 | BU38: 3.46 | BV38: 3.012
A39: A | B39: 35 | C39: 4.01 | D39: 3.81 | E39: 4.15 | F39: 5.29 | G39: 5.3 | H39: 4.512 | I39: 3.82 | J39: 3.65 | K39: 3.98 | L39: 5.16 | M39: 5.15 | N39: 4.352 | O39: 3.35 | P39: 3.34 | Q39: 3.6 | R39: 5.04 | S39: 4.96 | T39: 4.058 | U39: 3.43 | V39: 3.23 | W39: 3.65 | X39: 5.14 | Y39: 5.07 | Z39: 4.104 | AA39: 4.52 | AB39: 4.52 | AC39: 4.89 | AD39: 5.59 | AF39: 4.88 | AG39: 3.8 | AH39: 4.1 | AI39: 4.21 | AJ39: 5.31 | AK39: 5.56 | AL39: 4.596 | AM39: 5.33 | AN39: 5.23 | AO39: 5.49 | AP39: 5.97 | AQ39: 6.38 | AR39: 5.68 | AS39: 3.37 | AT39: 3.21 | AU39: 3.58 | AV39: 5.08 | AW39: 4.99 | AX39: 4.046 | AY39: 2.81 | AZ39: 2.88 | BA39: 3.3 | BB39: 4.86 | BC39: 4.66 | BD39: 3.702 | BE39: 4.78 | BF39: 4.88 | BG39: 5.11 | BH39: 5.76 | BI39: 6.2 | BJ39: 5.346 | BK39: 3.87 | BL39: 4.04 | BM39: 4.19 | BN39: 5.31 | BO39: 5.52 | BP39: 4.586 | BQ39: 2.8 | BR39: 2.69 | BS39: 2.76 | BT39: 3.38 | BU39: 3.47 | BV39: 3.02
B40: 36 | C40: 4.02 | D40: 3.8 | E40: 4.17 | F40: 5.29 | G40: 5.33 | H40: 4.522 | I40: 3.82 | J40: 3.65 | K40: 4.02 | L40: 5.17 | M40: 5.2 | N40: 4.372 | O40: 3.41 | P40: 3.35 | Q40: 3.6 | R40: 5.06 | S40: 5.01 | T40: 4.086 | U40: 3.41 | V40: 3.24 | W40: 3.66 | X40: 5.13 | Y40: 5.1 | Z40: 4.108 | AA40: 4.6 | AB40: 4.6 | AC40: 4.87 | AD40: 5.6 | AF40: 4.9175 | AG40: 3.81 | AH40: 4.08 | AI40: 4.21 | AJ40: 5.32 | AK40: 5.58 | AL40: 4.6 | AM40: 5.11 | AN40: 5.16 | AO40: 5.44 | AP40: 5.97 | AQ40: 6.35 | AR40: 5.606 | AS40: 3.37 | AT40: 3.21 | AU40: 3.59 | AV40: 5.1 | AW40: 5.03 | AX40: 4.06 | AY40: 2.82 | AZ40: 2.89 | BA40: 3.31 | BB40: 4.86 | BC40: 4.7 | BD40: 3.716 | BE40: 4.8 | BF40: 4.85 | BG40: 5.13 | BH40: 5.73 | BI40: 6.15 | BJ40: 5.332 | BK40: 3.86 | BL40: 4.03 | BM40: 4.17 | BN40: 5.32 | BO40: 5.53 | BP40: 4.582 | BQ40: 2.8 | BR40: 2.69 | BS40: 2.76 | BT40: 3.4 | BU40: 3.5 | BV40: 3.03
B41: 37 | C41: 4.02 | D41: 3.82 | E41: 4.19 | F41: 5.3 | G41: 5.38 | H41: 4.542 | I41: 3.84 | J41: 3.63 | K41: 4.01 | L41: 5.18 | M41: 5.22 | N41: 4.376 | O41: 3.41 | P41: 3.36 | Q41: 3.61 | R41: 5.05 | S41: 5.01 | T41: 4.088 | U41: 3.4 | V41: 3.26 | W41: 3.68 | X41: 5.16 | Y41: 5.09 | Z41: 4.118 | AA41: 4.56 | AB41: 4.75 | AC41: 4.78 | AD41: 5.61 | AF41: 4.925 | AG41: 3.78 | AH41: 4.07 | AI41: 4.23 | AJ41: 5.34 | AK41: 5.56 | AL41: 4.596 | AM41: 5.1 | AN41: 5.22 | AO41: 5.43 | AP41: 6.01 | AQ41: 6.36 | AR41: 5.624 | AS41: 3.35 | AT41: 3.22 | AU41: 3.6 | AV41: 5.11 | AW41: 5.05 | AX41: 4.066 | AY41: 2.82 | AZ41: 2.88 | BA41: 3.31 | BB41: 4.87 | BC41: 4.71 | BD41: 3.718 | BE41: 4.8 | BF41: 4.87 | BG41: 5.04 | BH41: 5.76 | BI41: 6.11 | BJ41: 5.316 | BK41: 3.84 | BL41: 4.04 | BM41: 4.19 | BN41: 5.34 | BO41: 5.53 | BP41: 4.588 | BQ41: 2.77 | BR41: 2.69 | BS41: 2.76 | BT41: 3.4 | BU41: 3.58 | BV41: 3.04
B42: 38 | C42: 4.01 | D42: 3.79 | E42: 4.2 | F42: 5.3 | G42: 5.41 | H42: 4.542 | I42: 3.82 | J42: 3.63 | K42: 4.03 | L42: 5.17 | M42: 5.23 | N42: 4.376 | O42: 3.4 | P42: 3.33 | Q42: 3.6 | R42: 5.06 | T42: 3.8475 | U42: 3.42 | V42: 3.25 | W42: 3.66 | X42: 5.15 | Y42: 5.07 | Z42: 4.11 | AA42: 4.67 | AB42: 4.71 | AC42: 4.84 | AD42: 5.69 | AF42: 4.9775 | AG42: 3.78 | AH42: 4.08 | AI42: 4.21 | AJ42: 5.35 | AK42: 5.55 | AL42: 4.594 | AM42: 5.09 | AN42: 5.26 | AO42: 5.5 | AP42: 6.01 | AQ42: 6.4 | AR42: 5.652 | AS42: 3.34 | AT42: 3.22 | AU42: 3.6 | AV42: 5.11 | AW42: 5.04 | AX42: 4.062 | AY42: 2.79 | AZ42: 2.88 | BA42: 3.31 | BB42: 4.9 | BC42: 4.67 | BD42: 3.71 | BE42: 4.77 | BF42: 4.84 | BG42: 5.1 | BH42: 5.75 | BI42: 6.21 | BJ42: 5.334 | BK42: 3.83 | BL42: 4.02 | BM42: 4.16 | BN42: 5.34 | BO42: 5.51 | BP42: 4.572 | BQ42: 2.77 | BR42: 2.69 | BS42: 2.8 | BT42: 3.45 | BU42: 3.59 | BV42: 3.06
A43: S | B43: 39 | C43: 3.99 | D43: 3.79 | E43: 4.22 | F43: 5.31 | G43: 5.42 | H43: 4.546 | I43: 3.8 | J43: 3.65 | K43: 4.05 | L43: 5.19 | M43: 5.26 | N43: 4.39 | O43: 3.36 | P43: 3.3 | Q43: 3.66 | R43: 5.07 | T43: 3.8475 | U43: 3.35 | V43: 3.24 | W43: 3.68 | X43: 5.19 | Y43: 5.06 | Z43: 4.104 | AA43: 4.52 | AB43: 4.62 | AC43: 4.89 | AD43: 5.81 | AF43: 4.96 | AG43: 3.76 | AH43: 4.09 | AI43: 4.21 | AJ43: 5.35 | AK43: 5.54 | AL43: 4.59 | AM43: 5.08 | AN43: 5.14 | AO43: 5.51 | AP43: 6.02 | AQ43: 6.34 | AR43: 5.618 | AS43: 3.31 | AT43: 3.22 | AU43: 3.6 | AV43: 5.13 | AW43: 4.99 | AX43: 4.05 | AY43: 2.75 | AZ43: 2.88 | BA43: 3.31 | BB43: 4.91 | BC43: 4.65 | BD43: 3.7 | BE43: 4.72 | BF43: 4.84 | BG43: 5.11 | BH43: 5.74 | BI43: 6.19 | BJ43: 5.32 | BK43: 3.81 | BL43: 4.07 | BM43: 4.17 | BN43: 5.36 | BO43: 5.53 | BP43: 4.588 | BQ43: 2.77 | BR43: 2.67 | BS43: 2.8 | BT43: 3.45 | BU43: 3.59 | BV43: 3.056
B44: 40 | C44: 3.98 | D44: 3.8 | E44: 4.26 | F44: 5.32 | G44: 5.42 | H44: 4.556 | I44: 3.8 | J44: 3.65 | K44: 4.07 | L44: 5.2 | M44: 5.27 | N44: 4.398 | O44: 3.4 | P44: 3.3 | Q44: 3.62 | R44: 5.07 | S44: 4.98 | T44: 4.074 | U44: 3.34 | V44: 3.25 | W44: 3.67 | X44: 5.19 | Y44: 5.05 | Z44: 4.1 | AA44: 4.63 | AB44: 4.58 | AC44: 4.84 | AF44: 4.683333333 | AG44: 3.75 | AH44: 4.07 | AI44: 4.23 | AJ44: 5.39 | AK44: 5.56 | AL44: 4.6 | AM44: 5.16 | AN44: 5.19 | AO44: 5.43 | AP44: 6 | AQ44: 6.41 | AR44: 5.638 | AS44: 3.28 | AT44: 3.21 | AU44: 3.6 | AV44: 5.13 | AW44: 4.95 | AX44: 4.034 | AY44: 2.71 | AZ44: 2.88 | BA44: 3.3 | BB44: 4.91 | BC44: 4.6 | BD44: 3.68 | BE44: 4.75 | BF44: 4.9 | BG44: 5.11 | BH44: 5.76 | BI44: 6.18 | BJ44: 5.34 | BK44: 3.83 | BL44: 4.04 | BM44: 4.16 | BN44: 5.37 | BO44: 5.53 | BP44: 4.586 | BQ44: 2.76 | BR44: 2.67 | BS44: 2.82 | BT44: 3.45 | BU44: 3.56 | BV44: 3.052
B45: 41 | C45: 3.97 | D45: 3.79 | E45: 4.28 | F45: 5.34 | G45: 5.43 | H45: 4.562 | I45: 3.79 | J45: 3.62 | K45: 4.1 | L45: 5.21 | M45: 5.27 | N45: 4.398 | O45: 3.36 | P45: 3.32 | Q45: 3.65 | R45: 5.08 | S45: 4.97 | T45: 4.076 | U45: 3.3 | V45: 3.25 | W45: 3.66 | X45: 5.19 | Y45: 5.01 | Z45: 4.082 | AA45: 4.51 | AB45: 4.57 | AC45: 4.79 | AD45: 5.72 | AF45: 4.8975 | AG45: 3.74 | AH45: 4.07 | AI45: 4.21 | AJ45: 5.42 | AK45: 5.53 | AL45: 4.594 | AM45: 5.05 | AN45: 5.17 | AO45: 5.49 | AP45: 6.02 | AQ45: 6.36 | AR45: 5.618 | AS45: 3.25 | AT45: 3.21 | AU45: 3.61 | AV45: 5.14 | AW45: 4.92 | AX45: 4.026 | AY45: 2.67 | AZ45: 2.87 | BA45: 3.31 | BB45: 4.92 | BC45: 4.55 | BD45: 3.664 | BE45: 4.64 | BF45: 4.85 | BG45: 5.06 | BH45: 5.86 | BI45: 6.17 | BJ45: 5.316 | BK45: 3.86 | BL45: 4.03 | BM45: 4.15 | BN45: 5.38 | BO45: 5.49 | BP45: 4.582 | BQ45: 2.74 | BR45: 2.67 | BS45: 2.82 | BT45: 3.45 | BU45: 3.49 | BV45: 3.034
B46: 42 | C46: 3.97 | D46: 3.78 | E46: 4.32 | F46: 5.35 | G46: 5.42 | H46: 4.568 | I46: 3.77 | J46: 3.62 | K46: 4.14 | L46: 5.23 | M46: 5.26 | N46: 4.404 | O46: 3.38 | P46: 3.33 | Q46: 3.67 | R46: 5.1 | S46: 4.93 | T46: 4.082 | U46: 3.28 | V46: 3.22 | W46: 3.7 | X46: 5.2 | Y46: 4.94 | Z46: 4.068 | AA46: 4.6 | AB46: 4.68 | AC46: 4.92 | AF46: 4.733333333 | AG46: 3.75 | AH46: 4.1 | AI46: 4.23 | AJ46: 5.42 | AK46: 5.53 | AL46: 4.606 | AM46: 5.13 | AN46: 5.14 | AO46: 5.5 | AP46: 6.04 | AQ46: 6.39 | AR46: 5.64 | AS46: 3.23 | AT46: 3.21 | AU46: 3.63 | AV46: 5.14 | AW46: 4.88 | AX46: 4.018 | AY46: 2.62 | AZ46: 2.86 | BA46: 3.34 | BB46: 4.92 | BC46: 4.51 | BD46: 3.65 | BE46: 4.73 | BF46: 4.86 | BG46: 5.06 | BH46: 5.83 | BI46: 6.19 | BJ46: 5.334 | BK46: 3.81 | BL46: 4.02 | BM46: 4.19 | BN46: 5.37 | BO46: 5.51 | BP46: 4.58 | BQ46: 2.74 | BR46: 2.64 | BS46: 2.82 | BT46: 3.48 | BU46: 3.49 | BV46: 3.034
B47: 43 | C47: 3.97 | D47: 3.79 | E47: 4.36 | F47: 5.36 | G47: 5.4 | H47: 4.576 | I47: 3.78 | J47: 3.6 | K47: 4.2 | L47: 5.25 | M47: 5.26 | N47: 4.418 | O47: 3.35 | P47: 3.35 | Q47: 3.69 | R47: 5.09 | S47: 4.93 | T47: 4.082 | U47: 3.26 | V47: 3.25 | W47: 3.7 | X47: 5.19 | Y47: 4.93 | Z47: 4.066 | AA47: 4.43 | AB47: 4.53 | AC47: 4.87 | AD47: 5.66 | AF47: 4.8725 | AG47: 3.73 | AH47: 4.09 | AI47: 4.26 | AJ47: 5.41 | AK47: 5.51 | AL47: 4.6 | AM47: 5.01 | AN47: 5.19 | AO47: 5.48 | AP47: 6.06 | AQ47: 6.46 | AR47: 5.64 | AS47: 3.2 | AT47: 3.21 | AU47: 3.65 | AV47: 5.13 | AW47: 4.85 | AX47: 4.008 | AY47: 2.58 | AZ47: 2.87 | BA47: 3.35 | BB47: 4.89 | BC47: 4.44 | BD47: 3.626 | BE47: 4.79 | BF47: 4.83 | BG47: 5.14 | BH47: 5.84 | BI47: 6.13 | BJ47: 5.346 | BK47: 3.83 | BL47: 4.02 | BM47: 4.19 | BN47: 5.38 | BO47: 5.49 | BP47: 4.582 | BQ47: 2.74 | BR47: 2.62 | BS47: 2.82 | BT47: 3.48 | BU47: 3.45 | BV47: 3.022
A48: O | B48: 44 | C48: 3.98 | D48: 3.8 | E48: 4.41 | F48: 5.38 | G48: 5.4 | H48: 4.594 | I48: 3.81 | J48: 3.6 | K48: 4.25 | L48: 5.25 | M48: 5.25 | N48: 4.432 | O48: 3.39 | P48: 3.34 | Q48: 3.7 | S48: 4.89 | T48: 3.83 | U48: 3.24 | V48: 3.24 | W48: 3.73 | X48: 5.16 | Y48: 4.91 | Z48: 4.056 | AA48: 4.66 | AB48: 4.58 | AC48: 4.95 | AF48: 4.73 | AG48: 3.73 | AH48: 4.07 | AI48: 4.27 | AJ48: 5.43 | AK48: 5.51 | AL48: 4.602 | AM48: 5.09 | AN48: 5.22 | AO48: 5.52 | AP48: 6.04 | AQ48: 6.42 | AR48: 5.658 | AS48: 3.18 | AT48: 3.19 | AU48: 3.66 | AV48: 5.09 | AW48: 4.78 | AX48: 3.98 | AY48: 2.55 | AZ48: 2.85 | BA48: 3.38 | BB48: 4.86 | BC48: 4.35 | BD48: 3.598 | BE48: 4.73 | BF48: 4.81 | BG48: 5.13 | BH48: 5.83 | BJ48: 5.125 | BK48: 3.83 | BL48: 4.01 | BM48: 4.23 | BN48: 5.38 | BO48: 5.51 | BP48: 4.592 | BQ48: 2.72 | BR48: 2.62 | BS48: 2.82 | BT48: 3.48 | BU48: 3.45 | BV48: 3.018
B49: 45 | C49: 4 | D49: 3.78 | E49: 4.46 | F49: 5.39 | G49: 5.39 | H49: 4.604 | I49: 3.81 | J49: 3.61 | K49: 4.29 | L49: 5.27 | M49: 5.24 | N49: 4.444 | O49: 3.42 | P49: 3.35 | Q49: 3.7 | R49: 5.07 | S49: 4.85 | T49: 4.078 | U49: 3.23 | V49: 3.23 | W49: 3.75 | X49: 5.14 | Y49: 4.85 | Z49: 4.04 | AA49: 4.56 | AB49: 4.53 | AC49: 4.85 | AF49: 4.646666667 | AG49: 3.7 | AH49: 4.06 | AI49: 4.31 | AJ49: 5.42 | AK49: 5.48 | AL49: 4.594 | AM49: 5.02 | AN49: 5.1 | AO49: 5.56 | AP49: 6.11 | AQ49: 6.4 | AR49: 5.638 | AS49: 3.17 | AT49: 3.18 | AU49: 3.69 | AV49: 5.07 | AW49: 4.71 | AX49: 3.964 | AY49: 2.54 | AZ49: 2.82 | BA49: 3.4 | BB49: 4.82 | BC49: 4.26 | BD49: 3.568 | BE49: 4.72 | BF49: 4.91 | BG49: 5.18 | BH49: 5.88 | BI49: 6.23 | BJ49: 5.384 | BK49: 3.85 | BL49: 3.95 | BM49: 4.23 | BN49: 5.4 | BO49: 5.44 | BP49: 4.574 | BQ49: 2.72 | BR49: 2.62 | BS49: 2.82 | BT49: 3.5 | BU49: 3.4 | BV49: 3.012
B50: 46 | C50: 4.01 | D50: 3.77 | E50: 4.49 | F50: 5.42 | G50: 5.41 | H50: 4.62 | I50: 3.84 | J50: 3.61 | K50: 4.34 | L50: 5.3 | M50: 5.24 | N50: 4.466 | O50: 3.4 | P50: 3.37 | Q50: 3.74 | R50: 5.07 | S50: 4.81 | T50: 4.078 | U50: 3.22 | V50: 3.19 | W50: 3.74 | X50: 5.09 | Y50: 4.69 | Z50: 3.986 | AA50: 4.61 | AB50: 4.59 | AC50: 4.89 | AF50: 4.696666667 | AG50: 3.73 | AH50: 4.07 | AI50: 4.32 | AJ50: 5.4 | AK50: 5.46 | AL50: 4.596 | AM50: 5.1 | AN50: 5.2 | AO50: 5.53 | AP50: 6.06 | AQ50: 6.43 | AR50: 5.664 | AS50: 3.15 | AT50: 3.13 | AU50: 3.71 | AV50: 5.05 | AW50: 4.62 | AX50: 3.932 | AY50: 2.53 | AZ50: 2.77 | BA50: 3.43 | BB50: 4.76 | BC50: 4.16 | BD50: 3.53 | BE50: 4.69 | BF50: 4.85 | BG50: 5.17 | BH50: 5.84 | BI50: 6.14 | BJ50: 5.338 | BK50: 3.78 | BL50: 4 | BM50: 4.26 | BN50: 5.39 | BO50: 5.43 | BP50: 4.572 | BQ50: 2.72 | BR50: 2.62 | BS50: 2.82 | BT50: 3.5 | BU50: 3.35 | BV50: 3.002
B51: 47 | C51: 4.03 | D51: 3.78 | E51: 4.53 | F51: 5.46 | G51: 5.42 | H51: 4.644 | I51: 3.85 | J51: 3.61 | K51: 4.39 | L51: 5.32 | M51: 5.27 | N51: 4.488 | O51: 3.42 | P51: 3.33 | Q51: 3.74 | R51: 5.1 | S51: 4.76 | T51: 4.07 | U51: 3.22 | V51: 3.15 | W51: 3.77 | X51: 5.07 | Y51: 4.69 | Z51: 3.98 | AA51: 4.44 | AB51: 4.45 | AC51: 4.84 | AD51: 5.8 | AE51: 5.95 | AF51: 5.096 | AG51: 3.72 | AH51: 4.04 | AI51: 4.32 | AJ51: 5.41 | AK51: 5.41 | AL51: 4.58 | AM51: 5.07 | AN51: 5.24 | AO51: 5.54 | AP51: 6.06 | AQ51: 6.4 | AR51: 5.662 | AS51: 3.14 | AT51: 3.08 | AU51: 3.73 | AV51: 5 | AW51: 4.54 | AX51: 3.898 | AY51: 2.52 | AZ51: 2.74 | BA51: 3.45 | BB51: 4.72 | BC51: 4.06 | BD51: 3.498 | BE51: 4.69 | BF51: 4.86 | BG51: 5.14 | BH51: 5.88 | BI51: 6.14 | BJ51: 5.342 | BK51: 3.81 | BL51: 4.01 | BM51: 4.28 | BN51: 5.41 | BO51: 5.41 | BP51: 4.584 | BQ51: 2.69 | BR51: 2.62 | BS51: 2.82 | BT51: 3.5 | BU51: 3.34 | BV51: 2.994
A52: N | B52: 48 | C52: 4.05 | D52: 3.79 | E52: 4.57 | F52: 5.49 | G52: 5.44 | H52: 4.668 | I52: 3.87 | J52: 3.62 | K52: 4.41 | L52: 5.36 | M52: 5.25 | N52: 4.502 | O52: 3.44 | P52: 3.36 | Q52: 3.74 | R52: 5.1 | S52: 4.72 | T52: 4.072 | U52: 3.18 | V52: 3.14 | W52: 3.78 | X52: 5.07 | Y52: 4.62 | Z52: 3.958 | AA52: 4.44 | AB52: 4.56 | AC52: 4.84 | AF52: 4.613333333 | AG52: 3.71 | AH52: 4.05 | AI52: 4.35 | AJ52: 5.42 | AK52: 5.38 | AL52: 4.582 | AM52: 5.02 | AN52: 5.22 | AO52: 5.47 | AP52: 6.02 | AQ52: 6.37 | AR52: 5.62 | AS52: 3.12 | AT52: 3.06 | AU52: 3.74 | AV52: 4.99 | AW52: 4.48 | AX52: 3.878 | AY52: 2.52 | AZ52: 2.73 | BA52: 3.45 | BB52: 4.67 | BC52: 3.95 | BD52: 3.464 | BE52: 4.73 | BF52: 4.87 | BG52: 5.22 | BH52: 5.82 | BI52: 6.2 | BJ52: 5.368 | BK52: 3.8 | BL52: 4.02 | BM52: 4.28 | BN52: 5.4 | BO52: 5.41 | BP52: 4.582 | BQ52: 2.69 | BR52: 2.62 | BS52: 2.82 | BT52: 3.47 | BU52: 3.32 | BV52: 2.984
B53: 49 | C53: 4.07 | D53: 3.8 | E53: 4.59 | F53: 5.51 | G53: 5.44 | H53: 4.682 | I53: 3.9 | J53: 3.61 | K53: 4.4 | L53: 5.37 | M53: 5.26 | N53: 4.508 | O53: 3.43 | P53: 3.38 | Q53: 3.76 | R53: 5.11 | S53: 4.76 | T53: 4.088 | U53: 3.19 | V53: 3.13 | W53: 3.78 | X53: 5.05 | Y53: 4.46 | Z53: 3.922 | AA53: 4.54 | AB53: 4.57 | AC53: 5.25 | AD53: 6.07 | AE53: 6.27 | AF53: 5.34 | AG53: 3.7 | AH53: 4.05 | AI53: 4.35 | AJ53: 5.42 | AK53: 5.38 | AL53: 4.58 | AM53: 5.13 | AN53: 5.22 | AO53: 5.62 | AP53: 6.13 | AQ53: 6.53 | AR53: 5.726 | AS53: 3.12 | AT53: 3.04 | AU53: 3.73 | AV53: 4.96 | AW53: 4.38 | AX53: 3.846 | AY53: 2.52 | AZ53: 2.73 | BA53: 3.46 | BB53: 4.63 | BC53: 3.88 | BD53: 3.444 | BE53: 4.67 | BF53: 4.84 | BG53: 5.24 | BH53: 5.96 | BI53: 6.31 | BJ53: 5.404 | BK53: 3.84 | BL53: 4.02 | BM53: 4.32 | BN53: 5.42 | BO53: 5.4 | BP53: 4.6 | BQ53: 2.69 | BR53: 2.62 | BS53: 2.79 | BT53: 3.45 | BU53: 3.27 | BV53: 2.964
B54: 50 | C54: 4.08 | D54: 3.79 | E54: 4.59 | F54: 5.52 | H54: 4.495 | I54: 3.9 | J54: 3.62 | K54: 4.41 | L54: 5.38 | N54: 4.3275 | O54: 3.45 | P54: 3.41 | Q54: 3.78 | R54: 5.11 | T54: 3.9375 | U54: 3.2 | V54: 3.15 | W54: 3.79 | X54: 5.01 | Z54: 3.7875 | AA54: 4.79 | AB54: 4.79 | AC54: 4.96 | AD54: 5.92 | AF54: 5.115 | AG54: 3.71 | AH54: 4.04 | AI54: 4.35 | AJ54: 5.41 | AL54: 4.3775 | AM54: 5.19 | AN54: 5.33 | AO54: 5.58 | AP54: 6.15 | AR54: 5.5625 | AS54: 3.12 | AT54: 3.04 | AU54: 3.73 | AV54: 4.92 | AX54: 3.7025 | AY54: 2.52 | AZ54: 2.73 | BA54: 3.42 | BB54: 4.6 | BD54: 3.3175 | BE54: 4.84 | BF54: 5 | BG54: 5.28 | BH54: 6.01 | BJ54: 5.2825 | BK54: 3.81 | BL54: 4.01 | BM54: 4.3 | BN54: 5.4 | BP54: 4.38 | BQ54: 2.69 | BR54: 2.62 | BS54: 2.79 | BT54: 3.27 | BV54: 2.8425
B55: 51 | C55: 4.08 | D55: 3.8 | E55: 4.59 | F55: 5.52 | H55: 4.4975 | I55: 3.9 | J55: 3.63 | K55: 4.41 | L55: 5.39 | N55: 4.3325 | O55: 3.46 | P55: 3.37 | Q55: 3.78 | R55: 5.1 | T55: 3.9275 | U55: 3.21 | V55: 3.13 | W55: 3.79 | X55: 5.02 | Z55: 3.7875 | AA55: 4.43 | AB55: 4.75 | AC55: 4.87 | AF55: 4.683333333 | AG55: 3.71 | AH55: 4.04 | AI55: 4.36 | AJ55: 5.42 | AL55: 4.3825 | AM55: 5.12 | AN55: 5.24 | AO55: 5.56 | AP55: 6.18 | AR55: 5.525 | AS55: 3.13 | AT55: 3.06 | AU55: 3.73 | AV55: 4.91 | AX55: 3.7075 | AY55: 2.53 | AZ55: 2.73 | BA55: 3.41 | BB55: 4.57 | BD55: 3.31 | BE55: 4.75 | BF55: 4.9 | BG55: 5.13 | BH55: 5.92 | BJ55: 5.175 | BK55: 3.82 | BL55: 4.03 | BM55: 4.29 | BN55: 5.43 | BP55: 4.3925 | BQ55: 2.69 | BR55: 2.62 | BS55: 2.79 | BT55: 3.27 | BV55: 2.8425
A56: D | B56: 52 | C56: 4.07 | D56: 3.82 | E56: 4.59 | F56: 5.53 | H56: 4.5025 | I56: 3.89 | J56: 3.65 | K56: 4.42 | L56: 5.4 | N56: 4.34 | O56: 3.45 | P56: 3.35 | Q56: 3.75 | R56: 5.07 | T56: 3.905 | U56: 3.2 | V56: 3.13 | W56: 3.8 | X56: 4.99 | Z56: 3.78 | AA56: 4.59 | AB56: 4.5 | AC56: 4.88 | AF56: 4.656666667 | AG56: 3.71 | AH56: 4.05 | AI56: 4.38 | AJ56: 5.42 | AL56: 4.39 | AM56: 5.06 | AN56: 5.21 | AO56: 5.49 | AP56: 6.08 | AR56: 5.46 | AS56: 3.14 | AT56: 3.07 | AU56: 3.74 | AV56: 4.91 | AX56: 3.715 | AY56: 2.54 | AZ56: 2.74 | BA56: 3.43 | BB56: 4.59 | BD56: 3.325 | BE56: 4.74 | BF56: 4.94 | BG56: 5.22 | BH56: 5.86 | BJ56: 5.19 | BK56: 3.83 | BL56: 3.97 | BM56: 4.34 | BN56: 5.43 | BP56: 4.3925 | BQ56: 2.69 | BR56: 2.62 | BT56: 3.27 | BV56: 2.86
B57: 53 | D57: 3.82 | H57: 3.82 | J57: 3.66 | N57: 3.66 | P57: 3.37 | T57: 3.37 | V57: 3.13 | Z57: 3.13 | AB57: 4.56 | AF57: 4.56 | AH57: 4.04 | AL57: 4.04 | AN57: 5.19 | AR57: 5.19 | AT57: 3.07 | AX57: 3.07 | AZ57: 2.75 | BD57: 2.75 | BF57: 4.81 | BJ57: 4.81 | BL57: 4.03 | BP57: 4.03 | BR57: 2.62 | BV57: 2.62

Sheet MoyQuinqHebdoVeaux (hidden)
C5: 2019 | D5: 2020 | E5: 2021 | F5: 2022 | G5: 2023 | H5: MOYENNE 5 ANS | I5: 2019 | J5: 2020 | K5: 2021 | L5: 2022 | M5: 2023 | N5: MOYENNE 5 ANS | O5: 2019 | P5: 2020 | Q5: 2021 | R5: 2022 | S5: 2023 | T5: MOYENNE 5 ANS | U5: 2019 | V5: 2020 | W5: 2021 | X5: 2022 | Y5: 2023 | Z5: MOYENNE 5 ANS | AA5: 2019 | AB5: 2020 | AC5: 2021 | AD5: 2022 | AE5: 2023 | AF5: MOYENNE 5 ANS
A6: Mois | B6: Sem. | C6: Rose très clair | I6: R.clair | O6: Rosé | U6: NORMAND 45 à 50 Kg (Euros/tête) | AA6: LAITIER 45 à 50 Kg (Euros/tête)
B8: 1 | C8: 6.7 | D8: 6.77 | E8: 6.91 | F8: 6.960000038 | G8: 7.949999809 | H8: =AVERAGE(C8:G8) -> 7.057999969 | I8: 6.25 | J8: 6.37 | K8: 6.39 | L8: 6.949999809 | M8: 7.75 | N8: =AVERAGE(I8:M8) -> 6.741999962 | O8: 4.4 | P8: 4.93 | Q8: 4.96 | R8: 4.960000038 | S8: 5.510000229 | T8: =AVERAGE(O8:S8) -> 4.952000053 | U8: 75 | V8: 55 | W8: 40 | X8: 35 | Y8: 40 | Z8: =AVERAGE(U8:Y8) -> 49 | AA8: 75 | AB8: 55 | AC8: 55 | AD8: 55 | AE8: 60 | AF8: =AVERAGE(AA8:AE8) -> 60
B9: 2 | C9: 6.82 | D9: 6.95 | E9: 6.86 | F9: 7.150000095 | G9: 7.989999771 | H9: 7.153999973 | I9: 6.36 | J9: 6.41 | K9: 6.36 | L9: 6.960000038 | M9: 7.760000229 | N9: 6.770000053 | O9: 4.44 | P9: 5.26 | Q9: 5.03 | R9: 4.929999828 | S9: 5.389999866 | T9: 5.009999939 | U9: 75 | V9: 55 | W9: 40 | X9: 35 | Y9: 60 | Z9: 53 | AA9: 75 | AB9: 55 | AC9: 55 | AD9: 55 | AE9: 70 | AF9: 62
B10: 3 | C10: 6.63 | D10: 6.91 | E10: 6.86 | F10: 7.150000095 | G10: 7.989999771 | H10: 7.107999973 | I10: 6.32 | J10: 6.41 | K10: 6.37 | L10: 6.949999809 | M10: 7.75 | N10: 6.759999962 | O10: 4.55 | P10: 5.17 | Q10: 4.95 | R10: 4.599999905 | S10: 5.380000114 | T10: 4.930000004 | U10: 75 | V10: 55 | W10: 40 | X10: 35 | Y10: 60 | Z10: 53 | AA10: 75 | AB10: 55 | AC10: 55 | AD10: 55 | AE10: 70 | AF10: 62
A11: J | B11: 4 | C11: 6.73 | D11: 6.86 | E11: 6.85 | F11: 7.150000095 | G11: 7.880000114 | H11: 7.094000042 | I11: 6.34 | J11: 6.41 | K11: 6.37 | L11: 6.949999809 | M11: 7.769999981 | N11: 6.767999958 | O11: 4.47 | P11: 5.04 | Q11: 4.95 | R11: 4.849999905 | S11: 5.210000038 | T11: 4.903999989 | U11: 75 | V11: 55 | W11: 45 | X11: 35 | Y11: 60 | Z11: 54 | AA11: 75 | AB11: 55 | AC11: 60 | AD11: 55 | AE11: 70 | AF11: 63
B12: 5 | C12: 6.72 | D12: 6.77 | E12: 6.85 | F12: 7.110000134 | G12: nc | H12: 6.862500033 | I12: 6.43 | J12: 6.37 | K12: 6.39 | L12: 6.920000076 | M12: 7.77 | N12: 6.776000015 | O12: 4.48 | P12: 5.18 | Q12: 5.02 | R12: 4.940000057 | S12: 5.81 | T12: 5.086000011 | U12: 75 | V12: 55 | W12: 45 | X12: 35 | Y12: 70 | Z12: 56 | AA12: 75 | AB12: 55 | AC12: 60 | AD12: 55 | AE12: 80 | AF12: 65
B13: 6 | C13: 6.56 | D13: 6.78 | E13: 6.85 | F13: 7.099999905 | G13: 7.84 | H13: 7.025999981 | I13: 6.34 | J13: 6.34 | K13: 6.37 | L13: 6.900000095 | M13: 7.77 | N13: 6.744000019 | O13: 4.39 | P13: 5.32 | Q13: 4.64 | R13: 5.090000153 | S13: 5.81 | T13: 5.050000031 | U13: 75 | V13: 55 | W13: 45 | X13: 45 | Y13: 70 | Z13: 58 | AA13: 75 | AB13: 55 | AC13: 60 | AD13: 65 | AE13: 80 | AF13: 67
B14: 7 | C14: 6.7 | D14: 6.8 | E14: 6.85 | F14: 7.099999905 | G14: 7.84 | H14: 7.057999981 | I14: 6.38 | J14: 6.31 | K14: 6.39 | L14: 6.889999866 | M14: 7.76 | N14: 6.745999973 | O14: 4.32 | P14: 4.94 | Q14: 4.85 | R14: 5.079999924 | S14: 5.81 | T14: 4.999999985 | U14: 75 | V14: 55 | W14: 45 | X14: 45 | Y14: 70 | Z14: 58 | AA14: 75 | AB14: 55 | AC14: 60 | AD14: 65 | AE14: 80 | AF14: 67
A15: F | B15: 8 | C15: 6.68 | D15: 6.65 | E15: 6.85 | F15: 7.159999847 | G15: 7.84 | H15: 7.035999969 | I15: 6.32 | J15: 6.3 | K15: 6.37 | L15: 6.900000095 | M15: 7.76 | N15: 6.730000019 | O15: 4.48 | P15: 4.56 | Q15: 4.83 | R15: 5.159999847 | S15: 5.81 | T15: 4.967999969 | U15: 75 | V15: 55 | W15: 45 | X15: 45 | Y15: 70 | Z15: 58 | AA15: 75 | AB15: 55 | AC15: 60 | AD15: 65 | AE15: 80 | AF15: 67
B16: 9 | C16: 6.58 | D16: 6.74 | E16: 6.72 | F16: 7.159999847 | G16: 7.74 | H16: 6.987999969 | I16: 6.24 | J16: 6.3 | K16: 6.39 | L16: 6.889999866 | M16: 7.74 | N16: 6.711999973 | O16: 4.49 | P16: 4.75 | Q16: 4.87 | R16: 5.230000019 | S16: 5.43 | T16: 4.954000004 | U16: 75 | V16: 55 | W16: 45 | X16: 55 | Y16: 70 | Z16: 60 | AA16: 75 | AB16: 55 | AC16: 60 | AD16: 75 | AE16: 80 | AF16: 69
B17: 10 | C17: 6.6 | D17: 6.74 | E17: 6.72 | G17: 7.74 | H17: 6.95 | I17: 6.17 | J17: 6.27 | K17: 6.35 | L17: 6.860000134 | M17: 7.74 | N17: 6.678000027 | O17: 4.32 | P17: 4.98 | Q17: 4.51 | R17: 5.230000019 | S17: 5.93 | T17: 4.994000004 | U17: 75 | V17: 55 | W17: 45 | X17: 65 | Y17: 70 | Z17: 62 | AA17: 75 | AB17: 55 | AC17: 60 | AD17: 85 | AE17: 80 | AF17: 71
B18: 11 | C18: 6.49 | D18: 6.69 | E18: 6.66 | G18: 7.84 | H18: 6.92 | I18: 6.09 | J18: 6.25 | K18: 6.37 | L18: 6.909999847 | M18: 7.74 | N18: 6.671999969 | O18: 4.45 | P18: 4.58 | Q18: 4.11 | R18: 5.230000019 | S18: 5.77 | T18: 4.828000004 | U18: 75 | W18: 45 | X18: 65 | Y18: 70 | Z18: 63.75 | AA18: 75 | AC18: 60 | AD18: 85 | AE18: 80 | AF18: 75
B19: 12 | C19: 6.63 | D19: 6.59 | E19: 6.53 | F19: 6.989999771 | G19: 7.75 | H19: 6.897999954 | I19: 6.08 | J19: 6.23 | K19: 6.29 | L19: 6.980000019 | M19: 7.73 | N19: 6.662000004 | O19: 4.33 | P19: 4.96 | Q19: 4.23 | R19: 4.900000095 | S19: 5.7 | T19: 4.824000019 | U19: 75 | W19: 45 | X19: 65 | Y19: 70 | Z19: 63.75 | AA19: 75 | AC19: 60 | AD19: 85 | AE19: 80 | AF19: 75
A20: M | B20: 13 | C20: 6.48 | D20: 6.67 | E20: 6.48 | F20: 6.989999771 | G20: nc | H20: 6.654999943 | I20: 5.98 | J20: 6.21 | K20: 6.32 | L20: 6.980000019 | M20: 7.74 | N20: 6.646000004 | O20: 4.21 | P20: 4.72 | Q20: 4.1 | R20: 4.900000095 | S20: 5.92 | T20: 4.770000019 | U20: 75 | V20: 75 | W20: 55 | X20: 65 | Y20: 70 | Z20: 68 | AA20: 75 | AB20: 75 | AC20: 70 | AD20: 85 | AE20: 80 | AF20: 77
B21: 14 | C21: 6.36 | D21: 6.59 | E21: 6.52 | F21: 6.989999771 | G21: 7.8 | H21: 6.851999954 | I21: 5.94 | J21: 6.13 | K21: 6.29 | L21: 6.989999771 | M21: 7.73 | N21: 6.615999954 | O21: 4.29 | P21: 4.35 | Q21: 4.22 | R21: 4.900000095 | S21: 6.06 | T21: 4.764000019 | U21: 75 | V21: 75 | W21: 55 | X21: 65 | Y21: 80 | Z21: 70 | AA21: 75 | AB21: 75 | AC21: 70 | AD21: 85 | AE21: 90 | AF21: 79
B22: 15 | C22: 6.24 | D22: 6.58 | E22: 6.42 | F22: 7.179999828 | G22: 7.72 | H22: 6.827999966 | I22: 5.78 | J22: 5.99 | K22: 6.23 | L22: 7.050000191 | M22: 7.67 | N22: 6.544000038 | O22: 4.08 | P22: 4.5 | Q22: 3.94 | R22: 4.510000229 | S22: 5.7 | T22: 4.546000046 | U22: 75 | W22: 50 | X22: 65 | Y22: 80 | Z22: 67.5 | AA22: 75 | AC22: 65 | AD22: 85 | AE22: 90 | AF22: 78.75
B23: 16 | C23: 6.01 | D23: 6.63 | E23: 6.42 | F23: 7.179999828 | G23: 7.72 | H23: 6.791999966 | I23: 5.73 | J23: 5.87 | K23: 6.18 | L23: 7.070000172 | M23: 7.64 | N23: 6.498000034 | O23: 4.35 | P23: 4.45 | Q23: 4.22 | R23: 4.75 | S23: 5.84 | T23: 4.722 | U23: 75 | W23: 45 | X23: 65 | Y23: 80 | Z23: 66.25 | AA23: 75 | AC23: 60 | AD23: 85 | AE23: 90 | AF23: 77.5
A24: A | B24: 17 | C24: 5.93 | D24: 6.1 | E24: 6.41 | F24: 7.099999905 | G24: nc | H24: 6.384999976 | I24: 5.63 | J24: 5.63 | K24: 6.12 | L24: 7.059999943 | M24: 7.59 | N24: 6.405999989 | O24: 3.97 | P24: 4.02 | Q24: 3.7 | R24: 4.75 | S24: 5.5 | T24: 4.388 | U24: 75 | V24: 70 | W24: 45 | X24: 65 | Y24: 95 | Z24: 70 | AA24: 75 | AB24: 70 | AC24: 60 | AD24: 85 | AE24: 110 | AF24: 80
B25: 18 | C25: 5.94 | D25: 6.41 | E25: 6.41 | F25: 7.159999847 | G25: 7.64 | H25: 6.711999969 | I25: 5.61 | J25: 5.47 | K25: 6.11 | L25: 7.079999924 | M25: 7.57 | N25: 6.367999985 | O25: 4.22 | P25: 3.76 | Q25: 3.97 | R25: 4.75 | S25: 5.27 | T25: 4.394 | U25: 95 | V25: 70 | W25: 45 | X25: 65 | Y25: 95 | Z25: 74 | AA25: 95 | AB25: 70 | AC25: 60 | AD25: 85 | AE25: 110 | AF25: 84
B26: 19 | C26: 5.94 | D26: 6.26 | E26: 6.22 | F26: 7.159999847 | G26: 7.64 | H26: 6.643999969 | I26: 5.6 | J26: 5.26 | K26: 6.13 | L26: 7.070000172 | M26: 7.56 | N26: 6.324000034 | O26: 4.05 | P26: 3.64 | Q26: 3.92 | R26: 4.53000021 | S26: 5.67 | T26: 4.362000042 | U26: 95 | V26: 70 | W26: 45 | X26: 65 | Y26: 95 | Z26: 74 | AA26: 95 | AB26: 70 | AC26: 60 | AD26: 85 | AE26: 110 | AF26: 84
B27: 20 | C27: 5.98 | D27: 5.93 | E27: 6.35 | G27: 7.68 | H27: 6.485 | I27: 5.55 | J27: 5.25 | K27: 6.08 | L27: 7.079999924 | M27: 7.52 | N27: 6.295999985 | O27: 3.93 | P27: 3.65 | Q27: 3.61 | R27: 4.699999809 | S27: 5.48 | T27: 4.273999962 | U27: 80 | V27: 70 | W27: 75 | X27: 65 | Y27: 95 | Z27: 77 | AA27: 80 | AB27: 70 | AC27: 75 | AD27: 85 | AE27: 110 | AF27: 84
A28: M | B28: 21 | C28: 6.08 | D28: 6.1 | E28: 6.49 | F28: 7.119999886 | G28: 7.56 | H28: 6.669999977 | I28: 5.6 | J28: 5.23 | K28: 6.1 | L28: 7.059999943 | M28: 7.51 | N28: 6.299999989 | O28: 3.92 | P28: 3.9 | Q28: 3.83 | R28: 4.699999809 | S28: 5.48 | T28: 4.365999962 | U28: 80 | V28: 70 | W28: 75 | X28: 65 | Y28: 95 | Z28: 77 | AA28: 80 | AB28: 70 | AC28: 75 | AD28: 85 | AE28: 110 | AF28: 84
B29: 22 | C29: 6.25 | D29: 6.1 | F29: 7.119999886 | G29: 7.45 | H29: 6.729999971 | I29: 5.59 | J29: 5.15 | K29: 6.03 | L29: 7.03000021 | M29: 7.44 | N29: 6.248000042 | O29: 3.95 | P29: 3.94 | Q29: 3.52 | R29: 4.699999809 | S29: 5.48 | T29: 4.317999962 | V29: 70 | W29: 90 | X29: 65 | Y29: 95 | Z29: 80 | AB29: 70 | AC29: 90 | AD29: 85 | AE29: 110 | AF29: 88.75
B30: 23 | C30: 6.12 | D30: 6.23 | E30: 6.38 | F30: 6.949999809 | G30: nc | H30: 6.419999952 | I30: 5.52 | J30: 5.18 | K30: 6.04 | L30: 6.96999979 | M30: 7.33 | N30: 6.207999958 | O30: 3.86 | P30: 3.87 | Q30: 4.09 | R30: 4.340000153 | S30: 5.22 | T30: 4.276000031 | U30: 100 | V30: 75 | W30: 100 | X30: 65 | Y30: 115 | Z30: 91 | AA30: 100 | AB30: 75 | AC30: 100 | AD30: 85 | AE30: 130 | AF30: 98
B31: 24 | C31: 6.27 | D31: 6.34 | E31: 6.25 | F31: 7.010000229 | G31: 7.41 | H31: 6.656000046 | I31: 5.48 | J31: 5.2 | K31: 5.99 | L31: 6.980000019 | M31: 7.24 | N31: 6.178000004 | O31: 4.04 | P31: 4.09 | Q31: 3.66 | R31: 4.480000019 | S31: 4.95 | T31: 4.244000004 | U31: 110 | V31: 85 | W31: 100 | X31: 65 | Y31: 115 | Z31: 95 | AA31: 110 | AB31: 85 | AC31: 100 | AD31: 85 | AE31: 130 | AF31: 102
B32: 25 | C32: 6.13 | D32: 6.34 | E32: 6.08 | F32: 7.059999943 | G32: 7.26 | H32: 6.573999989 | I32: 5.48 | J32: 5.21 | K32: 6 | L32: 6.929999828 | M32: 7.16 | N32: 6.155999966 | O32: 3.86 | P32: 3.6 | Q32: 3.69 | R32: 4.71999979 | S32: 5.03 | T32: 4.179999958 | U32: 120 | V32: 85 | W32: 100 | X32: 65 | Y32: 115 | Z32: 97 | AA32: 120 | AB32: 85 | AC32: 100 | AD32: 85 | AE32: 130 | AF32: 104
A33: J | B33: 26 | C33: 5.75 | D33: 6.34 | E33: 6.07 | F33: 6.849999905 | G33: 7.1 | H33: 6.421999981 | I33: 5.46 | J33: 5.21 | K33: 5.99 | L33: 6.840000153 | M33: 7.06 | N33: 6.112000031 | O33: 3.88 | P33: 3.77 | Q33: 3.32 | R33: 4.71999979 | S33: 5.05 | T33: 4.147999958 | U33: 120 | V33: 85 | W33: 100 | X33: 65 | Y33: 115 | Z33: 97 | AA33: 120 | AB33: 85 | AC33: 100 | AD33: 85 | AE33: 130 | AF33: 104
B34: 27 | C34: 5.92 | D34: 5.91 | E34: 6.24 | F34: 6.900000095 | G34: nc | H34: 6.242500024 | I34: 5.47 | J34: 5.21 | K34: 5.96 | L34: 6.860000134 | M34: 7.04 | N34: 6.108000027 | O34: 3.89 | P34: 3.84 | Q34: 3.59 | R34: 4.71999979 | S34: 5.05 | T34: 4.217999958 | U34: 110 | V34: 85 | W34: 100 | X34: 65 | Y34: 115 | Z34: 95 | AA34: 110 | AB34: 85 | AC34: 100 | AD34: 85 | AE34: 130 | AF34: 102
B35: 28 | C35: 5.89 | D35: 6.13 | E35: 6.06 | F35: 6.929999828 | G35: nc | H35: 6.252499957 | I35: 5.42 | J35: 5.23 | K35: 5.98 | L35: 6.829999924 | M35: 7.04 | N35: 6.099999985 | O35: 4.11 | P35: 4.11 | Q35: 3.72 | R35: 4.71999979 | S35: 4.71 | T35: 4.273999958 | U35: 90 | V35: 80 | X35: 65 | Y35: 110 | Z35: 86.25 | AA35: 90 | AB35: 80 | AD35: 85 | AE35: 125 | AF35: 95
B36: 29 | C36: 5.91 | D36: 6.26 | E36: 6 | F36: 6.880000114 | G36: 7.35 | H36: 6.480000023 | I36: 5.4 | J36: 5.2 | K36: 6 | L36: 6.829999924 | M36: 7.03 | N36: 6.091999985 | O36: 3.87 | P36: 4.08 | Q36: 3.29 | R36: 4.71999979 | S36: 4.61 | T36: 4.113999958 | U36: 70 | V36: 80 | W36: 100 | X36: 65 | Y36: 100 | Z36: 83 | AA36: 70 | AB36: 80 | AC36: 100 | AD36: 85 | AE36: 115 | AF36: 90
A37: J | B37: 30 | C37: 5.96 | D37: 6.11 | E37: 6.17 | F37: 7.050000191 | G37: 7.26 | H37: 6.510000038 | I37: 5.33 | J37: 5.19 | K37: 5.96 | L37: 6.829999924 | M37: 7.05 | N37: 6.071999985 | O37: 3.53 | P37: 4.3 | Q37: 3.82 | R37: 4.71999979 | S37: 4.79 | T37: 4.231999958 | U37: 70 | V37: 70 | W37: 90 | X37: 65 | Y37: 90 | Z37: 77 | AA37: 70 | AB37: 70 | AC37: 90 | AD37: 85 | AE37: 105 | AF37: 84
B38: 31 | C38: 5.79 | D38: 6.11 | E38: 6.02 | F38: 7.050000191 | G38: 7.26 | H38: 6.446000038 | I38: 5.35 | J38: 5.17 | K38: 5.97 | L38: 6.829999924 | M38: 6.95 | N38: 6.053999985 | O38: 3.83 | P38: 4.35 | Q38: 3.79 | R38: 4.71999979 | S38: 4.43 | T38: 4.223999958 | U38: 65 | V38: 70 | W38: 85 | X38: 65 | Y38: 80 | Z38: 73 | AA38: 65 | AB38: 70 | AC38: 85 | AD38: 85 | AE38: 95 | AF38: 80
B39: 32 | C39: 5.66 | D39: 6.11 | E39: 6.02 | F39: 7.050000191 | G39: nc | H39: 6.210000048 | I39: 5.36 | J39: 5.2 | K39: 5.98 | L39: 6.840000153 | M39: 6.96 | N39: 6.068000031 | O39: 3.93 | P39: 4.03 | Q39: 3.78 | R39: 4.71999979 | S39: 4.43 | T39: 4.177999958 | U39: 55 | V39: 65 | W39: 75 | X39: 65 | Y39: 80 | Z39: 68 | AA39: 55 | AB39: 65 | AC39: 75 | AD39: 85 | AE39: 95 | AF39: 75
B40: 33 | C40: 5.89 | D40: 6.02 | E40: 6.22 | G40: nc | H40: =AVERAGE(C40:G40) -> 6.043333333 | I40: 5.41 | J40: 5.25 | K40: 6.02 | L40: 6.789999962 | M40: 6.96 | N40: =AVERAGE(I40:M40) -> 6.085999992 | O40: 4.08 | P40: 4.33 | Q40: 3.78 | R40: 4.71999979 | S40: 4.69 | T40: =AVERAGE(O40:S40) -> 4.319999958 | U40: 55 | V40: 60 | W40: 75 | X40: 65 | Z40: =AVERAGE(U40:Y40) -> 63.75 | AA40: 55 | AB40: 60 | AC40: 75 | AD40: 85 | AF40: =AVERAGE(AA40:AE40) -> 68.75
B41: 34 | C41: 5.89 | D41: 6.02 | E41: 6.27 | F41: 6.880000114 | G41: 6.97 | H41: 6.406000023 | I41: 5.42 | J41: 5.25 | K41: 6.09 | L41: 6.860000134 | M41: 6.94 | N41: 6.112000027 | O41: 3.89 | P41: 3.78 | Q41: 3.78 | R41: 4.71999979 | S41: 4.69 | T41: 4.171999958 | U41: 50 | V41: 60 | W41: 75 | X41: 60 | Y41: 80 | Z41: 65 | AA41: 50 | AB41: 60 | AC41: 75 | AD41: 80 | AE41: 95 | AF41: 72
A42: A | B42: 35 | C42: 5.98 | D42: 6.07 | E42: 6.31 | F42: 7.03000021 | G42: nc | H42: 6.347500052 | I42: 5.44 | J42: 5.35 | K42: 6.17 | L42: 6.880000114 | M42: 6.96 | N42: 6.160000023 | O42: 3.74 | P42: 4.06 | Q42: 3.93 | R42: 4.71999979 | S42: 4.69 | T42: 4.227999958 | U42: 50 | V42: 55 | W42: 70 | X42: 60 | Y42: 60 | Z42: 59 | AA42: 50 | AB42: 55 | AC42: 70 | AD42: 80 | AE42: 75 | AF42: 66
B43: 36 | C43: 6.06 | D43: 6.07 | E43: 6.38 | F43: 7.03000021 | G43: 7.1 | H43: 6.528000042 | I43: 5.51 | J43: 5.45 | K43: 6.23 | L43: 6.949999809 | M43: 6.96 | N43: 6.219999962 | O43: 3.8 | P43: 4.16 | Q43: 4.28 | R43: 4.820000172 | S43: 4.69 | T43: 4.350000034 | U43: 45 | V43: 45 | W43: 65 | X43: 60 | Y43: 60 | Z43: 55 | AA43: 45 | AB43: 45 | AC43: 65 | AD43: 80 | AE43: 75 | AF43: 62
B44: 37 | C44: 6.12 | D44: 6.24 | E44: 6.42 | F44: 7.119999886 | G44: nc | H44: 6.474999971 | I44: 5.56 | J44: 5.5 | K44: 6.32 | L44: 7.039999962 | M44: 7 | N44: 6.283999992 | O44: 3.94 | P44: 4.04 | Q44: 4.52 | R44: 4.860000134 | S44: 4.73 | T44: 4.418000027 | V44: 45 | W44: 65 | X44: 50 | Y44: 60 | Z44: 55 | AB44: 45 | AC44: 65 | AD44: 70 | AE44: 75 | AF44: 63.75
B45: 38 | C45: 6.04 | D45: 6.34 | E45: 6.47 | G45: nc | H45: 6.283333333 | I45: 5.63 | J45: 6.64 | K45: 6.36 | L45: 7.110000134 | M45: 7 | N45: 6.548000027 | O45: 4.09 | P45: 4.3 | Q45: 4.56 | R45: 4.860000134 | S45: 4.73 | T45: 4.508000027 | U45: 65 | V45: 45 | W45: 65 | X45: 45 | Y45: 60 | Z45: 56 | AA45: 65 | AB45: 45 | AC45: 65 | AD45: 65 | AE45: 75 | AF45: 63
A46: S | B46: 39 | C46: 6.25 | D46: 6.28 | E46: 6.55 | F46: 7.230000019 | G46: nc | H46: 6.577500005 | I46: 5.7 | J46: 5.7 | K46: 6.49 | L46: 7.199999809 | M46: 7.03 | N46: 6.423999962 | O46: 4 | P46: 4.38 | Q46: 4.56 | R46: 4.860000134 | S46: 4.73 | T46: 4.506000027 | U46: 65 | V46: 45 | W46: 55 | X46: 45 | Y46: 55 | Z46: 53 | AA46: 65 | AB46: 45 | AC46: 55 | AD46: 65 | AE46: 70 | AF46: 60
B47: 40 | C47: 6.32 | D47: 6.31 | E47: 6.64 | F47: 7.320000172 | G47: 7.18 | H47: 6.754000034 | I47: 5.77 | J47: 5.83 | K47: 6.57 | L47: 7.300000191 | M47: 7.05 | N47: 6.504000038 | O47: 4.27 | P47: 4.61 | Q47: 4.62 | R47: 4.860000134 | S47: 4.73 | T47: 4.618000027 | U47: 60 | V47: 45 | W47: 55 | X47: 40 | Y47: 45 | Z47: 49 | AA47: 60 | AB47: 45 | AC47: 55 | AD47: 60 | AE47: 60 | AF47: 56
B48: 41 | C48: 6.31 | D48: 6.55 | F48: 7.320000172 | G48: nc | H48: 6.726666724 | I48: 5.85 | J48: 6 | K48: 6.66 | L48: 7.380000114 | M48: 7.05 | N48: 6.588000023 | O48: 4.33 | P48: 4.71 | Q48: 4.62 | R48: 4.920000076 | S48: 4.77 | T48: 4.670000015 | U48: 60 | V48: 45 | W48: 55 | X48: 40 | Y48: 40 | Z48: 48 | AA48: 60 | AB48: 45 | AC48: 55 | AD48: 60 | AE48: 55 | AF48: 55
B49: 42 | C49: 6.15 | D49: 6.63 | F49: 7.550000191 | G49: 7.13 | H49: 6.865000048 | I49: 5.9 | J49: 6.12 | K49: 6.66 | L49: 7.440000057 | M49: 7.07 | N49: 6.638000011 | O49: 4.51 | P49: 4.76 | Q49: 4.62 | R49: 5.349999905 | S49: 5.13 | T49: 4.873999981 | U49: 55 | V49: 45 | W49: 55 | X49: 40 | Y49: 40 | Z49: 47 | AA49: 55 | AB49: 45 | AC49: 55 | AD49: 60 | AE49: 55 | AF49: 54
A50: O | B50: 43 | C50: 6.35 | D50: 6.63 | E50: 6.78 | G50: 7.18 | H50: 6.735 | I50: 5.97 | J50: 6.18 | K50: 6.69 | L50: 7.480000019 | M50: 7.14 | N50: 6.692000004 | O50: 4.37 | P50: 4.85 | Q50: 4.61 | R50: 5.489999771 | S50: 5.28 | T50: 4.919999954 | U50: 55 | V50: 45 | W50: 55 | X50: 40 | Y50: 40 | Z50: 47 | AA50: 55 | AB50: 45 | AC50: 55 | AD50: 60 | AE50: 55 | AF50: 54
B51: 44 | C51: 6.38 | D51: 6.71 | F51: 7.559999943 | G51: 7.25 | H51: 6.974999986 | I51: 6.07 | J51: 6.27 | K51: 6.74 | L51: 7.53000021 | M51: 7.21 | N51: 6.764000042 | O51: 4.62 | P51: 4.86 | Q51: 4.61 | R51: 5.489999771 | S51: 5.28 | T51: 4.971999954 | U51: 55 | V51: 45 | W51: 55 | X51: 40 | Y51: 40 | Z51: 47 | AA51: 55 | AB51: 45 | AC51: 55 | AD51: 60 | AE51: 55 | AF51: 54
B52: 45 | C52: 6.51 | D52: 6.71 | E52: 6.92 | F52: 7.659999847 | G52: nc | H52: 6.949999962 | I52: 6.12 | J52: 6.3 | K52: 6.78 | L52: 7.559999943 | M52: 7.24 | N52: 6.799999989 | O52: 4.64 | P52: 5.11 | Q52: 4.7 | R52: 5.489999771 | S52: 5.38 | T52: 5.063999954 | U52: 55 | V52: 45 | X52: 40 | Y52: 40 | Z52: 45 | AA52: 55 | AB52: 45 | AD52: 60 | AE52: 55 | AF52: 53.75
B53: 46 | C53: 6.67 | D53: 6.88 | E53: 6.92 | F53: 7.690000057 | G53: 7.4 | H53: 7.112000011 | I53: 6.21 | J53: 6.37 | K53: 6.84 | L53: 7.610000134 | M53: 7.29 | N53: 6.864000027 | O53: 4.46 | P53: 5.09 | Q53: 4.7 | R53: 5.489999771 | S53: 5.38 | T53: 5.023999954 | U53: 55 | W53: 55 | X53: 40 | Y53: 40 | Z53: 47.5 | AA53: 55 | AC53: 55 | AD53: 60 | AE53: 55 | AF53: 56.25
B54: 47 | C54: 6.77 | D54: 6.88 | E54: 6.93 | G54: 7.48 | H54: 7.015 | I54: 6.27 | J54: 6.38 | K54: 6.89 | L54: 7.619999886 | M54: 7.37 | N54: 6.905999977 | O54: 4.51 | P54: 4.9 | Q54: 4.36 | R54: 5.269999981 | S54: 5.65 | T54: 4.937999996 | U54: 55 | W54: 55 | Y54: 40 | Z54: 50 | AA54: 55 | AC54: 55 | AE54: 55 | AF54: 55
A55: N | B55: 48 | C55: 6.68 | D55: 6.87 | E55: 6.97 | F55: 7.789999962 | G55: 7.51 | H55: 7.163999992 | I55: 6.29 | J55: 6.37 | K55: 6.92 | L55: 7.650000095 | M55: 7.43 | N55: 6.932000019 | O55: 4.49 | P55: 5.02 | Q55: 4.42 | R55: 5.489999771 | S55: 5.68 | T55: 5.019999954 | U55: 55 | W55: 55 | X55: 40 | Y55: 40 | Z55: 47.5 | AA55: 55 | AC55: 55 | AD55: 60 | AE55: 55 | AF55: 56.25
B56: 49 | C56: 6.8 | D56: 6.87 | E56: 6.97 | G56: 7.65 | H56: 7.0725 | I56: 6.31 | J56: 6.39 | K56: 6.95 | L56: 7.730000019 | M56: 7.46 | N56: 6.968000004 | O56: 4.43 | P56: 5.2 | Q56: 4.81 | R56: 5.550000191 | S56: 5.68 | T56: 5.134000038 | U56: 55 | V56: 45 | W56: 55 | X56: 40 | Y56: 40 | Z56: 47 | AA56: 55 | AB56: 45 | AC56: 55 | AD56: 60 | AE56: 55 | AF56: 54
B57: 50 | C57: 6.85 | D57: 6.77 | E57: 7.03 | F57: 7.840000153 | H57: 7.122500038 | I57: 6.33 | J57: 6.39 | K57: 6.98 | L57: 7.75 | N57: 6.8625 | O57: 4.45 | P57: 5.07 | Q57: 5.04 | R57: 5.550000191 | T57: 5.027500048 | U57: 55 | V57: 40 | W57: 55 | X57: 40 | Z57: 47.5 | AA57: 55 | AB57: 55 | AC57: 55 | AD57: 60 | AF57: 56.25
B58: 51 | C58: 6.84 | D58: 6.85 | E58: 7.03 | F58: 7.880000114 | H58: 7.150000029 | I58: 6.34 | J58: 6.4 | K58: 6.94 | L58: 7.75 | N58: 6.8575 | O58: 4.8 | P58: 5.18 | Q58: 4.68 | R58: 5.550000191 | T58: 5.052500048 | U58: 55 | V58: 40 | W58: 55 | X58: 40 | Z58: 47.5 | AA58: 55 | AB58: 55 | AC58: 55 | AD58: 60 | AF58: 56.25
A59: D | B59: 52 | C59: 6.75 | D59: 6.91 | E59: 7.07 | F59: 7.929999828 | H59: 7.164999957 | I59: 6.39 | J59: 6.38 | K59: 6.98 | L59: 7.78000021 | N59: 6.882500052 | O59: 5.12 | P59: 4.96 | Q59: 4.89 | R59: 5.550000191 | T59: 5.130000048 | V59: 40 | W59: 55 | Z59: 47.5 | AB59: 55 | AC59: 55 | AF59: 55
B60: 53 | D60: 6.91 | H60: 6.91 | J60: 6.4 | N60: 6.4 | P60: 4.81 | T60: 4.81

Sheet Données-VeauxCharolais-Limousin (hidden)
A2: POUR MÉMOIRE ONGLET SANS USAGE
A5: 2017 | B5: 2018 | C5: 2019 | D5: 2020 | E5: 2021 | F5: MOYENNE 5 ANS | G5: 2017 | H5: 2018 | I5: 2019 | J5: 2020 | K5: 2021 | L5: MOYENNE 5 ANS | N5: Année | O5: Mois | P5: VEAUX GRAND NORD R3 | S5: VEAUX CHÂTEAU GONTIER
A6: CHAROLAIS 60-70KG (Euros/tête) | G6: LIMOUSIN 60-70KG (Euros/tête) | P6: (Euros/Kg net
P7: Rose très clair | Q7: R.clair | R7: Rosé | S7: N.45-50 | T7: CH 60-70 | U7: LIM 60-70 | V7: LAIT 45-50
A8: 375 | B8: 375 | C8: 325 | D8: 300 | F8: =AVERAGE(A8:E8) -> 343.75 | G8: 375 | H8: 375 | I8: 325 | J8: 300 | L8: =AVERAGE(G8:K8) -> 343.75 | N8: 2021 | O8: J | P8: 6.87 | Q8: 6.3725 | R8: 4.9725 | S8: 41.25 | V8: 56.25
A9: 375 | B9: 375 | C9: 325 | D9: 300 | F9: 343.75 | G9: 375 | H9: 375 | I9: 325 | J9: 300 | L9: 343.75 | O9: F | P9: 6.85 | Q9: 6.38 | R9: 4.835 | S9: 45 | V9: 60
A10: 375 | B10: 375 | C10: 325 | D10: 300 | F10: 343.75 | G10: 375 | H10: 375 | I10: 325 | J10: 300 | L10: 343.75 | O10: M | P10: 6.622 | Q10: 6.344 | R10: 4.364 | S10: 47 | V10: 62
A11: 375 | B11: 375 | C11: 325 | D11: 300 | F11: 343.75 | G11: 375 | H11: 375 | I11: 325 | J11: 300 | L11: 343.75 | O11: A | P11: 6.4425 | Q11: 6.205 | R11: 4.02 | S11: 48.75 | V11: 63.75
A12: 375 | B12: 375 | C12: 325 | D12: 300 | F12: 343.75 | G12: 375 | H12: 375 | I12: 325 | J12: 300 | L12: 343.75 | O12: M | P12: 6.3675 | Q12: 6.105 | R12: 3.8325 | S12: 60 | V12: 67.5
A13: 375 | B13: 375 | C13: 325 | D13: 300 | F13: 343.75 | G13: 375 | H13: 375 | I13: 325 | J13: 300 | L13: 343.75 | O13: J | P13: 6.195 | Q13: 6.01 | R13: 3.656 | S13: 98 | V13: 98
A14: 375 | B14: 375 | C14: 325 | D14: 300 | F14: =AVERAGE(A14:E14) -> 343.75 | G14: 375 | H14: 375 | I14: 325 | J14: 300 | L14: 343.75 | O14: J | P14: 6.1175 | Q14: 5.975 | R14: 3.605 | S14: 96.66666667 | V14: 96.66666667
A15: 365 | B15: 375 | C15: 325 | D15: 300 | F15: 341.25 | G15: 365 | H15: 375 | I15: 325 | J15: 300 | L15: 341.25 | O15: A | P15: 6.1325 | Q15: 6.015 | R15: 3.7825 | S15: 77.5 | V15: 77.5
A16: 365 | B16: 375 | C16: 325 | D16: 300 | F16: 341.25 | G16: 365 | H16: 375 | I16: 325 | J16: 300 | L16: 341.25 | O16: S | P16: 6.426 | Q16: 6.314 | R16: 4.37 | S16: 64 | V16: 64
A17: 365 | B17: 375 | C17: 325 | D17: 300 | F17: 341.25 | G17: 365 | H17: 375 | I17: 325 | J17: 300 | L17: 341.25 | O17: O | P17: 6.71 | Q17: 6.645 | R17: 4.6175 | S17: 55 | V17: 55
A18: 365 | B18: 375 | C18: 325 | F18: 355 | G18: 365 | H18: 375 | I18: 325 | L18: 355 | O18: N | P18: 6.923333333 | Q18: 6.8125 | R18: 4.5925 | S18: 55 | V18: 55
A19: 365 | B19: 375 | C19: 325 | F19: 355 | G19: 365 | H19: 375 | I19: 325 | L19: 355 | O19: D | P19: 7.014 | Q19: 6.954 | R19: 4.768 | S19: 55 | V19: 55
A20: 350 | B20: 365 | C20: 325 | D20: 300 | F20: 335 | G20: 350 | H20: 365 | I20: 325 | J20: 300 | L20: 335 | O20: moyenne an | P20: 6.555861111 | Q20: 6.344333333 | R20: 4.284625 | S20: 61.93055556 | T20: =#DIV/0! ->  | U20: =#DIV/0! ->  | V20: 67.55555556
A21: 330 | B21: 365 | C21: 325 | D21: 300 | F21: 330 | G21: 330 | H21: 365 | I21: 325 | J21: 300 | L21: 330 | N21: 2020 | O21: J | P21: 6.852 | Q21: 6.394 | R21: 5.116 | S21: 55 | T21: 300 | U21: 300 | V21: 55
A22: 330 | B22: 365 | C22: 325 | F22: 340 | G22: 330 | H22: 365 | I22: 325 | L22: 340 | O22: F | P22: 6.7425 | Q22: 6.3125 | R22: 4.8925 | S22: 55 | T22: 300 | U22: 300 | V22: 55
A23: 330 | B23: 375 | C23: 320 | F23: 341.6666667 | G23: 330 | H23: 375 | I23: 320 | L23: 341.6666667 | O23: M | P23: 6.6725 | Q23: 6.24 | R23: 4.81 | S23: 65 | T23: 300 | U23: 300 | V23: 65
A24: 320 | B24: 375 | C24: 320 | D24: 290 | F24: 326.25 | G24: 320 | H24: 375 | I24: 320 | J24: 290 | L24: 326.25 | O24: A | P24: 6.462 | Q24: 5.818 | R24: 4.216 | S24: 71.66666667 | T24: 293.3333333 | U24: 293.3333333 | V24: 71.66666667
A25: 320 | B25: 375 | C25: 320 | D25: 290 | F25: 326.25 | G25: 320 | H25: 375 | I25: 320 | J25: 290 | L25: 326.25 | O25: M | P25: 6.0975 | Q25: 5.2225 | R25: 3.7825 | S25: 70 | T25: 290 | U25: 290 | V25: 70
A26: 320 | B26: 375 | C26: 320 | D26: 290 | F26: 326.25 | G26: 320 | H26: 375 | I26: 320 | J26: 290 | L26: 326.25 | O26: J | P26: 6.3125 | Q26: 5.2 | R26: 3.8325 | S26: 82.5 | T26: 290 | U26: 290 | V26: 82.5
A27: 320 | B27: 365 | C27: 320 | D27: 290 | F27: 323.75 | G27: 320 | H27: 365 | I27: 320 | J27: 290 | L27: 323.75 | O27: J | P27: 6.104 | Q27: 5.2 | R27: 4.136 | S27: 77 | T27: 290 | U27: 290 | V27: 77
A28: 320 | B28: 365 | C28: 320 | D28: 290 | F28: 323.75 | G28: 320 | H28: 365 | I28: 320 | J28: 290 | L28: 323.75 | O28: A | P28: 6.055 | Q28: 5.2625 | R28: 4.05 | S28: 60 | T28: 290 | U28: 290 | V28: 60
A29: 320 | B29: 365 | D29: 290 | F29: 325 | G29: 320 | H29: 365 | J29: 290 | L29: 325 | O29: S | P29: 6.248 | Q29: 5.824 | R29: 4.298 | S29: 45 | T29: 290 | U29: 290 | V29: 45
A30: 320 | B30: 365 | C30: 360 | D30: 290 | F30: 333.75 | G30: 320 | H30: 365 | I30: 360 | J30: 290 | L30: 333.75 | O30: O | P30: 6.63 | Q30: 6.1425 | R30: 4.795 | S30: 45 | T30: 290 | U30: 290 | V30: 45
A31: 320 | B31: 365 | C31: 360 | D31: 290 | F31: 333.75 | G31: 320 | H31: 365 | I31: 360 | J31: 290 | L31: 333.75 | O31: N | P31: 6.835 | Q31: 6.355 | R31: 5.03
A32: 320 | B32: 365 | C32: 360 | D32: 290 | F32: 333.75 | G32: 320 | H32: 365 | I32: 360 | J32: 290 | L32: =AVERAGE(G32:K32) -> 333.75 | O32: D | P32: 6.862 | Q32: 6.392 | R32: 5.044 | S32: 41.25 | T32: 290 | U32: 290 | V32: 52.5
A33: 320 | B33: 365 | C33: 360 | D33: 290 | F33: 333.75 | G33: 320 | H33: 365 | I33: 360 | J33: 290 | L33: 333.75 | O33: moyenne an | P33: 6.489416667 | Q33: 5.863583333 | R33: 4.500208333 | S33: 60.67424242 | T33: 293.030303 | U33: 293.030303 | V33: 61.6969697
A34: 320 | B34: 365 | C34: 350 | D34: 290 | F34: 331.25 | G34: 320 | H34: 365 | I34: 350 | J34: 290 | L34: 331.25 | N34: 2019 | O34: J | P34: 6.72 | Q34: 6.34 | R34: 4.468 | S34: 75 | T34: 325 | U34: 325 | V34: 75
A35: 310 | B35: 365 | C35: 330 | D35: 290 | F35: 323.75 | G35: 310 | H35: 365 | I35: 330 | J35: 290 | L35: 323.75 | O35: F | P35: 6.63 | Q35: 6.32 | R35: 4.42 | S35: 75 | T35: 325 | U35: 325 | V35: 75
A36: 310 | B36: 365 | C36: 330 | D36: 290 | F36: 323.75 | G36: 310 | H36: 365 | I36: 330 | J36: 290 | L36: 323.75 | O36: M | P36: 6.55 | Q36: 6.08 | R36: 4.3275 | S36: 75 | T36: 325 | U36: 325 | V36: 75
A37: 290 | B37: 365 | C37: 330 | D37: 290 | F37: 318.75 | G37: 290 | H37: 365 | I37: 330 | J37: 290 | L37: 318.75 | O37: A | P37: 6.135 | Q37: 5.77 | R37: 4.1725 | S37: 75 | T37: 322.5 | U37: 322.5 | V37: 75
A38: 280 | B38: 365 | C38: 320 | D38: 290 | F38: 313.75 | G38: 280 | H38: 365 | I38: 320 | J38: 290 | L38: 313.75 | O38: M | P38: 6.038 | Q38: 5.59 | R38: 4.014 | S38: 87.5 | T38: 320 | U38: 320 | V38: 87.5
A39: 280 | B39: 365 | C39: 300 | D39: 290 | F39: 308.75 | G39: 280 | H39: 365 | I39: 300 | J39: 290 | L39: 308.75 | O39: J | P39: 6.0675 | Q39: 5.485 | R39: 3.91 | S39: 112.5 | T39: 360 | U39: 360 | V39: 112.5
C40: 300 | D40: 290 | F40: 295 | I40: 300 | J40: 290 | L40: 295 | O40: J | P40: 5.894 | Q40: 5.394 | R40: 3.846 | S40: 81 | T40: 332 | U40: 332 | V40: 81
A41: 270 | B41: 365 | C41: 280 | D41: 290 | F41: 301.25 | G41: 270 | H41: 365 | I41: 280 | J41: 290 | L41: 301.25 | O41: A | P41: 5.855 | Q41: 5.4075 | R41: 3.91 | S41: 52.5 | T41: 290 | U41: 290 | V41: 52.5
A42: 270 | B42: 365 | C42: 280 | D42: 290 | F42: 301.25 | G42: 270 | H42: 365 | I42: 280 | J42: 290 | L42: 301.25 | O42: S | P42: 6.1175 | Q42: 5.6 | R42: 3.9575 | S42: 58.33333333 | T42: 290 | U42: 290 | V42: 58.33333333
A43: 270 | B43: 365 | C43: 270 | D43: 290 | F43: 298.75 | G43: 270 | H43: 365 | I43: 270 | J43: 290 | L43: 298.75 | O43: O | P43: 6.302 | Q43: 5.912 | R43: 4.42 | S43: 57 | T43: 300 | U43: 300 | V43: 57
A44: 270 | B44: 355 | D44: 290 | F44: 305 | G44: 270 | H44: 355 | J44: 290 | L44: 305 | O44: N | P44: 6.6575 | Q44: 6.2225 | R44: 4.525 | S44: 55 | T44: 300 | U44: 300 | V44: 55
A45: 260 | B45: 345 | C45: 300 | D45: 290 | F45: 298.75 | G45: 260 | H45: 345 | I45: 300 | J45: 290 | L45: 298.75 | O45: D | P45: 6.81 | Q45: 6.3425 | R45: 4.7 | S45: 55 | T45: 300 | U45: 300 | V45: 55
A46: 250 | B46: 335 | C46: 300 | D46: 290 | F46: 293.75 | G46: 250 | H46: 335 | I46: 300 | J46: 290 | L46: 293.75 | O46: moyenne an | P46: 6.314708333 | Q46: 5.871958333 | R46: 4.222541667 | S46: 71.56944444 | T46: 315.7916667 | U46: 315.7916667 | V46: 71.56944444
A47: 250 | B47: 325 | C47: 300 | D47: 290 | F47: 291.25 | G47: 250 | H47: 325 | I47: 300 | J47: 290 | L47: 291.25 | N47: 2018 | O47: J | P47: 6.924 | Q47: 6.496 | R47: 5.002 | S47: 77 | T47: 375 | U47: 375 | V47: 62
A48: 250 | B48: 325 | C48: 300 | D48: 290 | F48: 291.25 | G48: 250 | H48: 325 | I48: 300 | J48: 290 | L48: 291.25 | O48: F | P48: 6.855 | Q48: 6.5275 | R48: 5.1175 | S48: 102.5 | T48: 375 | U48: 375 | V48: 87.5
A49: 250 | B49: 325 | C49: 300 | D49: 290 | F49: 291.25 | G49: 250 | H49: 325 | I49: 300 | J49: 290 | L49: 291.25 | O49: M | P49: 6.7575 | Q49: 6.5 | R49: 5.12 | S49: 115 | T49: 372.5 | U49: 372.5 | V49: 100
A50: 250 | B50: 325 | C50: 300 | D50: 290 | F50: 291.25 | G50: 250 | H50: 325 | I50: 300 | J50: 290 | L50: 291.25 | O50: A | P50: 6.7275 | Q50: 6.3625 | R50: 4.9225 | S50: 143.75 | T50: 370 | U50: 370 | V50: 123.75
A51: 250 | B51: 325 | C51: 300 | D51: 290 | F51: 291.25 | G51: 250 | H51: 325 | I51: 300 | J51: 290 | L51: 291.25 | O51: M | P51: 6.558 | Q51: 6.204 | R51: 4.466 | S51: 155 | T51: 369 | U51: 369 | V51: 130
A52: 250 | C52: 300 | D52: 290 | F52: 280 | G52: 250 | I52: 300 | J52: 290 | L52: 280 | O52: J | P52: 6.5525 | Q52: 6.0525 | R52: 4.0825 | S52: 155 | T52: 365 | U52: 365 | V52: 137.5
A53: 250 | B53: 325 | C53: 300 | F53: 291.6666667 | G53: 250 | H53: 325 | I53: 300 | L53: 291.6666667 | O53: J | P53: 6.4475 | Q53: 6.135 | R53: 3.9475 | S53: 137.5 | T53: 365 | U53: 365 | V53: 127.5
A54: 375 | B54: 325 | C54: 300 | F54: 333.3333333 | G54: 375 | H54: 325 | I54: 300 | L54: 333.3333333 | O54: A | P54: 6.426 | Q54: 6.106 | R54: 4.334 | S54: 81.25 | T54: 365 | U54: 365 | V54: 76.25
A55: 375 | B55: 325 | C55: 300 | F55: 333.3333333 | G55: 375 | H55: 325 | I55: 300 | L55: 333.3333333 | O55: S | P55: 6.495 | Q55: 6.1225 | R55: 4.3425 | S55: 55 | T55: 350 | U55: 350 | V55: 50
A56: 375 | B56: 325 | C56: 300 | D56: 290 | F56: 322.5 | G56: 375 | H56: 325 | I56: 300 | J56: 290 | L56: 322.5 | O56: O | P56: 6.422 | Q56: 6.176 | R56: 4.508 | S56: 40 | T56: 325 | U56: 325 | V56: 35
A57: 375 | B57: 325 | C57: 300 | D57: 290 | F57: 322.5 | G57: 375 | H57: 325 | I57: 300 | J57: 290 | L57: 322.5 | O57: N | P57: 6.4475 | Q57: 6.2075 | R57: 4.3825 | S57: 40 | T57: 325 | U57: 325 | V57: 35
A58: 375 | B58: 325 | C58: 300 | D58: 290 | F58: 322.5 | G58: 375 | H58: 325 | I58: 300 | J58: 290 | L58: 322.5 | O58: D | P58: 6.7575 | Q58: 6.275 | R58: 4.5025 | S58: 40 | T58: 325 | U58: 325 | V58: 35
B59: 325 | D59: 290 | F59: 307.5 | H59: 325 | J59: 290 | L59: 307.5 | O59: moyenne an | P59: 6.614166667 | Q59: 6.263708333 | R59: 4.560625 | S59: 95.16666667 | T59: 356.7916667 | U59: 356.7916667 | V59: 83.29166667
N60: 2017 | O60: J | P60: 7.17 | Q60: 6.7525 | R60: 4.99 | S60: 55 | T60: 375 | U60: 375 | V60: 55
O61: F | P61: 7.065 | Q61: 6.735 | R61: 5.165 | S61: 66.25 | T61: 372.5 | U61: 372.5 | V61: 66.25
O62: M | P62: 6.894 | Q62: 6.596 | R62: 4.966 | S62: 96 | T62: 362 | U62: 362 | V62: 96
O63: A | P63: 6.775 | Q63: 6.4575 | R63: 4.7575 | S63: 115 | T63: 327.5 | U63: 327.5 | V63: 115
O64: M | P64: 6.5925 | Q64: 6.295 | R64: 4.55 | S64: 115 | T64: 320 | U64: 320 | V64: 115
O65: J | P65: 6.438 | Q65: 6.026 | R65: 4.376 | S65: 118 | T65: 320 | U65: 320 | V65: 118
O66: J | P66: 6.1 | Q66: 5.7975 | R66: 3.7725 | S66: 98.75 | T66: 307.5 | U66: 307.5 | V66: 98.75
O67: A | P67: 6.0725 | Q67: 5.8425 | R67: 3.7575 | S67: 53.33333333 | T67: 276.6666667 | U67: 276.6666667 | V67: 53.33333333
O68: S | P68: 6.448 | Q68: 5.922 | R68: 3.886 | S68: 73 | T68: 264 | U68: 264 | V68: 73
O69: O | P69: 6.49 | Q69: 6.075 | R69: 4.34 | S69: 75 | T69: 250 | U69: 250 | V69: 75
O70: N | P70: 6.58 | Q70: 6.2475 | R70: 4.55 | S70: 70 | T70: 281.25 | U70: 281.25 | V70: 67.5
O71: D | P71: 6.754 | Q71: 6.432 | R71: 4.798 | S71: 75 | T71: 375 | U71: 375 | V71: 60
O72: moyenne an | P72: 6.614916667 | Q72: 6.264875 | R72: 4.492375 | S72: 84.19444444 | T72: 319.2847222 | U72: 319.2847222 | V72: 82.73611111
N73: Moyenne 5 ans | O73: J | P73: =AVERAGE(P8,P21,P34,P47,P60) -> 6.9072 | Q73: 6.471 | R73: 4.9097 | S73: 60.65 | T73: 343.75 | U73: 343.75 | V73: 60.65
O74: F | P74: 6.8285 | Q74: 6.455 | R74: 4.886 | S74: 68.75 | T74: 343.125 | U74: 343.125 | V74: 68.75
O75: M | P75: 6.6992 | Q75: 6.352 | R75: 4.7175 | S75: 79.6 | T75: 339.875 | U75: 339.875 | V75: 79.6
O76: A | P76: 6.5084 | Q76: 6.1226 | R76: 4.4177 | S76: 90.83333333 | T76: 328.3333333 | U76: 328.3333333 | V76: 89.83333333
O77: M | P77: 6.3307 | Q77: 5.8833 | R77: 4.129 | S77: 97.5 | T77: 324.75 | U77: 324.75 | V77: 94
O78: J | P78: 6.3131 | Q78: 5.7547 | R78: 3.9714 | S78: 113.2 | T78: 333.75 | U78: 333.75 | V78: 109.7
O79: J | P79: 6.1326 | Q79: 5.7003 | R79: 3.8614 | S79: 98.18333333 | T79: 323.625 | U79: 323.625 | V79: 96.18333333
O80: A | P80: 6.1082 | Q80: 5.7267 | R80: 3.9668 | S80: 64.91666667 | T80: 305.4166667 | U80: 305.4166667 | V80: 63.91666667
O81: S | P81: 6.3469 | Q81: 5.9565 | R81: 4.1708 | S81: 59.06666667 | T81: 298.5 | U81: 298.5 | V81: 58.06666667
O82: O | P82: 6.5108 | Q82: 6.1901 | R82: 4.5361 | S82: 54.4 | T82: 291.25 | U82: 291.25 | V82: 53.4
O83: N | P83: 6.688666667 | Q83: 6.369 | R83: 4.616 | S83: 55 | T83: 302.0833333 | U83: 302.0833333 | V83: 53.125
O84: D | P84: 6.8395 | Q84: 6.4791 | R84: 4.7625 | S84: 53.25 | T84: 322.5 | U84: 322.5 | V84: 51.5
O85: moyenne an | P85: =AVERAGE(P73:P84) -> 6.517813889 | Q85: 6.121691667 | R85: 4.412075 | S85: 74.6125 | T85: 321.4131944 | U85: 321.4131944 | V85: 73.22708333

Sheet MoyQuinqHebdoPorcs (hidden)
C1: 2019 | D1: 2020 | E1: 2021 | F1: 2022 | G1: 2023 | H1: MOYENNE 5 ANS
A2: Année | B2: Sem.
B4: 1 | C4: 1.41 | D4: 1.87 | E4: 1.42 | F4: 1.47 | G4: 2.04 | H4: =AVERAGE(C4:G4) -> 1.642
B5: 2 | C5: 1.4 | D5: 1.85 | E5: 1.43 | F5: 1.47 | G5: 2.09 | H5: 1.648
B6: 3 | C6: 1.4 | D6: 1.82 | E6: 1.43 | F6: 1.47 | G6: 2.12 | H6: 1.648
A7: J | B7: 4 | C7: 1.4 | D7: 1.76 | E7: 1.43 | F7: 1.47 | G7: 2.17 | H7: 1.646
B8: 5 | C8: 1.4 | D8: 1.71 | E8: 1.43 | F8: 1.47 | G8: 2.22 | H8: 1.646
B9: 6 | C9: 1.4 | D9: 1.7 | E9: 1.43 | F9: 1.47 | G9: 2.27 | H9: 1.654
B10: 7 | C10: 1.41 | D10: 1.7 | E10: 1.44 | F10: 1.49 | G10: 2.33 | H10: 1.674
A11: F | B11: 8 | C11: 1.41 | D11: 1.7 | E11: 1.45 | F11: 1.49 | G11: 2.37 | H11: 1.684
B12: 9 | C12: 1.41 | D12: 1.72 | E12: 1.47 | F12: 1.51 | G12: 2.42 | H12: 1.706
B13: 10 | C13: 1.41 | D13: 1.75 | E13: 1.5 | F13: 1.55 | G13: 2.48 | H13: 1.738
B14: 11 | C14: 1.41 | D14: 1.76 | E14: 1.54 | F14: 1.59 | G14: 2.54 | H14: 1.768
B15: 12 | C15: 1.44 | D15: 1.79 | E15: 1.57 | F15: 1.72 | G15: 2.56 | H15: 1.816
A16: M | B16: 13 | C16: 1.49 | D16: 1.79 | E16: 1.58 | F16: 1.82 | G16: 2.57 | H16: 1.85
B17: 14 | C17: 1.54 | D17: 1.77 | E17: 1.6 | F17: 1.88 | G17: 2.57 | H17: 1.872
B18: 15 | C18: 1.59 | D18: 1.76 | E18: 1.62 | F18: 1.91 | G18: 2.57 | H18: 1.89
B19: 16 | C19: 1.63 | D19: 1.75 | E19: 1.65 | F19: 1.92 | G19: 2.56 | H19: 1.902
A20: A | B20: 17 | C20: 1.64 | D20: 1.74 | E20: 1.7 | F20: 1.92 | G20: 2.52 | H20: 1.904
B21: 18 | C21: 1.65 | D21: 1.73 | E21: 1.75 | F21: 1.93 | G21: 2.47 | H21: 1.906
B22: 19 | C22: 1.65 | D22: 1.68 | E22: 1.77 | F22: 1.93 | G22: 2.41 | H22: 1.888
B23: 20 | C23: 1.67 | D23: 1.64 | E23: 1.77 | F23: 1.92 | G23: 2.39 | H23: 1.878
A24: M | B24: 21 | C24: 1.68 | D24: 1.58 | E24: 1.77 | F24: 1.93 | G24: 2.32 | H24: 1.856
B25: 22 | C25: 1.7 | D25: 1.58 | E25: 1.77 | F25: 1.93 | G25: 2.37 | H25: 1.87
B26: 23 | C26: 1.71 | D26: 1.57 | E26: 1.78 | F26: 1.93 | G26: 2.38 | H26: 1.874
B27: 24 | C27: 1.73 | D27: 1.58 | E27: 1.78 | F27: 1.93 | G27: 2.4 | H27: 1.884
B28: 25 | C28: 1.74 | D28: 1.59 | E28: 1.78 | F28: 1.93 | G28: 2.44 | H28: 1.896
A29: J | B29: 26 | C29: 1.75 | D29: 1.58 | E29: 1.75 | F29: 1.97 | G29: 2.48 | H29: 1.906
B30: 27 | C30: 1.75 | D30: 1.56 | E30: 1.69 | F30: 2.02 | G30: 2.52 | H30: 1.908
B31: 28 | C31: 1.75 | D31: 1.58 | E31: 1.65 | F31: 2.07 | G31: 2.55 | H31: 1.92
B32: 29 | C32: 1.75 | D32: 1.55 | E32: 1.6 | F32: 2.09 | G32: 2.55 | H32: 1.908
A33: J | B33: 30 | C33: 1.77 | D33: 1.53 | E33: 1.59 | F33: 2.1 | G33: 2.54 | H33: 1.906
B34: 31 | C34: 1.78 | D34: 1.53 | E34: 1.58 | F34: 2.11 | G34: 2.54 | H34: 1.908
B35: 32 | C35: 1.8 | D35: 1.53 | E35: 1.58 | F35: 2.14 | G35: 2.5 | H35: 1.91
B36: 33 | C36: 1.8 | D36: 1.53 | E36: 1.59 | F36: 2.18 | G36: 2.44 | H36: =AVERAGE(C36:G36) -> 1.908
B37: 34 | C37: 1.81 | D37: 1.53 | E37: 1.59 | F37: 2.22 | G37: 2.39 | H37: 1.908
A38: A | B38: 35 | C38: 1.83 | D38: 1.56 | E38: 1.59 | F38: 2.24 | G38: 2.33 | H38: 1.91
B39: 36 | C39: 1.85 | D39: 1.59 | E39: 1.58 | F39: 2.25 | G39: 2.27 | H39: 1.908
B40: 37 | C40: 1.9 | D40: 1.6 | E40: 1.58 | F40: 2.25 | G40: 2.24 | H40: 1.914
B41: 38 | C41: 1.92 | D41: 1.62 | E41: 1.56 | F41: 2.26 | G41: 2.25 | H41: 1.922
A42: S | B42: 39 | C42: 1.93 | D42: 1.61 | E42: 1.52 | F42: 2.26 | G42: 2.22 | H42: 1.908
B43: 40 | C43: 1.93 | D43: 1.62 | E43: 1.49 | F43: 2.27 | G43: 2.21 | H43: 1.904
B44: 41 | C44: 1.92 | D44: 1.61 | E44: 1.46 | F44: 2.27 | G44: 2.2 | H44: 1.892
B45: 42 | C45: 1.93 | D45: 1.61 | E45: 1.45 | F45: 2.26 | G45: 2.15 | H45: 1.88
A46: O | B46: 43 | C46: 1.93 | D46: 1.6 | E46: 1.44 | F46: 2.21 | G46: 2.1 | H46: 1.856
B47: 44 | C47: 1.92 | D47: 1.6 | E47: 1.44 | F47: 2.16 | G47: 2.06 | H47: 1.836
B48: 45 | C48: 1.91 | D48: 1.59 | E48: 1.44 | F48: 2.11 | G48: 2.02 | H48: 1.814
B49: 46 | C49: 1.91 | D49: 1.58 | E49: 1.44 | F49: 2.05 | G49: 2 | H49: 1.796
B50: 47 | C50: 1.91 | D50: 1.53 | E50: 1.45 | F50: 2.04 | G50: 1.99 | H50: 1.784
A51: N | B51: 48 | C51: 1.92 | D51: 1.49 | E51: 1.46 | F51: 2.04 | G51: 1.99 | H51: 1.78
B52: 49 | C52: 1.93 | D52: 1.46 | E52: 1.46 | F52: 2.04 | G52: 2 | H52: 1.778
B53: 50 | C53: 1.93 | D53: 1.44 | E53: 1.47 | F53: 2.04 | H53: 1.72
B54: 51 | C54: 1.93 | D54: 1.43 | E54: 1.47 | F54: 2.04 | H54: 1.7175
A55: D | B55: 52 | C55: 1.9 | D55: 1.44 | E55: 1.47 | F55: 2.05 | H55: 1.715
B56: 53 | D56: 1.43 | H56: 1.43

Sheet MoyQuindHebdoOvins (hidden)
C1: 2019 | D1: 2020 | E1: 2021 | F1: 2022 | G1: 2023 | H1: MOYENNE 5 ANS
A2: Année | B2: Sem.
B4: 1 | C4: 6.26 | D4: 6.78 | E4: 7.23 | F4: 7.940000057 | G4: 8.430000305 | H4: =AVERAGE(C4:G4) -> 7.328000072
B5: 2 | C5: 6.15 | D5: 6.64 | E5: 7.27 | F5: 7.800000191 | G5: 8.279999733 | H5: 7.227999985
B6: 3 | C6: 6.03 | D6: 6.65 | E6: 7.2 | F6: 7.71999979 | G6: 8.220000267 | H6: 7.164000011
A7: J | B7: 4 | C7: 5.91 | D7: 6.53 | E7: 7.18 | F7: 7.710000038 | G7: 8.119999886 | H7: 7.089999985
B8: 5 | C8: 5.76 | D8: 6.48 | E8: 7.08 | F8: 7.690000057 | G8: 8.03 | H8: 7.008000011
B9: 6 | C9: 5.69 | D9: 6.45 | E9: 6.97 | F9: 7.519999981 | G9: 7.97 | H9: 6.919999996
B10: 7 | C10: 5.7 | D10: 6.42 | E10: 6.93 | F10: 7.510000229 | G10: 7.86 | H10: 6.884000046
A11: F | B11: 8 | C11: 5.76 | D11: 6.39 | E11: 6.95 | F11: 7.420000076 | G11: 7.83 | H11: 6.870000015
B12: 9 | C12: 5.88 | D12: 6.48 | E12: 6.99 | F12: 7.440000057 | G12: 7.84 | H12: 6.926000011
B13: 10 | C13: 6.01 | D13: 6.51 | E13: 7.07 | F13: 7.539999962 | G13: 7.93 | H13: 7.011999992
B14: 11 | C14: 6.13 | D14: 6.6 | E14: 7.28 | F14: 7.630000114 | G14: 8.06 | H14: 7.140000023
B15: 12 | C15: 6.26 | D15: 6.65 | E15: 7.5 | F15: 7.570000172 | G15: 8.19 | H15: 7.234000034
A16: M | B16: 13 | C16: 6.24 | D16: 6.53 | E16: 7.65 | F16: 7.670000076 | G16: 8.42 | H16: 7.302000015
B17: 14 | C17: 6.39 | D17: 6.18 | E17: 7.53 | F17: 7.929999828 | G17: 8.55 | H17: 7.315999966
B18: 15 | C18: 6.59 | D18: 6.2 | E18: 7.56 | F18: 8.069999695 | G18: 8.44 | H18: 7.371999939
B19: 16 | C19: 6.67 | D19: 6.3 | E19: 7.54 | F19: 8.069999695 | G19: 8.44 | H19: 7.403999939
A20: A | B20: 17 | C20: 6.56 | D20: 6.37 | E20: 7.48 | F20: 8.069999695 | G20: 8.47 | H20: 7.389999939
B21: 18 | C21: 6.52 | D21: 6.5 | E21: 7.42 | F21: 8.079999924 | G21: 8.36 | H21: 7.375999985
B22: 19 | C22: 6.43 | D22: 6.47 | E22: 7.47 | F22: 8.06000042 | G22: 8.29 | H22: 7.344000084
B23: 20 | C23: 6.37 | D23: 6.46 | E23: 7.38 | F23: 8.06000042 | G23: 8.29 | H23: 7.312000084
A24: M | B24: 21 | C24: 6.2 | D24: 6.47 | E24: 7.31 | F24: 7.929999828 | G24: 8.24 | H24: 7.229999966
B25: 22 | C25: 6.13 | D25: 6.49 | E25: 7.26 | F25: 7.96999979 | G25: 8.19 | H25: 7.207999958
B26: 23 | C26: 6.03 | D26: 6.56 | E26: 7.19 | F26: 7.920000076 | G26: 8.18 | H26: 7.176000015
B27: 24 | C27: 6 | D27: 6.58 | E27: 7.09 | F27: 7.949999809 | G27: 8.19 | H27: 7.161999962
B28: 25 | C28: 5.94 | D28: 6.61 | E28: 7.06 | F28: 8 | G28: 8.15 | H28: 7.152
A29: J | B29: 26 | C29: 5.93 | D29: 6.6 | E29: 6.98 | F29: 7.980000019 | G29: 8.27 | H29: 7.152000004
B30: 27 | C30: 5.91 | D30: 6.55 | E30: 7.02 | F30: 8.119999886 | G30: 8.21 | H30: 7.161999977
B31: 28 | C31: 5.86 | D31: 6.58 | E31: 6.99 | F31: 8.069999695 | G31: 8.17 | H31: 7.133999939
B32: 29 | C32: 5.89 | D32: 6.64 | E32: 7.06 | F32: 8.06000042 | G32: 8.18 | H32: 7.166000084
A33: J | B33: 30 | C33: 5.9 | D33: 6.71 | E33: 7.02 | F33: 8.050000191 | G33: 8.12 | H33: 7.160000038
B34: 31 | C34: 5.9 | D34: 6.77 | E34: 7.04 | F34: 8.010000229 | G34: 8.06 | H34: 7.156000046
B35: 32 | C35: 5.89 | D35: 6.8 | E35: 7.07 | F35: 8.020000458 | G35: 8 | H35: 7.156000092
B36: 33 | C36: 5.91 | D36: 6.83 | E36: 7.04 | F36: 8 | G36: 8.02 | H36: =AVERAGE(C36:G36) -> 7.16
B37: 34 | C37: 5.99 | D37: 6.83 | E37: 7.18 | F37: 8.029999733 | G37: 8 | H37: 7.205999947
A38: A | B38: 35 | C38: 6.09 | D38: 6.91 | E38: 7.25 | F38: 7.96999979 | G38: 7.96 | H38: 7.235999958
B39: 36 | C39: 6.13 | D39: 6.99 | E39: 7.29 | F39: 8.010000229 | G39: 8 | H39: 7.284000046
B40: 37 | C40: 6.15 | D40: 6.98 | E40: 7.36 | F40: 8 | G40: 7.98 | H40: 7.294
B41: 38 | C41: 6.23 | D41: 6.92 | E41: 7.37 | F41: 7.960000038 | G41: 8.04 | H41: 7.304000008
A42: S | B42: 39 | C42: 6.17 | D42: 7 | E42: 7.44 | F42: 7.96999979 | G42: 8.04 | H42: 7.323999958
B43: 40 | C43: 6.18 | D43: 7 | E43: 7.46 | F43: 7.960000038 | G43: 8.09 | H43: 7.338000008
B44: 41 | C44: 6.15 | D44: 7.02 | E44: 7.53 | F44: 7.949999809 | G44: 8.2 | H44: 7.369999962
B45: 42 | C45: 6.17 | D45: 7.03 | E45: 7.57 | F45: 7.960000038 | G45: 8.34 | H45: 7.414000008
A46: O | B46: 43 | C46: 6.19 | D46: 7.02 | E46: 7.6 | F46: 8 | G46: 8.35 | H46: 7.432
B47: 44 | C47: 6.19 | D47: 7.01 | E47: 7.75 | F47: 8.039999962 | G47: 8.44 | H47: 7.485999992
B48: 45 | C48: 6.25 | D48: 7 | E48: 7.77 | F48: 8.149999619 | G48: 8.53 | H48: 7.539999924
B49: 46 | C49: 6.37 | D49: 7.07 | E49: 7.84 | F49: 8.289999962 | G49: 8.57 | H49: 7.627999992
B50: 47 | C50: 6.48 | D50: 7.11 | E50: 7.85 | G50: 8.59 | H50: 7.5075
A51: N | B51: 48 | C51: 6.62 | D51: 7.2 | E51: 7.97 | F51: 8.520000458 | G51: 8.72 | H51: 7.806000092
B52: 49 | C52: 6.67 | D52: 7.21 | E52: 7.96 | F52: 8.510000229 | G52: 8.73 | H52: 7.816000046
B53: 50 | C53: 6.7 | D53: 7.23 | E53: 8.04 | F53: 8.569999695 | H53: 7.634999924
B54: 51 | C54: 6.77 | D54: 7.25 | E54: 8.06 | F54: 8.569999695 | H54: 7.662499924
A55: D | B55: 52 | C55: 6.78 | D55: 7.3 | E55: 8.07 | F55: 8.56000042 | H55: 7.677500105
B56: 53 | D56: 7.26 | H56: 7.26

Sheet GrosBovinsAnneeEnCours
A1: COTATIONS DES GROS BOVINS
A2: Source : DRAAF Pays de la Loire - SRISE - FranceAgriMer
A5: 1 – COTATION REGIONALE GRAND OUEST ENTREE ABATTOIR en €/Kg net
A7: 2 – MOYENNE NATIONALE DES BOVINS MAIGRES DESTINES A L'ENGRAISSEMENT CHAROLAIS MALE de 6-12 mois catégorie U (350kg) en €/kg vif
A9: 3 – COTATION DES GROS BOVINS VIFS SUR LE MARCHE DE CHOLET (en Euro/Kg Net) – à partir de la ligne 72
P11: Mis à jour : 04/06/2024
C12: 1 – COTATION REGIONALE ENTREE ABATTOIR GRAND OUEST FRANCEAGRIMER-HEBDOMADAIRE (€/Kg net) | P12: 2 – COT. HEBDO
P13: MAIGRE €/kg vif
A14: Année | B14: Sem. | C14: JEUNES BOVINS | F14: BOEUFS | G14: VACHES | L14: GENISSES | P14: Ref. nationale | Q14: Sem. | S14: Vache Viande R | V14: Vache lait P
C15: VIANDE | E15: MIXTE | F15: MIXTE | G15: VIANDE | I15: Blonde | J15: MIXTE | K15: LAIT | L15: VIANDES + 350kg | P15: Charolais Mâles | R15: Nantes | S15: Evolution/semaine -1 | T15: ="Evolution/ semaine id " & A17-1 -> Evolution/ semaine id 2023 | U15: Evolution/semaine id moy. 5 ans | V15: Evolution/semaine -1 | W15: ="Evolution/ semaine id " & A17-1 -> Evolution/ semaine id 2023 | X15: Evolution/semaine id moy. 5 ans
C16: U | D16: R | E16: O | F16: O | G16: U | H16: R | I16: U | J16: O | K16: P | L16: U | M16: R | P16: 6/12 mois ( U ) 350 kg
A17: 2024 | B17: 1 | C17: 5.45 | D17: 5.28 | F17: 4.6 | H17: 5.44 | I17: 6.39 | J17: 4.44 | K17: 3.93 | L17: 6.13 | M17: 5.43 | P17: 3.32 | Q17: 1 | R17: 3.25 | T17: =(H17-GrosBovins2023!H18)/GrosBovins2023!H18 -> 0.001841620626 | U17: =(H17-MoyQuinqHebdoGB!AL5)/MoyQuinqHebdoGB!AL5 -> 0.2757973734 | W17: =(K17-GrosBovins2023!K17)/GrosBovins2023!K17 -> -0.1437908497 | X17: =(K17-MoyQuinqHebdoGB!BD5)/MoyQuinqHebdoGB!BD5 -> 0.2273579013
B18: 2 | C18: 5.47 | D18: 5.31 | E18: 4.85 | F18: 4.59 | H18: 5.46 | I18: 6.36 | J18: 4.49 | K18: 3.97 | L18: 6.21 | M18: 5.43 | P18: 3.32 | Q18: 2 | R18: 3.25 | S18: =(H18-H17)/H17 -> 0.003676470588 | T18: =(H18-GrosBovins2023!H19)/GrosBovins2023!H19 -> 0.005524861878 | U18: =(H18-MoyQuinqHebdoGB!AL6)/MoyQuinqHebdoGB!AL6 -> 0.2774918109 | V18: =(K18-K17)/K17 -> 0.01017811705 | W18: =(K18-GrosBovins2023!K18)/GrosBovins2023!K18 -> -0.1369565217 | X18: =(K18-MoyQuinqHebdoGB!BD6)/MoyQuinqHebdoGB!BD6 -> 0.2313895782
B19: 3 | C19: 5.49 | D19: 5.32 | E19: 4.88 | F19: 4.66 | G19: 5.88 | H19: 5.46 | I19: 6.43 | J19: 4.5 | K19: 4 | L19: 6.16 | M19: 5.45 | P19: 3.39 | Q19: 3 | R19: 3.3 | S19: =(H19-H18)/H18 -> 0 | T19: =(H19-GrosBovins2023!H20)/GrosBovins2023!H20 -> 0.007380073801 | U19: =(H19-MoyQuinqHebdoGB!AL7)/MoyQuinqHebdoGB!AL7 -> 0.2768942937 | V19: =(K19-K18)/K18 -> 0.007556675063 | W19: =(K19-GrosBovins2023!K19)/GrosBovins2023!K19 -> -0.1323210412 | X19: =(K19-MoyQuinqHebdoGB!BD7)/MoyQuinqHebdoGB!BD7 -> 0.2345679012
A20: J | B20: 4 | C20: 5.5 | D20: 5.35 | E20: 4.95 | F20: 4.7 | G20: 5.89 | H20: 5.47 | I20: 6.42 | J20: 4.53 | K20: 4.05 | L20: 6.17 | M20: 5.46 | P20: 3.4 | Q20: 4 | R20: 3.3 | S20: =(H20-H19)/H19 -> 0.001831501832 | T20: =(H20-GrosBovins2023!H21)/GrosBovins2023!H21 -> 0.009225092251 | U20: =(H20-MoyQuinqHebdoGB!AL8)/MoyQuinqHebdoGB!AL8 -> 0.2786348761 | V20: 0.0125 | W20: =(K20-GrosBovins2023!K20)/GrosBovins2023!K20 -> -0.1176470588 | X20: =(K20-MoyQuinqHebdoGB!BD8)/MoyQuinqHebdoGB!BD8 -> 0.2461538462
B21: 5 | C21: 5.53 | D21: 5.38 | E21: 4.96 | F21: 4.64 | H21: 5.49 | I21: 6.46 | J21: 4.58 | K21: 4.09 | L21: 6.17 | M21: 5.45 | P21: 3.42 | Q21: 5 | R21: 3.35 | S21: 0.00365630713 | T21: =(H21-GrosBovins2023!H22)/GrosBovins2023!H22 -> 0.01291512915 | U21: =(H21-MoyQuinqHebdoGB!AL9)/MoyQuinqHebdoGB!AL9 -> 0.2779329609 | V21: 0.00987654321 | W21: =(K21-GrosBovins2023!K21)/GrosBovins2023!K21 -> -0.1030701754 | X21: =(K21-MoyQuinqHebdoGB!BD9)/MoyQuinqHebdoGB!BD9 -> 0.2515299878
B22: 6 | C22: 5.56 | D22: 5.4 | F22: 4.73 | H22: 5.51 | I22: 6.5 | J22: 4.61 | K22: 4.13 | L22: 6.23 | M22: 5.49 | P22: 3.45 | Q22: 6 | R22: 3.4 | S22: 0.00364298725 | T22: =(H22-GrosBovins2023!H23)/GrosBovins2023!H23 -> 0.01660516605 | U22: =(H22-MoyQuinqHebdoGB!AL10)/MoyQuinqHebdoGB!AL10 -> 0.2778293135 | V22: 0.0097799511 | W22: =(K22-GrosBovins2023!K22)/GrosBovins2023!K22 -> -0.09429824561 | X22: =(K22-MoyQuinqHebdoGB!BD10)/MoyQuinqHebdoGB!BD10 -> 0.2560827251
B23: 7 | C23: 5.57 | D23: 5.42 | F23: 4.7 | H23: 5.5 | I23: 6.47 | J23: 4.62 | K23: 4.16 | L23: 6.2 | M23: 5.48 | P23: 3.49 | Q23: 7 | R23: 3.45 | S23: -0.001814882033 | T23: =(H23-GrosBovins2023!H24)/GrosBovins2023!H24 -> 0.01102941176 | U23: =(H23-MoyQuinqHebdoGB!AL11)/MoyQuinqHebdoGB!AL11 -> 0.2725590005 | V23: 0.007263922518 | W23: =(K23-GrosBovins2023!K23)/GrosBovins2023!K23 -> -0.09565217391 | X23: =(K23-MoyQuinqHebdoGB!BD11)/MoyQuinqHebdoGB!BD11 -> 0.2484993998
B24: 8 | C24: 5.58 | D24: 5.44 | E24: 4.99 | F24: 4.74 | G24: 5.91 | H24: 5.49 | I24: 6.46 | J24: 4.62 | K24: 4.16 | L24: 6.16 | M24: 5.48 | P24: 3.53 | Q24: 8 | R24: 3.5 | S24: -0.001818181818 | T24: =(H24-GrosBovins2023!H25)/GrosBovins2023!H25 -> 0.005494505495 | U24: =(H24-MoyQuinqHebdoGB!AL12)/MoyQuinqHebdoGB!AL12 -> 0.2597521799 | V24: 0 | W24: =(K24-GrosBovins2023!K24)/GrosBovins2023!K24 -> -0.1034482759 | X24: =(K24-MoyQuinqHebdoGB!BD12)/MoyQuinqHebdoGB!BD12 -> 0.2271386431
A25: F | B25: 9 | C25: 5.58 | D25: 5.43 | F25: 4.74 | H25: 5.46 | I25: 6.51 | J25: 4.66 | K25: 4.16 | L25: 6.19 | M25: 5.48 | P25: 3.57 | Q25: 9 | R25: 3.55 | S25: -0.005464480874 | T25: =(H25-GrosBovins2023!H26)/GrosBovins2023!H26 -> -0.003649635036 | U25: =(H25-MoyQuinqHebdoGB!AL13)/MoyQuinqHebdoGB!AL13 -> 0.2460063898 | V25: 0 | W25: =(K25-GrosBovins2023!K25)/GrosBovins2023!K25 -> -0.1130063966 | X25: =(K25-MoyQuinqHebdoGB!BD13)/MoyQuinqHebdoGB!BD13 -> 0.2121212121
B26: 10 | C26: 5.58 | D26: 5.43 | F26: 4.73 | G26: 5.94 | H26: 5.49 | I26: 6.47 | J26: 4.64 | K26: 4.16 | L26: 6.22 | M26: 5.48 | P26: 3.59 | Q26: 10 | R26: 3.6 | S26: 0.005494505495 | T26: =(H26-GrosBovins2023!H27)/GrosBovins2023!H27 -> -0.005434782609 | U26: =(H26-MoyQuinqHebdoGB!AL14)/MoyQuinqHebdoGB!AL14 -> 0.2471603816 | V26: 0 | W26: =(K26-GrosBovins2023!K26)/GrosBovins2023!K26 -> -0.1242105263 | X26: =(K26-MoyQuinqHebdoGB!BD14)/MoyQuinqHebdoGB!BD14 -> 0.1988472622
B27: 11 | C27: 5.57 | D27: 5.4 | E27: 5.01 | F27: 4.75 | G27: 5.97 | H27: 5.48 | I27: 6.48 | J27: 4.63 | K27: 4.18 | L27: 6.27 | M27: 5.48 | P27: 3.61 | Q27: 11 | R27: 3.6 | S27: -0.001821493625 | T27: =(H27-GrosBovins2023!H28)/GrosBovins2023!H28 -> -0.00904159132 | U27: =(H27-MoyQuinqHebdoGB!AL15)/MoyQuinqHebdoGB!AL15 -> 0.2381382738 | V27: 0.004807692308 | W27: =(K27-GrosBovins2023!K27)/GrosBovins2023!K27 -> -0.1291666667 | X27: =(K27-MoyQuinqHebdoGB!BD15)/MoyQuinqHebdoGB!BD15 -> 0.1949685535
B28: 12 | C28: 5.55 | D28: 5.39 | F28: 4.76 | H28: 5.48 | I28: 6.54 | J28: 4.64 | K28: 4.17 | L28: 6.46 | M28: 5.46 | P28: 3.65 | Q28: 12 | R28: 3.65 | S28: 0 | T28: =(H28-GrosBovins2023!H29)/GrosBovins2023!H29 -> -0.003636363636 | U28: =(H28-MoyQuinqHebdoGB!AL16)/MoyQuinqHebdoGB!AL16 -> 0.2336785232 | V28: -0.002392344498 | W28: =(K28-GrosBovins2023!K28)/GrosBovins2023!K28 -> -0.1348547718 | X28: =(K28-MoyQuinqHebdoGB!BD16)/MoyQuinqHebdoGB!BD16 -> 0.1853325753
A29: M | B29: 13 | C29: 5.54 | D29: 5.36 | F29: 4.78 | H29: 5.48 | I29: 6.5 | J29: 4.66 | K29: 4.18 | L29: 6.25 | M29: 5.46 | P29: 3.65 | Q29: 13 | R29: 3.65 | S29: 0 | T29: =(H29-GrosBovins2023!H30)/GrosBovins2023!H30 -> -0.005444646098 | U29: =(H29-MoyQuinqHebdoGB!AL17)/MoyQuinqHebdoGB!AL17 -> 0.2353471596 | V29: 0.002398081535 | W29: =(K29-GrosBovins2023!K29)/GrosBovins2023!K29 -> -0.130977131 | X29: =(K29-MoyQuinqHebdoGB!BD17)/MoyQuinqHebdoGB!BD17 -> 0.1841359773
B30: 14 | C30: 5.5 | D30: 5.33 | E30: 4.9 | F30: 4.79 | H30: 5.49 | I30: 6.47 | J30: 4.66 | K30: 4.18 | L30: 6.23 | M30: 5.43 | P30: 3.67 | Q30: 14 | R30: 3.7 | S30: 0.001824817518 | T30: =(H30-GrosBovins2023!H31)/GrosBovins2023!H31 -> 0.01104972376 | U30: =(H30-MoyQuinqHebdoGB!AL18)/MoyQuinqHebdoGB!AL18 -> 0.2370437134 | V30: 0 | W30: =(K30-GrosBovins2023!K30)/GrosBovins2023!K30 -> -0.1255230126 | X30: =(K30-MoyQuinqHebdoGB!BD18)/MoyQuinqHebdoGB!BD18 -> 0.1834654587
B31: 15 | C31: 5.47 | D31: 5.28 | F31: 4.77 | H31: 5.48 | I31: 6.5 | J31: 4.66 | K31: 4.19 | L31: 6.18 | M31: 5.48 | P31: 3.69 | Q31: 15 | R31: 3.7 | S31: -0.001821493625 | T31: =(H31-GrosBovins2023!H32)/GrosBovins2023!H32 -> 0.005504587156 | U31: =(H31-MoyQuinqHebdoGB!AL19)/MoyQuinqHebdoGB!AL19 -> 0.2381382738 | V31: =(K31-K30)/K30 -> 0.002392344498 | W31: =(K31-GrosBovins2023!K31)/GrosBovins2023!K31 -> -0.1141649049 | X31: =(K31-MoyQuinqHebdoGB!BD19)/MoyQuinqHebdoGB!BD19 -> 0.1883153715
B32: 16 | C32: 5.43 | D32: 5.25 | F32: 4.74 | G32: 5.93 | H32: 5.5 | I32: 6.58 | J32: 4.67 | K32: 4.2 | L32: 6.17 | M32: 5.44 | P32: 3.74 | Q32: 16 | R32: 3.75 | S32: 0.003649635036 | T32: =(H32-GrosBovins2023!H33)/GrosBovins2023!H33 -> 0.01102941176 | U32: =(H32-MoyQuinqHebdoGB!AL20)/MoyQuinqHebdoGB!AL20 -> 0.2392969806 | V32: =(K32-K31)/K31 -> 0.002386634845 | W32: =(K32-GrosBovins2023!K32)/GrosBovins2023!K32 -> -0.1063829787 | X32: =(K32-MoyQuinqHebdoGB!BD20)/MoyQuinqHebdoGB!BD20 -> 0.1871113624
A33: A | B33: 17 | C33: 5.4 | D33: 5.22 | F33: 4.81 | H33: 5.49 | I33: 6.51 | J33: 4.69 | K33: 4.22 | L33: 6.25 | M33: 5.45 | P33: 3.76 | Q33: 17 | R33: 3.75 | S33: -0.001818181818 | T33: =(H33-GrosBovins2023!H34)/GrosBovins2023!H34 -> 0.009191176471 | U33: =(H33-MoyQuinqHebdoGB!AL21)/MoyQuinqHebdoGB!AL21 -> 0.2342625899 | V33: 0.004761904762 | W33: =(K33-GrosBovins2023!K33)/GrosBovins2023!K33 -> -0.09635974304 | X33: =(K33-MoyQuinqHebdoGB!BD21)/MoyQuinqHebdoGB!BD21 -> 0.1853932584
B34: 18 | C34: 5.37 | D34: 5.21 | E34: 4.82 | F34: 4.81 | H34: 5.5 | I34: 6.58 | J34: 4.72 | K34: 4.25 | L34: 6.26 | M34: 5.5 | P34: 3.78 | Q34: 18 | R34: 3.75 | S34: 0.001821493625 | T34: =(H34-GrosBovins2023!H35)/GrosBovins2023!H35 -> 0.01102941176 | U34: =(H34-MoyQuinqHebdoGB!AL22)/MoyQuinqHebdoGB!AL22 -> 0.2326311071 | V34: 0.007109004739 | W34: =(K34-GrosBovins2023!K34)/GrosBovins2023!K34 -> -0.08405172414 | X34: =(K34-MoyQuinqHebdoGB!BD22)/MoyQuinqHebdoGB!BD22 -> 0.1845039019
B35: 19 | C35: 5.35 | D35: 5.2 | F35: 4.84 | H35: 5.52 | I35: 6.56 | J35: 4.77 | K35: 4.29 | L35: 6.28 | M35: 5.5 | P35: 3.78 | Q35: 19 | R35: 3.75 | S35: 0.003636363636 | T35: =(H35-GrosBovins2023!H36)/GrosBovins2023!H36 -> 0.0128440367 | U35: =(H35-MoyQuinqHebdoGB!AL23)/MoyQuinqHebdoGB!AL23 -> 0.2354521038 | V35: 0.009411764706 | W35: =(K35-GrosBovins2023!K35)/GrosBovins2023!K35 -> -0.0694143167 | X35: =(K35-MoyQuinqHebdoGB!BD23)/MoyQuinqHebdoGB!BD23 -> 0.1910049972
B36: 20 | C36: 5.36 | D36: 5.2 | F36: 4.8 | H36: 5.5 | I36: 6.57 | J36: 4.76 | K36: 4.33 | L36: 6.3 | M36: 5.49 | P36: 3.78 | Q36: 20 | R36: 3.75 | S36: -0.003623188406 | T36: =(H36-GrosBovins2023!H37)/GrosBovins2023!H37 -> 0.009174311927 | U36: =(H36-MoyQuinqHebdoGB!AL24)/MoyQuinqHebdoGB!AL24 -> 0.2249443207 | V36: 0.009324009324 | W36: =(K36-GrosBovins2023!K36)/GrosBovins2023!K36 -> -0.06277056277 | X36: =(K36-MoyQuinqHebdoGB!BD24)/MoyQuinqHebdoGB!BD24 -> 0.1928374656
B37: 21 | C37: 5.36 | D37: 5.21 | F37: 4.84 | G37: 5.88 | H37: 5.51 | I37: 6.52 | J37: 4.76 | K37: 4.33 | L37: 6.26 | M37: 5.5 | P37: 3.84 | Q37: 21 | R37: 3.75 | S37: 0.001818181818 | T37: =(H37-GrosBovins2023!H38)/GrosBovins2023!H38 -> 0.00731261426 | U37: =(H37-MoyQuinqHebdoGB!AL25)/MoyQuinqHebdoGB!AL25 -> 0.2249888839 | V37: 0 | W37: =(K37-GrosBovins2023!K37)/GrosBovins2023!K37 -> -0.06479481641 | X37: =(K37-MoyQuinqHebdoGB!BD25)/MoyQuinqHebdoGB!BD25 -> 0.1863013699
A38: M | B38: 22 | Q38: 22 | S38: -1 | T38: =(H38-GrosBovins2023!H39)/GrosBovins2023!H39 -> -1 | U38: =(H38-MoyQuinqHebdoGB!AL26)/MoyQuinqHebdoGB!AL26 -> -1 | V38: -1 | W38: =(K38-GrosBovins2023!K38)/GrosBovins2023!K38 -> -1 | X38: =(K38-MoyQuinqHebdoGB!BD26)/MoyQuinqHebdoGB!BD26 -> -1
B39: 23 | Q39: 23 | T39: =(H39-GrosBovins2023!H40)/GrosBovins2023!H40 -> -1 | U39: =(H39-MoyQuinqHebdoGB!AL27)/MoyQuinqHebdoGB!AL27 -> -1 | W39: =(K39-GrosBovins2023!K39)/GrosBovins2023!K39 -> -1 | X39: =(K39-MoyQuinqHebdoGB!BD27)/MoyQuinqHebdoGB!BD27 -> -1
B40: 24 | Q40: 24 | T40: =(H40-GrosBovins2023!H41)/GrosBovins2023!H41 -> -1 | U40: =(H40-MoyQuinqHebdoGB!AL28)/MoyQuinqHebdoGB!AL28 -> -1 | W40: =(K40-GrosBovins2023!K40)/GrosBovins2023!K40 -> -1 | X40: =(K40-MoyQuinqHebdoGB!BD28)/MoyQuinqHebdoGB!BD28 -> -1
B41: 25 | Q41: 25 | T41: =(H41-GrosBovins2023!H42)/GrosBovins2023!H42 -> -1 | U41: =(H41-MoyQuinqHebdoGB!AL29)/MoyQuinqHebdoGB!AL29 -> -1 | W41: =(K41-GrosBovins2023!K41)/GrosBovins2023!K41 -> -1 | X41: =(K41-MoyQuinqHebdoGB!BD29)/MoyQuinqHebdoGB!BD29 -> -1
A42: J | B42: 26 | Q42: 26 | T42: =(H42-GrosBovins2023!H43)/GrosBovins2023!H43 -> -1 | U42: =(H42-MoyQuinqHebdoGB!AL30)/MoyQuinqHebdoGB!AL30 -> -1 | W42: =(K42-GrosBovins2023!K42)/GrosBovins2023!K42 -> -1 | X42: =(K42-MoyQuinqHebdoGB!BD30)/MoyQuinqHebdoGB!BD30 -> -1
B43: 27 | Q43: 27 | T43: =(H43-GrosBovins2023!H44)/GrosBovins2023!H44 -> -1 | U43: =(H43-MoyQuinqHebdoGB!AL31)/MoyQuinqHebdoGB!AL31 -> -1 | W43: =(K43-GrosBovins2023!K43)/GrosBovins2023!K43 -> -1 | X43: =(K43-MoyQuinqHebdoGB!BD31)/MoyQuinqHebdoGB!BD31 -> -1
B44: 28 | Q44: 28 | T44: =(H44-GrosBovins2023!H45)/GrosBovins2023!H45 -> -1 | U44: =(H44-MoyQuinqHebdoGB!AL32)/MoyQuinqHebdoGB!AL32 -> -1 | W44: =(K44-GrosBovins2023!K44)/GrosBovins2023!K44 -> -1 | X44: =(K44-MoyQuinqHebdoGB!BD32)/MoyQuinqHebdoGB!BD32 -> -1
B45: 29 | Q45: 29 | T45: =(H45-GrosBovins2023!H46)/GrosBovins2023!H46 -> -1 | U45: =(H45-MoyQuinqHebdoGB!AL33)/MoyQuinqHebdoGB!AL33 -> -1 | W45: =(K45-GrosBovins2023!K45)/GrosBovins2023!K45 -> -1 | X45: =(K45-MoyQuinqHebdoGB!BD33)/MoyQuinqHebdoGB!BD33 -> -1
A46: J | B46: 30 | Q46: 30 | T46: =(H46-GrosBovins2023!H47)/GrosBovins2023!H47 -> -1 | U46: =(H46-MoyQuinqHebdoGB!AL34)/MoyQuinqHebdoGB!AL34 -> -1 | W46: =(K46-GrosBovins2023!K46)/GrosBovins2023!K46 -> -1 | X46: =(K46-MoyQuinqHebdoGB!BD34)/MoyQuinqHebdoGB!BD34 -> -1
B47: 31 | Q47: 31 | T47: =(H47-GrosBovins2023!H48)/GrosBovins2023!H48 -> -1 | U47: =(H47-MoyQuinqHebdoGB!AL35)/MoyQuinqHebdoGB!AL35 -> -1 | W47: =(K47-GrosBovins2023!K47)/GrosBovins2023!K47 -> -1 | X47: =(K47-MoyQuinqHebdoGB!BD35)/MoyQuinqHebdoGB!BD35 -> -1
B48: 32 | Q48: 32 | T48: =(H48-GrosBovins2023!H49)/GrosBovins2023!H49 -> -1 | U48: =(H48-MoyQuinqHebdoGB!AL36)/MoyQuinqHebdoGB!AL36 -> -1 | W48: =(K48-GrosBovins2023!K48)/GrosBovins2023!K48 -> -1 | X48: =(K48-MoyQuinqHebdoGB!BD36)/MoyQuinqHebdoGB!BD36 -> -1
B49: 33 | Q49: 33 | T49: =(H49-GrosBovins2023!H50)/GrosBovins2023!H50 -> -1 | U49: =(H49-MoyQuinqHebdoGB!AL37)/MoyQuinqHebdoGB!AL37 -> -1 | W49: =(K49-GrosBovins2023!K49)/GrosBovins2023!K49 -> -1 | X49: =(K49-MoyQuinqHebdoGB!BD37)/MoyQuinqHebdoGB!BD37 -> -1
B50: 34 | Q50: 34 | T50: =(H50-GrosBovins2023!H51)/GrosBovins2023!H51 -> -1 | U50: =(H50-MoyQuinqHebdoGB!AL38)/MoyQuinqHebdoGB!AL38 -> -1 | W50: =(K50-GrosBovins2023!K50)/GrosBovins2023!K50 -> -1 | X50: =(K50-MoyQuinqHebdoGB!BD38)/MoyQuinqHebdoGB!BD38 -> -1
A51: A | B51: 35 | Q51: 35 | T51: =(H51-GrosBovins2023!H52)/GrosBovins2023!H52 -> -1 | U51: =(H51-MoyQuinqHebdoGB!AL39)/MoyQuinqHebdoGB!AL39 -> -1 | W51: =(K51-GrosBovins2023!K51)/GrosBovins2023!K51 -> -1 | X51: =(K51-MoyQuinqHebdoGB!BD39)/MoyQuinqHebdoGB!BD39 -> -1
B52: 36 | Q52: 36 | T52: =(H52-GrosBovins2023!H53)/GrosBovins2023!H53 -> -1 | U52: =(H52-MoyQuinqHebdoGB!AL40)/MoyQuinqHebdoGB!AL40 -> -1 | W52: =(K52-GrosBovins2023!K52)/GrosBovins2023!K52 -> -1 | X52: =(K52-MoyQuinqHebdoGB!BD40)/MoyQuinqHebdoGB!BD40 -> -1
B53: 37 | Q53: 37 | T53: =(H53-GrosBovins2023!H54)/GrosBovins2023!H54 -> -1 | U53: =(H53-MoyQuinqHebdoGB!AL41)/MoyQuinqHebdoGB!AL41 -> -1 | W53: =(K53-GrosBovins2023!K53)/GrosBovins2023!K53 -> -1 | X53: =(K53-MoyQuinqHebdoGB!BD41)/MoyQuinqHebdoGB!BD41 -> -1
B54: 38 | Q54: 38 | T54: =(H54-GrosBovins2023!H55)/GrosBovins2023!H55 -> -1 | U54: =(H54-MoyQuinqHebdoGB!AL42)/MoyQuinqHebdoGB!AL42 -> -1 | W54: =(K54-GrosBovins2023!K54)/GrosBovins2023!K54 -> -1 | X54: =(K54-MoyQuinqHebdoGB!BD42)/MoyQuinqHebdoGB!BD42 -> -1
A55: S | B55: 39 | Q55: 39 | T55: =(H55-GrosBovins2023!H56)/GrosBovins2023!H56 -> -1 | U55: =(H55-MoyQuinqHebdoGB!AL43)/MoyQuinqHebdoGB!AL43 -> -1 | W55: =(K55-GrosBovins2023!K55)/GrosBovins2023!K55 -> -1 | X55: =(K55-MoyQuinqHebdoGB!BD43)/MoyQuinqHebdoGB!BD43 -> -1
B56: 40 | Q56: 40 | T56: =(H56-GrosBovins2023!H57)/GrosBovins2023!H57 -> -1 | U56: =(H56-MoyQuinqHebdoGB!AL44)/MoyQuinqHebdoGB!AL44 -> -1 | W56: =(K56-GrosBovins2023!K56)/GrosBovins2023!K56 -> -1 | X56: =(K56-MoyQuinqHebdoGB!BD44)/MoyQuinqHebdoGB!BD44 -> -1
B57: 41 | Q57: 41 | T57: =(H57-GrosBovins2023!H58)/GrosBovins2023!H58 -> -1 | U57: =(H57-MoyQuinqHebdoGB!AL45)/MoyQuinqHebdoGB!AL45 -> -1 | W57: =(K57-GrosBovins2023!K57)/GrosBovins2023!K57 -> -1 | X57: =(K57-MoyQuinqHebdoGB!BD45)/MoyQuinqHebdoGB!BD45 -> -1
B58: 42 | Q58: 42 | T58: =(H58-GrosBovins2023!H59)/GrosBovins2023!H59 -> -1 | U58: =(H58-MoyQuinqHebdoGB!AL46)/MoyQuinqHebdoGB!AL46 -> -1 | W58: =(K58-GrosBovins2023!K58)/GrosBovins2023!K58 -> -1 | X58: =(K58-MoyQuinqHebdoGB!BD46)/MoyQuinqHebdoGB!BD46 -> -1
B59: 43 | Q59: 43 | T59: =(H59-GrosBovins2023!H60)/GrosBovins2023!H60 -> -1 | U59: =(H59-MoyQuinqHebdoGB!AL47)/MoyQuinqHebdoGB!AL47 -> -1 | W59: =(K59-GrosBovins2023!K59)/GrosBovins2023!K59 -> -1 | X59: =(K59-MoyQuinqHebdoGB!BD47)/MoyQuinqHebdoGB!BD47 -> -1
A60: O | B60: 44 | Q60: 44 | T60: =(H60-GrosBovins2023!H61)/GrosBovins2023!H61 -> -1 | U60: =(H60-MoyQuinqHebdoGB!AL48)/MoyQuinqHebdoGB!AL48 -> -1 | W60: =(K60-GrosBovins2023!K60)/GrosBovins2023!K60 -> -1 | X60: =(K60-MoyQuinqHebdoGB!BD48)/MoyQuinqHebdoGB!BD48 -> -1
B61: 45 | Q61: 45 | T61: =(H61-GrosBovins2023!H62)/GrosBovins2023!H62 -> -1 | U61: =(H61-MoyQuinqHebdoGB!AL49)/MoyQuinqHebdoGB!AL49 -> -1 | W61: =(K61-GrosBovins2023!K61)/GrosBovins2023!K61 -> -1 | X61: =(K61-MoyQuinqHebdoGB!BD49)/MoyQuinqHebdoGB!BD49 -> -1
B62: 46 | Q62: 46 | T62: =(H62-GrosBovins2023!H63)/GrosBovins2023!H63 -> -1 | U62: =(H62-MoyQuinqHebdoGB!AL50)/MoyQuinqHebdoGB!AL50 -> -1 | W62: =(K62-GrosBovins2023!K62)/GrosBovins2023!K62 -> -1 | X62: =(K62-MoyQuinqHebdoGB!BD50)/MoyQuinqHebdoGB!BD50 -> -1
B63: 47 | Q63: 47 | T63: =(H63-GrosBovins2023!H64)/GrosBovins2023!H64 -> -1 | U63: =(H63-MoyQuinqHebdoGB!AL51)/MoyQuinqHebdoGB!AL51 -> -1 | W63: =(K63-GrosBovins2023!K63)/GrosBovins2023!K63 -> -1 | X63: =(K63-MoyQuinqHebdoGB!BD51)/MoyQuinqHebdoGB!BD51 -> -1
A64: N | B64: 48 | Q64: 48 | T64: =(H64-GrosBovins2023!H65)/GrosBovins2023!H65 -> -1 | U64: =(H64-MoyQuinqHebdoGB!AL52)/MoyQuinqHebdoGB!AL52 -> -1 | W64: =(K64-GrosBovins2023!K64)/GrosBovins2023!K64 -> -1 | X64: =(K64-MoyQuinqHebdoGB!BD52)/MoyQuinqHebdoGB!BD52 -> -1
B65: 49 | Q65: 49 | T65: =(H65-GrosBovins2023!H66)/GrosBovins2023!H66 -> -1 | U65: =(H65-MoyQuinqHebdoGB!AL53)/MoyQuinqHebdoGB!AL53 -> -1 | W65: =(K65-GrosBovins2023!K65)/GrosBovins2023!K65 -> -1 | X65: =(K65-MoyQuinqHebdoGB!BD53)/MoyQuinqHebdoGB!BD53 -> -1
B66: 50 | Q66: 50 | T66: =(H66-GrosBovins2023!H67)/GrosBovins2023!H67 -> -1 | U66: =(H66-MoyQuinqHebdoGB!AL54)/MoyQuinqHebdoGB!AL54 -> -1 | W66: =(K66-GrosBovins2023!K66)/GrosBovins2023!K66 -> -1 | X66: =(K66-MoyQuinqHebdoGB!BD54)/MoyQuinqHebdoGB!BD54 -> -1
B67: 51 | Q67: 51 | T67: =(H67-GrosBovins2023!H68)/GrosBovins2023!H68 -> -1 | U67: =(H67-MoyQuinqHebdoGB!AL55)/MoyQuinqHebdoGB!AL55 -> -1 | W67: =(K67-GrosBovins2023!K67)/GrosBovins2023!K67 -> -1 | X67: =(K67-MoyQuinqHebdoGB!BD55)/MoyQuinqHebdoGB!BD55 -> -1
A68: D | B68: 52 | Q68: 52 | T68: =(H68-GrosBovins2023!H69)/GrosBovins2023!H69 ->  | U68: =(H68-MoyQuinqHebdoGB!AL56)/MoyQuinqHebdoGB!AL56 -> -1 | W68: =(K68-GrosBovins2023!K68)/GrosBovins2023!K68 -> -1 | X68: =(K68-MoyQuinqHebdoGB!BD56)/MoyQuinqHebdoGB!BD56 -> -1
A71: 3 – COTATION DES GROS BOVINS VIFS SUR LE MARCHE DE CHOLET (en Euro/Kg Net)
C73: GENISSES | E73: VACHES | I73: JEUNES BOVINS | J73: TAUREAUX
A74: semaines | B74: année+mois | C74: Viande, mixte, lait | D74: Viande, mixte, lait | E74: Blonde | F74: Blonde | G74: Mixte | H74: Lait | I74: Viande | J74: Viande, mixte, lait
A75: 2024 | C75: U | D75: R | E75: U | F75: R | G75: O | H75: P | I75: U | J75: URO
A76: 1 | B76: 202401 | E76: 6.1 | F76: 5.55 | G76: 4.05
A77: 2 | B77: 202401 | E77: 6.1 | F77: 5.55 | G77: 4.2 | H77: 3.75 | I77: 5.3
A78: 3 | B78: 202401 | E78: 6.1 | F78: 5.55 | G78: 4.25 | H78: 3.75 | I78: 5.34
A79: 4 | B79: 202401 | E79: 6.1 | F79: 5.55 | G79: 4.3 | H79: 3.8 | I79: 5.35
A80: 5 | B80: 202402 | E80: 6.1 | F80: 5.55 | G80: 4.3 | H80: 3.8 | I80: 5.35
A81: 6 | B81: 202402 | E81: 6.1 | F81: 5.55 | G81: 4.33 | H81: 3.85 | I81: 5.38
A82: 7 | B82: 202402 | E82: 6.1 | F82: 5.55 | G82: 4.33 | H82: 3.85 | I82: 5.38
A83: 8 | B83: 202402 | E83: 6.1 | F83: 5.55 | G83: 4.35 | H83: 3.9 | I83: 5.38
A84: 9 | B84: 202402 | E84: 6.1 | F84: 5.55 | G84: 4.35 | H84: 3.9 | I84: 5.38
A85: 10 | B85: 202403 | E85: 6.1 | F85: 5.55 | G85: 4.35 | H85: 3.9 | I85: 5.38
A86: 11 | B86: 202403 | E86: 6.1 | F86: 5.55 | G86: 4.35 | H86: 3.9 | I86: 5.38
A87: 12 | B87: 202403 | E87: 6.1 | F87: 5.55 | G87: 4.35 | H87: 3.9 | I87: 5.35
A88: 13 | B88: 202403 | E88: 6.1 | F88: 5.55 | G88: 4.35 | H88: 3.9 | I88: 5.32
A89: 14 | B89: 202404 | E89: 6.1 | F89: 5.55 | G89: 4.35 | H89: 3.9 | I89: 5.29
A90: 15 | B90: 202404 | E90: 6.1 | F90: 5.55 | G90: 4.35 | H90: 3.9 | I90: 5.26
A91: 16 | B91: 202404 | E91: 6.1 | F91: 5.55 | G91: 4.35 | H91: 3.9 | I91: 5.25
A92: 17 | B92: 202404 | E92: 6.1 | F92: 5.55 | G92: 4.35 | H92: 3.93 | I92: 5.22
A93: 18 | B93: 202405 | E93: 6.1 | F93: 5.55 | H93: 3.95 | I93: 5.2
A94: 19 | B94: 202405 | E94: 6.1 | F94: 5.6 | G94: 4.4 | H94: 4 | I94: 5.2
A95: 20 | B95: 202405 | E95: 6.15 | F95: 5.6 | G95: 4.45 | H95: 4.05 | I95: 5.2
A96: 21 | B96: 202405 | E96: 6.15 | F96: 5.6 | G96: 4.45 | H96: 4.05 | I96: 5.2
A97: 22 | B97: 202405 | E97: 6.15 | F97: 5.6 | G97: 4.45 | H97: 4.05 | I97: 5.2
A98: 23 | B98: 202406
A99: 24 | B99: 202406
A100: 25 | B100: 202406
A101: 26 | B101: 202406
A102: 27 | B102: 202407
A103: 28 | B103: 202407
A104: 29 | B104: 202407
A105: 30 | B105: 202407
A106: 31 | B106: 202408
A107: 32 | B107: 202408
A108: 33 | B108: 202408
A109: 34 | B109: 202408
A110: 35 | B110: 202408
A111: 36 | B111: 202409
A112: 37 | B112: 202409
A113: 38 | B113: 202409
A114: 39 | B114: 202409
A115: 40 | B115: 202410
A116: 41 | B116: 202410
A117: 42 | B117: 202410
A118: 43 | B118: 202410
A119: 44 | B119: 202410
A120: 45 | B120: 202411
A121: 46 | B121: 202411
A122: 47 | B122: 202411
A123: 48 | B123: 202411
A124: 49 | B124: 202412
A125: 50 | B125: 202412
A126: 51 | B126: 202412
A127: 52 | B127: 202412

Sheet GrosBovins2023
A1: COTATIONS DES GROS BOVINS
A2: Source : DRAAF Pays de la Loire - SRISE - FranceAgriMer
A5: 1 – COTATION REGIONALE GRAND OUEST ENTREE ABATTOIR en €/Kg net
A7: 2 – MOYENNE NATIONALE DES BOVINS MAIGRES DESTINES A L'ENGRAISSEMENT CHAROLAIS MALE de 6-12 mois catégorie U (350kg) en €/kg vif
A9: 3 – COTATION DES GROS BOVINS VIFS SUR LE MARCHE DE CHOLET (en Euro/Kg Net) – à partir de la ligne 72
C11: Mis à jour : 18/12/2023 | P11: Mis à jour :18/12/2023
C12: 1 – COTATION REGIONALE ENTREE ABATTOIR GRAND OUEST FRANCEAGRIMER-HEBDOMADAIRE (€/Kg net) | P12: 2 – COT. HEBDO
P13: MAIGRE €/kg vif
A14: Année | B14: Sem. | C14: JEUNES BOVINS | F14: BOEUFS | G14: VACHES | L14: GENISSES | P14: Ref. nationale | Q14: Sem. | S14: Vache Viande R | V14: Vache lait P
C15: VIANDE | E15: MIXTE | F15: MIXTE | G15: VIANDE | I15: Blonde | J15: MIXTE | K15: LAIT | L15: VIANDES + 350kg | P15: Charolais Mâles | R15: nantes | S15: Evolution/semaine -1 | T15: ="Evolution/ semaine id " & A17-1 -> Evolution/ semaine id 2022 | U15: Evolution/semaine id moy. 5 ans | V15: Evolution/semaine -1 | W15: ="Evolution/ semaine id " & A17-1 -> Evolution/ semaine id 2022 | X15: Evolution/semaine id moy. 5 ans
C16: U | D16: R | E16: O | F16: O | G16: U | H16: R | I16: U | J16: O | K16: P | L16: U | M16: R | P16: 6/12 mois ( U ) 350 kg
A17: 2023 | B17: 1 | C17: 5.54 | D17: 5.4 | E17: 5.1 | F17: 5.05 | G17: 5.71 | H17: 5.41 | I17: 6.05 | J17: 4.93 | K17: 4.59 | L17: 5.84 | M17: 5.41 | P17: 3.39 | Q17: 1 | R17: 3.27 | S17: =(H17-GrosBovins2022!H68)/GrosBovins2022!H68 -> -0.00184501845 | T17: =(H17-GrosBovins2022!H18)/GrosBovins2022!H18 -> 0.2267573696 | U17: =(H17-MoyQuinqHebdoGB!AL5)/MoyQuinqHebdoGB!AL5 -> 0.2687617261 | V17: =(K17-GrosBovins2022!K68)/GrosBovins2022!K68 -> 0 | W17: =(K17-GrosBovins2022!K17)/GrosBovins2022!K17 -> 0.3189655172 | X17: =(K17-MoyQuinqHebdoGB!BD5)/MoyQuinqHebdoGB!BD5 -> 0.4334790756
B18: 2 | C18: 5.54 | D18: 5.4 | E18: 5.09 | F18: 5.03 | G18: 5.71 | H18: 5.43 | I18: 6.13 | J18: 4.94 | K18: 4.6 | L18: 5.83 | M18: 5.41 | P18: 3.39 | Q18: 2 | R18: 3.27 | S18: =(H18-H17)/H17 -> 0.003696857671 | T18: =(H18-GrosBovins2022!H19)/GrosBovins2022!H19 -> 0.222972973 | U18: =(H18-MoyQuinqHebdoGB!AL6)/MoyQuinqHebdoGB!AL6 -> 0.2704726252 | V18: =(K18-K17)/K17 -> 0.002178649237 | W18: =(K18-GrosBovins2022!K18)/GrosBovins2022!K18 -> 0.3068181818 | X18: =(K18-MoyQuinqHebdoGB!BD6)/MoyQuinqHebdoGB!BD6 -> 0.4267990074
B19: 3 | C19: 5.55 | D19: 5.41 | E19: 5.11 | F19: 5.02 | G19: 5.76 | H19: 5.43 | I19: 6.13 | J19: 4.94 | K19: 4.61 | L19: 5.9 | M19: 5.42 | P19: 3.38 | Q19: 3 | R19: 3.25 | S19: 0 | T19: =(H19-GrosBovins2022!H20)/GrosBovins2022!H20 -> 0.2174887892 | U19: =(H19-MoyQuinqHebdoGB!AL7)/MoyQuinqHebdoGB!AL7 -> 0.269878391 | V19: =(K19-K18)/K18 -> 0.002173913043 | W19: =(K19-GrosBovins2022!K19)/GrosBovins2022!K19 -> 0.2841225627 | X19: =(K19-MoyQuinqHebdoGB!BD7)/MoyQuinqHebdoGB!BD7 -> 0.4228395062
A20: J | B20: 4 | C20: 5.53 | D20: 5.39 | E20: 5.1 | F20: 5.02 | G20: 5.7 | H20: 5.42 | I20: 6.11 | J20: 4.93 | K20: 4.59 | L20: 5.87 | M20: 5.42 | P20: 3.4 | Q20: 4 | R20: 3.25 | S20: -0.001841620626 | T20: =(H20-GrosBovins2022!H21)/GrosBovins2022!H21 -> 0.1991150442 | U20: =(H20-MoyQuinqHebdoGB!AL8)/MoyQuinqHebdoGB!AL8 -> 0.2669471716 | V20: -0.004338394794 | W20: =(K20-GrosBovins2022!K20)/GrosBovins2022!K20 -> 0.2575342466 | X20: =(K20-MoyQuinqHebdoGB!BD8)/MoyQuinqHebdoGB!BD8 -> 0.4123076923
B21: 5 | C21: 5.52 | D21: 5.4 | E21: 5.07 | F21: 4.88 | G21: 5.76 | H21: 5.42 | I21: 6.19 | J21: 4.91 | K21: 4.56 | L21: 5.9 | M21: 5.41 | P21: 3.43 | Q21: 5 | R21: 3.3 | S21: 0 | T21: =(H21-GrosBovins2022!H22)/GrosBovins2022!H22 -> 0.1808278867 | U21: =(H21-MoyQuinqHebdoGB!AL9)/MoyQuinqHebdoGB!AL9 -> 0.2616387337 | V21: -0.006535947712 | W21: =(K21-GrosBovins2022!K21)/GrosBovins2022!K21 -> 0.216 | X21: =(K21-MoyQuinqHebdoGB!BD9)/MoyQuinqHebdoGB!BD9 -> 0.3953488372
B22: 6 | C22: 5.52 | D22: 5.41 | F22: 4.99 | G22: 5.75 | H22: 5.42 | I22: 6.13 | J22: 4.91 | K22: 4.56 | L22: 5.92 | M22: 5.41 | P22: 3.44 | Q22: 6 | R22: 3.33 | S22: 0 | T22: =(H22-GrosBovins2022!H23)/GrosBovins2022!H23 -> 0.1655913978 | U22: =(H22-MoyQuinqHebdoGB!AL10)/MoyQuinqHebdoGB!AL10 -> 0.2569573284 | V22: 0 | W22: =(K22-GrosBovins2022!K22)/GrosBovins2022!K22 -> 0.1875 | X22: =(K22-MoyQuinqHebdoGB!BD10)/MoyQuinqHebdoGB!BD10 -> 0.3868613139
B23: 7 | C23: 5.53 | D23: 5.41 | F23: 5.02 | G23: 5.73 | H23: 5.42 | I23: 6.19 | J23: 4.93 | K23: 4.6 | L23: 5.84 | M23: 5.39 | P23: 3.43 | Q23: 7 | R23: 3.3 | S23: 0 | T23: =(H23-GrosBovins2022!H24)/GrosBovins2022!H24 -> 0.1386554622 | U23: =(H23-MoyQuinqHebdoGB!AL11)/MoyQuinqHebdoGB!AL11 -> 0.2540490514 | V23: 0.008771929825 | W23: =(K23-GrosBovins2022!K23)/GrosBovins2022!K23 -> 0.1616161616 | X23: =(K23-MoyQuinqHebdoGB!BD11)/MoyQuinqHebdoGB!BD11 -> 0.3805522209
A24: F | B24: 8 | C24: 5.54 | D24: 5.42 | F24: 5.07 | G24: 5.76 | H24: 5.44 | I24: 6.19 | J24: 4.97 | K24: 4.64 | L24: 5.93 | M24: 5.43 | P24: 3.46 | Q24: 8 | R24: 3.4 | S24: 0.0036900369 | T24: =(H24-GrosBovins2022!H25)/GrosBovins2022!H25 -> 0.1333333333 | U24: =(H24-MoyQuinqHebdoGB!AL12)/MoyQuinqHebdoGB!AL12 -> 0.2482790271 | V24: 0.008695652174 | W24: =(K24-GrosBovins2022!K24)/GrosBovins2022!K24 -> 0.1207729469 | X24: =(K24-MoyQuinqHebdoGB!BD12)/MoyQuinqHebdoGB!BD12 -> 0.3687315634
B25: 9 | C25: 5.56 | D25: 5.43 | E25: 5.11 | F25: 5.08 | G25: 5.88 | H25: 5.46 | I25: 6.2 | J25: 5 | K25: 4.69 | L25: 5.91 | M25: 5.46 | P25: 3.47 | Q25: 9 | R25: 3.42 | S25: 0.003676470588 | T25: =(H25-GrosBovins2022!H26)/GrosBovins2022!H26 -> 0.1257731959 | U25: =(H25-MoyQuinqHebdoGB!AL13)/MoyQuinqHebdoGB!AL13 -> 0.2460063898 | V25: 0.01077586207 | W25: =(K25-GrosBovins2022!K25)/GrosBovins2022!K25 -> 0.1140142518 | X25: =(K25-MoyQuinqHebdoGB!BD13)/MoyQuinqHebdoGB!BD13 -> 0.3665501166
B26: 10 | C26: 5.57 | D26: 5.46 | E26: 5.13 | F26: 5.11 | G26: 5.8 | H26: 5.48 | I26: 6.21 | J26: 5.04 | K26: 4.75 | L26: 5.93 | M26: 5.47 | P26: 3.52 | Q26: 10 | R26: 3.45 | S26: 0.003663003663 | T26: =(H26-GrosBovins2022!H27)/GrosBovins2022!H27 -> 0.116089613 | U26: =(H26-MoyQuinqHebdoGB!AL14)/MoyQuinqHebdoGB!AL14 -> 0.244888687 | V26: 0.01279317697 | W26: =(K26-GrosBovins2022!K26)/GrosBovins2022!K26 -> 0.1176470588 | X26: =(K26-MoyQuinqHebdoGB!BD14)/MoyQuinqHebdoGB!BD14 -> 0.3688760807
B27: 11 | C27: 5.6 | D27: 5.47 | F27: 5.12 | G27: 5.8 | H27: 5.52 | I27: 6.21 | J27: 5.07 | K27: 4.8 | L27: 6 | M27: 5.49 | P27: 3.53 | Q27: 11 | R27: 3.48 | S27: 0.007299270073 | T27: =(H27-GrosBovins2022!H28)/GrosBovins2022!H28 -> 0.1174089069 | U27: =(H27-MoyQuinqHebdoGB!AL15)/MoyQuinqHebdoGB!AL15 -> 0.2471757795 | V27: 0.01052631579 | W27: =(K27-GrosBovins2022!K27)/GrosBovins2022!K27 -> 0.1188811189 | X27: =(K27-MoyQuinqHebdoGB!BD15)/MoyQuinqHebdoGB!BD15 -> 0.372212693
B28: 12 | C28: 5.62 | D28: 5.47 | E28: 5.16 | F28: 5.15 | H28: 5.53 | I28: 6.22 | J28: 5.08 | K28: 4.82 | L28: 6.05 | M28: 5.49 | P28: 3.54 | Q28: 12 | R28: 3.48 | S28: 0.001811594203 | T28: =(H28-GrosBovins2022!H29)/GrosBovins2022!H29 -> 0.1082164329 | U28: =(H28-MoyQuinqHebdoGB!AL16)/MoyQuinqHebdoGB!AL16 -> 0.2449347141 | V28: 0.004166666667 | W28: =(K28-GrosBovins2022!K28)/GrosBovins2022!K28 -> 0.1105990783 | X28: =(K28-MoyQuinqHebdoGB!BD16)/MoyQuinqHebdoGB!BD16 -> 0.3700966458
A29: M | B29: 13 | C29: 5.62 | D29: 5.48 | E29: 5.17 | F29: 5.16 | G29: 6.16 | H29: 5.5 | I29: 6.37 | J29: 5.09 | K29: 4.81 | L29: 6.12 | M29: 5.49 | P29: 3.55 | Q29: 13 | R29: 3.48 | S29: -0.005424954792 | T29: =(H29-GrosBovins2022!H30)/GrosBovins2022!H30 -> 0.09780439122 | U29: =(H29-MoyQuinqHebdoGB!AL17)/MoyQuinqHebdoGB!AL17 -> 0.2398557259 | V29: -0.002074688797 | W29: =(K29-GrosBovins2022!K29)/GrosBovins2022!K29 -> 0.09567198178 | X29: =(K29-MoyQuinqHebdoGB!BD17)/MoyQuinqHebdoGB!BD17 -> 0.3626062323
B30: 14 | C30: 5.6 | D30: 5.45 | E30: 5.14 | F30: 5.15 | G30: 5.87 | H30: 5.51 | I30: 6.25 | J30: 5.07 | K30: 4.78 | L30: 6.02 | M30: 5.48 | P30: 3.57 | Q30: 14 | R30: 3.5 | S30: 0.001818181818 | T30: =(H30-GrosBovins2022!H31)/GrosBovins2022!H31 -> 0.08893280632 | U30: =(H30-MoyQuinqHebdoGB!AL18)/MoyQuinqHebdoGB!AL18 -> 0.2415502479 | V30: -0.006237006237 | W30: =(K30-GrosBovins2022!K30)/GrosBovins2022!K30 -> 0.07657657658 | X30: =(K30-MoyQuinqHebdoGB!BD18)/MoyQuinqHebdoGB!BD18 -> 0.3533408834
B31: 15 | C31: 5.58 | D31: 5.44 | E31: 5.11 | F31: 5.11 | H31: 5.43 | I31: 6.27 | J31: 5.03 | K31: 4.73 | L31: 6.02 | M31: 5.47 | P31: 3.57 | Q31: 15 | R31: 3.5 | S31: =(H31-H30)/H30 -> -0.01451905626 | T31: =(H31-GrosBovins2022!H32)/GrosBovins2022!H32 -> 0.06470588235 | U31: =(H31-MoyQuinqHebdoGB!AL19)/MoyQuinqHebdoGB!AL19 -> 0.2268413918 | V31: -0.01046025105 | W31: =(K31-GrosBovins2022!K31)/GrosBovins2022!K31 -> 0.05345211581 | X31: =(K31-MoyQuinqHebdoGB!BD19)/MoyQuinqHebdoGB!BD19 -> 0.3414634146
B32: 16 | C32: 5.57 | D32: 5.46 | E32: 5.11 | F32: 5.1 | H32: 5.45 | I32: 6.24 | J32: 5.01 | K32: 4.7 | L32: 5.99 | M32: 5.47 | P32: 3.57 | Q32: 16 | R32: 3.5 | S32: =(H32-H31)/H31 -> 0.003683241252 | T32: =(H32-GrosBovins2022!H33)/GrosBovins2022!H33 -> 0.06031128405 | U32: =(H32-MoyQuinqHebdoGB!AL20)/MoyQuinqHebdoGB!AL20 -> 0.2280306444 | V32: -0.006342494715 | W32: =(K32-GrosBovins2022!K32)/GrosBovins2022!K32 -> 0.03296703297 | X32: =(K32-MoyQuinqHebdoGB!BD20)/MoyQuinqHebdoGB!BD20 -> 0.3284341436
A33: A | B33: 17 | C33: 5.55 | D33: 5.42 | E33: 5.09 | F33: 5.06 | G33: 5.85 | H33: 5.44 | I33: 6.22 | J33: 4.99 | K33: 4.67 | L33: 6.05 | M33: 5.44 | P33: 3.57 | Q33: 17 | R33: 3.5 | S33: -0.001834862385 | T33: =(H33-GrosBovins2022!H34)/GrosBovins2022!H34 -> 0.05019305019 | U33: =(H33-MoyQuinqHebdoGB!AL21)/MoyQuinqHebdoGB!AL21 -> 0.2230215827 | V33: -0.006382978723 | W33: =(K33-GrosBovins2022!K33)/GrosBovins2022!K33 -> 0.006465517241 | X33: =(K33-MoyQuinqHebdoGB!BD21)/MoyQuinqHebdoGB!BD21 -> 0.3117977528
B34: 18 | C34: 5.53 | D34: 5.39 | F34: 5.05 | G34: 5.85 | H34: 5.44 | I34: 6.27 | J34: 4.97 | K34: 4.64 | L34: 6.02 | M34: 5.45 | P34: 3.57 | Q34: 18 | R34: 3.5 | S34: 0 | T34: =(H34-GrosBovins2022!H35)/GrosBovins2022!H35 -> 0.04414587332 | U34: =(H34-MoyQuinqHebdoGB!AL22)/MoyQuinqHebdoGB!AL22 -> 0.2191842223 | V34: -0.006423982869 | W34: =(K34-GrosBovins2022!K34)/GrosBovins2022!K34 -> -0.02109704641 | X34: =(K34-MoyQuinqHebdoGB!BD22)/MoyQuinqHebdoGB!BD22 -> 0.2931995541
B35: 19 | C35: 5.5 | D35: 5.37 | E35: 5.05 | F35: 5.05 | G35: 5.9 | H35: 5.44 | I35: 6.32 | J35: 4.96 | K35: 4.61 | L35: 6.07 | M35: 5.43 | P35: 3.57 | Q35: 19 | R35: 3.5 | S35: 0 | T35: =(H35-GrosBovins2022!H36)/GrosBovins2022!H36 -> 0.03816793893 | U35: =(H35-MoyQuinqHebdoGB!AL23)/MoyQuinqHebdoGB!AL23 -> 0.2175470009 | V35: -0.006465517241 | W35: =(K35-GrosBovins2022!K35)/GrosBovins2022!K35 -> -0.0375782881 | X35: =(K35-MoyQuinqHebdoGB!BD23)/MoyQuinqHebdoGB!BD23 -> 0.2798445308
B36: 20 | C36: 5.48 | D36: 5.35 | E36: 5.02 | F36: 5.06 | H36: 5.45 | I36: 6.29 | J36: 4.97 | K36: 4.62 | L36: 6.09 | M36: 5.43 | P36: 3.59 | Q36: 20 | R36: 3.5 | S36: 0.001838235294 | T36: =(H36-GrosBovins2022!H37)/GrosBovins2022!H37 -> 0.03415559772 | U36: =(H36-MoyQuinqHebdoGB!AL24)/MoyQuinqHebdoGB!AL24 -> 0.2138084633 | V36: 0.002169197397 | W36: =(K36-GrosBovins2022!K36)/GrosBovins2022!K36 -> -0.04347826087 | X36: =(K36-MoyQuinqHebdoGB!BD24)/MoyQuinqHebdoGB!BD24 -> 0.2727272727
A37: M | B37: 21 | C37: 5.48 | D37: 5.37 | F37: 5.05 | G37: 5.81 | H37: 5.45 | I37: 6.3 | J37: 4.97 | K37: 4.63 | L37: 6.09 | M37: 5.45 | P37: 3.6 | Q37: 21 | R37: 3.5 | S37: 0 | T37: =(H37-GrosBovins2022!H38)/GrosBovins2022!H38 -> 0.03415559772 | U37: =(H37-MoyQuinqHebdoGB!AL25)/MoyQuinqHebdoGB!AL25 -> 0.2116496221 | V37: 0.002164502165 | W37: =(K37-GrosBovins2022!K37)/GrosBovins2022!K37 -> -0.04338842975 | X37: =(K37-MoyQuinqHebdoGB!BD25)/MoyQuinqHebdoGB!BD25 -> 0.2684931507
B38: 22 | C38: 5.46 | D38: 5.33 | E38: 5.03 | F38: 5.08 | H38: 5.47 | I38: 6.27 | J38: 4.98 | K38: 4.67 | L38: 6.05 | M38: 5.45 | P38: 3.61 | Q38: 22 | R38: 3.5 | S38: 0.003669724771 | T38: =(H38-GrosBovins2022!H39)/GrosBovins2022!H39 -> 0.03402646503 | U38: =(H38-MoyQuinqHebdoGB!AL26)/MoyQuinqHebdoGB!AL26 -> 0.2112488928 | V38: 0.008639308855 | W38: =(K38-GrosBovins2022!K38)/GrosBovins2022!K38 -> -0.03909465021 | X38: =(K38-MoyQuinqHebdoGB!BD26)/MoyQuinqHebdoGB!BD26 -> 0.2710941753
B39: 23 | C39: 5.46 | D39: 5.33 | E39: 5.01 | F39: 5.09 | H39: 5.49 | I39: 6.29 | J39: 5.02 | K39: 4.71 | L39: 6.1 | M39: 5.48 | P39: 3.62 | Q39: 23 | R39: 3.55 | S39: 0.00365630713 | T39: =(H39-GrosBovins2022!H40)/GrosBovins2022!H40 -> 0.03780718336 | U39: =(H39-MoyQuinqHebdoGB!AL27)/MoyQuinqHebdoGB!AL27 -> 0.2092511013 | V39: 0.008565310493 | W39: =(K39-GrosBovins2022!K39)/GrosBovins2022!K39 -> -0.03285420945 | X39: =(K39-MoyQuinqHebdoGB!BD27)/MoyQuinqHebdoGB!BD27 -> 0.2764227642
B40: 24 | C40: 5.45 | D40: 5.31 | E40: 5.05 | F40: 5.09 | H40: 5.5 | I40: 6.29 | J40: 5.03 | K40: 4.71 | L40: 6.06 | M40: 5.47 | P40: 3.62 | Q40: 24 | R40: 3.55 | S40: 0.001821493625 | T40: =(H40-GrosBovins2022!H41)/GrosBovins2022!H41 -> 0.03969754253 | U40: =(H40-MoyQuinqHebdoGB!AL28)/MoyQuinqHebdoGB!AL28 -> 0.2071992976 | V40: 0 | W40: =(K40-GrosBovins2022!K40)/GrosBovins2022!K40 -> -0.03285420945 | X40: =(K40-MoyQuinqHebdoGB!BD28)/MoyQuinqHebdoGB!BD28 -> 0.2743506494
B41: 25 | C41: 5.43 | D41: 5.27 | E41: 5.04 | F41: 5.09 | H41: 5.48 | I41: 6.29 | J41: 5.02 | K41: 4.7 | L41: 6.13 | M41: 5.46 | P41: 3.62 | Q41: 25 | R41: 3.55 | S41: -0.003636363636 | T41: =(H41-GrosBovins2022!H42)/GrosBovins2022!H42 -> 0.03396226415 | U41: =(H41-MoyQuinqHebdoGB!AL29)/MoyQuinqHebdoGB!AL29 -> 0.2054553454 | V41: -0.002123142251 | W41: =(K41-GrosBovins2022!K41)/GrosBovins2022!K41 -> -0.03490759754 | X41: =(K41-MoyQuinqHebdoGB!BD29)/MoyQuinqHebdoGB!BD29 -> 0.2730227519
A42: J | B42: 26 | C42: 5.39 | D42: 5.24 | E42: 5.02 | F42: 5.05 | H42: 5.48 | I42: 6.3 | J42: 4.99 | K42: 4.66 | L42: 6.05 | M42: 5.47 | P42: 3.62 | Q42: 26 | R42: 3.53 | S42: 0 | T42: =(H42-GrosBovins2022!H43)/GrosBovins2022!H43 -> 0.0359168242 | U42: =(H42-MoyQuinqHebdoGB!AL30)/MoyQuinqHebdoGB!AL30 -> 0.2012275318 | V42: -0.008510638298 | W42: =(K42-GrosBovins2022!K42)/GrosBovins2022!K42 -> -0.04508196721 | X42: =(K42-MoyQuinqHebdoGB!BD30)/MoyQuinqHebdoGB!BD30 -> 0.2635574837
B43: 27 | C43: 5.37 | D43: 5.21 | E43: 4.97 | F43: 5.01 | H43: 5.46 | I43: 6.24 | J43: 4.96 | K43: 4.62 | L43: 6.09 | M43: 5.46 | P43: 3.61 | Q43: 27 | R43: 3.5 | S43: -0.003649635036 | T43: =(H43-GrosBovins2022!H44)/GrosBovins2022!H44 -> 0.03409090909 | U43: =(H43-MoyQuinqHebdoGB!AL31)/MoyQuinqHebdoGB!AL31 -> 0.1984196664 | V43: -0.008583690987 | W43: =(K43-GrosBovins2022!K43)/GrosBovins2022!K43 -> -0.05133470226 | X43: =(K43-MoyQuinqHebdoGB!BD31)/MoyQuinqHebdoGB!BD31 -> 0.2554347826
B44: 28 | C44: 5.33 | D44: 5.17 | E44: 4.92 | F44: 5 | H44: 5.44 | I44: 6.29 | J44: 4.93 | K44: 4.57 | L44: 6.1 | M44: 5.42 | P44: 3.52 | Q44: 28 | R44: 3.45 | S44: -0.003663003663 | T44: =(H44-GrosBovins2022!H45)/GrosBovins2022!H45 -> 0.02641509434 | U44: =(H44-MoyQuinqHebdoGB!AL32)/MoyQuinqHebdoGB!AL32 -> 0.1956043956 | V44: -0.01082251082 | W44: =(K44-GrosBovins2022!K44)/GrosBovins2022!K44 -> -0.06160164271 | X44: =(K44-MoyQuinqHebdoGB!BD32)/MoyQuinqHebdoGB!BD32 -> 0.2452316076
B45: 29 | C45: 5.31 | D45: 5.16 | E45: 4.9 | F45: 5.01 | H45: 5.44 | I45: 6.33 | J45: 4.89 | K45: 4.53 | L45: 6.01 | M45: 5.43 | P45: 3.5 | Q45: 29 | R45: 3.45 | S45: 0 | T45: =(H45-GrosBovins2022!H46)/GrosBovins2022!H46 -> 0.0303030303 | U45: =(H45-MoyQuinqHebdoGB!AL33)/MoyQuinqHebdoGB!AL33 -> 0.1940298507 | V45: -0.00875273523 | W45: =(K45-GrosBovins2022!K45)/GrosBovins2022!K45 -> -0.07551020408 | X45: =(K45-MoyQuinqHebdoGB!BD33)/MoyQuinqHebdoGB!BD33 -> 0.2343324251
A46: J | B46: 30 | C46: 5.29 | D46: 5.11 | E46: 4.86 | F46: 4.98 | H46: 5.42 | I46: 6.3 | J46: 4.88 | K46: 4.5 | L46: 6.05 | M46: 5.43 | P46: 3.45 | Q46: 30 | R46: 3.45 | S46: -0.003676470588 | T46: =(H46-GrosBovins2022!H47)/GrosBovins2022!H47 -> 0.04431599229 | U46: =(H46-MoyQuinqHebdoGB!AL34)/MoyQuinqHebdoGB!AL34 -> 0.1948853616 | V46: -0.006622516556 | W46: =(K46-GrosBovins2022!K46)/GrosBovins2022!K46 -> -0.07597535934 | X46: =(K46-MoyQuinqHebdoGB!BD34)/MoyQuinqHebdoGB!BD34 -> 0.2301804265
B47: 31 | C47: 5.24 | D47: 5.09 | E47: 4.84 | F47: 4.96 | H47: 5.44 | I47: 6.32 | J47: 4.86 | K47: 4.48 | L47: 6 | M47: 5.41 | P47: 3.45 | Q47: 31 | R47: 3.45 | S47: 0.0036900369 | T47: =(H47-GrosBovins2022!H48)/GrosBovins2022!H48 -> 0.0303030303 | U47: =(H47-MoyQuinqHebdoGB!AL35)/MoyQuinqHebdoGB!AL35 -> 0.2008830022 | V47: -0.004444444444 | W47: =(K47-GrosBovins2022!K47)/GrosBovins2022!K47 -> -0.07818930041 | X47: =(K47-MoyQuinqHebdoGB!BD35)/MoyQuinqHebdoGB!BD35 -> 0.2280701754
B48: 32 | C48: 5.24 | D48: 5.06 | E48: 4.83 | F48: 4.96 | G48: 5.85 | H48: 5.45 | I48: 6.38 | J48: 4.87 | K48: 4.49 | L48: 6.02 | M48: 5.41 | P48: 3.45 | Q48: 32 | R48: 3.45 | S48: 0.001838235294 | T48: =(H48-GrosBovins2022!H49)/GrosBovins2022!H49 -> 0.03024574669 | U48: =(H48-MoyQuinqHebdoGB!AL36)/MoyQuinqHebdoGB!AL36 -> 0.1993838028 | V48: 0.002232142857 | W48: =(K48-GrosBovins2022!K48)/GrosBovins2022!K48 -> -0.07613168724 | X48: =(K48-MoyQuinqHebdoGB!BD36)/MoyQuinqHebdoGB!BD36 -> 0.2308114035
B49: 33 | C49: 5.25 | D49: 5.07 | E49: 4.86 | F49: 5.02 | H49: 5.46 | I49: 6.33 | J49: 4.93 | K49: 4.54 | M49: 5.46 | P49: 3.45 | Q49: 33 | R49: 3.45 | S49: 0.001834862385 | T49: =(H49-GrosBovins2022!H50)/GrosBovins2022!H50 -> 0.03213610586 | U49: =(H49-MoyQuinqHebdoGB!AL37)/MoyQuinqHebdoGB!AL37 -> 0.2 | V49: 0.01113585746 | W49: =(K49-GrosBovins2022!K49)/GrosBovins2022!K49 -> -0.06776180698 | X49: =(K49-MoyQuinqHebdoGB!BD37)/MoyQuinqHebdoGB!BD37 -> 0.2390829694
B50: 34 | C50: 5.27 | D50: 5.12 | E50: 4.9 | F50: 5.04 | H50: 5.52 | I50: 6.37 | J50: 4.96 | K50: 4.6 | L50: 6.19 | M50: 5.46 | P50: 3.46 | Q50: 34 | R50: 3.45 | S50: 0.01098901099 | T50: =(H50-GrosBovins2022!H51)/GrosBovins2022!H51 -> 0.0395480226 | U50: =(H50-MoyQuinqHebdoGB!AL38)/MoyQuinqHebdoGB!AL38 -> 0.2084063047 | V50: 0.01321585903 | W50: =(K50-GrosBovins2022!K50)/GrosBovins2022!K50 -> -0.05349794239 | X50: =(K50-MoyQuinqHebdoGB!BD38)/MoyQuinqHebdoGB!BD38 -> 0.2486427796
A51: A | B51: 35 | C51: 5.3 | D51: 5.15 | E51: 4.96 | F51: 5.07 | H51: 5.56 | I51: 6.38 | J51: 4.99 | K51: 4.66 | L51: 6.2 | M51: 5.52 | P51: 3.47 | Q51: 35 | R51: 3.45 | S51: 0.007246376812 | T51: =(H51-GrosBovins2022!H52)/GrosBovins2022!H52 -> 0.04511278195 | U51: =(H51-MoyQuinqHebdoGB!AL39)/MoyQuinqHebdoGB!AL39 -> 0.2097476066 | V51: 0.01304347826 | W51: =(K51-GrosBovins2022!K51)/GrosBovins2022!K51 -> -0.04115226337 | X51: =(K51-MoyQuinqHebdoGB!BD39)/MoyQuinqHebdoGB!BD39 -> 0.2587790384
B52: 36 | C52: 5.33 | D52: 5.2 | E52: 5.01 | F52: 5.1 | H52: 5.58 | I52: 6.35 | J52: 5.03 | K52: 4.7 | L52: 6.15 | M52: 5.53 | P52: 3.5 | Q52: 36 | R52: 3.5 | S52: 0.003597122302 | T52: =(H52-GrosBovins2022!H53)/GrosBovins2022!H53 -> 0.04494382022 | U52: =(H52-MoyQuinqHebdoGB!AL40)/MoyQuinqHebdoGB!AL40 -> 0.2130434783 | V52: 0.008583690987 | W52: =(K52-GrosBovins2022!K52)/GrosBovins2022!K52 -> -0.0329218107 | X52: =(K52-MoyQuinqHebdoGB!BD40)/MoyQuinqHebdoGB!BD40 -> 0.2648008611
B53: 37 | C53: 5.38 | D53: 5.22 | E53: 5.01 | F53: 5.09 | H53: 5.56 | I53: 6.36 | J53: 5.05 | K53: 4.71 | L53: 6.11 | M53: 5.53 | P53: 3.58 | Q53: 37 | R53: 3.53 | S53: -0.003584229391 | T53: =(H53-GrosBovins2022!H54)/GrosBovins2022!H54 -> 0.03925233645 | U53: =(H53-MoyQuinqHebdoGB!AL41)/MoyQuinqHebdoGB!AL41 -> 0.2097476066 | V53: 0.002127659574 | W53: =(K53-GrosBovins2022!K53)/GrosBovins2022!K53 -> -0.03285420945 | X53: =(K53-MoyQuinqHebdoGB!BD41)/MoyQuinqHebdoGB!BD41 -> 0.266810113
B54: 38 | C54: 5.41 | D54: 5.23 | F54: 5.07 | H54: 5.55 | I54: 6.4 | J54: 5.04 | K54: 4.67 | L54: 6.21 | M54: 5.51 | P54: 3.59 | Q54: 38 | R54: 3.53 | S54: -0.001798561151 | T54: =(H54-GrosBovins2022!H55)/GrosBovins2022!H55 -> 0.03738317757 | U54: =(H54-MoyQuinqHebdoGB!AL42)/MoyQuinqHebdoGB!AL42 -> 0.2080975185 | V54: -0.008492569002 | W54: =(K54-GrosBovins2022!K54)/GrosBovins2022!K54 -> -0.04693877551 | X54: =(K54-MoyQuinqHebdoGB!BD42)/MoyQuinqHebdoGB!BD42 -> 0.2587601078
A55: S | B55: 39 | C55: 5.42 | D55: 5.26 | F55: 5.06 | H55: 5.54 | I55: 6.34 | J55: 4.99 | K55: 4.65 | L55: 6.19 | M55: 5.53 | P55: 3.59 | Q55: 39 | R55: 3.53 | S55: -0.001801801802 | T55: =(H55-GrosBovins2022!H56)/GrosBovins2022!H56 -> 0.02782931354 | U55: =(H55-MoyQuinqHebdoGB!AL43)/MoyQuinqHebdoGB!AL43 -> 0.2069716776 | V55: -0.004282655246 | W55: =(K55-GrosBovins2022!K55)/GrosBovins2022!K55 -> -0.05295315682 | X55: =(K55-MoyQuinqHebdoGB!BD43)/MoyQuinqHebdoGB!BD43 -> 0.2567567568
B56: 40 | C56: 5.42 | D56: 5.27 | E56: 4.98 | F56: 5.05 | H56: 5.56 | I56: 6.41 | J56: 4.95 | K56: 4.6 | L56: 6.18 | M56: 5.53 | P56: 3.56 | Q56: 40 | R56: 3.45 | S56: 0.003610108303 | T56: =(H56-GrosBovins2022!H57)/GrosBovins2022!H57 -> 0.0258302583 | U56: =(H56-MoyQuinqHebdoGB!AL44)/MoyQuinqHebdoGB!AL44 -> 0.2086956522 | V56: -0.01075268817 | W56: =(K56-GrosBovins2022!K56)/GrosBovins2022!K56 -> -0.06313645621 | X56: =(K56-MoyQuinqHebdoGB!BD44)/MoyQuinqHebdoGB!BD44 -> 0.25
B57: 41 | C57: 5.43 | D57: 5.27 | E57: 4.97 | F57: 5.01 | H57: 5.53 | I57: 6.36 | J57: 4.92 | K57: 4.55 | L57: 6.17 | M57: 5.49 | P57: 3.49 | Q57: 41 | R57: 3.38 | S57: -0.005395683453 | T57: =(H57-GrosBovins2022!H58)/GrosBovins2022!H58 -> 0.02029520295 | U57: =(H57-MoyQuinqHebdoGB!AL45)/MoyQuinqHebdoGB!AL45 -> 0.2037440139 | V57: -0.01086956522 | W57: =(K57-GrosBovins2022!K57)/GrosBovins2022!K57 -> -0.07520325203 | X57: =(K57-MoyQuinqHebdoGB!BD45)/MoyQuinqHebdoGB!BD45 -> 0.2418122271
B58: 42 | C58: 5.42 | D58: 5.26 | E58: 4.93 | F58: 4.94 | H58: 5.53 | I58: 6.39 | J58: 4.88 | K58: 4.51 | L58: 6.19 | M58: 5.51 | P58: 3.49 | Q58: 42 | R58: 3.38 | S58: 0 | T58: =(H58-GrosBovins2022!H59)/GrosBovins2022!H59 -> 0.02218114603 | U58: =(H58-MoyQuinqHebdoGB!AL46)/MoyQuinqHebdoGB!AL46 -> 0.2006079027 | V58: -0.008791208791 | W58: =(K58-GrosBovins2022!K58)/GrosBovins2022!K58 -> -0.08333333333 | X58: =(K58-MoyQuinqHebdoGB!BD46)/MoyQuinqHebdoGB!BD46 -> 0.2356164384
A59: O | B59: 43 | C59: 5.4 | D59: 5.26 | E59: 4.93 | F59: 4.93 | H59: 5.51 | I59: 6.46 | J59: 4.85 | K59: 4.44 | L59: 6.13 | M59: 5.49 | P59: 3.45 | Q59: 43 | R59: 3.4 | S59: -0.003616636528 | T59: =(H59-GrosBovins2022!H60)/GrosBovins2022!H60 -> 0.01473296501 | U59: =(H59-MoyQuinqHebdoGB!AL47)/MoyQuinqHebdoGB!AL47 -> 0.197826087 | V59: -0.0155210643 | W59: =(K59-GrosBovins2022!K59)/GrosBovins2022!K59 -> -0.09202453988 | X59: =(K59-MoyQuinqHebdoGB!BD47)/MoyQuinqHebdoGB!BD47 -> 0.2244897959
B60: 44 | C60: 5.4 | D60: 5.25 | E60: 4.89 | F60: 4.91 | H60: 5.51 | I60: 6.42 | J60: 4.78 | K60: 4.35 | M60: 5.51 | P60: 3.45 | Q60: 44 | R60: 3.4 | S60: 0 | T60: =(H60-GrosBovins2022!H61)/GrosBovins2022!H61 -> 0.01660516605 | U60: =(H60-MoyQuinqHebdoGB!AL48)/MoyQuinqHebdoGB!AL48 -> 0.1973055193 | V60: -0.02027027027 | W60: =(K60-GrosBovins2022!K60)/GrosBovins2022!K60 -> -0.1049382716 | X60: =(K60-MoyQuinqHebdoGB!BD48)/MoyQuinqHebdoGB!BD48 -> 0.2090050028
B61: 45 | C61: 5.39 | D61: 5.24 | E61: 4.85 | F61: 4.85 | H61: 5.48 | I61: 6.4 | J61: 4.71 | K61: 4.26 | L61: 6.23 | M61: 5.44 | P61: 3.4 | Q61: 45 | R61: 3.4 | S61: -0.005444646098 | T61: =(H61-GrosBovins2022!H62)/GrosBovins2022!H62 -> 0.01481481481 | U61: =(H61-MoyQuinqHebdoGB!AL49)/MoyQuinqHebdoGB!AL49 -> 0.1928602525 | V61: -0.02068965517 | W61: =(K61-GrosBovins2022!K61)/GrosBovins2022!K61 -> -0.1161825726 | X61: =(K61-MoyQuinqHebdoGB!BD49)/MoyQuinqHebdoGB!BD49 -> 0.1939461883
B62: 46 | C62: 5.41 | D62: 5.24 | E62: 4.81 | F62: 4.69 | H62: 5.46 | I62: 6.43 | J62: 4.62 | K62: 4.16 | L62: 6.14 | M62: 5.43 | P62: 3.35 | Q62: 46 | R62: 3.35 | S62: -0.003649635036 | T62: =(H62-GrosBovins2022!H63)/GrosBovins2022!H63 -> 0.009242144177 | U62: =(H62-MoyQuinqHebdoGB!AL50)/MoyQuinqHebdoGB!AL50 -> 0.1879895561 | V62: -0.0234741784 | W62: =(K62-GrosBovins2022!K62)/GrosBovins2022!K62 -> -0.1260504202 | X62: =(K62-MoyQuinqHebdoGB!BD50)/MoyQuinqHebdoGB!BD50 -> 0.178470255
B63: 47 | C63: 5.42 | D63: 5.27 | E63: 4.76 | F63: 4.69 | G63: 5.95 | H63: 5.41 | I63: 6.4 | J63: 4.54 | K63: 4.06 | L63: 6.14 | M63: 5.41 | P63: 3.34 | Q63: 47 | R63: 3.32 | S63: -0.009157509158 | T63: =(H63-GrosBovins2022!H64)/GrosBovins2022!H64 -> -0.00184501845 | U63: =(H63-MoyQuinqHebdoGB!AL51)/MoyQuinqHebdoGB!AL51 -> 0.1812227074 | V63: -0.02403846154 | W63: =(K63-GrosBovins2022!K63)/GrosBovins2022!K63 -> -0.1398305085 | X63: =(K63-MoyQuinqHebdoGB!BD51)/MoyQuinqHebdoGB!BD51 -> 0.1606632361
A64: N | B64: 48 | C64: 5.44 | D64: 5.25 | E64: 4.72 | F64: 4.62 | H64: 5.38 | I64: 6.37 | J64: 4.48 | K64: 3.95 | L64: 6.2 | M64: 5.41 | P64: 3.32 | Q64: 48 | R64: 3.27 | S64: -0.005545286506 | T64: =(H64-GrosBovins2022!H65)/GrosBovins2022!H65 -> -0.007380073801 | U64: =(H64-MoyQuinqHebdoGB!AL52)/MoyQuinqHebdoGB!AL52 -> 0.1741597556 | V64: -0.02709359606 | W64: =(K64-GrosBovins2022!K64)/GrosBovins2022!K64 -> -0.1541755889 | X64: =(K64-MoyQuinqHebdoGB!BD52)/MoyQuinqHebdoGB!BD52 -> 0.1403002309
B65: 49 | C65: 5.44 | D65: 5.26 | E65: 4.76 | F65: 4.46 | G65: 6.27 | H65: 5.38 | I65: 6.53 | J65: 4.38 | K65: 3.88 | L65: 6.31 | M65: 5.4 | P65: 3.27 | Q65: 49 | R65: 3.27 | S65: 0 | T65: =(H65-GrosBovins2022!H66)/GrosBovins2022!H66 -> -0.005545286506 | U65: =(H65-MoyQuinqHebdoGB!AL53)/MoyQuinqHebdoGB!AL53 -> 0.1746724891 | V65: -0.01772151899 | W65: =(K65-GrosBovins2022!K65)/GrosBovins2022!K65 -> -0.161987041 | X65: =(K65-MoyQuinqHebdoGB!BD53)/MoyQuinqHebdoGB!BD53 -> 0.1265969803
B66: 50 | C66: 5.44 | D66: 5.26 | E66: 4.77 | F66: 4.54 | G66: 6.16 | H66: 5.38 | I66: 6.53 | J66: 4.38 | K66: 3.84 | L66: 6.32 | M66: 5.41 | P66: 3.32 | Q66: 50 | R66: 3.25 | S66: 0 | T66: =(H66-GrosBovins2022!H67)/GrosBovins2022!H67 -> -0.007380073801 | U66: =(H66-MoyQuinqHebdoGB!AL54)/MoyQuinqHebdoGB!AL54 -> 0.2290119931 | V66: -0.01030927835 | W66: =(K66-GrosBovins2022!K66)/GrosBovins2022!K66 -> -0.1652173913 | X66: =(K66-MoyQuinqHebdoGB!BD54)/MoyQuinqHebdoGB!BD54 -> 0.1574981161
B67: 51 | C67: 5.44 | D67: 5.26 | E67: 4.72 | F67: 4.52 | H67: 5.4 | I67: 6.36 | J67: 4.38 | K67: 3.85 | L67: 6.11 | M67: 5.42 | P67: 3.32 | Q67: 51 | R67: 3.25 | S67: 0.003717472119 | T67: =(H67-GrosBovins2022!H68)/GrosBovins2022!H68 -> -0.0036900369 | U67: =(H67-MoyQuinqHebdoGB!AL55)/MoyQuinqHebdoGB!AL55 -> 0.232173417 | V67: 0.002604166667 | W67: =(K67-GrosBovins2022!K67)/GrosBovins2022!K67 -> -0.1575492341 | X67: =(K67-MoyQuinqHebdoGB!BD55)/MoyQuinqHebdoGB!BD55 -> 0.163141994
A68: D | B68: 52 | C68: 5.44 | D68: 5.28 | F68: 4.6 | H68: 5.43 | J68: 4.42 | K68: 3.87 | M68: 5.41 | P68: 3.32 | Q68: 52 | R68: 3.25 | S68: 0.005555555556 | T68: =(H68-GrosBovins2022!H69)/GrosBovins2022!H69 ->  | U68: =(H68-MoyQuinqHebdoGB!AL56)/MoyQuinqHebdoGB!AL56 -> 0.2369020501 | V68: 0.005194805195 | W68: =(K68-GrosBovins2022!K68)/GrosBovins2022!K68 -> -0.1568627451 | X68: =(K68-MoyQuinqHebdoGB!BD56)/MoyQuinqHebdoGB!BD56 -> 0.1639097744
A71: 3 – COTATION DES GROS BOVINS VIFS SUR LE MARCHE DE CHOLET (en Euro/Kg Net)
C73: GENISSES | E73: VACHES | I73: JEUNES BOVINS | J73: TAUREAUX
A74: semaines | B74: année+mois | C74: Viande, mixte, lait | D74: Viande, mixte, lait | E74: Blonde | F74: Blonde | G74: Mixte | H74: Lait | I74: Viande | J74: Viande, mixte, lait
A75: 2023 | C75: U | D75: R | E75: U | F75: R | G75: O | H75: P | I75: U | J75: URO
A76: 1 | B76: 202301 | C76: 5.54 | D76: 5.26 | E76: 5.7 | F76: 5.3 | G76: 4.62 | H76: 4.4 | I76: 5.32
A77: 2 | B77: 202301 | C77: 5.54 | D77: 5.26 | E77: 5.7 | F77: 5.3 | G77: 4.62 | H77: 4.4 | I77: 5.32
A78: 3 | B78: 202301 | C78: 5.54 | D78: 5.26 | E78: 5.7 | F78: 5.3 | G78: 4.62 | H78: 4.4 | I78: 5.32 | J78: 4.55
A79: 4 | B79: 202301 | C79: 5.54 | D79: 5.26 | E79: 5.7 | F79: 5.3 | G79: 4.62 | H79: 4.4 | I79: 5.32 | J79: 4.55
A80: 5 | B80: 202302 | C80: 5.54 | D80: 5.26 | E80: 5.7 | F80: 5.3 | G80: 4.62 | H80: 4.4 | I80: 5.3
A81: 6 | B81: 202302 | C81: 5.54 | D81: 5.26 | E81: 5.7 | F81: 5.3 | G81: 4.62 | H81: 4.38 | I81: 5.3 | J81: 4.55
A82: 7 | B82: 202302 | C82: 5.54 | D82: 5.27 | E82: 5.7 | F82: 5.3 | G82: 4.62 | H82: 4.38 | I82: 5.3
A83: 8 | B83: 202302 | C83: 5.54 | D83: 5.27 | E83: 5.7 | F83: 5.3 | G83: 4.65 | H83: 4.4 | I83: 5.3
A84: 9 | B84: 202303 | C84: 5.56 | D84: 5.31 | E84: 5.75 | F84: 5.35 | G84: 4.68 | H84: 4.45 | I84: 5.3
A85: 10 | B85: 202303 | C85: 5.59 | D85: 5.32 | E85: 5.8 | F85: 5.35 | G85: 4.7 | H85: 4.5 | I85: 5.3
A86: 11 | B86: 202303 | C86: 5.62 | D86: 5.36 | E86: 5.85 | F86: 5.4 | G86: 4.77 | H86: 4.57 | I86: 5.36
A87: 12 | B87: 202303 | C87: 5.68 | D87: 5.41 | E87: 5.9 | F87: 5.45 | G87: 4.8 | H87: 4.6 | I87: 5.36
A88: 13 | B88: 202303 | C88: 5.68 | D88: 5.41 | E88: 5.9 | F88: 5.45 | G88: 4.8 | H88: 4.6 | I88: 5.36
A89: 14 | B89: 202304 | C89: 5.66 | D89: 5.4 | E89: 5.9 | F89: 5.45 | G89: 4.8 | H89: 4.57 | I89: 5.34
A90: 15 | B90: 202304 | C90: 5.65 | D90: 5.38 | E90: 5.9 | F90: 5.45 | G90: 4.77 | H90: 4.54 | I90: 5.32
A91: 16 | B91: 202304 | C91: 5.65 | D91: 5.38 | E91: 5.9 | F91: 5.45 | G91: 4.75 | H91: 4.52 | I91: 5.3
A92: 17 | B92: 202304 | C92: 5.65 | D92: 5.38 | E92: 5.9 | F92: 5.45 | G92: 4.73 | H92: 4.5 | I92: 5.28
A93: 18 | B93: 202305 | C93: 5.63 | D93: 5.38 | E93: 5.9 | F93: 5.45 | G93: 4.73 | H93: 4.48 | I93: 5.26
A94: 19 | B94: 202305 | C94: 5.63 | D94: 5.38 | E94: 5.9 | F94: 5.45 | G94: 4.71 | H94: 4.46 | I94: 5.26
A95: 20 | B95: 202305 | C95: 5.65 | D95: 5.38 | E95: 5.9 | F95: 5.45 | G95: 4.71 | H95: 4.46 | I95: 5.26
A96: 21 | B96: 202305 | C96: 5.65 | D96: 5.38 | E96: 5.9 | F96: 5.45 | G96: 4.71 | H96: 4.46 | I96: 5.26
A97: 22 | B97: 202306 | C97: 5.65 | D97: 5.38 | E97: 5.9 | F97: 5.45 | G97: 4.73 | H97: 4.46 | I97: 5.26
A98: 23 | B98: 202306 | C98: 5.65 | D98: 5.38 | E98: 5.9 | F98: 5.45 | G98: 4.75 | H98: 4.5 | I98: 5.26
A99: 24 | B99: 202306 | C99: 5.7 | D99: 5.38 | E99: 5.95 | F99: 5.45 | G99: 4.77 | H99: 4.5 | I99: 5.26
A100: 25 | B100: 202306 | C100: 5.72 | D100: 5.38 | E100: 6 | F100: 5.45 | G100: 4.77 | H100: 4.49 | I100: 5.25
A101: 26 | B101: 202306 | C101: 5.72 | D101: 5.37 | E101: 6 | F101: 5.45 | G101: 4.75 | H101: 4.44 | I101: 5.2
A102: 27 | B102: 202307 | E102: 6 | F102: 5.45 | G102: 4.7 | H102: 4.39 | I102: 5.16
A103: 28 | B103: 202307 | E103: 6 | F103: 5.45 | G103: 4.65 | H103: 4.35 | I103: 5.11
A104: 29 | B104: 202307 | E104: 6 | F104: 5.45 | G104: 4.62 | H104: 4.32 | I104: 5.09
A105: 30 | B105: 202307 | E105: 6 | F105: 5.45 | G105: 4.6 | H105: 4.3 | I105: 5.06
A106: 31 | B106: 202308 | E106: 6 | F106: 5.45 | G106: 4.58 | H106: 4.28 | I106: 5.04
A107: 32 | B107: 202308 | E107: 6 | F107: 5.45 | G107: 4.58 | H107: 4.28 | I107: 5.04
A108: 33 | B108: 202308 | E108: 6 | F108: 5.45 | G108: 4.58 | H108: =H109-0.05 -> 4.28 | I108: 5.04
A109: 34 | B109: 202308 | E109: 6.05 | F109: 5.5 | G109: 4.63 | H109: 4.33 | I109: 5.04
A110: 35 | B110: 202309 | E110: 6.1 | F110: 5.55 | G110: 4.68 | H110: 4.38 | I110: 5.07
A111: 36 | B111: 202309 | E111: 6.1 | F111: 5.55 | G111: 4.73 | H111: 4.43 | I111: 5.12
A112: 37 | B112: 202309 | E112: 6.1 | F112: 5.55 | G112: 4.78 | H112: 4.48 | I112: 5.17
A113: 38 | B113: 202309 | E113: 6.1 | F113: 5.55 | G113: 4.75 | H113: 4.48 | I113: 5.2
A114: 39 | B114: 202309 | E114: 6.1 | F114: 5.55 | G114: 4.72 | H114: 4.45 | I114: 5.22
A115: 40 | B115: 202310 | E115: 6.1 | F115: 5.55 | G115: 4.7 | H115: 4.42 | I115: 5.22
A116: 41 | B116: 202310 | E116: 6.1 | F116: 5.55 | G116: 4.65 | H116: 4.38 | I116: 5.22
A117: 42 | B117: 202310 | E117: 6.1 | F117: 5.55 | G117: 4.6 | H117: 4.25 | I117: 5.22
A118: 43 | B118: 202310 | E118: 6.1 | F118: 5.5 | G118: 4.55 | H118: 4.3 | I118: 5.22
A119: 44 | B119: 202311 | E119: 6.1 | F119: 5.55 | G119: 4.5 | H119: 4.15 | I119: 5.22
A120: 45 | B120: 202311 | E120: 6.1 | F120: 5.55 | G120: 4.47 | H120: 4.08 | I120: 5.22
A121: 46 | B121: 202311 | E121: 6.1 | F121: 5.55 | G121: 4.37 | H121: 3.98 | I121: 5.22
A122: 47 | B122: 202311 | E122: 6.1 | F122: 5.55 | G122: 4.27 | H122: 3.88 | I122: 5.22
A123: 48 | B123: 202312 | E123: 6.1 | F123: 5.55 | G123: 4.17 | H123: 3.78 | I123: 5.22
A124: 49 | B124: 202312 | E124: 6.1 | F124: 5.55 | G124: 4.07 | H124: 3.68 | I124: 5.22
A125: 50 | B125: 202312 | E125: 6.1 | F125: 5.55 | G125: 4.05 | H125: 3.63 | I125: 5.22
A126: 51 | B126: 202312 | E126: 6.1 | F126: 5.55 | G126: 4.05 | H126: 3.63 | I126: 5.35
A127: 52 | B127: 202312 | E127: 6.1 | F127: 5.55

Sheet GrosBovins2022
A1: COTATIONS DES GROS BOVINS
A2: Source : DRAAF Pays de la Loire - SRISE - FranceAgriMer
A5: 1 – COTATION REGIONALE GRAND OUEST ENTREE ABATTOIR en €/Kg net
A7: 2 – MOYENNE NATIONALE DES BOVINS MAIGRES DESTINES A L'ENGRAISSEMENT CHAROLAIS MALE de 6-12 mois catégorie U (350kg) en €/kg vif
A9: 3 – COTATION DES GROS BOVINS VIFS SUR LE MARCHE DE CHOLET (en Euro/Kg Net) – à partir de la ligne 72
C11: Mis à jour : 29/01/2023 | P11: Mis à jour : 29/01/2023
C12: 1 – COTATION REGIONALE ENTREE ABATTOIR GRAND OUEST FRANCEAGRIMER-HEBDOMADAIRE (€/Kg net) | P12: 2 – COT. HEBDO
P13: MAIGRE €/kg vif
A14: Année | B14: Sem. | C14: JEUNES BOVINS | F14: BOEUFS | G14: VACHES | L14: GENISSES | O14: NANTES | P14: Ref. nationale | Q14: Sem. | S14: Vache Viande R | V14: Vache lait P
C15: VIANDE | E15: MIXTE | F15: MIXTE | G15: VIANDE | I15: Blonde | J15: MIXTE | K15: LAIT | L15: VIANDES + 350kg | P15: Charolais Mâles | S15: Evolution/semaine -1 | T15: ="Evolution/ semaine id " & A17-1 -> Evolution/ semaine id 2021 | U15: Evolution/semaine id moy. 5 ans | V15: Evolution/semaine -1 | W15: ="Evolution/ semaine id " & A17-1 -> Evolution/ semaine id 2021 | X15: Evolution/semaine id moy. 5 ans
C16: U | D16: R | E16: O | F16: O | G16: U | H16: R | I16: U | J16: O | K16: P | L16: U | M16: R | P16: 6/12 mois ( U ) 350
A17: 2022 | B17: 1 | C17: 4.6 | D17: 4.44 | E17: 3.79 | F17: 3.8 | G17: 4.88 | H17: 4.38 | I17: 5.5 | J17: 3.76 | K17: 3.48 | L17: 5.1 | M17: 4.32 | P17: 2.72 | Q17: 1 | S17: =(H17-GrosBovins2021!H68)/GrosBovins2021!H68 -> 0 | T17: =(H17-GrosBovins2021!H17)/GrosBovins2021!H17 -> 0.08684863524 | U17: =(H17-MoyQuinqHebdoGB!AL5)/MoyQuinqHebdoGB!AL5 -> 0.02720450281 | V17: =(K17-GrosBovins2021!K68)/GrosBovins2021!K68 -> 0.01457725948 | W17: =(K17-GrosBovins2021!K17)/GrosBovins2021!K17 -> 0.2608695652 | X17: =(K17-MoyQuinqHebdoGB!BD5)/MoyQuinqHebdoGB!BD5 -> 0.08682073704
B18: 2 | C18: 4.62 | D18: 4.46 | E18: 3.82 | F18: 3.81 | G18: 4.87 | H18: 4.41 | I18: 5.52 | J18: 3.79 | K18: 3.52 | L18: 5.08 | M18: 4.38 | O18: 2.82 | P18: 2.78 | Q18: 2 | S18: =(H18-H17)/H17 -> 0.006849315068 | T18: =(H18-GrosBovins2021!H18)/GrosBovins2021!H18 -> 0.09975062344 | U18: =(H18-MoyQuinqHebdoGB!AL6)/MoyQuinqHebdoGB!AL6 -> 0.03182030884 | V18: =(K18-K17)/K17 -> 0.01149425287 | W18: =(K18-GrosBovins2021!K18)/GrosBovins2021!K18 -> 0.2707581227 | X18: =(K18-MoyQuinqHebdoGB!BD6)/MoyQuinqHebdoGB!BD6 -> 0.09181141439
B19: 3 | C19: 4.65 | D19: 4.5 | E19: 3.82 | F19: 3.85 | G19: 4.97 | H19: 4.44 | I19: 5.54 | J19: 3.82 | K19: 3.59 | L19: 5.25 | M19: 4.4 | O19: 2.82 | P19: 2.79 | Q19: 3 | S19: 0.006802721088 | T19: =(H19-GrosBovins2021!H19)/GrosBovins2021!H19 -> 0.1044776119 | U19: =(H19-MoyQuinqHebdoGB!AL7)/MoyQuinqHebdoGB!AL7 -> 0.0383536015 | V19: =(K19-K18)/K18 -> 0.01988636364 | W19: =(K19-GrosBovins2021!K19)/GrosBovins2021!K19 -> 0.2960288809 | X19: =(K19-MoyQuinqHebdoGB!BD7)/MoyQuinqHebdoGB!BD7 -> 0.1080246914
A20: J | B20: 4 | C20: 4.69 | D20: 4.51 | E20: 3.87 | F20: 3.89 | G20: 4.92 | H20: 4.46 | I20: 5.6 | J20: 3.86 | K20: 3.65 | L20: 5.21 | M20: 4.44 | O20: 2.85 | P20: 2.84 | Q20: 4 | S20: 0.004504504505 | T20: =(H20-GrosBovins2021!H20)/GrosBovins2021!H20 -> 0.1066997519 | U20: =(H20-MoyQuinqHebdoGB!AL8)/MoyQuinqHebdoGB!AL8 -> 0.04254324451 | V20: 0.01671309192 | W20: =(K20-GrosBovins2021!K20)/GrosBovins2021!K20 -> 0.3129496403 | X20: =(K20-MoyQuinqHebdoGB!BD8)/MoyQuinqHebdoGB!BD8 -> 0.1230769231
B21: 5 | C21: 4.73 | D21: 4.57 | E21: 3.94 | F21: 3.93 | G21: 4.98 | H21: 4.52 | I21: 5.54 | J21: 3.91 | K21: 3.75 | L21: 5.24 | M21: 4.45 | O21: 2.85 | P21: 2.84 | Q21: 5 | S21: 0.0134529148 | T21: =(H21-GrosBovins2021!H21)/GrosBovins2021!H21 -> 0.1160493827 | U21: =(H21-MoyQuinqHebdoGB!AL9)/MoyQuinqHebdoGB!AL9 -> 0.052141527 | V21: 0.02739726027 | W21: =(K21-GrosBovins2021!K21)/GrosBovins2021!K21 -> 0.3489208633 | X21: =(K21-MoyQuinqHebdoGB!BD9)/MoyQuinqHebdoGB!BD9 -> 0.1474908201
B22: 6 | C22: 4.8 | D22: 4.63 | E22: 4.01 | F22: 4.05 | G22: 5.02 | H22: 4.59 | I22: 5.62 | J22: 4.01 | K22: 3.84 | L22: 5.3 | M22: 4.51 | O22: 2.85 | P22: 2.9 | Q22: 6 | S22: 0.01548672566 | T22: =(H22-GrosBovins2021!H22)/GrosBovins2021!H22 -> 0.1389578164 | U22: =(H22-MoyQuinqHebdoGB!AL10)/MoyQuinqHebdoGB!AL10 -> 0.06447124304 | V22: 0.024 | W22: =(K22-GrosBovins2021!K22)/GrosBovins2021!K22 -> 0.376344086 | X22: =(K22-MoyQuinqHebdoGB!BD10)/MoyQuinqHebdoGB!BD10 -> 0.1678832117
B23: 7 | C23: 4.86 | D23: 4.71 | E23: 4.12 | F23: 4.14 | G23: 5.05 | H23: 4.65 | I23: 5.63 | J23: 4.12 | K23: 3.96 | L23: 5.24 | M23: 4.61 | O23: 2.88 | P23: 2.96 | Q23: 7 | S23: 0.01307189542 | T23: =(H23-GrosBovins2021!H23)/GrosBovins2021!H23 -> 0.1481481481 | U23: =(H23-MoyQuinqHebdoGB!AL11)/MoyQuinqHebdoGB!AL11 -> 0.0758907913 | V23: 0.03125 | W23: =(K23-GrosBovins2021!K23)/GrosBovins2021!K23 -> 0.409252669 | X23: =(K23-MoyQuinqHebdoGB!BD11)/MoyQuinqHebdoGB!BD11 -> 0.1884753902
A24: F | B24: 8 | C24: 4.94 | D24: 4.76 | E24: 4.27 | F24: 4.28 | G24: 5.14 | H24: 4.76 | I24: 5.65 | J24: 4.25 | K24: 4.14 | L24: 5.34 | M24: 4.71 | O24: 2.93 | P24: 3.04 | Q24: 8 | S24: 0.02365591398 | T24: =(H24-GrosBovins2021!H24)/GrosBovins2021!H24 -> 0.1695331695 | U24: =(H24-MoyQuinqHebdoGB!AL12)/MoyQuinqHebdoGB!AL12 -> 0.09224414869 | V24: 0.04545454545 | W24: =(K24-GrosBovins2021!K24)/GrosBovins2021!K24 -> 0.4628975265 | X24: =(K24-MoyQuinqHebdoGB!BD12)/MoyQuinqHebdoGB!BD12 -> 0.2212389381
B25: 9 | C25: 4.98 | D25: 4.82 | E25: 4.34 | F25: 4.33 | G25: 5.1 | H25: 4.8 | I25: 5.65 | J25: 4.33 | K25: 4.21 | L25: 5.41 | M25: 4.74 | O25: 2.98 | P25: 3.13 | Q25: 9 | S25: 0.008403361345 | T25: =(H25-GrosBovins2021!H25)/GrosBovins2021!H25 -> 0.173594132 | U25: =(H25-MoyQuinqHebdoGB!AL13)/MoyQuinqHebdoGB!AL13 -> 0.09539023277 | V25: 0.01690821256 | W25: =(K25-GrosBovins2021!K25)/GrosBovins2021!K25 -> 0.472027972 | X25: =(K25-MoyQuinqHebdoGB!BD13)/MoyQuinqHebdoGB!BD13 -> 0.2266899767
B26: 10 | C26: 5.02 | D26: 4.85 | E26: 4.42 | F26: 4.4 | G26: 5.19 | H26: 4.85 | I26: 5.68 | J26: 4.39 | K26: 4.25 | L26: 5.36 | M26: 4.78 | O26: 3.05 | P26: 3.2 | Q26: 10 | S26: 0.01041666667 | T26: =(H26-GrosBovins2021!H26)/GrosBovins2021!H26 -> 0.1829268293 | U26: =(H26-MoyQuinqHebdoGB!AL14)/MoyQuinqHebdoGB!AL14 -> 0.1017719219 | V26: 0.009501187648 | W26: =(K26-GrosBovins2021!K26)/GrosBovins2021!K26 -> 0.4655172414 | X26: =(K26-MoyQuinqHebdoGB!BD14)/MoyQuinqHebdoGB!BD14 -> 0.2247838617
B27: 11 | C27: 5.06 | D27: 4.88 | E27: 4.47 | F27: 4.5 | G27: 5.28 | H27: 4.91 | I27: 5.71 | J27: 4.45 | K27: 4.29 | L27: 5.46 | M27: 4.85 | O27: 3.15 | P27: 3.24 | Q27: 11 | S27: 0.01237113402 | T27: =(H27-GrosBovins2021!H27)/GrosBovins2021!H27 -> 0.2004889976 | U27: =(H27-MoyQuinqHebdoGB!AL15)/MoyQuinqHebdoGB!AL15 -> 0.1093538183 | V27: 0.009411764706 | W27: =(K27-GrosBovins2021!K27)/GrosBovins2021!K27 -> 0.4591836735 | X27: =(K27-MoyQuinqHebdoGB!BD15)/MoyQuinqHebdoGB!BD15 -> 0.2264150943
B28: 12 | C28: 5.09 | D28: 4.91 | E28: 4.51 | F28: 4.56 | G28: 5.27 | H28: 4.94 | I28: 5.7 | J28: 4.5 | K28: 4.34 | L28: 5.47 | M28: 4.88 | O28: 3.2 | P28: 3.25 | Q28: 12 | S28: 0.006109979633 | T28: =(H28-GrosBovins2021!H28)/GrosBovins2021!H28 -> 0.1990291262 | U28: =(H28-MoyQuinqHebdoGB!AL16)/MoyQuinqHebdoGB!AL16 -> 0.1121116614 | V28: 0.01165501166 | W28: =(K28-GrosBovins2021!K28)/GrosBovins2021!K28 -> 0.4711864407 | X28: =(K28-MoyQuinqHebdoGB!BD16)/MoyQuinqHebdoGB!BD16 -> 0.2336554861
A29: M | B29: 13 | C29: 5.11 | D29: 4.94 | E29: 4.56 | F29: 4.61 | G29: 5.3 | H29: 4.99 | I29: 5.81 | J29: 4.55 | K29: 4.39 | L29: 5.58 | M29: 4.93 | O29: 3.25 | P29: 3.28 | Q29: 13 | S29: 0.01012145749 | T29: =(H29-GrosBovins2021!H29)/GrosBovins2021!H29 -> 0.2170731707 | U29: =(H29-MoyQuinqHebdoGB!AL17)/MoyQuinqHebdoGB!AL17 -> 0.1248872858 | V29: 0.01152073733 | W29: =(K29-GrosBovins2021!K29)/GrosBovins2021!K29 -> 0.4831081081 | X29: =(K29-MoyQuinqHebdoGB!BD17)/MoyQuinqHebdoGB!BD17 -> 0.2436260623
B30: 14 | C30: 5.13 | D30: 4.98 | E30: 4.61 | F30: 4.64 | G30: 5.59 | H30: 5.01 | I30: 5.86 | J30: 4.6 | K30: 4.44 | L30: 5.67 | M30: 4.99 | O30: 3.3 | P30: 3.31 | Q30: 14 | S30: 0.004008016032 | T30: =(H30-GrosBovins2021!H30)/GrosBovins2021!H30 -> 0.2249388753 | U30: =(H30-MoyQuinqHebdoGB!AL18)/MoyQuinqHebdoGB!AL18 -> 0.128886886 | V30: 0.01138952164 | W30: =(K30-GrosBovins2021!K30)/GrosBovins2021!K30 -> 0.4949494949 | X30: =(K30-MoyQuinqHebdoGB!BD18)/MoyQuinqHebdoGB!BD18 -> 0.2570781427
B31: 15 | C31: 5.17 | D31: 4.99 | E31: 4.67 | F31: 4.69 | G31: 5.38 | H31: 5.06 | I31: 5.77 | J31: 4.64 | K31: 4.49 | L31: 5.59 | M31: 5.03 | O31: 3.35 | P31: 3.33 | Q31: 15 | S31: =(H31-H30)/H30 -> 0.00998003992 | T31: =(H31-GrosBovins2021!H31)/GrosBovins2021!H31 -> 0.2341463415 | U31: =(H31-MoyQuinqHebdoGB!AL19)/MoyQuinqHebdoGB!AL19 -> 0.1432444645 | V31: 0.01126126126 | W31: =(K31-GrosBovins2021!K31)/GrosBovins2021!K31 -> 0.5117845118 | X31: =(K31-MoyQuinqHebdoGB!BD19)/MoyQuinqHebdoGB!BD19 -> 0.2733976177
B32: 16 | C32: 5.21 | D32: 5.02 | E32: 4.74 | F32: 4.74 | G32: 5.4 | H32: 5.1 | I32: 5.79 | J32: 4.7 | K32: 4.55 | L32: 5.57 | M32: 5.09 | O32: 3.35 | P32: 3.35 | Q32: 16 | S32: =(H32-H31)/H31 -> 0.00790513834 | T32: =(H32-GrosBovins2021!H32)/GrosBovins2021!H32 -> 0.2469437653 | U32: =(H32-MoyQuinqHebdoGB!AL20)/MoyQuinqHebdoGB!AL20 -> 0.1491662911 | V32: 0.01336302895 | W32: =(K32-GrosBovins2021!K32)/GrosBovins2021!K32 -> 0.5268456376 | X32: =(K32-MoyQuinqHebdoGB!BD20)/MoyQuinqHebdoGB!BD20 -> 0.2860373092
A33: A | B33: 17 | C33: 5.24 | D33: 5.07 | E33: 4.78 | F33: 4.79 | G33: 5.44 | H33: 5.14 | I33: 5.8 | J33: 4.77 | K33: 4.64 | L33: 5.58 | M33: 5.12 | O33: 3.4 | P33: 3.37 | Q33: 17 | S33: 0.007843137255 | T33: =(H33-GrosBovins2021!H33)/GrosBovins2021!H33 -> 0.2536585366 | U33: =(H33-MoyQuinqHebdoGB!AL21)/MoyQuinqHebdoGB!AL21 -> 0.1555755396 | V33: 0.01978021978 | W33: =(K33-GrosBovins2021!K33)/GrosBovins2021!K33 -> 0.5570469799 | X33: =(K33-MoyQuinqHebdoGB!BD21)/MoyQuinqHebdoGB!BD21 -> 0.3033707865
B34: 18 | C34: 5.28 | D34: 5.12 | E34: 4.89 | F34: 4.9 | G34: 5.46 | H34: 5.18 | I34: 5.83 | J34: 4.88 | K34: 4.74 | L34: 5.65 | M34: 5.17 | O34: 3.4 | P34: 3.4 | Q34: 18 | S34: 0.007782101167 | T34: =(H34-GrosBovins2021!H34)/GrosBovins2021!H34 -> 0.2634146341 | U34: =(H34-MoyQuinqHebdoGB!AL22)/MoyQuinqHebdoGB!AL22 -> 0.1609143882 | V34: 0.02155172414 | W34: =(K34-GrosBovins2021!K34)/GrosBovins2021!K34 -> 0.5852842809 | X34: =(K34-MoyQuinqHebdoGB!BD22)/MoyQuinqHebdoGB!BD22 -> 0.3210702341
B35: 19 | C35: 5.3 | D35: 5.15 | E35: 4.97 | F35: 4.98 | G35: 5.45 | H35: 5.21 | I35: 5.88 | J35: 4.94 | K35: 4.79 | L35: 5.68 | M35: 5.22 | O35: 3.4 | P35: 3.44 | Q35: 19 | S35: 0.005791505792 | T35: =(H35-GrosBovins2021!H35)/GrosBovins2021!H35 -> 0.2769607843 | U35: =(H35-MoyQuinqHebdoGB!AL23)/MoyQuinqHebdoGB!AL23 -> 0.1660698299 | V35: 0.01054852321 | W35: =(K35-GrosBovins2021!K35)/GrosBovins2021!K35 -> 0.602006689 | X35: =(K35-MoyQuinqHebdoGB!BD23)/MoyQuinqHebdoGB!BD23 -> 0.3298167685
B36: 20 | C36: 5.31 | D36: 5.18 | E36: 4.98 | F36: 5.01 | G36: 5.53 | H36: 5.24 | I36: 5.88 | J36: 4.98 | K36: 4.83 | L36: 5.76 | M36: 5.23 | O36: 3.4 | P36: 3.44 | Q36: 20 | S36: 0.00575815739 | T36: =(H36-GrosBovins2021!H36)/GrosBovins2021!H36 -> 0.2811735941 | U36: =(H36-MoyQuinqHebdoGB!AL24)/MoyQuinqHebdoGB!AL24 -> 0.1670378619 | V36: 0.008350730689 | W36: =(K36-GrosBovins2021!K36)/GrosBovins2021!K36 -> 0.6046511628 | X36: =(K36-MoyQuinqHebdoGB!BD24)/MoyQuinqHebdoGB!BD24 -> 0.3305785124
A37: M | B37: 21 | C37: 5.32 | D37: 5.17 | E37: 5 | F37: 5.03 | G37: 5.56 | H37: 5.27 | I37: 5.9 | J37: 5 | K37: 4.84 | L37: 5.74 | M37: 5.22 | O37: 3.4 | P37: 3.4 | Q37: 21 | S37: 0.00572519084 | T37: =(H37-GrosBovins2021!H37)/GrosBovins2021!H37 -> 0.2885085575 | U37: =(H37-MoyQuinqHebdoGB!AL25)/MoyQuinqHebdoGB!AL25 -> 0.1716318364 | V37: 0.002070393375 | W37: =(K37-GrosBovins2021!K37)/GrosBovins2021!K37 -> 0.597359736 | X37: =(K37-MoyQuinqHebdoGB!BD25)/MoyQuinqHebdoGB!BD25 -> 0.3260273973
B38: 22 | C38: 5.33 | D38: 5.18 | E38: 5.02 | F38: 5.04 | G38: 5.65 | H38: 5.27 | I38: 5.9 | J38: 5.02 | K38: 4.86 | L38: 5.8 | M38: 5.28 | O38: 3.45 | P38: 3.45 | Q38: 22 | S38: 0 | T38: =(H38-GrosBovins2021!H38)/GrosBovins2021!H38 -> 0.2853658537 | U38: =(H38-MoyQuinqHebdoGB!AL26)/MoyQuinqHebdoGB!AL26 -> 0.1669619132 | V38: 0.004132231405 | W38: =(K38-GrosBovins2021!K38)/GrosBovins2021!K38 -> 0.5882352941 | X38: =(K38-MoyQuinqHebdoGB!BD26)/MoyQuinqHebdoGB!BD26 -> 0.3228089276
B39: 23 | C39: 5.33 | D39: 5.2 | E39: 5.02 | F39: 5.08 | G39: 5.57 | H39: 5.29 | I39: 5.96 | J39: 5.04 | K39: 4.87 | L39: 5.7 | M39: 5.29 | O39: 3.45 | P39: 3.47 | Q39: 23 | S39: 0.003795066414 | T39: =(H39-GrosBovins2021!H39)/GrosBovins2021!H39 -> 0.2871046229 | U39: =(H39-MoyQuinqHebdoGB!AL27)/MoyQuinqHebdoGB!AL27 -> 0.1651982379 | V39: 0.002057613169 | W39: =(K39-GrosBovins2021!K39)/GrosBovins2021!K39 -> 0.5811688312 | X39: =(K39-MoyQuinqHebdoGB!BD27)/MoyQuinqHebdoGB!BD27 -> 0.3197831978
B40: 24 | C40: 5.33 | D40: 5.2 | E40: 5.03 | F40: 5.1 | G40: 5.56 | H40: 5.29 | I40: 5.95 | J40: 5.05 | K40: 4.87 | L40: 5.74 | M40: 5.31 | O40: 3.45 | P40: 3.48 | Q40: 24 | S40: 0 | T40: =(H40-GrosBovins2021!H40)/GrosBovins2021!H40 -> 0.2777777778 | U40: =(H40-MoyQuinqHebdoGB!AL28)/MoyQuinqHebdoGB!AL28 -> 0.1611062335 | V40: 0 | W40: =(K40-GrosBovins2021!K40)/GrosBovins2021!K40 -> 0.5659163987 | X40: =(K40-MoyQuinqHebdoGB!BD28)/MoyQuinqHebdoGB!BD28 -> 0.3176406926
B41: 25 | C41: 5.33 | D41: 5.19 | E41: 5.03 | F41: 5.12 | G41: 5.52 | H41: 5.29 | I41: 5.95 | J41: 5.05 | K41: 4.87 | L41: 5.75 | M41: 5.3 | O41: 3.45 | P41: 3.48 | Q41: 25 | S41: 0 | T41: =(H41-GrosBovins2021!H41)/GrosBovins2021!H41 -> 0.2902439024 | U41: =(H41-MoyQuinqHebdoGB!AL29)/MoyQuinqHebdoGB!AL29 -> 0.1636603608 | V41: 0 | W41: =(K41-GrosBovins2021!K41)/GrosBovins2021!K41 -> 0.5608974359 | X41: =(K41-MoyQuinqHebdoGB!BD29)/MoyQuinqHebdoGB!BD29 -> 0.3190682557
A42: J | B42: 26 | C42: 5.33 | D42: 5.2 | E42: 5.01 | F42: 5.11 | G42: 5.49 | H42: 5.3 | I42: 5.98 | J42: 5.05 | K42: 4.88 | L42: 5.68 | M42: 5.29 | O42: 3.43 | P42: 3.48 | Q42: 26 | S42: 0.001890359168 | T42: =(H42-GrosBovins2021!H42)/GrosBovins2021!H42 -> 0.286407767 | U42: =(H42-MoyQuinqHebdoGB!AL30)/MoyQuinqHebdoGB!AL30 -> 0.161771153 | V42: 0.00205338809 | W42: =(K42-GrosBovins2021!K42)/GrosBovins2021!K42 -> 0.5541401274 | X42: =(K42-MoyQuinqHebdoGB!BD30)/MoyQuinqHebdoGB!BD30 -> 0.3232104121
B43: 27 | C43: 5.33 | D43: 5.19 | E43: 5.05 | F43: 5.13 | G43: 5.61 | H43: 5.29 | I43: 5.94 | J43: 5.05 | K43: 4.87 | L43: 5.8 | M43: 5.31 | O43: 3.43 | P43: 3.46 | Q43: 27 | S43: -0.001886792453 | T43: =(H43-GrosBovins2021!H43)/GrosBovins2021!H43 -> 0.2777777778 | U43: =(H43-MoyQuinqHebdoGB!AL31)/MoyQuinqHebdoGB!AL31 -> 0.1611062335 | V43: -0.002049180328 | W43: =(K43-GrosBovins2021!K43)/GrosBovins2021!K43 -> 0.546031746 | X43: =(K43-MoyQuinqHebdoGB!BD31)/MoyQuinqHebdoGB!BD31 -> 0.3233695652
B44: 28 | C44: 5.31 | D44: 5.17 | E44: 5.06 | F44: 5.13 | G44: 5.57 | H44: 5.28 | I44: 5.95 | J44: 5.06 | K44: 4.87 | L44: 5.75 | M44: 5.3 | O44: 3.43 | P44: 3.46 | Q44: 28 | S44: -0.001890359168 | T44: =(H44-GrosBovins2021!H44)/GrosBovins2021!H44 -> 0.2753623188 | U44: =(H44-MoyQuinqHebdoGB!AL32)/MoyQuinqHebdoGB!AL32 -> 0.1604395604 | V44: 0 | W44: =(K44-GrosBovins2021!K44)/GrosBovins2021!K44 -> 0.5411392405 | X44: =(K44-MoyQuinqHebdoGB!BD32)/MoyQuinqHebdoGB!BD32 -> 0.3269754768
B45: 29 | C45: 5.31 | D45: 5.16 | E45: 5.04 | F45: 5.14 | G45: 5.6 | H45: 5.3 | I45: 5.97 | J45: 5.08 | K45: 4.9 | L45: 5.78 | M45: 5.3 | O45: 3.43 | P45: 3.46 | Q45: 29 | S45: 0.003787878788 | T45: =(H45-GrosBovins2021!H45)/GrosBovins2021!H45 -> 0.2832929782 | U45: =(H45-MoyQuinqHebdoGB!AL33)/MoyQuinqHebdoGB!AL33 -> 0.1633011414 | V45: 0.006160164271 | W45: =(K45-GrosBovins2021!K45)/GrosBovins2021!K45 -> 0.5408805031 | X45: =(K45-MoyQuinqHebdoGB!BD33)/MoyQuinqHebdoGB!BD33 -> 0.3351498638
A46: J | B46: 30 | C46: 5.3 | D46: 5.16 | E46: 5.04 | F46: 5.13 | G46: 5.56 | H46: 5.28 | I46: 5.86 | J46: 5.08 | K46: 4.87 | L46: 5.69 | M46: 5.29 | O46: 3.43 | P46: 3.41 | Q46: 30 | S46: -0.003773584906 | T46: =(H46-GrosBovins2021!H46)/GrosBovins2021!H46 -> 0.2784503632 | U46: =(H46-MoyQuinqHebdoGB!AL34)/MoyQuinqHebdoGB!AL34 -> 0.164021164 | V46: -0.00612244898 | W46: =(K46-GrosBovins2021!K46)/GrosBovins2021!K46 -> 0.521875 | X46: =(K46-MoyQuinqHebdoGB!BD34)/MoyQuinqHebdoGB!BD34 -> 0.3313285949
B47: 31 | C47: 5.29 | D47: 5.16 | E47: 5.04 | F47: 5.14 | G47: 5.5 | H47: 5.19 | I47: 5.9 | J47: 5.07 | K47: 4.86 | L47: 5.65 | M47: 5.21 | O47: 3.4 | P47: 3.39 | Q47: 31 | S47: -0.01704545455 | T47: =(H47-GrosBovins2021!H47)/GrosBovins2021!H47 -> 0.2475961538 | U47: =(H47-MoyQuinqHebdoGB!AL35)/MoyQuinqHebdoGB!AL35 -> 0.1456953642 | V47: -0.00205338809 | W47: =(K47-GrosBovins2021!K47)/GrosBovins2021!K47 -> 0.5093167702 | X47: =(K47-MoyQuinqHebdoGB!BD35)/MoyQuinqHebdoGB!BD35 -> 0.3322368421
B48: 32 | C48: 5.28 | D48: 5.15 | E48: 5.03 | F48: 5.14 | G48: 5.53 | H48: 5.28 | I48: 5.92 | J48: 5.08 | K48: 4.86 | L48: 5.79 | M48: 5.29 | O48: 3.35 | P48: 3.38 | Q48: 32 | S48: 0.01734104046 | T48: =(H48-GrosBovins2021!H48)/GrosBovins2021!H48 -> 0.2722891566 | U48: =(H48-MoyQuinqHebdoGB!AL36)/MoyQuinqHebdoGB!AL36 -> 0.161971831 | V48: 0 | W48: =(K48-GrosBovins2021!K48)/GrosBovins2021!K48 -> 0.4953846154 | X48: =(K48-MoyQuinqHebdoGB!BD36)/MoyQuinqHebdoGB!BD36 -> 0.3322368421
B49: 33 | C49: 5.29 | D49: 5.14 | E49: 5.02 | F49: 5.14 | G49: 5.61 | H49: 5.29 | I49: 5.95 | J49: 5.08 | K49: 4.87 | L49: 5.75 | M49: 5.31 | O49: 3.35 | P49: 3.35 | Q49: 33 | S49: 0.001893939394 | T49: =(H49-GrosBovins2021!H49)/GrosBovins2021!H49 -> 0.2716346154 | U49: =(H49-MoyQuinqHebdoGB!AL37)/MoyQuinqHebdoGB!AL37 -> 0.1626373626 | V49: 0.002057613169 | W49: =(K49-GrosBovins2021!K49)/GrosBovins2021!K49 -> 0.4938650307 | X49: =(K49-MoyQuinqHebdoGB!BD37)/MoyQuinqHebdoGB!BD37 -> 0.3291484716
A50: A | B50: 34 | C50: 5.3 | D50: 5.15 | E50: 5.04 | F50: 5.13 | G50: 5.58 | H50: 5.29 | I50: 5.95 | J50: 5.08 | K50: 4.86 | L50: 5.75 | M50: 5.3 | O50: 3.35 | P50: 3.36 | Q50: 34 | S50: 0 | T50: =(H50-GrosBovins2021!H50)/GrosBovins2021!H50 -> 0.2625298329 | U50: =(H50-MoyQuinqHebdoGB!AL38)/MoyQuinqHebdoGB!AL38 -> 0.158056042 | V50: -0.00205338809 | W50: =(K50-GrosBovins2021!K50)/GrosBovins2021!K50 -> 0.4772036474 | X50: =(K50-MoyQuinqHebdoGB!BD38)/MoyQuinqHebdoGB!BD38 -> 0.319218241
B51: 35 | C51: 5.29 | D51: 5.16 | E51: 5.04 | F51: 5.14 | G51: 5.59 | H51: 5.31 | I51: 5.97 | J51: 5.08 | K51: 4.86 | L51: 5.76 | M51: 5.31 | O51: 3.38 | P51: 3.36 | Q51: 35 | S51: 0.003780718336 | T51: =(H51-GrosBovins2021!H51)/GrosBovins2021!H51 -> 0.2612826603 | U51: =(H51-MoyQuinqHebdoGB!AL39)/MoyQuinqHebdoGB!AL39 -> 0.1553524804 | V51: 0 | W51: =(K51-GrosBovins2021!K51)/GrosBovins2021!K51 -> 0.4727272727 | X51: =(K51-MoyQuinqHebdoGB!BD39)/MoyQuinqHebdoGB!BD39 -> 0.3128038898
B52: 36 | C52: 5.29 | D52: 5.17 | E52: 5.06 | F52: 5.13 | G52: 5.6 | H52: 5.32 | I52: 5.97 | J52: 5.1 | K52: 4.86 | L52: 5.73 | M52: 5.32 | O52: 3.4 | P52: 3.4 | Q52: 36 | S52: 0.001883239171 | T52: =(H52-GrosBovins2021!H52)/GrosBovins2021!H52 -> 0.2636579572 | U52: =(H52-MoyQuinqHebdoGB!AL40)/MoyQuinqHebdoGB!AL40 -> 0.1565217391 | V52: 0 | W52: =(K52-GrosBovins2021!K52)/GrosBovins2021!K52 -> 0.4682779456 | X52: =(K52-MoyQuinqHebdoGB!BD40)/MoyQuinqHebdoGB!BD40 -> 0.3078579117
B53: 37 | C53: 5.3 | D53: 5.18 | E53: 5.05 | F53: 5.16 | G53: 5.61 | H53: 5.34 | I53: 6.01 | J53: 5.11 | K53: 4.87 | L53: 5.76 | M53: 5.34 | O53: 3.4 | P53: 3.4 | Q53: 37 | S53: 0.003759398496 | T53: =(H53-GrosBovins2021!H53)/GrosBovins2021!H53 -> 0.2624113475 | U53: =(H53-MoyQuinqHebdoGB!AL41)/MoyQuinqHebdoGB!AL41 -> 0.1618798956 | V53: 0.002057613169 | W53: =(K53-GrosBovins2021!K53)/GrosBovins2021!K53 -> 0.4712990937 | X53: =(K53-MoyQuinqHebdoGB!BD41)/MoyQuinqHebdoGB!BD41 -> 0.3098440022
B54: 38 | C54: 5.3 | D54: 5.17 | E54: 5.06 | F54: 5.15 | G54: 5.69 | H54: 5.35 | I54: 6.01 | J54: 5.11 | K54: 4.9 | L54: 5.75 | M54: 5.34 | O54: 3.45 | P54: 3.42 | Q54: 38 | S54: 0.001872659176 | T54: =(H54-GrosBovins2021!H54)/GrosBovins2021!H54 -> 0.270783848 | U54: =(H54-MoyQuinqHebdoGB!AL42)/MoyQuinqHebdoGB!AL42 -> 0.1645624728 | V54: 0.006160164271 | W54: =(K54-GrosBovins2021!K54)/GrosBovins2021!K54 -> 0.4803625378 | X54: =(K54-MoyQuinqHebdoGB!BD42)/MoyQuinqHebdoGB!BD42 -> 0.320754717
A55: S | B55: 39 | C55: 5.31 | D55: 5.19 | E55: 5.07 | F55: 5.19 | G55: 5.81 | H55: 5.35 | I55: 6.02 | J55: 5.13 | K55: 4.91 | L55: 5.74 | M55: 5.36 | O55: 3.45 | P55: 3.43 | Q55: 39 | S55: 0 | T55: =(H55-GrosBovins2021!H55)/GrosBovins2021!H55 -> 0.270783848 | U55: =(H55-MoyQuinqHebdoGB!AL43)/MoyQuinqHebdoGB!AL43 -> 0.165577342 | V55: 0.002040816327 | W55: =(K55-GrosBovins2021!K55)/GrosBovins2021!K55 -> 0.4833836858 | X55: =(K55-MoyQuinqHebdoGB!BD43)/MoyQuinqHebdoGB!BD43 -> 0.327027027
B56: 40 | C56: 5.32 | D56: 5.2 | E56: 5.07 | F56: 5.19 | H56: 5.39 | I56: 6 | J56: 5.13 | K56: 4.91 | L56: 5.76 | M56: 5.37 | O56: 3.45 | P56: 3.44 | Q56: 40 | S56: 0.007476635514 | T56: =(H56-GrosBovins2021!H56)/GrosBovins2021!H56 -> 0.2742316785 | U56: =(H56-MoyQuinqHebdoGB!AL44)/MoyQuinqHebdoGB!AL44 -> 0.1717391304 | V56: 0 | W56: =(K56-GrosBovins2021!K56)/GrosBovins2021!K56 -> 0.4878787879 | X56: =(K56-MoyQuinqHebdoGB!BD44)/MoyQuinqHebdoGB!BD44 -> 0.3342391304
B57: 41 | C57: 5.34 | D57: 5.21 | E57: 5.08 | F57: 5.19 | G57: 5.72 | H57: 5.42 | I57: 6.02 | J57: 5.14 | K57: 4.92 | L57: 5.86 | M57: 5.38 | O57: 3.45 | P57: 3.44 | Q57: 41 | S57: 0.005565862709 | T57: =(H57-GrosBovins2021!H57)/GrosBovins2021!H57 -> 0.2874109264 | U57: =(H57-MoyQuinqHebdoGB!AL45)/MoyQuinqHebdoGB!AL45 -> 0.1797997388 | V57: 0.002036659878 | W57: =(K57-GrosBovins2021!K57)/GrosBovins2021!K57 -> 0.4864048338 | X57: =(K57-MoyQuinqHebdoGB!BD45)/MoyQuinqHebdoGB!BD45 -> 0.3427947598
B58: 42 | C58: 5.35 | D58: 5.23 | E58: 5.1 | F58: 5.2 | H58: 5.42 | I58: 6.04 | J58: 5.14 | K58: 4.92 | L58: 5.83 | M58: 5.37 | O58: 3.48 | P58: 3.49 | Q58: 42 | S58: 0 | T58: =(H58-GrosBovins2021!H58)/GrosBovins2021!H58 -> 0.2813238771 | U58: =(H58-MoyQuinqHebdoGB!AL46)/MoyQuinqHebdoGB!AL46 -> 0.1767260096 | V58: 0 | W58: =(K58-GrosBovins2021!K58)/GrosBovins2021!K58 -> 0.4730538922 | X58: =(K58-MoyQuinqHebdoGB!BD46)/MoyQuinqHebdoGB!BD46 -> 0.3479452055
A59: O | B59: 43 | C59: 5.36 | D59: 5.25 | E59: 5.09 | F59: 5.19 | G59: 5.66 | H59: 5.41 | I59: 6.06 | J59: 5.13 | K59: 4.89 | L59: 5.84 | M59: 5.38 | O59: 3.48 | P59: 3.49 | Q59: 43 | S59: -0.00184501845 | T59: =(H59-GrosBovins2021!H59)/GrosBovins2021!H59 -> 0.2699530516 | U59: =(H59-MoyQuinqHebdoGB!AL47)/MoyQuinqHebdoGB!AL47 -> 0.1760869565 | V59: -0.006097560976 | W59: =(K59-GrosBovins2021!K59)/GrosBovins2021!K59 -> 0.4597014925 | X59: =(K59-MoyQuinqHebdoGB!BD47)/MoyQuinqHebdoGB!BD47 -> 0.3485934915
B60: 44 | C60: 5.38 | D60: 5.25 | F60: 5.16 | H60: 5.43 | I60: 6.04 | J60: 5.09 | K60: 4.86 | L60: 5.83 | M60: 5.38 | O60: 3.48 | P60: 3.49 | Q60: 44 | S60: 0.003696857671 | T60: =(H60-GrosBovins2021!H60)/GrosBovins2021!H60 -> 0.2716627635 | U60: =(H60-MoyQuinqHebdoGB!AL48)/MoyQuinqHebdoGB!AL48 -> 0.1799217731 | V60: -0.006134969325 | W60: =(K60-GrosBovins2021!K60)/GrosBovins2021!K60 -> 0.4378698225 | X60: =(K60-MoyQuinqHebdoGB!BD48)/MoyQuinqHebdoGB!BD48 -> 0.3507504169
B61: 45 | C61: 5.39 | D61: 5.27 | E61: 5.07 | F61: 5.14 | H61: 5.42 | I61: 6.11 | J61: 5.07 | K61: 4.82 | L61: 5.88 | M61: 5.4 | O61: 3.5 | P61: 3.5 | Q61: 45 | S61: -0.001841620626 | T61: =(H61-GrosBovins2021!H61)/GrosBovins2021!H61 -> 0.2575406032 | U61: =(H61-MoyQuinqHebdoGB!AL49)/MoyQuinqHebdoGB!AL49 -> 0.1797997388 | V61: -0.008230452675 | W61: =(K61-GrosBovins2021!K61)/GrosBovins2021!K61 -> 0.4176470588 | X61: =(K61-MoyQuinqHebdoGB!BD49)/MoyQuinqHebdoGB!BD49 -> 0.350896861
B62: 46 | C62: 5.42 | D62: 5.3 | E62: 5.07 | F62: 5.09 | H62: 5.4 | I62: 6.06 | J62: 5.05 | K62: 4.76 | L62: 5.84 | M62: 5.39 | O62: 3.5 | P62: 3.5 | Q62: 46 | S62: -0.0036900369 | T62: =(H62-GrosBovins2021!H62)/GrosBovins2021!H62 -> 0.25 | U62: =(H62-MoyQuinqHebdoGB!AL50)/MoyQuinqHebdoGB!AL50 -> 0.1749347258 | V62: -0.01244813278 | W62: =(K62-GrosBovins2021!K62)/GrosBovins2021!K62 -> 0.387755102 | X62: =(K62-MoyQuinqHebdoGB!BD50)/MoyQuinqHebdoGB!BD50 -> 0.3484419263
A63: N | B63: 47 | C63: 5.46 | D63: 5.32 | E63: 5.1 | F63: 5.07 | G63: 5.8 | H63: 5.41 | I63: 6.06 | J63: 5 | K63: 4.72 | L63: 5.88 | M63: 5.41 | O63: 3.5 | P63: 3.48 | Q63: 47 | S63: 0.001851851852 | T63: =(H63-GrosBovins2021!H63)/GrosBovins2021!H63 -> 0.2523148148 | U63: =(H63-MoyQuinqHebdoGB!AL51)/MoyQuinqHebdoGB!AL51 -> 0.1812227074 | V63: -0.008403361345 | W63: =(K63-GrosBovins2021!K63)/GrosBovins2021!K63 -> 0.368115942 | X63: =(K63-MoyQuinqHebdoGB!BD51)/MoyQuinqHebdoGB!BD51 -> 0.3493424814
B64: 48 | C64: 5.49 | D64: 5.36 | E64: 5.1 | F64: 5.07 | H64: 5.42 | I64: 6.02 | J64: 4.99 | K64: 4.67 | L64: 5.82 | M64: 5.4 | O64: 3.47 | P64: 3.47 | Q64: 48 | S64: 0.001848428835 | T64: =(H64-GrosBovins2021!H64)/GrosBovins2021!H64 -> 0.2459770115 | U64: =(H64-MoyQuinqHebdoGB!AL52)/MoyQuinqHebdoGB!AL52 -> 0.1828895679 | V64: -0.01059322034 | W64: =(K64-GrosBovins2021!K64)/GrosBovins2021!K64 -> 0.3536231884 | X64: =(K64-MoyQuinqHebdoGB!BD52)/MoyQuinqHebdoGB!BD52 -> 0.3481524249
B65: 49 | C65: 5.51 | D65: 5.37 | E65: 5.11 | F65: 5.05 | G65: 6.07 | H65: 5.42 | I65: 6.13 | J65: 4.96 | K65: 4.63 | L65: 5.96 | M65: 5.42 | O65: 3.45 | P65: 3.46 | Q65: 49 | S65: 0 | T65: =(H65-GrosBovins2021!H65)/GrosBovins2021!H65 -> 0.2459770115 | U65: =(H65-MoyQuinqHebdoGB!AL53)/MoyQuinqHebdoGB!AL53 -> 0.1834061135 | V65: -0.008565310493 | W65: =(K65-GrosBovins2021!K65)/GrosBovins2021!K65 -> 0.338150289 | X65: =(K65-MoyQuinqHebdoGB!BD53)/MoyQuinqHebdoGB!BD53 -> 0.3443670151
B66: 50 | C66: 5.52 | D66: 5.38 | E66: 5.11 | F66: 5.01 | G66: 5.92 | H66: 5.41 | I66: 6.15 | J66: 4.92 | K66: 4.6 | L66: 6.01 | M66: 5.4 | O66: 3.27 | P66: 3.39 | Q66: 50 | S66: -0.00184501845 | T66: =(H66-GrosBovins2021!H66)/GrosBovins2021!H66 -> 0.2436781609 | U66: =(H66-MoyQuinqHebdoGB!AL54)/MoyQuinqHebdoGB!AL54 -> 0.2358652199 | V66: -0.006479481641 | W66: =(K66-GrosBovins2021!K66)/GrosBovins2021!K66 -> 0.3450292398 | X66: =(K66-MoyQuinqHebdoGB!BD54)/MoyQuinqHebdoGB!BD54 -> 0.3865862849
B67: 51 | C67: 5.52 | D67: 5.39 | E67: 5.1 | F67: 5.02 | H67: 5.42 | I67: 6.18 | J67: 4.91 | K67: 4.57 | L67: 5.92 | M67: 5.43 | O67: 3.27 | P67: 3.39 | Q67: 51 | S67: 0.001848428835 | T67: =(H67-GrosBovins2021!H67)/GrosBovins2021!H67 -> 0.2431192661 | U67: =(H67-MoyQuinqHebdoGB!AL55)/MoyQuinqHebdoGB!AL55 -> 0.2367370222 | V67: -0.00652173913 | W67: =(K67-GrosBovins2021!K67)/GrosBovins2021!K67 -> 0.3401759531 | X67: =(K67-MoyQuinqHebdoGB!BD55)/MoyQuinqHebdoGB!BD55 -> 0.3806646526
A68: D | B68: 52 | C68: 5.53 | D68: 5.4 | E68: 5.07 | F68: 4.99 | H68: 5.42 | I68: 6.08 | J68: 4.91 | K68: 4.59 | L68: 5.86 | M68: 5.43 | O68: 3.27 | P68: 3.39 | Q68: 52 | S68: 0 | T68: =(H68-GrosBovins2021!H68)/GrosBovins2021!H68 -> 0.2374429224 | U68: =(H68-MoyQuinqHebdoGB!AL56)/MoyQuinqHebdoGB!AL56 -> 0.2346241458 | V68: 0.004376367615 | W68: =(K68-GrosBovins2021!K68)/GrosBovins2021!K68 -> 0.3381924198 | X68: =(K68-MoyQuinqHebdoGB!BD56)/MoyQuinqHebdoGB!BD56 -> 0.3804511278
A71: 3 – COTATION DES GROS BOVINS VIFS SUR LE MARCHE DE CHOLET (en Euro/Kg Net)
C73: GENISSES | E73: VACHES | I73: JEUNES BOVINS | J73: TAUREAUX
A74: semaines | B74: année+mois | C74: Viande, mixte, lait | D74: Viande, mixte, lait | E74: Blonde | F74: Blonde | G74: Mixte | H74: Lait | I74: Viande | J74: Viande, mixte, lait
A75: 2022 | C75: U | D75: R | E75: U | F75: R | G75: O | H75: P | I75: U | J75: URO
A76: 1 | B76: 202201 | C76: 4.71 | D76: 4.25 | E76: 5.15 | F76: 4.25 | G76: 3.6 | H76: 3.28 | I76: 4.45 | J76: 3.3
A77: 2 | B77: 202201 | C77: 4.74 | D77: 4.25 | E77: 5.15 | F77: 4.25 | G77: 3.65 | H77: 3.33 | I77: 4.5
A78: 3 | B78: 202201 | C78: 4.75 | D78: 4.3 | E78: 5.2 | F78: 4.3 | G78: 3.7 | H78: 3.38 | I78: 4.53 | J78: 3.4
A79: 4 | B79: 202201 | C79: 4.8 | D79: 4.35 | E79: 5.25 | F79: 4.35 | G79: 3.75 | H79: 3.43 | I79: 4.58
A80: 5 | B80: 202202 | C80: 4.85 | D80: 4.4 | E80: 5.3 | F80: 4.4 | G80: 3.8 | H80: 3.5 | I80: 4.63 | J80: 3.5
A81: 6 | B81: 202202 | E81: 5.3 | F81: 4.45 | G81: 3.85 | H81: 3.55 | I81: 4.65 | J81: 3.55
A82: 7 | B82: 202202 | C82: 4.88 | D82: 4.5 | E82: 5.3 | F82: 4.45 | G82: 3.9 | H82: 3.65 | I82: 4.68 | J82: 3.6
A83: 8 | B83: 202202 | C83: 4.92 | D83: 4.55 | E83: 5.3 | F83: 4.5 | G83: 4.05 | H83: 3.85 | I83: 4.71 | J83: 3.8
A84: 9 | B84: 202203 | C84: 4.97 | D84: 4.63 | E84: 5.35 | F84: 4.6 | G84: 4.2 | H84: 4 | I84: 4.75 | J84: 3.85
A85: 10 | B85: 202203 | C85: 5.06 | D85: 4.7 | E85: 5.4 | F85: 4.7 | G85: 4.3 | H85: 4.05 | I85: 4.8 | J85: 4
A86: 11 | B86: 202203 | C86: 5.1 | D86: 4.75 | E86: 5.4 | F86: 4.75 | G86: 4.35 | H86: 4.05 | I86: 4.85 | J86: 4.1
A87: 12 | B87: 202203 | C87: 5.14 | D87: 4.8 | E87: 5.4 | F87: 4.75 | G87: 4.4 | H87: 4.1 | I87: 4.88 | J87: 4.2
A88: 13 | B88: 202203 | C88: 5.15 | D88: 4.84 | E88: 5.4 | F88: 4.8 | G88: 4.4 | H88: 4.15 | I88: 4.9
A89: 14 | B89: 202204 | C89: 5.18 | D89: 4.85 | E89: 5.4 | F89: 4.85 | G89: 4.45 | H89: 4.2 | I89: 4.95 | J89: 4.2
A90: 15 | B90: 202204
A91: 16 | B91: 202204
A92: 17 | B92: 202204
A93: 18 | B93: 202205
A94: 19 | B94: 202205
A95: 20 | B95: 202205
A96: 21 | B96: 202205
A97: 22 | B97: 202206
A98: 23 | B98: 202206
A99: 24 | B99: 202206
A100: 25 | B100: 202206
A101: 26 | B101: 202206
A102: 27 | B102: 202207
A103: 28 | B103: 202207
A104: 29 | B104: 202207
A105: 30 | B105: 202207
A106: 31 | B106: 202208
A107: 32 | B107: 202208
A108: 33 | B108: 202208
A109: 34 | B109: 202208
A110: 35 | B110: 202209
A111: 36 | B111: 202209
A112: 37 | B112: 202209
A113: 38 | B113: 202209
A114: 39 | B114: 202209
A115: 40 | B115: 202210
A116: 41 | B116: 202210
A117: 42 | B117: 202210
A118: 43 | B118: 202210
A119: 44 | B119: 202211
A120: 45 | B120: 202211
A121: 46 | B121: 202211
A122: 47 | B122: 202211
A123: 48 | B123: 202212
A124: 49 | B124: 202212
A125: 50 | B125: 202212
A126: 51 | B126: 202212
A127: 52 | B127: 202212

Sheet GrosBovins2021
A1: COTATIONS DES GROS BOVINS
A2: Source : DRAAF Pays de la Loire - SRISE - FranceAgriMer | K2: mise à jour : 7/1/22
A5: 1 – COTATION REGIONALE GRAND OUEST ENTREE ABATTOIR en €/Kg net
A7: 2 – MOYENNE NATIONALE DES BOVINS MAIGRES DESTINES A L'ENGRAISSEMENT CHAROLAIS MALE de 6-12 mois catégorie U (300kg) en €/kg vif
A9: 3 – COTATION DES GROS BOVINS VIFS SUR LE MARCHE DE CHOLET (en Euro/Kg Net) – à partir de la ligne 72
P11: 2 – COT. HEBDO
D12: 1 – COTATION REGIONALE ENTREE ABATTOIR GRAND OUEST FRANCEAGRIMER-HEBDOMADAIRE (€/Kg net) | P12: MAIGRE €/kg vif
P13: Ref. nationale
A14: Année | B14: Sem. | C14: JEUNES BOVINS | F14: BOEUFS | G14: VACHES | L14: GENISSES | P14: Charolais Mâles | Q14: Sem. | S14: Vache Viande R | V14: Vache lait P
C15: VIANDE | E15: MIXTE | F15: MIXTE | G15: VIANDE | I15: Blonde | J15: MIXTE | K15: LAIT | L15: VIANDES + 350kg | S15: Evolution/semaine -1 | T15: Evolution/ semaine id 2020 | U15: Evolution/semaine id moy. 5 ans | V15: Evolution/semaine -1 | W15: Evolution/ semaine id 2019 | X15: Evolution/semaine id moy. 5 ans
C16: U | D16: R | E16: O | F16: O | G16: U | H16: R | I16: U | J16: O | K16: P | L16: U | M16: R | P16: 6/12 mois ( U )
A17: 2021 | B17: 1 | C17: 3.82 | D17: 3.66 | E17: 3.39 | F17: 3.14 | G17: 4.45 | H17: 4.03 | I17: 5.17 | J17: 3.07 | K17: 2.76 | L17: 4.87 | M17: 4.03 | P17: 2.62 | Q17: 1 | S17: =(H17-GrosBovins2020!H68)/GrosBovins2020!H68 -> -0.004938271605 | T17: =(H17-MoyQuinqHebdoGB!AH5)/MoyQuinqHebdoGB!AH5 -> 0.08333333333 | U17: =(H17-MoyQuinqHebdoGB!AL5)/MoyQuinqHebdoGB!AL5 -> -0.05487804878 | V17: =(K17-GrosBovins2020!K69)/GrosBovins2020!K69 -> 0.003636363636 | W17: =(K17-GrosBovins2020!K17)/GrosBovins2020!K17 -> 0.08661417323 | X17: =(K17-MoyQuinqHebdoGB!BD5)/MoyQuinqHebdoGB!BD5 -> -0.1380387258
B18: 2 | C18: 3.82 | D18: 3.66 | E18: 3.37 | F18: 3.15 | G18: 4.56 | H18: 4.01 | I18: 5.2 | J18: 3.08 | K18: 2.77 | L18: 4.88 | M18: 4.04 | P18: 2.62 | Q18: 2 | S18: =(H18-H17)/H17 -> -0.004962779156 | T18: =(H18-GrosBovins2020!H18)/GrosBovins2020!H18 -> 0.06933333333 | U18: =(H18-MoyQuinqHebdoGB!AL6)/MoyQuinqHebdoGB!AL6 -> -0.06176883482 | V18: =(K18-K17)/K17 -> 0.003623188406 | W18: =(K18-GrosBovins2020!K18)/GrosBovins2020!K18 -> 0.07782101167 | X18: =(K18-MoyQuinqHebdoGB!BD6)/MoyQuinqHebdoGB!BD6 -> -0.1408188586
B19: 3 | C19: 3.83 | D19: 3.65 | E19: 3.45 | F19: 3.15 | G19: 4.48 | H19: 4.02 | I19: 5.16 | J19: 3.1 | K19: 2.77 | L19: 4.89 | M19: 4.02 | P19: 2.62 | Q19: 3 | S19: 0.002493765586 | T19: =(H19-GrosBovins2020!H19)/GrosBovins2020!H19 -> 0.08064516129 | U19: =(H19-MoyQuinqHebdoGB!AL7)/MoyQuinqHebdoGB!AL7 -> -0.05986903648 | V19: 0 | W19: =(K19-GrosBovins2020!K19)/GrosBovins2020!K19 -> 0.08203125 | X19: =(K19-MoyQuinqHebdoGB!BD7)/MoyQuinqHebdoGB!BD7 -> -0.1450617284
A20: J | B20: 4 | C20: 3.84 | D20: 3.67 | E20: 3.41 | F20: 3.17 | G20: 4.59 | H20: 4.03 | I20: 5.17 | J20: 3.09 | K20: 2.78 | L20: 4.77 | M20: 4.02 | P20: 2.59 | Q20: 4 | S20: 0.002487562189 | T20: =(H20-GrosBovins2020!H20)/GrosBovins2020!H20 -> 0.08625336927 | U20: =(H20-MoyQuinqHebdoGB!AL8)/MoyQuinqHebdoGB!AL8 -> -0.05797101449 | V20: 0.003610108303 | W20: =(K20-GrosBovins2020!K20)/GrosBovins2020!K20 -> 0.09019607843 | X20: =(K20-MoyQuinqHebdoGB!BD8)/MoyQuinqHebdoGB!BD8 -> -0.1446153846
B21: 5 | C21: 3.85 | D21: 3.67 | E21: 3.43 | F21: 3.17 | G21: 4.52 | H21: 4.05 | I21: 5.21 | J21: 3.11 | K21: 2.78 | L21: 4.84 | M21: 4 | P21: 2.59 | Q21: 5 | S21: 0.004962779156 | T21: =(H21-GrosBovins2020!H21)/GrosBovins2020!H21 -> 0.08870967742 | U21: =(H21-MoyQuinqHebdoGB!AL9)/MoyQuinqHebdoGB!AL9 -> -0.05726256983 | V21: 0 | W21: =(K21-GrosBovins2020!K21)/GrosBovins2020!K21 -> 0.09448818898 | X21: =(K21-MoyQuinqHebdoGB!BD9)/MoyQuinqHebdoGB!BD9 -> -0.1493268054
B22: 6 | C22: 3.86 | D22: 3.69 | E22: 3.41 | F22: 3.19 | G22: 4.58 | H22: 4.03 | I22: 5.21 | J22: 3.11 | K22: 2.79 | L22: 4.92 | M22: 3.99 | P22: 2.59 | Q22: 6 | S22: -0.004938271605 | T22: =(H22-GrosBovins2020!H22)/GrosBovins2020!H22 -> 0.08042895442 | U22: =(H22-MoyQuinqHebdoGB!AL10)/MoyQuinqHebdoGB!AL10 -> -0.06539888683 | V22: 0.003597122302 | W22: =(K22-GrosBovins2020!K22)/GrosBovins2020!K22 -> 0.1027667984 | X22: =(K22-MoyQuinqHebdoGB!BD10)/MoyQuinqHebdoGB!BD10 -> -0.151459854
B23: 7 | C23: 3.88 | D23: 3.71 | E23: 3.43 | F23: 3.18 | G23: 4.52 | H23: 4.05 | I23: 5.2 | J23: 3.13 | K23: 2.81 | L23: 4.79 | M23: 4 | P23: 2.59 | Q23: 7 | S23: 0.004962779156 | T23: =(H23-GrosBovins2020!H23)/GrosBovins2020!H23 -> 0.09459459459 | U23: =(H23-MoyQuinqHebdoGB!AL11)/MoyQuinqHebdoGB!AL11 -> -0.06293382693 | V23: 0.007168458781 | W23: =(K23-GrosBovins2020!K23)/GrosBovins2020!K23 -> 0.1019607843 | X23: =(K23-MoyQuinqHebdoGB!BD11)/MoyQuinqHebdoGB!BD11 -> -0.1566626651
A24: F | B24: 8 | C24: 3.9 | D24: 3.73 | E24: 3.45 | F24: 3.2 | G24: 4.53 | H24: 4.07 | I24: 5.27 | J24: 3.15 | K24: 2.83 | L24: 4.8 | M24: 3.99 | P24: 2.59 | Q24: 8 | S24: 0.004938271605 | T24: =(H24-GrosBovins2020!H24)/GrosBovins2020!H24 -> 0.09408602151 | U24: =(H24-MoyQuinqHebdoGB!AL12)/MoyQuinqHebdoGB!AL12 -> -0.06608536026 | V24: 0.007117437722 | W24: =(K24-GrosBovins2020!K24)/GrosBovins2020!K24 -> 0.09689922481 | X24: =(K24-MoyQuinqHebdoGB!BD12)/MoyQuinqHebdoGB!BD12 -> -0.1651917404
B25: 9 | C25: 3.91 | D25: 3.75 | E25: 3.47 | F25: 3.23 | G25: 4.7 | H25: 4.09 | I25: 5.29 | J25: 3.17 | K25: 2.86 | L25: 4.95 | M25: 4.03 | P25: 2.62 | Q25: 9 | S25: 0.004914004914 | T25: =(H25-GrosBovins2020!H25)/GrosBovins2020!H25 -> 0.09066666667 | U25: =(H25-MoyQuinqHebdoGB!AL13)/MoyQuinqHebdoGB!AL13 -> -0.06663623916 | V25: 0.01060070671 | W25: =(K25-GrosBovins2020!K25)/GrosBovins2020!K25 -> 0.09160305344 | X25: =(K25-MoyQuinqHebdoGB!BD13)/MoyQuinqHebdoGB!BD13 -> -0.1666666667
B26: 10 | C26: 3.96 | D26: 3.78 | E26: 3.46 | F26: 3.24 | G26: 4.7 | H26: 4.1 | I26: 5.42 | J26: 3.19 | K26: 2.9 | L26: 5.06 | M26: 4.02 | P26: 2.65 | Q26: 10 | S26: 0.002444987775 | T26: =(H26-GrosBovins2020!H26)/GrosBovins2020!H26 -> 0.0875331565 | U26: =(H26-MoyQuinqHebdoGB!AL14)/MoyQuinqHebdoGB!AL14 -> -0.06860517946 | V26: 0.01398601399 | W26: =(K26-GrosBovins2020!K26)/GrosBovins2020!K26 -> 0.09022556391 | X26: =(K26-MoyQuinqHebdoGB!BD14)/MoyQuinqHebdoGB!BD14 -> -0.1642651297
B27: 11 | C27: 3.99 | D27: 3.81 | E27: 3.48 | F27: 3.25 | G27: 4.73 | H27: 4.09 | I27: 5.35 | J27: 3.21 | K27: 2.94 | L27: 5.02 | M27: 4.01 | P27: 2.65 | Q27: 11 | S27: -0.00243902439 | T27: =(H27-GrosBovins2020!H27)/GrosBovins2020!H27 -> 0.08201058201 | U27: =(H27-MoyQuinqHebdoGB!AL15)/MoyQuinqHebdoGB!AL15 -> -0.07591504745 | V27: 0.01379310345 | W27: =(K27-GrosBovins2020!K27)/GrosBovins2020!K27 -> 0.1052631579 | X27: =(K27-MoyQuinqHebdoGB!BD15)/MoyQuinqHebdoGB!BD15 -> -0.1595197256
B28: 12 | C28: 4 | D28: 3.83 | E28: 3.46 | F28: 3.28 | G28: 4.97 | H28: 4.12 | I28: 5.4 | J28: 3.23 | K28: 2.95 | L28: 5.15 | M28: 4.07 | P28: 2.68 | Q28: 12 | S28: 0.007334963325 | T28: =(H28-GrosBovins2020!H28)/GrosBovins2020!H28 -> 0.08994708995 | U28: =(H28-MoyQuinqHebdoGB!AL16)/MoyQuinqHebdoGB!AL16 -> -0.07248986943 | V28: 0.003401360544 | W28: =(K28-GrosBovins2020!K28)/GrosBovins2020!K28 -> 0.1048689139 | X28: =(K28-MoyQuinqHebdoGB!BD16)/MoyQuinqHebdoGB!BD16 -> -0.1614553724
A29: M | B29: 13 | C29: 4.02 | D29: 3.85 | E29: 3.48 | F29: 3.31 | G29: 4.62 | H29: 4.1 | I29: 5.3 | J29: 3.25 | K29: 2.96 | L29: 4.89 | M29: 4.06 | P29: 2.7 | Q29: 13 | S29: -0.004854368932 | T29: =(H29-GrosBovins2020!H29)/GrosBovins2020!H29 -> 0.09625668449 | U29: =(H29-MoyQuinqHebdoGB!AL17)/MoyQuinqHebdoGB!AL17 -> -0.07574391344 | V29: 0.003389830508 | W29: =(K29-GrosBovins2020!K29)/GrosBovins2020!K29 -> 0.1044776119 | X29: =(K29-MoyQuinqHebdoGB!BD17)/MoyQuinqHebdoGB!BD17 -> -0.1614730878
B30: 14 | C30: 4.03 | D30: 3.84 | E30: 3.48 | F30: 3.31 | G30: 4.63 | H30: 4.09 | I30: 5.33 | J30: 3.26 | K30: 2.97 | L30: 5.05 | M30: 4.09 | P30: 2.7 | Q30: 14 | S30: -0.00243902439 | T30: =(H30-GrosBovins2020!H30)/GrosBovins2020!H30 -> 0.0935828877 | U30: =(H30-MoyQuinqHebdoGB!AL18)/MoyQuinqHebdoGB!AL18 -> -0.07841369986 | V30: 0.003378378378 | W30: =(K30-GrosBovins2020!K30)/GrosBovins2020!K30 -> 0.1165413534 | X30: =(K30-MoyQuinqHebdoGB!BD18)/MoyQuinqHebdoGB!BD18 -> -0.1591166478
B31: 15 | C31: 4.02 | D31: 3.85 | E31: 3.49 | F31: 3.32 | G31: 4.62 | H31: 4.1 | I31: 5.39 | J31: 3.26 | K31: 2.97 | L31: 5.07 | M31: 4.04 | P31: 2.72 | Q31: 15 | S31: 0.002444987775 | T31: =(H31-GrosBovins2020!H31)/GrosBovins2020!H31 -> 0.1021505376 | U31: =(H31-MoyQuinqHebdoGB!AL19)/MoyQuinqHebdoGB!AL19 -> -0.07365567103 | V31: 0 | W31: =(K31-GrosBovins2020!K31)/GrosBovins2020!K31 -> 0.125 | X31: =(K31-MoyQuinqHebdoGB!BD19)/MoyQuinqHebdoGB!BD19 -> -0.1576857629
B32: 16 | C32: 4.02 | D32: 3.85 | E32: 3.49 | F32: 3.32 | G32: 4.68 | H32: 4.09 | I32: 5.4 | J32: 3.27 | K32: 2.98 | L32: 4.96 | M32: 4.07 | P32: 2.72 | Q32: 16 | S32: -0.00243902439 | T32: =(H32-GrosBovins2020!H32)/GrosBovins2020!H32 -> 0.09946236559 | U32: =(H32-MoyQuinqHebdoGB!AL20)/MoyQuinqHebdoGB!AL20 -> -0.07841369986 | V32: 0.003367003367 | W32: =(K32-GrosBovins2020!K32)/GrosBovins2020!K32 -> 0.1287878788 | X32: =(K32-MoyQuinqHebdoGB!BD20)/MoyQuinqHebdoGB!BD20 -> -0.1577162239
A33: A | B33: 17 | C33: 4.01 | D33: 3.82 | E33: 3.47 | F33: 3.33 | G33: 4.75 | H33: 4.1 | I33: 5.36 | J33: 3.28 | K33: 2.98 | L33: 5.04 | M33: 4.07 | P33: 2.75 | Q33: 17 | S33: 0.002444987775 | T33: =(H33-GrosBovins2020!H33)/GrosBovins2020!H33 -> 0.1051212938 | U33: =(H33-MoyQuinqHebdoGB!AL21)/MoyQuinqHebdoGB!AL21 -> -0.07823741007 | V33: 0 | W33: =(K33-GrosBovins2020!K33)/GrosBovins2020!K33 -> 0.1161048689 | X33: =(K33-MoyQuinqHebdoGB!BD21)/MoyQuinqHebdoGB!BD21 -> -0.1629213483
B34: 18 | C34: 4.01 | D34: 3.81 | E34: 3.48 | F34: 3.38 | G34: 4.7 | H34: 4.1 | I34: 5.44 | J34: 3.29 | K34: 2.99 | L34: 4.98 | M34: 4.03 | P34: 2.75 | Q34: 18 | S34: 0 | T34: =(H34-GrosBovins2020!H34)/GrosBovins2020!H34 -> 0.09333333333 | U34: =(H34-MoyQuinqHebdoGB!AL22)/MoyQuinqHebdoGB!AL22 -> -0.08112953832 | V34: 0.003355704698 | W34: =(K34-GrosBovins2020!K34)/GrosBovins2020!K34 -> 0.1033210332 | X34: =(K34-MoyQuinqHebdoGB!BD22)/MoyQuinqHebdoGB!BD22 -> -0.1666666667
B35: 19 | C35: 3.99 | D35: 3.81 | E35: 3.47 | F35: 3.43 | G35: 4.69 | H35: 4.08 | I35: 5.48 | J35: 3.3 | K35: 2.99 | L35: 5 | M35: 4.04 | P35: 2.75 | Q35: 19 | S35: -0.00487804878 | T35: =(H35-GrosBovins2020!H35)/GrosBovins2020!H35 -> 0.08510638298 | U35: =(H35-MoyQuinqHebdoGB!AL23)/MoyQuinqHebdoGB!AL23 -> -0.08683974933 | V35: 0 | W35: =(K35-GrosBovins2020!K35)/GrosBovins2020!K35 -> 0.09124087591 | X35: =(K35-MoyQuinqHebdoGB!BD23)/MoyQuinqHebdoGB!BD23 -> -0.169905608
B36: 20 | C36: 3.99 | D36: 3.81 | E36: 3.44 | F36: 3.4 | G36: 4.74 | H36: 4.09 | I36: 5.43 | J36: 3.34 | K36: 3.01 | L36: 4.99 | M36: 4.07 | P36: 2.75 | Q36: 20 | S36: 0.002450980392 | T36: =(H36-GrosBovins2020!H36)/GrosBovins2020!H36 -> 0.07631578947 | U36: =(H36-MoyQuinqHebdoGB!AL24)/MoyQuinqHebdoGB!AL24 -> -0.08908685969 | V36: 0.006688963211 | W36: =(K36-GrosBovins2020!K36)/GrosBovins2020!K36 -> 0.07885304659 | X36: =(K36-MoyQuinqHebdoGB!BD24)/MoyQuinqHebdoGB!BD24 -> -0.1707988981
A37: M | B37: 21 | C37: 3.99 | D37: 3.81 | E37: 3.49 | F37: 3.44 | G37: 4.68 | H37: 4.09 | I37: 5.45 | J37: 3.35 | K37: 3.03 | L37: 5.03 | M37: 4.07 | P37: 2.75 | Q37: 21 | S37: 0 | T37: =(H37-GrosBovins2020!H37)/GrosBovins2020!H37 -> 0.07068062827 | U37: =(H37-MoyQuinqHebdoGB!AL25)/MoyQuinqHebdoGB!AL25 -> -0.09070698088 | V37: 0.006644518272 | W37: =(K37-GrosBovins2020!K37)/GrosBovins2020!K37 -> 0.07067137809 | X37: =(K37-MoyQuinqHebdoGB!BD25)/MoyQuinqHebdoGB!BD25 -> -0.1698630137
B38: 22 | C38: 3.99 | D38: 3.83 | E38: 3.47 | F38: 3.46 | G38: 4.7 | H38: 4.1 | I38: 5.42 | J38: 3.38 | K38: 3.06 | L38: 5.04 | M38: 4.09 | P38: 2.75 | Q38: 22 | S38: 0.002444987775 | T38: =(H38-GrosBovins2020!H38)/GrosBovins2020!H38 -> 0.05670103093 | U38: =(H38-MoyQuinqHebdoGB!AL26)/MoyQuinqHebdoGB!AL26 -> -0.09211691763 | V38: 0.009900990099 | W38: =(K38-GrosBovins2020!K38)/GrosBovins2020!K38 -> 0.06993006993 | X38: =(K38-MoyQuinqHebdoGB!BD26)/MoyQuinqHebdoGB!BD26 -> -0.1671203048
B39: 23 | C39: 3.99 | D39: 3.81 | E39: 3.49 | F39: 3.47 | G39: 4.72 | H39: 4.11 | I39: 5.42 | J39: 3.4 | K39: 3.08 | L39: 5.1 | M39: 4.05 | P39: 2.73 | Q39: 23 | S39: 0.00243902439 | T39: =(H39-GrosBovins2020!H39)/GrosBovins2020!H39 -> 0.04050632911 | U39: =(H39-MoyQuinqHebdoGB!AL27)/MoyQuinqHebdoGB!AL27 -> -0.09471365639 | V39: 0.006535947712 | W39: =(K39-GrosBovins2020!K39)/GrosBovins2020!K39 -> 0.07317073171 | X39: =(K39-MoyQuinqHebdoGB!BD27)/MoyQuinqHebdoGB!BD27 -> -0.1653116531
B40: 24 | C40: 4 | D40: 3.84 | E40: 3.5 | F40: 3.48 | G40: 4.73 | H40: 4.14 | I40: 5.36 | J40: 3.43 | K40: 3.11 | L40: 5.02 | M40: 4.11 | P40: 2.73 | Q40: 24 | S40: 0.007299270073 | T40: =(H40-GrosBovins2020!H40)/GrosBovins2020!H40 -> 0.03241895262 | U40: =(H40-MoyQuinqHebdoGB!AL28)/MoyQuinqHebdoGB!AL28 -> -0.09130816506 | V40: 0.00974025974 | W40: =(K40-GrosBovins2020!K40)/GrosBovins2020!K40 -> 0.07986111111 | X40: =(K40-MoyQuinqHebdoGB!BD28)/MoyQuinqHebdoGB!BD28 -> -0.1585497835
B41: 25 | C41: 4.01 | D41: 3.84 | E41: 3.47 | F41: 3.52 | G41: 4.78 | H41: 4.1 | I41: 5.45 | J41: 3.44 | K41: 3.12 | L41: 5.09 | M41: 4.06 | P41: 2.73 | Q41: 25 | S41: -0.009661835749 | T41: =(H41-GrosBovins2020!H41)/GrosBovins2020!H41 -> 0.01736972705 | U41: =(H41-MoyQuinqHebdoGB!AL29)/MoyQuinqHebdoGB!AL29 -> -0.09810822701 | V41: 0.003215434084 | W41: =(K41-GrosBovins2020!K41)/GrosBovins2020!K41 -> 0.08333333333 | X41: =(K41-MoyQuinqHebdoGB!BD29)/MoyQuinqHebdoGB!BD29 -> -0.1549295775
A42: J | B42: 26 | C42: 4.01 | D42: 3.82 | E42: 3.53 | F42: 3.53 | G42: 4.68 | H42: 4.12 | I42: 5.45 | J42: 3.46 | K42: 3.14 | L42: 5.06 | M42: 4.11 | P42: 2.73 | Q42: 26 | S42: 0.00487804878 | T42: =(H42-GrosBovins2020!H42)/GrosBovins2020!H42 -> 0.01228501229 | U42: =(H42-MoyQuinqHebdoGB!AL30)/MoyQuinqHebdoGB!AL30 -> -0.09688733012 | V42: 0.00641025641 | W42: =(K42-GrosBovins2020!K42)/GrosBovins2020!K42 -> 0.09407665505 | X42: =(K42-MoyQuinqHebdoGB!BD30)/MoyQuinqHebdoGB!BD30 -> -0.1485900217
B43: 27 | C43: 4.01 | D43: 3.85 | E43: 3.5 | F43: 3.55 | G43: 4.76 | H43: 4.14 | I43: 5.37 | J43: 3.46 | K43: 3.15 | L43: 4.99 | M43: 4.08 | P43: 2.73 | Q43: 27 | S43: 0.004854368932 | T43: =(H43-GrosBovins2020!H43)/GrosBovins2020!H43 -> 0.02222222222 | U43: =(H43-MoyQuinqHebdoGB!AL31)/MoyQuinqHebdoGB!AL31 -> -0.09130816506 | V43: 0.003184713376 | W43: =(K43-GrosBovins2020!K43)/GrosBovins2020!K43 -> 0.09756097561 | X43: =(K43-MoyQuinqHebdoGB!BD31)/MoyQuinqHebdoGB!BD31 -> -0.1440217391
B44: 28 | C44: 4.02 | D44: 3.85 | E44: 3.51 | F44: 3.53 | G44: 4.77 | H44: 4.14 | I44: 5.39 | J44: 3.48 | K44: 3.16 | L44: 5.13 | M44: 4.13 | P44: 2.73 | Q44: 28 | S44: 0 | T44: =(H44-GrosBovins2020!H44)/GrosBovins2020!H44 -> 0.0197044335 | U44: =(H44-MoyQuinqHebdoGB!AL32)/MoyQuinqHebdoGB!AL32 -> -0.09010989011 | V44: 0.003174603175 | W44: =(K44-GrosBovins2020!K44)/GrosBovins2020!K44 -> 0.09722222222 | X44: =(K44-MoyQuinqHebdoGB!BD32)/MoyQuinqHebdoGB!BD32 -> -0.1389645777
B45: 29 | C45: 4.03 | D45: 3.87 | E45: 3.5 | F45: 3.57 | G45: 4.75 | H45: 4.13 | I45: 5.38 | J45: 3.48 | K45: 3.18 | L45: 4.98 | M45: 4.11 | P45: 2.73 | Q45: 29 | S45: -0.002415458937 | T45: =(H45-GrosBovins2020!H45)/GrosBovins2020!H45 -> 0.0097799511 | U45: =(H45-MoyQuinqHebdoGB!AL33)/MoyQuinqHebdoGB!AL33 -> -0.09350307287 | V45: 0.006329113924 | W45: =(K45-GrosBovins2020!K45)/GrosBovins2020!K45 -> 0.1041666667 | X45: =(K45-MoyQuinqHebdoGB!BD33)/MoyQuinqHebdoGB!BD33 -> -0.1335149864
A46: J | B46: 30 | C46: 4.05 | D46: 3.9 | E46: 3.54 | F46: 3.59 | G46: 4.73 | H46: 4.13 | I46: 5.49 | J46: 3.5 | K46: 3.2 | L46: 4.95 | M46: 4.1 | P46: 2.73 | Q46: 30 | S46: 0 | T46: =(H46-GrosBovins2020!H46)/GrosBovins2020!H46 -> 0.01225490196 | U46: =(H46-MoyQuinqHebdoGB!AL34)/MoyQuinqHebdoGB!AL34 -> -0.08950617284 | V46: 0.006289308176 | W46: =(K46-GrosBovins2020!K46)/GrosBovins2020!K46 -> 0.1111111111 | X46: =(K46-MoyQuinqHebdoGB!BD34)/MoyQuinqHebdoGB!BD34 -> -0.1252050301
B47: 31 | C47: 4.07 | D47: 3.9 | E47: 3.54 | F47: 3.6 | G47: 4.67 | H47: 4.16 | I47: 5.44 | J47: 3.52 | K47: 3.22 | L47: 4.97 | M47: 4.09 | P47: 2.73 | Q47: 31 | S47: 0.007263922518 | T47: =(H47-GrosBovins2020!H47)/GrosBovins2020!H47 -> 0.02211302211 | U47: =(H47-MoyQuinqHebdoGB!AL35)/MoyQuinqHebdoGB!AL35 -> -0.08167770419 | V47: 0.00625 | W47: =(K47-GrosBovins2020!K47)/GrosBovins2020!K47 -> 0.1180555556 | X47: =(K47-MoyQuinqHebdoGB!BD35)/MoyQuinqHebdoGB!BD35 -> -0.1173245614
B48: 32 | C48: 4.11 | D48: 3.91 | E48: 3.56 | F48: 3.61 | G48: 4.78 | H48: 4.15 | I48: 5.41 | J48: 3.53 | K48: 3.25 | L48: 5.05 | M48: 4.14 | P48: 2.73 | Q48: 32 | S48: -0.002403846154 | T48: =(H48-GrosBovins2020!H48)/GrosBovins2020!H48 -> 0.01715686275 | U48: =(H48-MoyQuinqHebdoGB!AL36)/MoyQuinqHebdoGB!AL36 -> -0.08670774648 | V48: 0.009316770186 | W48: =(K48-GrosBovins2020!K48)/GrosBovins2020!K48 -> 0.1324041812 | X48: =(K48-MoyQuinqHebdoGB!BD36)/MoyQuinqHebdoGB!BD36 -> -0.1091008772
B49: 33 | C49: 4.11 | D49: 3.92 | E49: 3.56 | F49: 3.63 | G49: 4.79 | H49: 4.16 | I49: 5.48 | J49: 3.56 | K49: 3.26 | L49: 5.07 | M49: 4.1 | P49: 2.73 | Q49: 33 | S49: 0.002409638554 | T49: =(H49-GrosBovins2020!H49)/GrosBovins2020!H49 -> 0.01711491443 | U49: =(H49-MoyQuinqHebdoGB!AL37)/MoyQuinqHebdoGB!AL37 -> -0.08571428571 | V49: 0.003076923077 | W49: =(K49-GrosBovins2020!K49)/GrosBovins2020!K49 -> 0.1319444444 | X49: =(K49-MoyQuinqHebdoGB!BD37)/MoyQuinqHebdoGB!BD37 -> -0.1102620087
A50: A | B50: 34 | C50: 4.14 | D50: 3.96 | E50: 3.6 | F50: 3.64 | G50: 4.78 | H50: 4.19 | I50: 5.43 | J50: 3.58 | K50: 3.29 | L50: 5.13 | M50: 4.14 | P50: 2.73 | Q50: 34 | S50: =(H50-H49)/H49 -> 0.007211538462 | T50: =(H50-GrosBovins2020!H50)/GrosBovins2020!H50 -> 0.02696078431 | U50: =(H50-MoyQuinqHebdoGB!AL38)/MoyQuinqHebdoGB!AL38 -> -0.08274956217 | V50: =(K50-K49)/K49 -> 0.009202453988 | W50: =(K50-GrosBovins2020!K50)/GrosBovins2020!K50 -> 0.1423611111 | X50: =(K50-MoyQuinqHebdoGB!BD38)/MoyQuinqHebdoGB!BD38 -> -0.1069489685
B51: 35 | C51: 4.15 | D51: 3.98 | E51: 3.6 | F51: 3.65 | G51: 4.89 | H51: 4.21 | I51: 5.49 | J51: 3.58 | K51: 3.3 | L51: 5.11 | M51: 4.19 | P51: 2.76 | Q51: 35 | S51: 0.00477326969 | T51: =(H51-GrosBovins2020!H51)/GrosBovins2020!H51 -> 0.02682926829 | U51: =(H51-MoyQuinqHebdoGB!AL39)/MoyQuinqHebdoGB!AL39 -> -0.08398607485 | V51: 0.003039513678 | W51: =(K51-GrosBovins2020!K51)/GrosBovins2020!K51 -> 0.1458333333 | X51: =(K51-MoyQuinqHebdoGB!BD39)/MoyQuinqHebdoGB!BD39 -> -0.1085899514
B52: 36 | C52: 4.17 | D52: 4.02 | E52: 3.6 | F52: 3.66 | G52: 4.87 | H52: 4.21 | I52: 5.44 | J52: 3.59 | K52: 3.31 | L52: 5.13 | M52: 4.17 | P52: 2.76 | Q52: 36 | S52: 0 | T52: =(H52-GrosBovins2020!H52)/GrosBovins2020!H52 -> 0.0318627451 | U52: =(H52-MoyQuinqHebdoGB!AL40)/MoyQuinqHebdoGB!AL40 -> -0.0847826087 | V52: 0.00303030303 | W52: =(K52-GrosBovins2020!K52)/GrosBovins2020!K52 -> 0.1453287197 | X52: =(K52-MoyQuinqHebdoGB!BD40)/MoyQuinqHebdoGB!BD40 -> -0.1092572659
B53: 37 | C53: 4.19 | D53: 4.01 | E53: 3.61 | F53: 3.68 | G53: 4.78 | H53: 4.23 | I53: 5.43 | J53: 3.6 | K53: 3.31 | L53: 5.04 | M53: 4.19 | P53: 2.76 | Q53: 37 | S53: 0.004750593824 | T53: =(H53-GrosBovins2020!H53)/GrosBovins2020!H53 -> 0.03931203931 | U53: =(H53-MoyQuinqHebdoGB!AL41)/MoyQuinqHebdoGB!AL41 -> -0.07963446475 | V53: 0 | W53: =(K53-GrosBovins2020!K53)/GrosBovins2020!K53 -> 0.1493055556 | X53: =(K53-MoyQuinqHebdoGB!BD41)/MoyQuinqHebdoGB!BD41 -> -0.1097364174
B54: 38 | C54: 4.2 | D54: 4.03 | E54: 3.6 | F54: 3.66 | G54: 4.84 | H54: 4.21 | I54: 5.5 | J54: 3.6 | K54: 3.31 | L54: 5.1 | M54: 4.16 | P54: 2.8 | Q54: 38 | S54: -0.004728132388 | T54: =(H54-GrosBovins2020!H54)/GrosBovins2020!H54 -> 0.0318627451 | U54: =(H54-MoyQuinqHebdoGB!AL42)/MoyQuinqHebdoGB!AL42 -> -0.08358728777 | V54: 0 | W54: =(K54-GrosBovins2020!K54)/GrosBovins2020!K54 -> 0.1493055556 | X54: =(K54-MoyQuinqHebdoGB!BD42)/MoyQuinqHebdoGB!BD42 -> -0.1078167116
A55: S | B55: 39 | C55: 4.22 | D55: 4.05 | E55: 3.66 | F55: 3.68 | G55: 4.89 | H55: 4.21 | I55: 5.51 | J55: 3.6 | K55: 3.31 | L55: 5.11 | M55: 4.17 | P55: 2.8 | Q55: 39 | S55: 0 | T55: =(H55-GrosBovins2020!H55)/GrosBovins2020!H55 -> 0.0293398533 | U55: =(H55-MoyQuinqHebdoGB!AL43)/MoyQuinqHebdoGB!AL43 -> -0.08278867102 | V55: 0 | W55: =(K55-GrosBovins2020!K55)/GrosBovins2020!K55 -> 0.1493055556 | X55: =(K55-MoyQuinqHebdoGB!BD43)/MoyQuinqHebdoGB!BD43 -> -0.1054054054
B56: 40 | C56: 4.26 | D56: 4.07 | E56: 3.62 | F56: 3.67 | G56: 4.84 | H56: 4.23 | I56: 5.43 | J56: 3.6 | K56: 3.3 | L56: 5.11 | M56: 4.16 | P56: 2.82 | Q56: 40 | S56: 0.004750593824 | T56: =(H56-GrosBovins2020!H56)/GrosBovins2020!H56 -> 0.03931203931 | U56: =(H56-MoyQuinqHebdoGB!AL44)/MoyQuinqHebdoGB!AL44 -> -0.08043478261 | V56: -0.003021148036 | W56: =(K56-GrosBovins2020!K56)/GrosBovins2020!K56 -> 0.1458333333 | X56: =(K56-MoyQuinqHebdoGB!BD44)/MoyQuinqHebdoGB!BD44 -> -0.1032608696
B57: 41 | C57: 4.28 | D57: 4.1 | E57: 3.65 | F57: 3.66 | G57: 4.79 | H57: 4.21 | I57: 5.49 | J57: 3.61 | K57: 3.31 | L57: 5.06 | M57: 4.15 | P57: 2.82 | Q57: 41 | S57: -0.004728132388 | T57: =(H57-GrosBovins2020!H57)/GrosBovins2020!H57 -> 0.0343980344 | U57: =(H57-MoyQuinqHebdoGB!AL45)/MoyQuinqHebdoGB!AL45 -> -0.08358728777 | V57: 0.00303030303 | W57: =(K57-GrosBovins2020!K57)/GrosBovins2020!K57 -> 0.1533101045 | X57: =(K57-MoyQuinqHebdoGB!BD45)/MoyQuinqHebdoGB!BD45 -> -0.09661572052
B58: 42 | C58: 4.32 | D58: 4.14 | E58: 3.67 | F58: 3.7 | G58: 4.92 | H58: 4.23 | I58: 5.5 | J58: 3.63 | K58: 3.34 | L58: 5.06 | M58: 4.19 | P58: 2.82 | Q58: 42 | S58: 0.004750593824 | T58: =(H58-GrosBovins2020!H58)/GrosBovins2020!H58 -> 0.03170731707 | U58: =(H58-MoyQuinqHebdoGB!AL46)/MoyQuinqHebdoGB!AL46 -> -0.08163265306 | V58: 0.009063444109 | W58: =(K58-GrosBovins2020!K58)/GrosBovins2020!K58 -> 0.1678321678 | X58: =(K58-MoyQuinqHebdoGB!BD46)/MoyQuinqHebdoGB!BD46 -> -0.08493150685
A59: O | B59: 43 | C59: 4.36 | D59: 4.2 | E59: 3.69 | F59: 3.7 | G59: 4.87 | H59: 4.26 | I59: 5.48 | J59: 3.65 | K59: 3.35 | L59: 5.14 | M59: 4.19 | P59: 2.82 | Q59: 43 | S59: 0.007092198582 | T59: =(H59-GrosBovins2020!H59)/GrosBovins2020!H59 -> 0.04156479218 | U59: =(H59-MoyQuinqHebdoGB!AL47)/MoyQuinqHebdoGB!AL47 -> -0.07391304348 | V59: 0.002994011976 | W59: =(K59-GrosBovins2020!K59)/GrosBovins2020!K59 -> 0.1672473868 | X59: =(K59-MoyQuinqHebdoGB!BD47)/MoyQuinqHebdoGB!BD47 -> -0.07611693326
B60: 44 | C60: 4.41 | D60: 4.25 | E60: 3.7 | F60: 3.73 | G60: 4.95 | H60: 4.27 | I60: 5.52 | J60: 3.66 | K60: 3.38 | L60: 5.13 | M60: 4.23 | P60: 2.82 | Q60: 44 | S60: 0.00234741784 | T60: =(H60-GrosBovins2020!H60)/GrosBovins2020!H60 -> 0.04914004914 | U60: =(H60-MoyQuinqHebdoGB!AL48)/MoyQuinqHebdoGB!AL48 -> -0.07214254672 | V60: 0.008955223881 | W60: =(K60-GrosBovins2020!K60)/GrosBovins2020!K60 -> 0.1859649123 | X60: =(K60-MoyQuinqHebdoGB!BD48)/MoyQuinqHebdoGB!BD48 -> -0.06058921623
B61: 45 | C61: 4.46 | D61: 4.29 | E61: 3.7 | F61: 3.75 | G61: 4.85 | H61: 4.31 | I61: 5.56 | J61: 3.69 | K61: 3.4 | L61: 5.18 | M61: 4.23 | P61: 2.82 | Q61: 45 | S61: 0.009367681499 | T61: =(H61-GrosBovins2020!H61)/GrosBovins2020!H61 -> 0.06157635468 | U61: =(H61-MoyQuinqHebdoGB!AL49)/MoyQuinqHebdoGB!AL49 -> -0.06181976491 | V61: 0.005917159763 | W61: =(K61-GrosBovins2020!K61)/GrosBovins2020!K61 -> 0.2056737589 | X61: =(K61-MoyQuinqHebdoGB!BD49)/MoyQuinqHebdoGB!BD49 -> -0.04708520179
B62: 46 | C62: 4.49 | D62: 4.34 | E62: 3.74 | F62: 3.74 | G62: 4.89 | H62: 4.32 | I62: 5.53 | J62: 3.71 | K62: 3.43 | L62: 5.17 | M62: 4.26 | P62: 2.82 | Q62: 46 | S62: 0.002320185615 | T62: =(H62-GrosBovins2020!H62)/GrosBovins2020!H62 -> 0.06142506143 | U62: =(H62-MoyQuinqHebdoGB!AL50)/MoyQuinqHebdoGB!AL50 -> -0.06005221932 | V62: 0.008823529412 | W62: =(K62-GrosBovins2020!K62)/GrosBovins2020!K62 -> 0.238267148 | X62: =(K62-MoyQuinqHebdoGB!BD50)/MoyQuinqHebdoGB!BD50 -> -0.0283286119
A63: N | B63: 47 | C63: 4.53 | D63: 4.39 | E63: 3.74 | F63: 3.77 | G63: 4.84 | H63: 4.32 | I63: 5.54 | J63: 3.73 | K63: 3.45 | L63: 5.14 | M63: 4.28 | P63: 2.82 | Q63: 47 | S63: 0 | T63: =(H63-GrosBovins2020!H63)/GrosBovins2020!H63 -> 0.06930693069 | U63: =(H63-MoyQuinqHebdoGB!AL51)/MoyQuinqHebdoGB!AL51 -> -0.05676855895 | V63: 0.00583090379 | W63: =(K63-GrosBovins2020!K63)/GrosBovins2020!K63 -> 0.2591240876 | X63: =(K63-MoyQuinqHebdoGB!BD51)/MoyQuinqHebdoGB!BD51 -> -0.01372212693
B64: 48 | C64: 4.57 | D64: 4.41 | E64: 3.74 | F64: 3.78 | G64: 4.84 | H64: 4.35 | I64: 5.47 | J64: 3.74 | K64: 3.45 | L64: 5.22 | M64: 4.28 | P64: 2.82 | Q64: 48 | S64: 0.006944444444 | T64: =(H64-GrosBovins2020!H64)/GrosBovins2020!H64 -> 0.07407407407 | U64: =(H64-MoyQuinqHebdoGB!AL52)/MoyQuinqHebdoGB!AL52 -> -0.05063291139 | V64: 0 | W64: =(K64-GrosBovins2020!K64)/GrosBovins2020!K64 -> 0.2637362637 | X64: =(K64-MoyQuinqHebdoGB!BD52)/MoyQuinqHebdoGB!BD52 -> -0.004041570439
B65: 49 | C65: 4.59 | D65: 4.4 | E65: 3.76 | F65: 3.78 | G65: 5.25 | H65: 4.35 | I65: 5.62 | J65: 3.73 | K65: 3.46 | L65: 5.24 | M65: 4.32 | P65: 2.79 | Q65: 49 | S65: 0 | T65: =(H65-GrosBovins2020!H65)/GrosBovins2020!H65 -> 0.07407407407 | U65: =(H65-MoyQuinqHebdoGB!AL53)/MoyQuinqHebdoGB!AL53 -> -0.05021834061 | V65: 0.002898550725 | W65: =(K65-GrosBovins2020!K65)/GrosBovins2020!K65 -> 0.2673992674 | X65: =(K65-MoyQuinqHebdoGB!BD53)/MoyQuinqHebdoGB!BD53 -> 0.004645760743
B66: 50 | C66: 4.59 | D66: 4.41 | E66: 3.78 | F66: 3.79 | G66: 4.96 | H66: 4.35 | I66: 5.58 | J66: 3.73 | K66: 3.42 | L66: 5.28 | M66: 4.3 | P66: 2.79 | Q66: 50 | S66: 0 | T66: =(H66-GrosBovins2020!H66)/GrosBovins2020!H66 -> 0.07673267327 | U66: =(H66-MoyQuinqHebdoGB!AL54)/MoyQuinqHebdoGB!AL54 -> -0.0062821245 | V66: -0.01156069364 | W66: =(K66-GrosBovins2020!K66)/GrosBovins2020!K66 -> 0.2527472527 | X66: =(K66-MoyQuinqHebdoGB!BD54)/MoyQuinqHebdoGB!BD54 -> 0.03089675961
B67: 51 | C67: 4.59 | D67: 4.41 | E67: 3.78 | F67: 3.79 | G67: 4.87 | H67: 4.36 | I67: 5.56 | J67: 3.73 | K67: 3.41 | L67: 5.13 | M67: 4.29 | P67: 2.79 | Q67: 51 | S67: 0.002298850575 | T67: =(H67-GrosBovins2020!H67)/GrosBovins2020!H67 -> 0.07920792079 | U67: =(H67-MoyQuinqHebdoGB!AL55)/MoyQuinqHebdoGB!AL55 -> -0.005134055904 | V67: -0.002923976608 | W67: =(K67-GrosBovins2020!K67)/GrosBovins2020!K67 -> 0.2490842491 | X67: =(K67-MoyQuinqHebdoGB!BD55)/MoyQuinqHebdoGB!BD55 -> 0.03021148036
A68: D | B68: 52 | C68: 4.59 | D68: 4.42 | E68: 3.75 | F68: 3.8 | G68: 4.88 | H68: 4.38 | I68: 5.49 | J68: 3.74 | K68: 3.43 | L68: 5.22 | M68: 4.34 | P68: NC | Q68: 52 | S68: 0.004587155963 | T68: =(H68-GrosBovins2020!H68)/GrosBovins2020!H68 -> 0.08148148148 | U68: =(H68-MoyQuinqHebdoGB!AL56)/MoyQuinqHebdoGB!AL56 -> -0.002277904328 | V68: 0.005865102639 | W68: =(K68-GrosBovins2020!K68)/GrosBovins2020!K68 -> 0.2518248175 | X68: =(K68-MoyQuinqHebdoGB!BD56)/MoyQuinqHebdoGB!BD56 -> 0.03157894737
A71: 3 – COTATION DES GROS BOVINS VIFS SUR LE MARCHE DE CHOLET (en Euro/Kg Net)
C73: GENISSES | E73: VACHES | I73: JEUNES BOVINS | J73: TAUREAUX
A74: semaines | B74: année+mois | C74: Viande, mixte, lait | D74: Viande, mixte, lait | E74: Blonde | F74: Blonde | G74: Mixte | H74: Lait | I74: Viande | J74: Viande, mixte, lait
A75: 2021 | C75: U | D75: R | E75: U | F75: R | G75: O | H75: P | I75: U | J75: URO
A76: 1 | B76: 202101 | C76: 4.45 | D76: 4.03 | E76: 4.8 | F76: 4.1 | G76: 2.87 | H76: 2.6 | I76: 3.64
A77: 2 | B77: 202101 | C77: 4.45 | D77: 4.03 | E77: 4.8 | F77: 4.1 | G77: 2.87 | H77: 2.6 | I77: 3.64
A78: 3 | B78: 202101 | C78: 4.45 | D78: 4.03 | E78: 4.83 | F78: 4.1 | G78: 2.87 | H78: 2.6 | I78: 3.64 | J78: 3.05
A79: 4 | B79: 202101 | C79: 4.46 | D79: 4.03 | E79: 4.85 | F79: 4.1 | G79: 2.87 | H79: 2.6 | I79: 3.66 | J79: 3.05
A80: 5 | B80: 202102 | C80: 4.45 | D80: 4.04 | E80: 4.85 | F80: 4.1 | G80: 2.87 | H80: 2.6 | I80: 3.68
A81: 6 | B81: 202102 | C81: 4.45 | D81: 4.05 | E81: 4.88 | F81: 4.15 | G81: 2.87 | H81: 2.6 | I81: 3.71
A82: 7 | B82: 202102 | C82: 4.45 | D82: 4.05 | E82: 4.9 | F82: 4.15 | G82: 2.9 | H82: 2.63 | I82: 3.75 | J82: 3.05
A83: 8 | B83: 202102 | C83: 4.46 | D83: 4.06 | E83: 4.95 | F83: 4.15 | G83: 2.9 | H83: 2.65 | I83: 3.77
A84: 9 | B84: 202103 | C84: 4.46 | D84: 4.06 | E84: 4.97 | F84: 4.15 | G84: 2.9 | H84: 2.67 | I84: 3.8
A85: 10 | B85: 202103 | C85: 4.47 | D85: 4.06 | E85: 5 | F85: 4.15 | G85: 2.95 | H85: 2.72 | I85: 3.83
A86: 11 | B86: 202103 | C86: 4.49 | D86: 4.06 | E86: 5 | F86: 4.15 | G86: 2.98 | H86: 2.77 | I86: 3.86
A87: 12 | B87: 202103 | C87: 4.5 | D87: 4.06 | E87: 5 | F87: 4.15 | G87: 3 | H87: 2.79 | I87: 3.88 | J87: 3.05
A88: 13 | B88: 202103 | C88: 4.52 | D88: 4.06 | E88: 5.05 | F88: 4.15 | G88: 3.02 | H88: 2.8 | I88: 3.9
A89: 14 | B89: 202104 | C89: 4.52 | D89: 4.09 | E89: 5.05 | F89: 4.15 | G89: 3.02 | H89: 2.8 | I89: 3.9
A90: 15 | B90: 202104 | C90: 4.53 | D90: 4.09 | E90: 5.05 | F90: 4.15 | G90: 3.02 | H90: 2.8 | I90: 3.9 | J90: 3.08
A91: 16 | B91: 202104 | C91: 4.53 | D91: 4.09 | E91: 5.05 | F91: 4.15 | G91: 3.02 | H91: 2.8 | I91: 3.9 | J91: 3.08
A92: 17 | B92: 202104 | C92: 4.53 | D92: 4.09 | E92: 5.05 | F92: 4.15 | G92: 3.02 | H92: 2.8 | I92: 3.88 | J92: 3.08
A93: 18 | B93: 202105 | C93: 4.53 | D93: 4.09 | E93: 5.05 | F93: 4.15 | G93: 3.02 | H93: 2.8 | I93: 3.86
A94: 19 | B94: 202105 | C94: 4.53 | D94: 4.09 | E94: 5.05 | F94: 4.15 | G94: 3.05 | H94: 2.8 | I94: 3.86
A95: 20 | B95: 202105 | C95: 4.53 | D95: 4.1 | E95: 5.1 | F95: 4.15 | G95: 3.05 | H95: 2.82 | I95: 3.86
A96: 21 | B96: 202105 | C96: 4.53 | D96: 4.1 | E96: 5.1 | F96: 4.15 | G96: 3.07 | H96: 2.85 | I96: 3.86 | J96: 3.08
A97: 22 | B97: 202106 | C97: 4.53 | D97: 4.1 | E97: 5.1 | F97: 4.17 | G97: 3.1 | H97: 2.88 | I97: 3.86 | J97: 3.1
A98: 23 | B98: 202106 | C98: 4.53 | D98: 4.1 | E98: 5.1 | F98: 4.17 | G98: 3.1 | H98: 2.9 | I98: 3.86
A99: 24 | B99: 202106 | C99: 4.53 | D99: 4.1 | E99: 5.1 | F99: 4.17 | G99: 3.1 | H99: 2.9 | I99: 3.86
A100: 25 | B100: 202106 | C100: 4.53 | D100: 4.1 | E100: 5.1 | F100: 4.17 | G100: 3.1 | H100: 2.9 | I100: 3.86
A101: 26 | B101: 202106 | C101: 4.53 | D101: 4.1 | E101: 5.1 | F101: 4.17 | G101: 3.15 | H101: 2.93 | I101: 3.86
A102: 27 | B102: 202107 | C102: 4.53 | D102: 4.1 | E102: 5.1 | F102: 4.17 | G102: 3.2 | H102: 2.98 | I102: 3.88
A103: 28 | B103: 202107 | C103: 4.53 | D103: 4.1 | E103: 5.1 | F103: 4.17 | G103: 3.2 | H103: 2.98 | I103: 3.9
A104: 29 | B104: 202107 | C104: 4.53 | D104: 4.1 | E104: 5.1 | F104: 4.17 | G104: 3.2 | H104: 2.98 | I104: 3.9
A105: 30 | B105: 202107 | C105: 4.53 | D105: 4.1 | E105: 5.1 | F105: 4.17 | G105: 3.23 | H105: 3.01 | I105: 3.93
A106: 31 | B106: 202108 | E106: 5.1 | F106: 4.17 | G106: 3.25 | H106: 3.03 | I106: 3.96 | J106: 3.1
A107: 32 | B107: 202108 | E107: 5.1 | F107: 4.17 | G107: 3.27 | H107: 3.05 | I107: 3.98 | J107: 3.1
A108: 33 | B108: 202108 | E108: 5.1 | F108: 4.17 | G108: 3.3 | H108: 3.08 | I108: 4
A109: 34 | B109: 202108 | C109: 4.57 | D109: 4.14 | E109: 5.15 | F109: 4.2 | G109: 3.35 | H109: 3.12 | I109: 4.03
A110: 35 | B110: 202109 | C110: 4.57 | D110: 4.14 | E110: 5.15 | F110: 4.22 | G110: 3.38 | H110: 3.15 | I110: 4.05 | J110: 3.15
A111: 36 | B111: 202109 | C111: 4.57 | D111: 4.14 | E111: 5.15 | F111: 4.22 | G111: 3.38 | H111: 3.15 | I111: 4.05
A112: 37 | B112: 202109 | C112: 4.58 | D112: 4.14 | E112: 5.15 | F112: 4.22 | G112: 3.4 | H112: 3.15 | I112: 4.07
A113: 38 | B113: 202109 | C113: 4.58 | D113: 4.14 | E113: 5.15 | F113: 4.22 | G113: 3.4 | H113: 3.15 | I113: 4.1
A114: 39 | B114: 202109 | C114: 4.58 | D114: 4.14 | E114: 5.15 | F114: 4.22 | G114: 3.4 | H114: 3.15 | I114: 4.1
A115: 40 | B115: 202110 | C115: 4.58 | D115: 4.14 | E115: 5.15 | F115: 4.22 | G115: 3.4 | H115: 3.15 | I115: 4.12
A116: 41 | B116: 202110 | C116: 4.58 | D116: 4.14 | E116: 5.15 | F116: 4.22 | G116: 3.4 | H116: 3.15 | I116: 4.15
A117: 42 | B117: 202110 | C117: 4.61 | D117: 4.14 | E117: 5.15 | F117: 4.22 | G117: 3.43 | H117: 3.18 | I117: 4.18
A118: 43 | B118: 202110 | C118: 4.63 | D118: 4.16 | E118: 5.15 | F118: 4.22 | G118: 3.45 | H118: 3.2 | I118: 4.2
A119: 44 | B119: 202111 | C119: 4.64 | D119: 4.18 | E119: 5.15 | F119: 4.25 | G119: 3.45 | H119: 3.2 | I119: 4.25
A120: 45 | B120: 202111 | C120: 4.65 | D120: 4.19 | E120: 5.15 | F120: 4.25 | G120: 3.45 | H120: 3.23 | I120: 4.3
A121: 46 | B121: 202111 | C121: 4.67 | D121: 4.21 | E121: 5.15 | F121: 4.25 | G121: 3.48 | H121: 3.26 | I121: 4.35
A122: 47 | B122: 202111 | C122: 4.68 | D122: 4.22 | E122: 5.15 | F122: 4.25 | G122: 3.53 | H122: 3.28 | I122: 4.4
A123: 48 | B123: 202112 | C123: 4.71 | D123: 4.25 | E123: 5.15 | F123: 4.25 | G123: 3.55 | H123: 3.28 | I123: 4.4
A124: 49 | B124: 202112 | C124: 4.71 | D124: 4.25 | E124: 5.15 | F124: 4.25 | G124: 3.58 | H124: 3.28 | I124: 4.4
A125: 50 | B125: 202112 | C125: 4.71 | D125: 4.25 | E125: 5.15 | F125: 4.25 | G125: 3.61 | H125: 3.28 | I125: 4.4 | J125: 3.3
A126: 51 | B126: 202112 | C126: 4.71 | D126: 4.25 | E126: 5.15 | F126: 4.25 | G126: 3.6 | H126: 3.28 | I126: 4.4 | J126: 3.3
A127: 52 | B127: 202112 | C127: 4.71 | D127: 4.25 | E127: 5.15 | F127: 4.25 | G127: 3.6 | H127: 3.28 | I127: 4.4

Sheet GrosBovins2020
A1: COTATIONS DES GROS BOVINS
A2: Source : DRAAF Pays de la Loire - SRISE - FranceAgriMer | K2: mise à jour : 06/01/2021
A5: 1 – COTATION REGIONALE GRAND OUEST ENTREE ABATTOIR en €/Kg net
A7: 2 – MOYENNE NATIONALE DES BOVINS MAIGRES DESTINES A L'ENGRAISSEMENT CHAROLAIS MALE de 6-12 mois catégorie U (300kg) en €/kg vif
A9: 3 – OTATION DES GROS BOVINS VIFS SUR LE MARCHE DE CHOLET (en Euro/Kg Net) – à partir de la ligne 72
P11: 2 – COT. HEBDO
D12: 1 – COTATION REGIONALE ENTREE ABATTOIR GRAND OUEST FRANCEAGRIMER-HEBDOMADAIRE (€/Kg net) | P12: MAIGRE €/kg vif
P13: Ref. nationale
A14: Année | B14: Sem. | C14: JEUNES BOVINS | F14: BOEUFS | G14: VACHES | L14: GENISSES | P14: Charolais Mâles | Q14: Sem.
C15: VIANDE | E15: MIXTE | F15: MIXTE | G15: VIANDE | I15: Blonde | J15: MIXTE | K15: LAIT | L15: VIANDES + 350kg
C16: U | D16: R | E16: O | F16: O | G16: U | H16: R | I16: U | J16: O | K16: P | L16: U | M16: R | P16: 6/12 mois ( U )
A17: 2020 | B17: 1 | C17: 4.07 | D17: 3.9 | E17: 3.46 | F17: 3.22 | G17: 4.42 | H17: 3.72 | I17: 5.1 | J17: 3.14 | K17: 2.54 | L17: 4.63 | M17: 3.8 | P17: 2.69 | Q17: 1
B18: 2 | C18: 4.07 | D18: 3.91 | E18: 3.51 | F18: 3.25 | G18: 4.37 | H18: 3.75 | I18: 5.07 | J18: 3.15 | K18: 2.57 | L18: 4.63 | M18: 3.84 | P18: 2.69 | Q18: 2
B19: 3 | C19: 4.07 | D19: 3.9 | E19: 3.49 | F19: 3.24 | G19: 4.38 | H19: 3.72 | I19: 5.04 | J19: 3.16 | K19: 2.56 | L19: 4.7 | M19: 3.85 | P19: 2.69 | Q19: 3
B20: 4 | C20: 4.07 | D20: 3.89 | E20: 3.52 | F20: 3.23 | G20: 4.36 | H20: 3.71 | I20: 5.05 | J20: 3.15 | K20: 2.55 | L20: 4.7 | M20: 3.81 | P20: 2.69 | Q20: 4
A21: J | B21: 5 | C21: 4.06 | D21: 3.88 | E21: 3.52 | F21: 3.22 | G21: 4.44 | H21: 3.72 | I21: 5.02 | J21: 3.14 | K21: 2.54 | L21: 4.64 | M21: 3.82 | P21: 2.69 | Q21: 5
B22: 6 | C22: 4.05 | D22: 3.88 | E22: 3.51 | F22: 3.25 | G22: 4.46 | H22: 3.73 | I22: 5.06 | J22: 3.13 | K22: 2.53 | L22: 4.62 | M22: 3.81 | P22: 2.69 | Q22: 6
B23: 7 | C23: 4.04 | D23: 3.85 | E23: 3.49 | F23: 3.22 | G23: 4.46 | H23: 3.7 | I23: 5.02 | J23: 3.14 | K23: 2.55 | L23: 4.61 | M23: 3.81 | P23: 2.69 | Q23: 7
B24: 8 | C24: 4.01 | D24: 3.84 | E24: 3.49 | F24: 3.25 | G24: 4.4 | H24: 3.72 | I24: 5 | J24: 3.16 | K24: 2.58 | L24: 4.6 | M24: 3.83 | P24: 2.72 | Q24: 8
A25: F | B25: 9 | C25: 4 | D25: 3.84 | E25: 3.51 | F25: 3.26 | G25: 4.42 | H25: 3.75 | I25: 5.14 | J25: 3.16 | K25: 2.62 | L25: 4.69 | M25: 3.82 | P25: 2.75 | Q25: 9
B26: 10 | C26: 4 | D26: 3.82 | E26: 3.53 | F26: 3.27 | G26: 4.44 | H26: 3.77 | I26: 5.03 | J26: 3.18 | K26: 2.66 | L26: 4.67 | M26: 3.84 | P26: 2.75 | Q26: 10
B27: 11 | C27: 3.98 | D27: 3.81 | E27: 3.5 | F27: 3.28 | G27: 4.43 | H27: 3.78 | I27: 5.14 | J27: 3.18 | K27: 2.66 | L27: 4.64 | M27: 3.84 | P27: 2.78 | Q27: 11
B28: 12 | C28: 3.96 | D28: 3.78 | E28: 3.55 | F28: 3.27 | G28: 4.49 | H28: 3.78 | I28: 5.12 | J28: 3.18 | K28: 2.67 | L28: 4.65 | M28: 3.85 | P28: 2.8 | Q28: 12
A29: M | B29: 13 | C29: 3.94 | D29: 3.77 | E29: 3.47 | F29: 3.25 | G29: 4.44 | H29: 3.74 | I29: 5.17 | J29: 3.17 | K29: 2.68 | L29: 4.73 | M29: 3.85 | P29: 2.8 | Q29: 13
B30: 14 | C30: 3.9 | D30: 3.73 | E30: 3.43 | F30: 3.19 | G30: 4.5 | H30: 3.74 | I30: 5.17 | J30: 3.09 | K30: 2.66 | L30: 4.78 | M30: 3.84 | P30: 2.82 | Q30: 14
B31: 15 | C31: 3.88 | D31: 3.69 | E31: 3.35 | F31: 3.08 | G31: 4.45 | H31: 3.72 | I31: 5.1 | J31: 3.04 | K31: 2.64 | L31: 4.7 | M31: 3.82 | P31: 2.82 | Q31: 15
B32: 16 | C32: 3.86 | D32: 3.71 | E32: 3.36 | F32: 3.07 | G32: 4.51 | H32: 3.72 | I32: 5.05 | J32: 3.01 | K32: 2.64 | L32: 4.77 | M32: 3.86 | P32: 2.82 | Q32: 16
B33: 17 | C33: 3.85 | D33: 3.69 | E33: 3.34 | F33: 3.07 | G33: 4.42 | H33: 3.71 | I33: 5.12 | J33: 3.01 | K33: 2.67 | L33: 4.75 | M33: 3.82 | P33: 2.84 | Q33: 17
A34: A | B34: 18 | C34: 3.85 | D34: 3.68 | E34: 3.37 | F34: 3.11 | G34: 4.39 | H34: 3.75 | I34: 5.06 | J34: 3.03 | K34: 2.71 | L34: 4.81 | M34: 3.82 | P34: 2.84 | Q34: 18
B35: 19 | C35: 3.85 | D35: 3.7 | E35: 3.34 | F35: 3.11 | G35: 4.47 | H35: 3.76 | I35: 5.11 | J35: 3.05 | K35: 2.74 | L35: 4.68 | M35: 3.84 | P35: 2.84 | Q35: 19
B36: 20 | C36: 3.84 | D36: 3.69 | E36: 3.37 | F36: 3.14 | G36: 4.57 | H36: 3.8 | I36: 5.12 | J36: 3.08 | K36: 2.79 | L36: 4.71 | M36: 3.87 | P36: 2.84 | Q36: 20
B37: 21 | C37: 3.84 | D37: 3.68 | E37: 3.38 | F37: 3.16 | G37: 4.49 | H37: 3.82 | I37: 5.08 | J37: 3.12 | K37: 2.83 | L37: 4.76 | M37: 3.87 | P37: 2.84 | Q37: 21
A38: M | B38: 22 | C38: 3.85 | D38: 3.69 | E38: 3.41 | F38: 3.2 | G38: 4.6 | H38: 3.88 | I38: 5.1 | J38: 3.15 | K38: 2.86 | L38: 4.79 | M38: 3.97 | P38: 2.84 | Q38: 22
B39: 23 | C39: 3.84 | D39: 3.72 | E39: 3.37 | F39: 3.22 | G39: 4.59 | H39: 3.95 | I39: 5.16 | J39: 3.18 | K39: 2.87 | L39: 4.83 | M39: 3.98 | P39: 2.84 | Q39: 23
B40: 24 | C40: 3.85 | D40: 3.72 | E40: 3.39 | F40: 3.23 | G40: 4.53 | H40: 4.01 | I40: 5.17 | J40: 3.18 | K40: 2.88 | L40: 4.73 | M40: 4.05 | P40: 2.84 | Q40: 24
B41: 25 | C41: 3.85 | D41: 3.71 | E41: 3.4 | F41: 3.23 | G41: 4.62 | H41: 4.03 | I41: 5.16 | J41: 3.18 | K41: 2.88 | L41: 4.86 | M41: 4.07 | P41: 2.82 | Q41: 25
A42: J | B42: 26 | C42: 3.85 | D42: 3.72 | E42: 3.39 | F42: 3.23 | G42: 4.6 | H42: 4.07 | I42: 5.13 | J42: 3.19 | K42: 2.87 | L42: 4.97 | M42: 4.05 | P42: 2.82 | Q42: 26
B43: 27 | C43: 3.85 | D43: 3.71 | E43: 3.4 | F43: 3.23 | G43: 4.59 | H43: 4.05 | I43: 5.13 | J43: 3.19 | K43: 2.87 | L43: 4.79 | M43: 4.08 | P43: 2.8 | Q43: 27
B44: 28 | C44: 3.85 | D44: 3.7 | E44: 3.37 | F44: 3.22 | G44: 4.56 | H44: 4.06 | I44: 5.16 | J44: 3.19 | K44: 2.88 | L44: 4.84 | M44: 4.09 | P44: 2.8 | Q44: 28
B45: 29 | C45: 3.86 | D45: 3.69 | E45: 3.37 | F45: 3.24 | G45: 4.53 | H45: 4.09 | I45: 5.2 | J45: 3.2 | K45: 2.88 | L45: 4.79 | M45: 4.1 | P45: 2.8 | Q45: 29
B46: 30 | C46: 3.85 | D46: 3.69 | E46: 3.38 | F46: 3.24 | G46: 4.52 | H46: 4.08 | I46: 5.19 | J46: 3.21 | K46: 2.88 | L46: 4.87 | M46: 4.06 | P46: 2.8 | Q46: 30
A47: J | B47: 31 | C47: 3.85 | D47: 3.68 | E47: 3.37 | F47: 3.24 | G47: 4.52 | H47: 4.07 | I47: 5.24 | J47: 3.21 | K47: 2.88 | L47: 4.81 | M47: 4.09 | P47: 2.77 | Q47: 31
B48: 32 | C48: 3.83 | D48: 3.66 | E48: 3.35 | F48: 3.24 | G48: 4.59 | H48: 4.08 | I48: 5.13 | J48: 3.2 | K48: 2.87 | L48: 4.93 | M48: 4.06 | P48: 2.77 | Q48: 32
B49: 33 | C49: 3.82 | D49: 3.66 | E49: 3.35 | F49: 3.24 | G49: 4.46 | H49: 4.09 | I49: 5.16 | J49: 3.21 | K49: 2.88 | L49: 4.83 | M49: 4.03 | P49: 2.77 | Q49: 33
B50: 34 | C50: 3.81 | D50: 3.66 | E50: 3.34 | F50: 3.25 | G50: 4.57 | H50: 4.08 | I50: 5.24 | J50: 3.21 | K50: 2.88 | L50: 4.83 | M50: 4.03 | P50: 2.72 | Q50: 34
A51: A | B51: 35 | C51: 3.81 | D51: 3.65 | E51: 3.34 | F51: 3.23 | G51: 4.52 | H51: 4.1 | I51: 5.23 | J51: 3.21 | K51: 2.88 | L51: 4.88 | M51: 4.04 | P51: 2.69 | Q51: 35
B52: 36 | C52: 3.8 | D52: 3.65 | E52: 3.35 | F52: 3.24 | G52: 4.6 | H52: 4.08 | I52: 5.16 | J52: 3.21 | K52: 2.89 | L52: 4.85 | M52: 4.03 | P52: 2.69 | Q52: 36
B53: 37 | C53: 3.82 | D53: 3.63 | E53: 3.36 | F53: 3.26 | G53: 4.75 | H53: 4.07 | I53: 5.22 | J53: 3.22 | K53: 2.88 | L53: 4.87 | M53: 4.04 | P53: 2.69 | Q53: 37
B54: 38 | C54: 3.79 | D54: 3.63 | E54: 3.33 | F54: 3.25 | G54: 4.71 | H54: 4.08 | I54: 5.26 | J54: 3.22 | K54: 2.88 | L54: 4.84 | M54: 4.02 | P54: 2.69 | Q54: 38
B55: 39 | C55: 3.79 | D55: 3.65 | E55: 3.3 | F55: 3.24 | G55: 4.62 | H55: 4.09 | I55: 5.14 | J55: 3.22 | K55: 2.88 | L55: 4.84 | M55: 4.07 | P55: 2.67 | Q55: 39
A56: S | B56: 40 | C56: 3.8 | D56: 3.65 | E56: 3.3 | F56: 3.25 | G56: 4.58 | H56: 4.07 | I56: 5.19 | J56: 3.21 | K56: 2.88 | L56: 4.9 | M56: 4.04 | P56: 2.67 | Q56: 40
B57: 41 | C57: 3.79 | D57: 3.62 | E57: 3.32 | F57: 3.25 | G57: 4.57 | H57: 4.07 | I57: 5.17 | J57: 3.21 | K57: 2.87 | L57: 4.85 | M57: 4.03 | P57: 2.67 | Q57: 41
B58: 42 | C58: 3.78 | D58: 3.62 | E58: 3.33 | F58: 3.22 | G58: 4.68 | H58: 4.1 | I58: 5.14 | J58: 3.21 | K58: 2.86 | L58: 4.86 | M58: 4.02 | P58: 2.64 | Q58: 42
B59: 43 | C59: 3.79 | D59: 3.6 | E59: 3.35 | F59: 3.25 | G59: 4.53 | H59: 4.09 | I59: 5.19 | J59: 3.21 | K59: 2.87 | L59: 4.83 | M59: 4.02 | P59: 2.62 | Q59: 43
A60: O | B60: 44 | C60: 3.8 | D60: 3.6 | E60: 3.34 | F60: 3.24 | G60: 4.58 | H60: 4.07 | I60: 5.22 | J60: 3.19 | K60: 2.85 | L60: 4.81 | M60: 4.01 | P60: 2.62 | Q60: 44
B61: 45 | C61: 3.78 | D61: 3.61 | E61: 3.35 | F61: 3.23 | G61: 4.53 | H61: 4.06 | I61: 5.1 | J61: 3.18 | K61: 2.82 | L61: 4.91 | M61: 3.95 | P61: 2.62 | Q61: 45
B62: 46 | C62: 3.77 | D62: 3.61 | E62: 3.37 | F62: 3.19 | G62: 4.59 | H62: 4.07 | I62: 5.2 | J62: 3.13 | K62: 2.77 | L62: 4.85 | M62: 4 | P62: 2.62 | Q62: 46
B63: 47 | C63: 3.78 | D63: 3.61 | E63: 3.33 | F63: 3.15 | G63: 4.45 | H63: 4.04 | I63: 5.24 | J63: 3.08 | K63: 2.74 | L63: 4.86 | M63: 4.01 | P63: 2.62 | Q63: 47
A64: N | B64: 48 | C64: 3.79 | D64: 3.62 | E64: 3.36 | F64: 3.14 | G64: 4.56 | H64: 4.05 | I64: 5.22 | J64: 3.06 | K64: 2.73 | L64: 4.87 | M64: 4.02 | P64: 2.62 | Q64: 48
B65: 49 | C65: 3.8 | D65: 3.61 | E65: 3.38 | F65: 3.13 | G65: 4.57 | H65: 4.05 | I65: 5.22 | J65: 3.04 | K65: 2.73 | L65: 4.84 | M65: 4.02 | P65: 2.62 | Q65: 49
B66: 50 | C66: 3.79 | D66: 3.62 | E66: 3.41 | F66: 3.15 | G66: 4.79 | H66: 4.04 | I66: 5.33 | J66: 3.04 | K66: 2.73 | L66: 5 | M66: 4.01 | P66: 2.62 | Q66: 50
B67: 51 | C67: 3.8 | D67: 3.63 | E67: 3.37 | F67: 3.13 | G67: 4.75 | H67: 4.04 | I67: 5.24 | J67: 3.06 | K67: 2.73 | L67: 4.9 | M67: 4.03 | P67: 2.62 | Q67: 51
B68: 52 | C68: 3.82 | D68: 3.65 | E68: 3.35 | F68: 3.13 | G68: 4.5 | H68: 4.05 | I68: 5.21 | J68: 3.07 | K68: 2.74 | L68: 4.94 | M68: 3.97 | P68: 2.62 | Q68: 52
A69: D | B69: 53 | C69: 3.82 | D69: 3.66 | E69: 3.37 | F69: 3.13 | G69: 4.56 | H69: 4.04 | I69: 5.19 | J69: 3.07 | K69: 2.75 | L69: 4.81 | M69: 4.03 | P69: 2.62 | Q69: 53
A72: 3 – COTATION DES GROS BOVINS VIFS SUR LE MARCHE DE CHOLET (en Euro/Kg Net)
C74: GENISSES | E74: VACHES | I74: JEUNES BOVINS | J74: TAUREAUX
A75: semaines | B75: année+mois | C75: Viande, mixte, lait | D75: Viande, mixte, lait | E75: Blonde | F75: Blonde | G75: Mixte | H75: Lait | I75: Viande | J75: Viande, mixte, lait
A76: 2020 | C76: U | D76: R | E76: U | F76: R | G76: O | H76: P | I76: U | J76: URO
A77: 1 | B77: 202001 | C77: 4.29 | D77: 3.72 | E77: 4.7 | F77: 3.9 | G77: 3.05 | H77: 2.4 | I77: 3.93
A78: 2 | B78: 202001 | C78: 4.29 | D78: 3.72 | E78: 4.7 | F78: 3.9 | G78: 3.05 | H78: 2.4 | I78: 3.93
A79: 3 | B79: 202001 | C79: 4.29 | D79: 3.74 | E79: 4.7 | F79: 3.9 | G79: 3.05 | H79: 2.4 | I79: 3.93
A80: 4 | B80: 202001 | C80: 4.29 | D80: 3.74 | E80: 4.7 | F80: 3.9 | G80: 3.05 | H80: 2.38 | I80: 3.91
A81: 5 | B81: 202001 | C81: 4.29 | D81: 3.76 | E81: 4.7 | F81: 3.92 | G81: 3.05 | H81: 2.38 | I81: 3.89
A82: 6 | B82: 202002 | C82: 4.29 | D82: 3.77 | E82: 4.7 | F82: 3.92 | G82: 3.05 | H82: 2.4 | I82: 3.87
A83: 7 | B83: 202002 | C83: 4.29 | D83: 3.78 | E83: 4.7 | F83: 3.92 | G83: 3.05 | H83: 2.43 | I83: 3.87
A84: 8 | B84: 202002 | C84: 4.29 | D84: 3.8 | E84: 4.7 | F84: 3.92 | G84: 3.08 | H84: 2.46 | I84: 3.83
A85: 9 | B85: 202002 | C85: 4.29 | D85: 3.81 | E85: 4.7 | F85: 3.92 | G85: 3.08 | H85: 2.49 | I85: 3.82
A86: 10 | B86: 202003 | C86: 4.3 | D86: 3.82 | E86: 4.7 | F86: 3.92 | G86: 3.08 | H86: 2.52 | I86: 3.81
A87: 11 | B87: 202003 | C87: 4.3 | D87: 3.82 | E87: 4.7 | F87: 3.92 | G87: 3.08 | H87: 2.52 | I87: 3.81
A88: 12 | B88: 202003
A89: 13 | B89: 202003
A90: 14 | B90: 202004
A91: 15 | B91: 202004
A92: 16 | B92: 202004
A93: 17 | B93: 202004 | C93: 4.26 | D93: 3.78 | E93: 4.7 | F93: 3.85 | G93: 2.87 | H93: 2.56 | I93: 3.75 | J93: 3
A94: 18 | B94: 202004 | C94: 4.26 | D94: 3.78 | E94: 4.7 | F94: 3.85 | G94: 2.87 | H94: 2.58 | I94: 3.75 | J94: 3.02
A95: 19 | B95: 202005
A96: 20 | B96: 202005
A97: 21 | B97: 202005
A98: 22 | B98: 202005
A99: 23 | B99: 202006 | C99: 4.38 | D99: 3.93 | E99: 4.75 | F99: 4.05 | G99: 3 | H99: 2.77 | I99: 3.75
A100: 24 | B100: 202006 | C100: 4.43 | D100: 4.01 | E100: 4.8 | F100: 4.1 | G100: 3 | H100: 2.77 | I100: 3.75 | J100: 3.02
A101: 25 | B101: 202006 | C101: 4.46 | D101: 4.04 | E101: 4.8 | F101: 4.1 | G101: 3 | H101: 2.77 | I101: 3.75
A102: 26 | B102: 202006 | C102: 4.46 | D102: 4.04 | E102: 4.8 | F102: 4.1 | G102: 3 | H102: 2.74 | I102: 3.75
A103: 27 | B103: 202007 | C103: 4.46 | D103: 4.04 | E103: 4.8 | F103: 4.1 | G103: 3 | H103: 2.74 | I103: 3.75
A104: 28 | B104: 202007 | C104: 4.46 | D104: 4.04 | E104: 4.8 | F104: 4.1 | G104: 3 | H104: 2.74 | I104: 3.75
A105: 29 | B105: 202007 | C105: 4.46 | D105: 4.04 | E105: 4.8 | F105: 4.1 | G105: 3 | H105: 2.74 | I105: 3.75
A106: 30 | B106: 202007 | C106: 4.46 | D106: 4.04 | E106: 4.8 | F106: 4.1 | G106: 3 | H106: 2.74 | I106: 3.75
A107: 31 | B107: 202007 | E107: 4.8 | F107: 4.1 | G107: 3 | H107: 2.74 | I107: 3.75 | J107: 3.05
A108: 32 | B108: 202008 | C108: 4.46 | D108: 4.04 | E108: 4.8 | F108: 4.1 | G108: 3 | H108: 2.74 | I108: 3.72
A109: 33 | B109: 202008 | C109: 4.46 | D109: 4.04 | E109: 4.8 | F109: 4.1 | G109: 3 | H109: 2.74 | I109: 3.7
A110: 34 | B110: 202008 | C110: 4.46 | D110: 4.04 | E110: 4.8 | F110: 4.1 | G110: 3 | H110: 2.74 | I110: 3.68 | J110: 3.05
A111: 35 | B111: 202008 | C111: 4.46 | D111: 4.04 | E111: 4.8 | F111: 4.1 | G111: 3 | H111: 2.74 | I111: 3.66
A112: 36 | B112: 202009 | C112: 4.46 | D112: 4.04 | E112: 4.8 | F112: 4.1 | G112: 3 | H112: 2.74 | I112: 3.66
A113: 37 | B113: 202009 | C113: 4.46 | D113: 4.04 | E113: 4.8 | F113: 4.1 | G113: 3 | H113: 2.74 | I113: 3.66
A114: 38 | B114: 202009 | C114: 4.46 | D114: 4.04 | E114: 4.8 | F114: 4.1 | G114: 3 | H114: 2.74 | I114: 3.66
A115: 39 | B115: 202009 | C115: 4.46 | D115: 4.04 | E115: 4.8 | F115: 4.1 | G115: 3 | H115: 2.74 | I115: 3.66 | J115: 3.05
A116: 40 | B116: 202009 | C116: 4.46 | D116: 4.04 | E116: 4.8 | F116: 4.1 | G116: 3 | H116: 2.74 | I116: 3.66
A117: 41 | B117: 202010 | C117: 4.46 | D117: 4.04 | E117: 4.8 | F117: 4.1 | G117: 3 | H117: 2.74 | I117: 3.66
A118: 42 | B118: 202010 | C118: 4.46 | D118: 4.04 | E118: 4.8 | F118: 4.1 | G118: 3 | H118: 2.74 | I118: 3.66
A119: 43 | B119: 202010 | C119: 4.46 | D119: 4.04 | E119: 4.8 | F119: 4.1 | G119: 3 | H119: 2.74 | I119: 3.66
A120: 44 | B120: 202010 | C120: 4.46 | D120: 4.04 | E120: 4.8 | F120: 4.1 | G120: 3 | H120: 2.74 | I120: 3.66
A121: 45 | B121: 202011 | C121: 4.46 | D121: 4.04 | E121: 4.8 | F121: 4.1 | G121: 3 | H121: 2.71 | I121: 3.64
A122: 46 | B122: 202011 | C122: 4.46 | D122: 4.04 | E122: 4.8 | F122: 4.1 | G122: 2.95 | H122: 2.67 | I122: 3.64 | J122: 3.05
A123: 47 | B123: 202011 | C123: 4.46 | D123: 4.04 | E123: 4.8 | F123: 4.1 | G123: 2.95 | H123: 2.65 | I123: 3.64 | J123: 3.05
A124: 48 | B124: 202011 | C124: 4.46 | D124: 4.04 | E124: 4.8 | F124: 4.1 | G124: 2.9 | H124: 2.62 | I124: 3.64
A125: 49 | B125: 202012 | C125: 4.46 | D125: 4.04 | E125: 4.8 | F125: 4.1 | G125: 2.9 | H125: 2.6 | I125: 3.64
A126: 50 | B126: 202012 | C126: 4.46 | D126: 4.04 | E126: 4.8 | F126: 4.1 | G126: 2.87 | H126: 2.6 | I126: 3.64
A127: 51 | B127: 202012 | C127: 4.46 | D127: 4.04 | E127: 4.8 | F127: 4.1 | G127: 2.87 | H127: 2.6 | I127: 3.64
A128: 52 | B128: 202012 | C128: 4.46 | D128: 4.03 | E128: 4.8 | F128: 4.1 | G128: 2.87 | H128: 2.6 | I128: 3.64
A129: 53 | B129: 202012 | C129: 4.46 | D129: 4.03 | E129: 4.8 | F129: 4.1 | G129: 2.87 | H129: 2.6 | I129: 3.64

Sheet GrosBovins2019
A1: COTATIONS DES GROS BOVINS
A2: Source : DRAAF Pays de la Loire - SRISE - FranceAgriMer | K2: mise à jour : 06/01/2020
A5: 1 – COTATION REGIONALE GRAND OUEST ENTREE ABATTOIR en €/Kg net
A7: 2 – MOYENNE NATIONALE DES BOVINS MAIGRES DESTINES A L'ENGRAISSEMENT CHAROLAIS MALE de 6-12 mois catégorie U (300kg) en €/kg vif
A9: 3 – OTATION DES GROS BOVINS VIFS SUR LE MARCHE DE CHOLET (en Euro/Kg Net) – à partir de la ligne 72
P11: 2 – COT. HEBDO
D12: 1 – COTATION REGIONALE ENTREE ABATTOIR GRAND OUEST FRANCEAGRIMER-HEBDOMADAIRE (€/Kg net) | P12: MAIGRE €/kg vif
P13: Ref. nationale
A14: Année | B14: Sem. | C14: JEUNES BOVINS | F14: BOEUFS | G14: VACHES | L14: GENISSES | P14: Charolais Mâles
C15: VIANDE | E15: MIXTE | F15: MIXTE | G15: VIANDE | I15: Blonde | J15: MIXTE | K15: LAIT | L15: VIANDES + 350kg
C16: U | D16: R | E16: O | F16: O | G16: U | H16: R | I16: U | J16: O | K16: P | L16: U | M16: R | P16: 6/12 mois ( U )
A17: 2019 | B17: 1 | C17: 3.99 | D17: 3.81 | E17: 3.5 | F17: 3.3 | G17: 4.34 | H17: 3.78 | I17: 4.95 | J17: 3.27 | K17: 2.64 | L17: 4.6 | M17: 3.86 | P17: 2.73
B18: 2 | C18: 3.99 | D18: 3.82 | E18: 3.49 | F18: 3.34 | G18: 4.43 | H18: 3.77 | I18: 5.03 | J18: 3.28 | K18: 2.66 | L18: 4.64 | M18: 3.89 | P18: 2.73
B19: 3 | C19: 4 | D19: 3.82 | E19: 3.49 | F19: 3.33 | G19: 4.38 | H19: 3.77 | I19: 5.02 | J19: 3.28 | K19: 2.67 | L19: 4.69 | M19: 3.86 | P19: 2.73
B20: 4 | C20: 4.01 | D20: 3.82 | E20: 3.48 | F20: 3.34 | G20: 4.43 | H20: 3.77 | I20: 5.11 | J20: 3.28 | K20: 2.68 | L20: 4.73 | M20: 3.86 | P20: 2.73
A21: J | B21: 5 | C21: 4.02 | D21: 3.85 | E21: 3.52 | F21: 3.36 | G21: 4.36 | H21: 3.77 | I21: 5.03 | J21: 3.31 | K21: 2.71 | L21: 4.64 | M21: 3.89 | P21: 2.73
B22: 6 | C22: 4.02 | D22: 3.84 | E22: 3.5 | F22: 3.36 | G22: 4.44 | H22: 3.79 | I22: 5.05 | J22: 3.33 | K22: 2.72 | L22: 4.66 | M22: 3.86 | P22: 2.73
B23: 7 | C23: 4.02 | D23: 3.84 | E23: 3.49 | F23: 3.36 | G23: 4.42 | H23: 3.79 | I23: 4.99 | J23: 3.34 | K23: 2.74 | L23: 4.71 | M23: 3.84 | P23: 2.78
B24: 8 | C24: 4.03 | D24: 3.86 | E24: 3.54 | F24: 3.4 | G24: 4.5 | H24: 3.8 | I24: 5.11 | J24: 3.37 | K24: 2.76 | L24: 4.74 | M24: 3.86 | P24: 2.78
A25: F | B25: 9 | C25: 4.04 | D25: 3.86 | E25: 3.54 | F25: 3.43 | G25: 4.52 | H25: 3.81 | I25: 5.04 | J25: 3.38 | K25: 2.78 | L25: 4.7 | M25: 3.86 | P25: 2.82
B26: 10 | C26: 4.05 | D26: 3.86 | E26: 3.55 | F26: 3.43 | G26: 4.46 | H26: 3.81 | I26: 5.02 | J26: 3.39 | K26: 2.79 | L26: 4.75 | M26: 3.9 | P26: 2.82
B27: 11 | C27: 4.03 | D27: 3.85 | E27: 3.52 | F27: 3.44 | G27: 4.62 | H27: 3.83 | I27: 5.14 | J27: 3.42 | K27: 2.8 | L27: 4.79 | M27: 3.87 | P27: 2.87
B28: 12 | C28: 4.02 | D28: 3.84 | E28: 3.54 | F28: 3.43 | G28: 4.52 | H28: 3.84 | I28: 4.99 | J28: 3.43 | K28: 2.81 | L28: 4.74 | M28: 3.88 | P28: 2.87
A29: M | B29: 13 | C29: 4.01 | D29: 3.81 | E29: 3.52 | F29: 3.45 | G29: 4.52 | H29: 3.85 | I29: 5.09 | J29: 3.41 | K29: 2.81 | L29: 4.81 | M29: 3.88 | P29: 2.87
B30: 14 | C30: 3.99 | D30: 3.81 | E30: 3.54 | F30: 3.43 | G30: 4.56 | H30: 3.84 | I30: 5.04 | J30: 3.4 | K30: 2.81 | L30: 4.87 | M30: 3.89 | P30: 2.87
B31: 15 | C31: 3.98 | D31: 3.8 | E31: 3.5 | F31: 3.43 | G31: 5.06 | H31: 3.82 | I31: 5.2 | J31: 3.41 | K31: 2.8 | L31: 4.94 | M31: 3.89 | P31: 2.87
B32: 16 | C32: 3.97 | D32: 3.78 | E32: 3.45 | F32: 3.43 | G32: 4.56 | H32: 3.83 | I32: 5.13 | J32: 3.42 | K32: 2.82 | L32: 4.78 | M32: 3.9 | P32: 2.87
A33: A | B33: 17 | C33: 3.97 | D33: 3.78 | E33: 3.43 | F33: 3.45 | G33: 4.57 | H33: 3.85 | I33: 5.12 | J33: 3.44 | K33: 2.84 | L33: 4.8 | M33: 3.94 | P33: 2.87
B34: 18 | C34: 3.96 | D34: 3.77 | E34: 3.44 | F34: 3.46 | G34: 4.51 | H34: 3.84 | I34: 5.18 | J34: 3.42 | K34: 2.86 | L34: 4.8 | M34: 3.87 | P34: 2.87
B35: 19 | C35: 3.96 | D35: 3.77 | E35: 3.42 | F35: 3.45 | G35: 4.63 | H35: 3.85 | I35: 5.05 | J35: 3.43 | K35: 2.88 | L35: 4.77 | M35: 3.9
B36: 20 | C36: 3.96 | D36: 3.79 | E36: 3.38 | F36: 3.47 | G36: 4.52 | H36: 3.87 | I36: 5.13 | J36: 3.45 | K36: 2.9 | L36: 4.72 | M36: 3.93 | P36: 2.92
B37: 21 | C37: 3.97 | D37: 3.79 | E37: 3.44 | F37: 3.47 | G37: 4.63 | H37: 3.86 | I37: 5.08 | J37: 3.46 | K37: 2.92 | L37: 4.82 | M37: 3.91
A38: M | B38: 22 | C38: 3.97 | D38: 3.79 | E38: 3.41 | F38: 3.49 | G38: 4.59 | H38: 3.86 | I38: 5.08 | J38: 3.46 | K38: 2.92 | L38: 4.78 | M38: 3.88
B39: 23 | C39: 3.97 | D39: 3.78 | E39: 3.38 | F39: 3.48 | G39: 4.45 | H39: 3.86 | I39: 5.08 | J39: 3.46 | K39: 2.92 | L39: 4.78 | M39: 3.89
B40: 24 | C40: 3.96 | D40: 3.77 | E40: 3.41 | F40: 3.44 | G40: 4.51 | H40: 3.93 | I40: 5.09 | J40: 3.45 | K40: 2.91 | L40: 4.75 | M40: 3.93
B41: 25 | C41: 3.95 | D41: 3.77 | E41: 3.36 | F41: 3.46 | G41: 4.4 | H41: 3.83 | I41: 5.03 | J41: 3.44 | K41: 2.89 | L41: 4.77 | M41: 3.84
A42: J | B42: 26 | C42: 3.94 | D42: 3.75 | E42: 3.37 | F42: 3.47 | G42: 4.54 | H42: 3.84 | I42: 5.07 | J42: 3.43 | K42: 2.89 | L42: 4.75 | M42: 3.89
B43: 27 | C43: 3.94 | D43: 3.76 | E43: 3.33 | F43: 3.44 | G43: 4.51 | H43: 3.84 | I43: 5.07 | J43: 3.44 | K43: 2.89 | L43: 4.72 | M43: 3.89
B44: 28 | C44: 3.93 | D44: 3.75 | E44: 3.34 | F44: 3.44 | G44: 4.6 | H44: 3.83 | I44: 5.09 | J44: 3.43 | K44: 2.87 | L44: 4.7 | M44: 3.9
B45: 29 | C45: 3.94 | D45: 3.73 | E45: 3.35 | F45: 3.45 | G45: 4.47 | H45: 3.82 | I45: 5.06 | J45: 3.44 | K45: 2.86 | L45: 4.81 | M45: 3.87
B46: 30 | C46: 3.95 | D46: 3.76 | E46: 3.35 | F46: 3.43 | G46: 4.42 | H46: 3.77 | I46: 5.08 | J46: 3.4 | K46: 2.84 | L46: 4.63 | M46: 3.84 | P46: 2.8
A47: J | B47: 31 | C47: 3.96 | D47: 3.78 | E47: 3.34 | F47: 3.41 | G47: 4.52 | H47: 3.79 | I47: 5.05 | J47: 3.37 | K47: 2.8 | L47: 4.66 | M47: 3.87 | P47: 2.8
B48: 32 | C48: 3.97 | D48: 3.78 | E48: 3.35 | F48: 3.41 | G48: 4.43 | H48: 3.76 | I48: 5.02 | J48: 3.35 | K48: 2.77 | L48: 4.69 | M48: 3.83 | P48: 2.8
B49: 33 | C49: 3.99 | D49: 3.78 | E49: 3.33 | F49: 3.4 | G49: 4.46 | H49: 3.75 | I49: 5.05 | J49: 3.37 | K49: 2.77 | L49: 4.77 | M49: 3.88 | P49: 2.8
B50: 34 | C50: 4 | D50: 3.82 | E50: 3.36 | F50: 3.4 | G50: 4.45 | H50: 3.76 | I50: 5.07 | J50: 3.39 | K50: 2.79 | L50: 4.76 | M50: 3.83 | P50: 2.8
A51: A | B51: 35 | C51: 4.01 | D51: 3.82 | E51: 3.35 | F51: 3.43 | G51: 4.52 | H51: 3.8 | I51: 5.33 | J51: 3.37 | K51: 2.81 | L51: 4.78 | M51: 3.87 | P51: 2.8
B52: 36 | C52: 4.02 | D52: 3.82 | E52: 3.41 | F52: 3.41 | G52: 4.6 | H52: 3.81 | I52: 5.11 | J52: 3.37 | K52: 2.82 | L52: 4.8 | M52: 3.86 | P52: 2.8
B53: 37 | C53: 4.02 | D53: 3.84 | E53: 3.41 | F53: 3.4 | G53: 4.56 | H53: 3.78 | I53: 5.1 | J53: 3.35 | K53: 2.82 | L53: 4.8 | M53: 3.84 | P53: 2.77
B54: 38 | C54: 4.01 | D54: 3.82 | E54: 3.4 | F54: 3.42 | G54: 4.67 | H54: 3.78 | I54: 5.09 | J54: 3.34 | K54: 2.79 | L54: 4.77 | M54: 3.83 | P54: 2.77
A55: S | B55: 39 | C55: 3.99 | D55: 3.8 | E55: 3.36 | F55: 3.35 | G55: 4.52 | H55: 3.76 | I55: 5.08 | J55: 3.31 | K55: 2.75 | L55: 4.72 | M55: 3.81 | P55: 2.77
B56: 40 | C56: 3.98 | D56: 3.8 | E56: 3.4 | F56: 3.34 | G56: 4.63 | H56: 3.75 | I56: 5.16 | J56: 3.28 | K56: 2.71 | L56: 4.75 | M56: 3.83 | P56: 2.76
B57: 41 | C57: 3.97 | D57: 3.79 | E57: 3.36 | F57: 3.3 | G57: 4.51 | H57: 3.74 | I57: 5.05 | J57: 3.25 | K57: 2.67 | L57: 4.64 | M57: 3.86 | P57: 2.74
B58: 42 | C58: 3.97 | D58: 3.77 | E58: 3.38 | F58: 3.28 | G58: 4.6 | H58: 3.75 | I58: 5.13 | J58: 3.23 | K58: 2.62 | L58: 4.73 | M58: 3.81 | P58: 2.74
B59: 43 | C59: 3.97 | D59: 3.78 | E59: 3.35 | F59: 3.26 | G59: 4.43 | H59: 3.73 | I59: 5.01 | J59: 3.2 | K59: 2.58 | L59: 4.79 | M59: 3.83 | P59: 2.74
A60: O | B60: 44 | C60: 3.98 | D60: 3.81 | E60: 3.39 | F60: 3.24 | G60: 4.66 | H60: 3.73 | I60: 5.09 | J60: 3.18 | K60: 2.55 | L60: 4.73 | M60: 3.83 | P60: 2.72
B61: 45 | C61: 4 | D61: 3.81 | E61: 3.42 | F61: 3.23 | G61: 4.56 | H61: 3.7 | I61: 5.02 | J61: 3.17 | K61: 2.54 | L61: 4.72 | M61: 3.85 | P61: 2.72
B62: 46 | C62: 4.01 | D62: 3.84 | E62: 3.4 | F62: 3.22 | G62: 4.61 | H62: 3.73 | I62: 5.1 | J62: 3.15 | K62: 2.53 | L62: 4.69 | M62: 3.78 | P62: 2.72
B63: 47 | C63: 4.03 | D63: 3.85 | E63: 3.42 | F63: 3.22 | G63: 4.44 | H63: 3.72 | I63: 5.07 | J63: 3.14 | K63: 2.52 | L63: 4.69 | M63: 3.81 | P63: 2.69
A64: N | B64: 48 | C64: 4.05 | D64: 3.87 | E64: 3.44 | F64: 3.18 | G64: 4.44 | H64: 3.71 | I64: 5.02 | J64: 3.12 | K64: 2.52 | L64: 4.73 | M64: 3.8 | P64: 2.69
B65: 49 | C65: 4.07 | D65: 3.9 | E65: 3.43 | F65: 3.19 | G65: 4.54 | H65: 3.7 | I65: 5.13 | J65: 3.12 | K65: 2.52 | L65: 4.67 | M65: 3.84 | P65: 2.69
B66: 50 | C66: 4.08 | D66: 3.9 | E66: 3.45 | F66: 3.2 | G66: 4.79 | H66: 3.71 | I66: 5.19 | J66: 3.12 | K66: 2.52 | L66: 4.84 | M66: 3.81 | P66: 2.69
B67: 51 | C67: 4.08 | D67: 3.9 | E67: 3.46 | F67: 3.21 | G67: 4.43 | H67: 3.71 | I67: 5.12 | J67: 3.13 | K67: 2.53 | L67: 4.75 | M67: 3.82 | P67: 2.69
A68: D | B68: 52 | C68: 4.07 | D68: 3.89 | E68: 3.45 | F68: 3.2 | G68: 4.59 | H68: 3.71 | I68: 5.06 | J68: 3.14 | K68: 2.54 | L68: 4.74 | M68: 3.83 | P68: 2.69
A72: 3 – COTATION DES GROS BOVINS VIFS SUR LE MARCHE DE CHOLET (en Euro/Kg Net)
C74: GENISSES | E74: VACHES | I74: JEUNES BOVINS | J74: TAUREAUX
A75: semaines | B75: année+mois | C75: Viande, mixte, lait | D75: Viande, mixte, lait | E75: Blonde | F75: Blonde | G75: Mixte | H75: Lait | I75: Viande | J75: Viande, mixte, lait
A76: 2019 | C76: U | D76: R | E76: U | F76: R | G76: O | H76: P | I76: U | J76: URO
A77: 1 | B77: 201901 | C77: 4.31 | D77: 3.72 | E77: 4.5 | F77: 3.78 | G77: 3 | H77: 2.41 | I77: 3.8 | J77: 2.97
A78: 2 | B78: 201901 | C78: 4.31 | D78: 3.72 | E78: 4.53 | F78: 3.8 | G78: 3 | H78: 2.44 | I78: 3.8 | J78: 3
A79: 3 | B79: 201901 | C79: 4.33 | D79: 3.74 | E79: 4.55 | F79: 3.8 | G79: 3 | H79: 2.44 | I79: 3.8 | J79: 3
A80: 4 | B80: 201901 | C80: 4.34 | D80: 3.78 | E80: 4.58 | F80: 3.85 | G80: 3.05 | H80: 2.47 | I80: 3.83 | J80: 3.05
A81: 5 | B81: 201901 | C81: 4.34 | D81: 3.78 | E81: 4.58 | F81: 3.85 | G81: 3.05 | H81: 2.47 | I81: 3.83 | J81: 3.05
A82: 6 | B82: 201902 | C82: 4.34 | D82: 3.8 | E82: 4.58 | F82: 3.9 | G82: 3.08 | H82: 2.5 | I82: 3.85 | J82: 3.05
A83: 7 | B83: 201902 | C83: 4.34 | D83: 3.8 | E83: 4.58 | F83: 3.9 | G83: 3.08 | H83: 2.5 | I83: 3.85 | J83: 3.05
A84: 8 | B84: 201902 | C84: 4.35 | D84: 3.82 | E84: 4.6 | F84: 3.9 | G84: 3.1 | H84: 2.55 | I84: 3.85 | J84: 3.05
A85: 9 | B85: 201902 | C85: 4.35 | D85: 3.82 | E85: 4.6 | F85: 3.9 | G85: 3.1 | H85: 2.57 | I85: 3.85 | J85: 3.05
A86: 10 | B86: 201903 | C86: 4.35 | D86: 3.83 | E86: 4.63 | F86: 3.9 | G86: 3.1 | H86: 2.59 | I86: 3.85 | J86: 3.05
A87: 11 | B87: 201903 | C87: 4.35 | D87: 3.85 | E87: 4.63 | F87: 3.9 | G87: 3.13 | H87: 2.62 | I87: 3.85 | J87: 3.05
A88: 12 | B88: 201903 | C88: 4.35 | D88: 3.85 | E88: 4.63 | F88: 3.9 | G88: 3.13 | H88: 2.62 | I88: 3.83 | J88: 3.05
A89: 13 | B89: 201903 | C89: 4.35 | D89: 3.85 | E89: 4.63 | F89: 3.9 | G89: 3.13 | H89: 2.62 | I89: 3.81 | J89: 3.05
A90: 14 | B90: 201904 | C90: 4.35 | D90: 3.85 | E90: 4.63 | F90: 3.9 | G90: 3.13 | H90: 2.62 | I90: 3.8 | J90: 3.05
A91: 15 | B91: 201904 | C91: 4.35 | D91: 3.85 | E91: 4.63 | F91: 3.92 | G91: 3.13 | H91: 2.65 | I91: 3.8 | J91: 3.05
A92: 16 | B92: 201904 | C92: 4.36 | D92: 3.86 | E92: 4.68 | F92: 3.95 | G92: 3.15 | H92: 2.68 | I92: 3.8 | J92: 3.05
A93: 17 | B93: 201904 | C93: 4.37 | D93: 3.86 | E93: 4.68 | F93: 3.95 | G93: 3.15 | H93: 2.7 | I93: 3.8 | J93: 3.05
A94: 18 | B94: 201905 | C94: 4.37 | D94: 3.86 | E94: 4.68 | F94: 3.95 | G94: 3.15 | H94: 2.72 | I94: 3.8 | J94: 3.05
A95: 19 | B95: 201905 | C95: 4.37 | D95: 3.86 | E95: 4.68 | F95: 3.95 | G95: 3.18 | H95: 2.75 | I95: 3.8 | J95: 3.05
A96: 20 | B96: 201905 | C96: 4.39 | D96: 3.86 | E96: 4.7 | F96: 3.95 | G96: 3.2 | H96: 2.77 | I96: 3.8 | J96: 3.05
A97: 21 | B97: 201905 | C97: 4.39 | D97: 3.86 | E97: 4.7 | F97: 3.95 | G97: 3.2 | H97: 2.77 | I97: 3.8 | J97: 3.05
A98: 22 | B98: 201905 | C98: 4.39 | D98: 3.86 | E98: 4.73 | F98: 3.95 | G98: 3.2 | H98: 2.8 | I98: 3.8 | J98: 3.05
A99: 23 | B99: 201906 | C99: 4.39 | D99: 3.86 | E99: 4.73 | F99: 3.95 | G99: 3.2 | H99: 2.8 | I99: 3.8 | J99: 3.05
A100: 24 | B100: 201906 | C100: 4.39 | D100: 3.86 | E100: 4.73 | F100: 3.95 | G100: 3.2 | H100: 2.77 | I100: 3.8 | J100: 3.05
A101: 25 | B101: 201906 | C101: 4.39 | D101: 3.86 | E101: 4.73 | F101: 3.95 | G101: 3.2 | H101: 2.77 | I101: 3.8 | J101: 3.05
A102: 26 | B102: 201906 | C102: 4.39 | D102: 3.86 | E102: 4.73 | F102: 3.95 | G102: 3.2 | H102: 2.77 | I102: 3.8 | J102: 3.05
A103: 27 | B103: 201907 | C103: 4.39 | D103: 3.84 | E103: 4.73 | F103: 3.95 | G103: 3.2 | H103: 2.75 | I103: 3.8 | J103: 3.05
A104: 28 | B104: 201907 | C104: 4.39 | D104: 3.84 | E104: 4.73 | F104: 3.95 | G104: 3.2 | H104: 2.75 | I104: 3.8 | J104: 3.05
A105: 29 | B105: 201907 | C105: 4.39 | D105: 3.83 | E105: 4.73 | F105: 3.95 | G105: 3.2 | H105: 2.72 | I105: 3.8 | J105: 3.05
A106: 30 | B106: 201907 | C106: 4.38 | D106: 3.81 | E106: 4.73 | F106: 3.95 | G106: 3.18 | H106: 2.7 | I106: 3.82 | J106: 3.05
A107: 31 | B107: 201908 | C107: 4.38 | D107: 3.81 | E107: 4.73 | F107: 3.95 | G107: 3.18 | H107: 2.68 | I107: 3.85 | J107: 3.05
A108: 32 | B108: 201908 | C108: 4.38 | D108: 3.81 | E108: 4.73 | F108: 3.95 | G108: 3.18 | H108: 2.68 | I108: 3.87 | J108: 3.05
A109: 33 | B109: 201908 | C109: 4.38 | D109: 3.82 | E109: 4.75 | F109: 3.96 | G109: 3.2 | H109: 2.7 | I109: 3.89 | J109: 3.05
A110: 34 | B110: 201908 | C110: 4.36 | D110: 3.82 | E110: 4.75 | F110: 3.96 | G110: 3.2 | H110: 2.7 | I110: 3.91 | J110: 3.05
A111: 35 | B111: 201908 | E111: 4.75 | F111: 3.96 | G111: 3.2 | H111: 2.7 | I111: 3.91 | J111: 3.05
A112: 36 | B112: 201909 | C112: 4.36 | D112: 3.81 | E112: 4.75 | F112: 3.96 | G112: 3.2 | H112: 2.7 | I112: 3.9 | J112: 3.05
A113: 37 | B113: 201909 | C113: 4.35 | D113: 3.78 | E113: 4.75 | F113: 3.95 | G113: 3.2 | H113: 2.67 | I113: 3.88 | J113: 3.05
A114: 38 | B114: 201909 | C114: 4.33 | D114: 3.74 | E114: 4.75 | F114: 3.95 | G114: 3.18 | H114: 2.64 | I114: 3.86 | J114: 3.05
A115: 39 | B115: 201909 | C115: 4.33 | D115: 3.74 | E115: 4.75 | F115: 3.95 | G115: 3.16 | H115: 2.61 | I115: 3.84 | J115: 3.05
A116: 40 | B116: 201910 | C116: 4.32 | D116: 3.74 | E116: 4.75 | F116: 3.95 | G116: 3.13 | H116: 2.56 | I116: 3.82 | J116: 3
A117: 41 | B117: 201910 | C117: 4.29 | D117: 3.72 | E117: 4.72 | F117: 3.92 | G117: 3.1 | H117: 2.65 | I117: 3.82 | J117: 3
A118: 42 | B118: 201910 | C118: 4.29 | D118: 3.72 | E118: 4.72 | F118: 3.92 | G118: 3.1 | H118: 2.5 | I118: 3.82 | J118: 3
A119: 43 | B119: 201910 | C119: 4.29 | D119: 3.72 | E119: 4.72 | F119: 3.92 | G119: 3.1 | H119: 2.45 | I119: 3.82
A120: 44 | B120: 201910 | C120: 4.29 | D120: 3.72 | E120: 4.72 | F120: 3.92 | G120: 3.08 | H120: 2.45 | I120: 3.85
A121: 45 | B121: 201911 | C121: 4.29 | D121: 3.72 | E121: 4.7 | F121: 3.9 | G121: 3.05 | H121: 2.43 | I121: 3.87
A122: 46 | B122: 201911 | C122: 4.29 | D122: 3.72 | E122: 4.7 | F122: 3.9 | G122: 3.05 | H122: 2.43 | I122: 3.87
A123: 47 | B123: 201911 | C123: 4.29 | D123: 3.72 | E123: 4.7 | F123: 3.9 | G123: 3.05 | H123: 2.4 | I123: 3.9
A124: 48 | B124: 201911 | C124: 4.29 | D124: 3.72 | E124: 4.7 | F124: 3.9 | G124: 3.05 | H124: 2.4 | I124: 3.93
A125: 49 | B125: 201912 | C125: 4.29 | D125: 3.72 | E125: 4.7 | F125: 3.9 | G125: 3.05 | H125: 2.4 | I125: 3.93
A126: 50 | B126: 201912 | C126: 4.29 | D126: 3.72 | E126: 4.7 | F126: 3.9 | G126: 3.05 | H126: 2.4 | I126: 3.93
A127: 51 | B127: 201912 | C127: 4.29 | D127: 3.72 | E127: 4.7 | F127: 3.9 | G127: 3.05 | H127: 2.4 | I127: 3.93
A128: 52 | B128: 201912

Sheet GrosBovins 2018 (hidden)
A1: COTATIONS DES GROS BOVINS
A2: Source : DRAAF Pays de la Loire - SRISE - FranceAgriMer | K2: mise à jour : 07/01/2019
A5: 1 – COTATION REGIONALE GRAND OUEST ENTREE ABATTOIR en €/Kg net
A7: 2 – MOYENNE NATIONALE DES BOVINS MAIGRES DESTINES A L'ENGRAISSEMENT CHAROLAIS MALE de 6-12 mois catégorie U (300kg) en €/kg vif
A9: 3 – COTATION DES GROS BOVINS VIFS SUR LE MARCHE DE CHOLET (en Euro/Kg Net) – à partir de la ligne 72
P11: 2- COT. HEBDO
A12: 1 – COTATION REGIONALE ENTREE ABATTOIR GRAND OUEST FRANCEAGRIMER-HEBDOMADAIRE (€/Kg net) | P12: MAIGRE €/kg vif
P13: Ref. nationale
A14: Année | B14: Sem. | C14: JEUNES BOVINS | F14: BOEUFS | G14: VACHES | L14: GENISSES | P14: Charolais Mâles
C15: VIANDE | E15: MIXTE | F15: MIXTE | G15: VIANDE | I15: Blonde | J15: MIXTE | K15: LAIT | L15: VIANDES + 350kg
C16: U | D16: R | E16: O | F16: O | G16: U | H16: R | I16: U | J16: O | K16: P | L16: U | M16: R | P16: 6/12 mois ( U )
A17: 2018 | B17: 1 | C17: 4.2 | D17: 3.98 | E17: 3.62 | F17: 3.31 | G17: 4.4 | H17: 3.71 | I17: 5.05 | J17: 3.26 | K17: 2.67 | L17: 4.86 | M17: 3.78 | P17: 2.76
B18: 2 | C18: 4.18 | D18: 3.96 | E18: 3.64 | F18: 3.3 | G18: 4.35 | H18: 3.68 | I18: 5.02 | J18: 3.26 | K18: 2.7 | L18: 4.77 | M18: 3.8 | P18: 2.78
B19: 3 | C19: 4.16 | D19: 3.95 | E19: 3.63 | F19: 3.32 | G19: 4.44 | H19: 3.66 | I19: 5.09 | J19: 3.26 | K19: 2.71 | L19: 4.65 | M19: 3.8 | P19: 2.8
B20: 4 | C20: 4.13 | D20: 3.93 | E20: 3.63 | F20: 3.3 | G20: 4.39 | H20: 3.68 | I20: 5.04 | J20: 3.24 | K20: 2.7 | L20: 4.73 | M20: 3.81 | P20: 2.81
A21: J | B21: 5 | C21: 4.11 | D21: 3.91 | E21: 3.66 | F21: 3.29 | G21: 4.41 | H21: 3.67 | I21: 4.99 | J21: 3.23 | K21: 2.7 | L21: 4.79 | M21: 3.84 | P21: 2.84
B22: 6 | C22: 4.09 | D22: 3.87 | E22: 3.65 | F22: 3.27 | G22: 4.38 | H22: 3.65 | I22: 4.96 | J22: 3.23 | K22: 2.71 | L22: 4.69 | M22: 3.77 | P22: 2.85
B23: 7 | C23: 4.07 | D23: 3.86 | E23: 3.64 | F23: 3.27 | G23: 4.39 | H23: 3.63 | I23: 5.04 | J23: 3.25 | K23: 2.74 | L23: 4.66 | M23: 3.8 | P23: 2.85
B24: 8 | C24: 4.05 | D24: 3.85 | E24: 3.64 | F24: 3.26 | G24: 4.34 | H24: 3.64 | I24: 4.99 | J24: 3.28 | K24: 2.76 | L24: 4.64 | M24: 3.78 | P24: 2.85
A25: F | B25: 9 | C25: 4.04 | D25: 3.84 | E25: 3.65 | F25: 3.31 | G25: 4.41 | H25: 3.63 | I25: 5.05 | J25: 3.29 | K25: 2.79 | L25: 4.75 | M25: 3.74 | P25: 2.85
B26: 10 | C26: 4.06 | D26: 3.88 | E26: 3.67 | F26: 3.32 | G26: 4.4 | H26: 3.68 | I26: 5.02 | J26: 3.32 | K26: 2.84 | L26: 4.66 | M26: 3.78 | P26: 2.86
B27: 11 | C27: 4.07 | D27: 3.89 | E27: 3.68 | F27: 3.34 | G27: 4.49 | H27: 3.68 | I27: 5.02 | J27: 3.34 | K27: 2.87 | L27: 4.8 | M27: 3.82 | P27: 2.9
B28: 12 | C28: 4.08 | D28: 3.89 | E28: 3.68 | F28: 3.37 | G28: 4.84 | H28: 3.69 | I28: 5.11 | J28: 3.34 | K28: 2.88 | L28: 4.91 | M28: 3.8 | P28: 2.9
A29: M | B29: 13 | C29: 4.07 | D29: 3.87 | E29: 3.65 | F29: 3.36 | G29: 4.44 | H29: 3.7 | I29: 5.03 | J29: 3.34 | K29: 2.88 | L29: 4.7 | M29: 3.8 | P29: 2.9
B30: 14 | C30: 4.06 | D30: 3.85 | E30: 3.6 | F30: 3.35 | G30: 4.64 | H30: 3.71 | I30: 5.05 | J30: 3.31 | K30: 2.86 | L30: 4.81 | M30: 3.77 | P30: 2.92
B31: 15 | C31: 4.03 | D31: 3.81 | E31: 3.57 | F31: 3.33 | G31: 4.45 | H31: 3.7 | I31: 5.02 | J31: 3.29 | K31: 2.83 | L31: 4.68 | M31: 3.81 | P31: 2.91
B32: 16 | C32: 3.99 | D32: 3.79 | E32: 3.51 | F32: 3.32 | G32: 4.45 | H32: 3.7 | I32: 5.09 | J32: 3.29 | K32: 2.84 | L32: 4.76 | M32: 3.8 | P32: 2.92
A33: A | B33: 17 | C33: 3.96 | D33: 3.75 | E33: 3.48 | F33: 3.31 | G33: 4.46 | H33: 3.71 | I33: 5.04 | J33: 3.31 | K33: 2.87 | L33: 4.76 | M33: 3.82 | P33: 2.92
B34: 18 | C34: 3.93 | D34: 3.71 | E34: 3.47 | F34: 3.35 | G34: 4.41 | H34: 3.71 | I34: 5.04 | J34: 3.34 | K34: 2.9 | L34: 4.72 | M34: 3.81 | P34: 2.92
B35: 19 | C35: 3.91 | D35: 3.71 | E35: 3.47 | F35: 3.37 | G35: 4.44 | H35: 3.72 | I35: 5.14 | J35: 3.36 | K35: 2.94 | L35: 4.75 | M35: 3.81 | P35: 2.92
B36: 20 | C36: 3.9 | D36: 3.72 | E36: 3.47 | F36: 3.39 | G36: 4.4 | H36: 3.71 | I36: 5.08 | J36: 3.37 | K36: 2.96 | L36: 4.73 | M36: 3.82 | P36: 2.96
B37: 21 | C37: 3.9 | D37: 3.7 | E37: 3.46 | F37: 3.43 | G37: 4.46 | H37: 3.76 | I37: 5.04 | J37: 3.37 | K37: 2.96 | L37: 4.78 | M37: 3.85 | P37: 2.96
A38: M | B38: 22 | C38: 3.91 | D38: 3.71 | E38: 3.44 | F38: 3.43 | G38: 4.37 | H38: 3.75 | I38: 5.14 | J38: 3.38 | K38: 2.97 | L38: 4.82 | M38: 3.82 | P38: 2.97
B39: 23 | C39: 3.89 | D39: 3.71 | E39: 3.38 | F39: 3.42 | G39: 4.37 | H39: 3.73 | I39: 5.04 | J39: 3.38 | K39: 2.96 | L39: 4.74 | M39: 3.83 | P39: 2.97
B40: 24 | C40: 3.89 | D40: 3.69 | E40: 3.36 | F40: 3.42 | G40: 4.42 | H40: 3.73 | I40: 5.06 | J40: 3.37 | K40: 2.94 | L40: 4.7 | M40: 3.85 | P40: 2.97
B41: 25 | C41: 3.88 | D41: 3.68 | E41: 3.32 | F41: 3.43 | G41: 4.53 | H41: 3.73 | I41: 5.05 | J41: 3.38 | K41: 2.94 | L41: 4.74 | M41: 3.98 | P41: 2.97
A42: J | B42: 26 | C42: 3.9 | D42: 3.69 | E42: 3.35 | F42: 3.45 | G42: 4.54 | H42: 3.76 | I42: 5.09 | J42: 3.4 | K42: 2.96 | L42: 4.74 | M42: 3.85 | P42: 2.97
B43: 27 | C43: 3.89 | D43: 3.7 | E43: 3.37 | F43: 3.44 | G43: 4.46 | H43: 3.76 | I43: 5.09 | J43: 3.42 | K43: 2.99 | L43: 4.8 | M43: 3.83 | P43: 2.98
B44: 28 | C44: 3.9 | D44: 3.72 | E44: 3.38 | F44: 3.48 | G44: 4.58 | H44: 3.78 | I44: 5.08 | J44: 3.42 | K44: 3.01 | L44: 4.8 | M44: 3.83 | P44: 2.94
B45: 29 | C45: 3.92 | D45: 3.73 | E45: 3.41 | F45: 3.47 | G45: 4.53 | H45: 3.78 | I45: 5.04 | J45: 3.44 | K45: 3.04 | L45: 4.74 | M45: 3.87 | P45: 2.94
A46: J | B46: 30 | C46: 3.93 | D46: 3.75 | E46: 3.41 | F46: 3.49 | G46: 4.57 | H46: 3.8 | I46: 5.07 | J46: 3.43 | K46: 3.03 | L46: 4.76 | M46: 3.88 | P46: 2.94
B47: 31 | C47: 3.92 | D47: 3.76 | E47: 3.39 | F47: 3.47 | G47: 4.51 | H47: 3.77 | I47: 5.09 | J47: 3.42 | K47: 3 | L47: 4.84 | M47: 3.86 | P47: 2.94
B48: 32 | C48: 3.91 | D48: 3.73 | E48: 3.34 | F48: 3.44 | G48: 4.53 | H48: 3.8 | I48: 5.09 | J48: 3.41 | K48: 2.99 | L48: 4.69 | M48: 3.89 | P48: 2.94
B49: 33 | C49: 3.9 | D49: 3.71 | E49: 3.35 | F49: 3.44 | G49: 4.55 | H49: 3.77 | I49: 5.17 | J49: 3.42 | K49: 2.95 | L49: 4.68 | M49: 3.88 | P49: 2.99
B50: 34 | C50: 3.9 | D50: 3.71 | E50: 3.34 | F50: 3.45 | G50: 4.54 | H50: 3.81 | I50: 5.07 | J50: 3.43 | K50: 2.96 | L50: 4.86 | M50: 3.92 | P50: 2.92
A51: A | B51: 35 | C51: 3.9 | D51: 3.71 | E51: 3.4 | F51: 3.46 | G51: 4.56 | H51: 3.81 | I51: 4.98 | J51: 3.41 | K51: 2.98 | L51: 4.72 | M51: 3.88 | P51: 2.92
B52: 36 | C52: 3.91 | D52: 3.71 | E52: 3.33 | F52: 3.47 | G52: 4.62 | H52: 3.82 | I52: 5.12 | J52: 3.42 | K52: 2.98 | L52: 4.8 | M52: 3.89 | P52: 2.89
B53: 37 | C53: 3.9 | D53: 3.72 | E53: 3.35 | F53: 3.5 | G53: 4.53 | H53: 3.82 | I53: 5.05 | J53: 3.42 | K53: 2.98 | L53: 4.79 | M53: 3.89 | P53: 2.85
B54: 38 | C54: 3.91 | D54: 3.71 | E54: 3.34 | F54: 3.5 | G54: 4.62 | H54: 3.84 | I54: 5.13 | J54: 3.43 | K54: 2.98 | L54: 4.7 | M54: 3.87 | P54: 2.85
A55: S | B55: 39 | C55: 3.91 | D55: 3.73 | E55: 3.34 | F55: 3.49 | G55: 4.6 | H55: 3.83 | I55: 5 | J55: 3.42 | K55: 2.98 | L55: 4.75 | M55: 3.89 | P55: 2.83
B56: 40 | C56: 3.9 | D56: 3.7 | E56: 3.35 | F56: 3.46 | G56: 4.72 | H56: 3.82 | I56: 5.09 | J56: 3.41 | K56: 2.95 | L56: 4.85 | M56: 3.87 | P56: 2.83
B57: 41 | C57: 3.89 | D57: 3.72 | E57: 3.36 | F57: 3.44 | G57: 4.58 | H57: 3.8 | I57: 5.12 | J57: 3.38 | K57: 2.9 | L57: 4.79 | M57: 3.91 | P57: 2.8
B58: 42 | C58: 3.89 | D58: 3.7 | E58: 3.35 | F58: 3.42 | G58: 4.47 | H58: 3.78 | I58: 5.07 | J58: 3.34 | K58: 2.85 | L58: 4.81 | M58: 3.86 | P58: 2.8
B59: 43 | C59: 3.87 | D59: 3.68 | E59: 3.37 | F59: 3.37 | G59: 4.61 | H59: 3.76 | I59: 5.13 | J59: 3.31 | K59: 2.78 | L59: 4.78 | M59: 3.87 | P59: 2.77
A60: O | B60: 44 | C60: 3.88 | D60: 3.68 | E60: 3.38 | F60: 3.33 | G60: 4.49 | H60: 3.75 | I60: 5.04 | J60: 3.27 | K60: 2.71 | L60: 4.75 | M60: 3.84 | P60: 2.75
B61: 45 | C61: 3.87 | D61: 3.69 | E61: 3.38 | F61: 3.29 | G61: 4.5 | H61: 3.73 | I61: 5.06 | J61: 3.25 | K61: 2.65 | L61: 4.7 | M61: 3.84 | P61: 2.73
B62: 46 | C62: 3.9 | D62: 3.71 | E62: 3.4 | F62: 3.27 | G62: 4.52 | H62: 3.74 | I62: 4.99 | J62: 3.23 | K62: 2.61 | L62: 4.77 | M62: 3.83 | P62: 2.73
B63: 47 | C63: 3.92 | D63: 3.72 | E63: 3.39 | F63: 3.26 | G63: 4.5 | H63: 3.73 | I63: 5.14 | J63: 3.19 | K63: 2.6 | L63: 4.75 | M63: 3.8 | P63: 2.73
A64: N | B64: 48 | C64: 3.94 | D64: 3.76 | E64: 3.43 | F64: 3.26 | G64: 4.42 | H64: 3.75 | I64: 5.1 | J64: 3.2 | K64: 2.6 | L64: 4.74 | M64: 3.81 | P64: 2.73
B65: 49 | C65: 3.97 | D65: 3.78 | E65: 3.43 | F65: 3.26 | G65: 4.69 | H65: 3.75 | I65: 5.19 | J65: 3.21 | K65: 2.61 | L65: 4.81 | M65: 3.82 | P65: 2.73
B66: 50 | C66: 3.98 | D66: 3.78 | E66: 3.48 | F66: 3.26 | G66: 4.81 | H66: 3.75 | I66: 5.12 | J66: 3.23 | K66: 2.6 | L66: 4.92 | M66: 3.84 | P66: 2.73
B67: 51 | C67: 3.98 | D67: 3.79 | E67: 3.45 | F67: 3.29 | G67: 4.41 | H67: 3.74 | I67: 5.08 | J67: 3.24 | K67: 2.61 | L67: 4.75 | M67: 3.87 | P67: 2.73
A68: D | B68: 52 | C68: 3.98 | D68: 3.81 | E68: 3.45 | F68: 3.3 | G68: 4.46 | H68: 3.76 | I68: 5.07 | J68: 3.25 | K68: 2.62 | L68: 4.73 | M68: 3.85 | P68: 2.73
A72: 3- COTATION DES GROS BOVINS VIFS SUR LE MARCHE DE CHOLET (en Euro/Kg Net)
C74: GENISSES | E74: VACHES | I74: JEUNES BOVINS | J74: TAUREAUX
A75: semaines | B75: année+mois | C75: Viande, mixte, lait | D75: Viande, mixte, lait | E75: Blonde | F75: Blonde | G75: Mixte | H75: Lait | I75: Viande | J75: Viande, mixte, lait
A76: 2018 | C76: U | D76: R | E76: U | F76: R | G76: O | H76: P | I76: U | J76: URO
A77: 1 | B77: 201801 | C77: 4.27 | D77: 3.62 | E77: 4.42 | F77: 3.65 | G77: 3.07 | H77: 2.41 | I77: 4.03
A78: 2 | B78: 201801 | C78: 4.27 | D78: 3.6 | E78: 4.42 | F78: 3.65 | G78: 3.07 | H78: 2.41 | I78: 4.01
A79: 3 | B79: 201801 | C79: 4.27 | D79: 3.6 | E79: 4.42 | F79: 3.65 | G79: 3.07 | H79: 2.41 | I79: 4
A80: 4 | B80: 201801 | C80: 4.27 | D80: 3.6 | E80: 4.42 | F80: 3.65 | G80: 3.07 | H80: 2.41 | I80: 4
A81: 5 | B81: 201801 | C81: 4.27 | D81: 3.59 | E81: 4.42 | F81: 3.65 | G81: 3.07 | H81: 2.41 | I81: 3.98
A82: 6 | B82: 201802 | C82: 4.27 | D82: 3.59 | E82: 4.42 | F82: 3.59 | G82: 3.07 | H82: 2.41 | I82: 3.96
A83: 7 | B83: 201802 | C83: 4.27 | D83: 3.6 | E83: 4.42 | F83: 3.65 | G83: 3.1 | H83: 2.44 | I83: 3.94
A84: 8 | B84: 201802 | C84: 4.27 | D84: 3.63 | E84: 4.42 | F84: 3.67 | G84: 3.13 | H84: 2.47 | I84: 3.94
A85: 9 | B85: 201802 | C85: 4.29 | D85: 3.66 | E85: 4.42 | F85: 3.7 | G85: 3.15 | H85: 2.53 | I85: 3.94
A86: 10 | B86: 201803 | C86: 4.3 | D86: 3.7 | E86: 4.42 | F86: 3.7 | G86: 3.2 | H86: 2.58 | I86: 3.95
A87: 11 | B87: 201803 | C87: 4.3 | D87: 3.7 | E87: 4.42 | F87: 3.74 | G87: 3.22 | H87: 2.58 | I87: 3.95
A88: 12 | B88: 201803 | C88: 4.3 | D88: 3.7 | E88: 4.42 | F88: 3.74 | G88: 3.22 | H88: 2.6 | I88: 3.95
A89: 13 | B89: 201803 | C89: 4.3 | D89: 3.7 | E89: 4.42 | F89: 3.74 | G89: 3.22 | H89: 2.6 | I89: 3.95
A90: 14 | B90: 201804 | C90: 4.3 | D90: 3.68 | E90: 4.4 | F90: 3.74 | G90: 3.2 | H90: 2.58 | I90: 3.93
A91: 15 | B91: 201804 | C91: 4.3 | D91: 3.68 | E91: 4.4 | F91: 3.74 | G91: 3.2 | H91: 2.58 | I91: 3.9
A92: 16 | B92: 201804 | C92: 4.3 | D92: 3.68 | E92: 4.4 | F92: 3.74 | G92: 3.2 | H92: 2.6 | I92: 3.87
A93: 17 | B93: 201804 | C93: 4.3 | D93: 3.68 | E93: 4.4 | F93: 3.74 | G93: 3.2 | H93: 2.6 | I93: 3.84
A94: 18 | B94: 201805 | C94: 4.3 | D94: 3.71 | E94: 4.4 | F94: 3.74 | G94: 3.25 | H94: 2.65 | I94: 3.82
A95: 19 | B95: 201805 | C95: 4.33 | D95: 3.73 | E95: 4.43 | F95: 3.76 | G95: 3.28 | H95: 2.68 | I95: 3.82
A96: 20 | B96: 201805 | C96: 4.33 | D96: 3.73 | E96: 4.43 | F96: 3.76 | G96: 3.3 | H96: 2.7 | I96: 3.82
A97: 21 | B97: 201805 | C97: 4.33 | D97: 3.73 | E97: 4.43 | F97: 3.76 | G97: 3.3 | H97: 2.7 | I97: 3.82
A98: 22 | B98: 201805 | C98: 4.33 | D98: 3.73 | E98: 4.43 | F98: 3.76 | G98: 3.3 | H98: 2.7 | I98: 3.82
A99: 23 | B99: 201806 | C99: 4.33 | D99: 3.72 | E99: 4.43 | F99: 3.76 | G99: 3.28 | H99: 2.68 | I99: 3.8
A100: 24 | B100: 201806 | C100: 4.33 | D100: 3.72 | E100: 4.43 | F100: 3.76 | G100: 3.28 | H100: 2.68 | I100: 3.78
A101: 25 | B101: 201806 | C101: 4.33 | D101: 3.72 | E101: 4.43 | F101: 3.76 | G101: 3.28 | H101: 2.68 | I101: 3.78
A102: 26 | B102: 201806 | C102: 4.33 | D102: 3.74 | E102: 4.43 | F102: 3.78 | G102: 3.3 | H102: 2.72 | I102: 3.78
A103: 27 | B103: 201807 | C103: 4.33 | D103: 3.74 | E103: 4.43 | F103: 3.78 | G103: 3.33 | H103: 2.76 | I103: 3.78
A104: 28 | B104: 201807 | C104: 4.33 | D104: 3.75 | E104: 4.43 | F104: 3.78 | G104: 3.35 | H104: 2.79 | I104: 3.8
A105: 29 | B105: 201807 | C105: 4.33 | D105: 3.75 | E105: 4.43 | F105: 3.78 | G105: 3.35 | H105: 2.82 | I105: 3.8
A106: 30 | B106: 201807 | C106: 4.33 | D106: 3.75 | E106: 4.43 | F106: 3.78 | G106: 3.35 | H106: 2.82 | I106: 3.8
A107: 31 | B107: 201808 | C107: 4.33 | D107: 3.75 | E107: 4.43 | F107: 3.78 | G107: 3.32 | H107: 2.8 | I107: 3.8
A108: 32 | B108: 201808 | C108: 4.33 | D108: 3.75 | E108: 4.43 | F108: 3.78 | G108: 3.32 | H108: 2.77 | I108: 3.8
A109: 33 | B109: 201808 | C109: 4.31 | D109: 3.75 | E109: 4.43 | F109: 3.78 | G109: 3.3 | H109: 2.75 | I109: 3.8
A110: 34 | B110: 201808 | C110: 4.32 | D110: 3.76 | E110: 4.45 | F110: 3.8 | G110: 3.3 | H110: 2.75 | I110: 3.8
A111: 35 | B111: 201808 | C111: 4.32 | D111: 3.76 | E111: 4.45 | F111: 3.8 | G111: 3.3 | H111: 2.75 | I111: 3.8
A112: 36 | B112: 201809 | C112: 4.32 | D112: 3.76 | E112: 4.5 | F112: 3.8 | G112: 3.3 | H112: 2.78 | I112: 3.8
A113: 37 | B113: 201809 | C113: 4.32 | D113: 3.76 | E113: 4.5 | F113: 3.8 | G113: 3.3 | H113: 2.78 | I113: 3.8
A114: 38 | B114: 201809 | C114: 4.32 | D114: 3.77 | E114: 4.53 | F114: 3.82 | G114: 3.3 | H114: 2.78 | I114: 3.8 | J114: 3.03
A115: 39 | B115: 201809 | C115: 4.32 | D115: 3.77 | E115: 4.53 | F115: 3.82 | G115: 3.3 | H115: 2.78 | I115: 3.8 | J115: 3.03
A116: 40 | B116: 201810 | C116: 4.32 | D116: 3.77 | E116: 4.53 | F116: 3.82 | G116: 3.27 | H116: 2.75 | I116: 3.8
A117: 41 | B117: 201810 | C117: 4.32 | D117: 3.76 | E117: 4.53 | F117: 3.8 | G117: 3.25 | H117: 2.72 | I117: 3.78
A118: 42 | B118: 201810 | C118: 4.32 | D118: 3.73 | E118: 4.5 | F118: 3.78 | G118: 3.2 | H118: 2.67 | I118: 3.76 | J118: 2.97
A119: 43 | B119: 201810 | C119: 4.31 | D119: 3.72 | E119: 4.5 | F119: 3.76 | G119: 3.15 | H119: 2.6 | I119: 3.76 | J119: 2.97
A120: 44 | B120: 201810 | C120: 4.31 | D120: 3.72 | E120: 4.5 | F120: 3.76 | G120: 3.1 | H120: 2.54 | I120: 3.76 | J120: 2.97
A121: 45 | B121: 201811 | C121: 4.31 | D121: 3.72 | E121: 4.5 | F121: 3.76 | G121: 3.05 | H121: 2.46 | I121: 3.76 | J121: 2.97
A122: 46 | B122: 201811 | C122: 4.31 | D122: 3.72 | E122: 4.5 | F122: 3.76 | G122: 3 | H122: 2.41 | I122: 3.76 | J122: 2.97
A123: 47 | B123: 201811 | C123: 4.31 | D123: 3.72 | E123: 4.5 | F123: 3.76 | G123: 3 | H123: 2.41 | I123: 3.8 | J123: 2.97
A124: 48 | B124: 201811 | C124: 4.31 | D124: 3.72 | E124: 4.5 | F124: 3.76 | G124: 3 | H124: 2.41 | I124: 3.8 | J124: 2.97
A125: 49 | B125: 201812 | C125: 4.31 | D125: 3.7 | E125: 4.5 | F125: 3.76 | G125: 3 | H125: 2.41 | I125: 3.8 | J125: 2.97
A126: 50 | B126: 201812 | C126: 4.31 | D126: 3.69 | E126: 4.5 | F126: 3.76 | G126: 3 | H126: 2.41 | I126: 3.8 | J126: 2.97
A127: 51 | B127: 201812
A128: 52 | B128: 201812

Sheet GrosBovins2017 (hidden)
A1: COTATIONS DES GROS BOVINS
A2: Source : DRAAF Pays de la Loire - SRISE - FranceAgriMer
A5: 1- COTATION REGIONALE GRAND OUEST ENTREE ABATTOIR en €/Kg net
A7: 2- MOYENNE NATIONALE DES BOVINS MAIGRES DESTINES A L'ENGRAISSEMENT CHAROLAIS MALE de 6-12 mois catégorie U (300kg) en €/kg vif
A9: 3- COTATION DES GROS BOVINS VIFS SUR LE MARCHE DE CHOLET (en Euro/Kg Net) – à partir de la ligne 72
P11: 2- COT. HEBDO
A12: 1- COTATION REGIONALE ENTREE ABATTOIR GRAND OUEST FRANCEAGRIMER-HEBDOMADAIRE (€/Kg net) | P12: MAIGRE €/kg vif
P13: Ref. nationale
A14: Année | B14: Sem. | C14: JEUNES BOVINS | F14: BOEUFS | G14: VACHES | L14: GENISSES | P14: Charolais Mâles
C15: VIANDE | E15: MIXTE | F15: MIXTE | G15: VIANDE | I15: Blonde | J15: MIXTE | K15: LAIT | L15: VIANDES + 350kg
C16: U | D16: R | E16: O | F16: O | G16: U | H16: R | I16: U | J16: O | K16: P | L16: U | M16: R | P16: 6/12 mois ( U )
A17: 2017 | B17: 1 | C17: 3.95 | D17: 3.77 | E17: 3.18 | F17: 3.2 | G17: 4.41 | H17: 3.74 | I17: 5.12 | J17: 3.17 | K17: 2.6 | L17: 4.78 | M17: 3.85 | P17: 2.59
B18: 2 | C18: 3.95 | D18: 3.75 | E18: 3.19 | F18: 3.21 | G18: 4.42 | H18: 3.75 | I18: 5.15 | J18: 3.18 | K18: 2.63 | L18: 4.79 | M18: 3.84 | P18: 2.6
B19: 3 | C19: 3.93 | D19: 3.72 | E19: 3.21 | F19: 3.22 | G19: 4.46 | H19: 3.78 | I19: 5.06 | J19: 3.19 | K19: 2.64 | L19: 4.82 | M19: 3.83 | P19: 2.6
A20: J | B20: 4 | C20: 3.92 | D20: 3.72 | E20: 3.2 | F20: 3.22 | G20: 4.39 | H20: 3.74 | I20: 5.16 | J20: 3.2 | K20: 2.65 | L20: 4.74 | M20: 3.86 | P20: 2.62
B21: 5 | C21: 3.92 | D21: 3.72 | E21: 3.25 | F21: 3.23 | G21: 4.39 | H21: 3.77 | I21: 5.05 | J21: 3.23 | K21: 2.67 | L21: 4.69 | M21: 3.84 | P21: 2.64
B22: 6 | C22: 3.92 | D22: 3.72 | E22: 3.28 | F22: 3.25 | G22: 4.56 | H22: 3.77 | I22: 5.2 | J22: 3.24 | K22: 2.69 | L22: 4.78 | M22: 3.84 | P22: 2.67
B23: 7 | C23: 3.94 | D23: 3.74 | E23: 3.3 | F23: 3.28 | G23: 4.58 | H23: 3.79 | I23: 5.17 | J23: 3.26 | K23: 2.72 | L23: 4.69 | M23: 3.83 | P23: 2.67
A24: F | B24: 8 | C24: 3.95 | D24: 3.74 | E24: 3.33 | F24: 3.32 | G24: 4.53 | H24: 3.8 | I24: 5.18 | J24: 3.28 | K24: 2.75 | L24: 4.88 | M24: 3.82 | P24: 2.7
B25: 9 | C25: 3.96 | D25: 3.75 | E25: 3.33 | F25: 3.32 | G25: 4.73 | H25: 3.81 | I25: 5.16 | J25: 3.3 | K25: 2.78 | L25: 4.81 | M25: 3.89 | P25: 2.73
B26: 10 | C26: 3.96 | D26: 3.76 | E26: 3.36 | F26: 3.34 | G26: 4.47 | H26: 3.84 | I26: 5.17 | J26: 3.33 | K26: 2.8 | L26: 4.77 | M26: 3.9 | P26: 2.75
B27: 11 | C27: 3.96 | D27: 3.77 | E27: 3.37 | F27: 3.35 | G27: 4.55 | H27: 3.9 | I27: 5.2 | J27: 3.34 | K27: 2.82 | L27: 4.85 | M27: 3.9 | P27: 2.78
B28: 12 | C28: 3.96 | D28: 3.76 | E28: 3.38 | F28: 3.37 | G28: 4.5 | H28: 3.88 | I28: 5.2 | J28: 3.35 | K28: 2.85 | L28: 4.84 | M28: 3.92 | P28: 2.78
A29: M | B29: 13 | C29: 3.96 | D29: 3.76 | E29: 3.38 | F29: 3.37 | G29: 4.54 | H29: 3.87 | I29: 5.23 | J29: 3.37 | K29: 2.87 | L29: 4.92 | M29: 3.9 | P29: 2.79
B30: 14 | C30: 3.95 | D30: 3.77 | E30: 3.41 | F30: 3.39 | G30: 4.88 | H30: 3.84 | I30: 5.24 | J30: 3.38 | K30: 2.88 | L30: 4.99 | M30: 3.88 | P30: 2.79
B31: 15 | C31: 3.94 | D31: 3.76 | E31: 3.47 | F31: 3.42 | G31: 4.62 | H31: 3.88 | I31: 5.08 | J31: 3.4 | K31: 2.9 | L31: 5 | M31: 3.95 | P31: 2.78
B32: 16 | C32: 3.95 | D32: 3.77 | E32: 3.42 | F32: 3.46 | G32: 4.68 | H32: 3.89 | I32: 5.13 | J32: 3.43 | K32: 2.91 | L32: 4.84 | M32: 3.93 | P32: 2.78
A33: A | B33: 17 | C33: 3.95 | D33: 3.77 | E33: 3.42 | F33: 3.46 | G33: 4.43 | H33: 3.89 | I33: 5.13 | J33: 3.43 | K33: 2.94 | L33: 4.87 | M33: 3.94 | P33: 2.77
B34: 18 | C34: 3.94 | D34: 3.75 | E34: 3.43 | F34: 3.46 | G34: 4.53 | H34: 3.92 | I34: 5.2 | J34: 3.45 | K34: 2.94 | L34: 4.83 | M34: 3.93 | P34: 2.8
B35: 19 | C35: 3.94 | D35: 3.76 | E35: 3.43 | F35: 3.47 | G35: 4.62 | H35: 3.92 | I35: 5.16 | J35: 3.43 | K35: 2.94 | L35: 4.86 | M35: 3.93 | P35: 2.8
B36: 20 | C36: 3.95 | D36: 3.74 | E36: 3.43 | F36: 3.47 | G36: 4.61 | H36: 3.89 | I36: 5.18 | J36: 3.42 | K36: 2.93 | L36: 4.76 | M36: 3.93 | P36: 2.82
A37: M | B37: 21 | C37: 3.94 | D37: 3.75 | E37: 3.4 | F37: 3.46 | G37: 4.47 | H37: 3.94 | I37: 5.25 | J37: 3.45 | K37: 2.94 | L37: 4.89 | M37: 3.95 | P37: 2.83
B38: 22 | C38: 3.95 | D38: 3.77 | E38: 3.4 | F38: 3.5 | G38: 4.54 | H38: 3.96 | I38: 5.22 | J38: 3.48 | K38: 2.95 | L38: 4.83 | M38: 3.96 | P38: 2.84
B39: 23 | C39: 3.95 | D39: 3.77 | E39: 3.4 | F39: 3.51 | G39: 4.54 | H39: 3.93 | I39: 5.15 | J39: 3.47 | K39: 2.96 | L39: 4.87 | M39: 3.96 | P39: 2.84
B40: 24 | C40: 3.96 | D40: 3.78 | E40: 3.43 | F40: 3.49 | G40: 4.62 | H40: 3.92 | I40: 5.16 | J40: 3.47 | K40: 2.98 | L40: 4.86 | M40: 3.95 | P40: 2.88
B41: 25 | C41: 3.97 | D41: 3.78 | E41: 3.42 | F41: 3.49 | G41: 4.66 | H41: 3.91 | I41: 5.12 | J41: 3.46 | K41: 2.98 | L41: 4.88 | M41: 3.96 | P41: 2.88
A42: J | B42: 26 | C42: 3.97 | D42: 3.79 | E42: 3.42 | F42: 3.51 | G42: 4.56 | H42: 3.9 | I42: 5.16 | J42: 3.47 | K42: 2.96 | L42: 4.86 | M42: 3.93 | P42: 2.9
B43: 27 | C43: 3.96 | D43: 3.79 | E43: 3.39 | F43: 3.5 | G43: 4.59 | H43: 3.87 | I43: 5.16 | J43: 3.43 | K43: 2.92 | L43: 4.93 | M43: 3.91 | P43: 2.89
B44: 28 | C44: 3.97 | D44: 3.78 | E44: 3.36 | F44: 3.46 | G44: 4.56 | H44: 3.87 | I44: 5.16 | J44: 3.41 | K44: 2.88 | L44: 4.93 | M44: 3.93 | P44: 2.88
B45: 29 | C45: 3.97 | D45: 3.81 | E45: 3.38 | F45: 3.46 | G45: 4.53 | H45: 3.85 | I45: 5.19 | J45: 3.39 | K45: 2.86 | L45: 4.85 | M45: 3.88 | P45: 2.88
A46: J | B46: 30 | C46: 3.99 | D46: 3.82 | E46: 3.4 | F46: 3.44 | G46: 4.47 | H46: 3.83 | I46: 5.1 | J46: 3.43 | K46: 2.86 | L46: 4.74 | M46: 3.88 | P46: 2.88
B47: 31 | C47: 4.01 | D47: 3.83 | E47: 3.43 | F47: 3.48 | G47: 4.46 | H47: 3.84 | I47: 5.11 | J47: 3.42 | K47: 2.91 | L47: 4.8 | M47: 3.93 | P47: 2.75
B48: 32 | C48: 4.04 | D48: 3.86 | E48: 3.45 | F48: 3.48 | G48: 4.45 | H48: 3.86 | I48: 5.13 | J48: 3.46 | K48: 2.93 | L48: 4.78 | M48: 3.92 | P48: 2.75
B49: 33 | C49: 4.05 | D49: 3.88 | E49: 3.46 | F49: 3.52 | G49: 4.49 | H49: 3.87 | I49: 5.07 | J49: 3.46 | K49: 2.95 | L49: 4.79 | M49: 3.95 | P49: 2.75
A50: A | B50: 34 | C50: 4.05 | D50: 3.87 | E50: 3.45 | F50: 3.52 | G50: 4.61 | H50: 3.88 | I50: 5.17 | J50: 3.47 | K50: 2.97 | L50: 4.87 | M50: 3.88 | P50: 2.85
B51: 35 | C51: 4.07 | D51: 3.86 | E51: 3.47 | F51: 3.5 | G51: 4.59 | H51: 3.86 | I51: 5.14 | J51: 3.47 | K51: 2.98 | L51: 4.8 | M51: 3.88 | P51: 2.85
B52: 36 | C52: 4.06 | D52: 3.86 | E52: 3.47 | F52: 3.52 | G52: 4.65 | H52: 3.85 | I52: 5.1 | J52: 3.45 | K52: 2.97 | L52: 4.94 | M52: 3.9 | P52: 2.83
B53: 37 | C53: 4.07 | D53: 3.85 | E53: 3.48 | F53: 3.5 | G53: 4.61 | H53: 3.86 | I53: 5.12 | J53: 3.45 | K53: 2.95 | L53: 4.86 | M53: 3.93 | P53: 2.79
B54: 38 | C54: 4.07 | D54: 3.88 | E54: 3.47 | F54: 3.48 | G54: 4.63 | H54: 3.84 | I54: 5.09 | J54: 3.44 | K54: 2.93 | L54: 4.86 | M54: 3.91 | P54: 2.81
A55: S | B55: 39 | C55: 4.08 | D55: 3.92 | E55: 3.47 | F55: 3.48 | G55: 4.57 | H55: 3.86 | I55: 5.16 | J55: 3.44 | K55: 2.89 | L55: 4.81 | M55: 3.94 | P55: 2.8
B56: 40 | C56: 4.09 | D56: 3.92 | E56: 3.55 | F56: 3.46 | G56: 4.57 | H56: 3.88 | I56: 5.15 | J56: 3.43 | K56: 2.88 | L56: 4.86 | M56: 3.9 | P56: 2.8
B57: 41 | C57: 4.11 | D57: 3.94 | E57: 3.56 | F57: 3.47 | G57: 4.41 | H57: 3.83 | I57: 5.1 | J57: 3.42 | K57: 2.89 | L57: 4.85 | M57: 3.89 | P57: 2.79
B58: 42 | C58: 4.14 | D58: 3.96 | E58: 3.53 | F58: 3.46 | G58: 4.51 | H58: 3.8 | I58: 5.11 | J58: 3.44 | K58: 2.91 | L58: 4.89 | M58: 3.85 | P58: 2.78
A59: O | B59: 43 | C59: 4.17 | D59: 3.99 | E59: 3.6 | F59: 3.52 | G59: 4.57 | H59: 3.82 | I59: 5.18 | J59: 3.46 | K59: 2.92 | L59: 4.74 | M59: 3.9 | P59: 2.78
B60: 44 | C60: 4.18 | D60: 4.02 | E60: 3.63 | F60: 3.51 | G60: 4.63 | H60: 3.85 | I60: 5.1 | J60: 3.46 | K60: 2.92 | L60: 4.87 | M60: 3.9 | P60: 2.76
B61: 45 | C61: 4.2 | D61: 3.99 | E61: 3.64 | F61: 3.48 | G61: 4.51 | H61: 3.78 | I61: 5.12 | J61: 3.43 | K61: 2.89 | L61: 4.75 | M61: 3.86 | P61: 2.75
B62: 46 | C62: 4.2 | D62: 4.01 | E62: 3.66 | F62: 3.46 | G62: 4.5 | H62: 3.77 | I62: 5.08 | J62: 3.39 | K62: 2.85 | L62: 4.79 | M62: 3.82 | P62: 2.75
A63: N | B63: 47 | C63: 4.2 | D63: 4.02 | E63: 3.63 | F63: 3.43 | G63: 4.48 | H63: 3.76 | I63: 5.07 | J63: 3.36 | K63: 2.79 | L63: 4.71 | M63: 3.87 | P63: 2.73
B64: 48 | C64: 4.22 | D64: 4.02 | E64: 3.63 | F64: 3.37 | G64: 4.45 | H64: 3.74 | I64: 5.05 | J64: 3.31 | K64: 2.73 | L64: 4.85 | M64: 3.82 | P64: 2.71
B65: 49 | C65: 4.23 | D65: 4.03 | E65: 3.65 | F65: 3.3 | G65: 4.75 | H65: 3.76 | I65: 5.13 | J65: 3.28 | K65: 2.7 | L65: 4.85 | M65: 3.84 | P65: 2.71
B66: 50 | C66: 4.23 | D66: 4.04 | E66: 3.67 | F66: 3.29 | G66: 4.78 | H66: 3.71 | I66: 5.14 | J66: 3.24 | K66: 2.66 | L66: 4.84 | M66: 3.82 | P66: 2.72
B67: 51 | C67: 4.23 | D67: 4.04 | E67: 3.67 | F67: 3.29 | G67: 4.78 | H67: 3.71 | I67: 5.14 | J67: 3.24 | K67: 2.66 | L67: 4.84 | M67: 3.82 | P67: 2.74
A68: D | B68: 52 | C68: 4.19 | D68: 3.99 | E68: 3.62 | F68: 3.28 | G68: 4.51 | H68: 3.69 | I68: 5.05 | J68: 3.28 | K68: 2.66 | L68: 4.86 | M68: 3.84 | P68: 2.76
A72: 3- COTATION DES GROS BOVINS VIFS SUR LE MARCHE DE CHOLET (en Euro/Kg Net)
C74: GENISSES | E74: VACHES | I74: JEUNES BOVINS | J74: TAUREAUX
A75: semaines | B75: année+mois | C75: Viande, mixte, lait | D75: Viande, mixte, lait | E75: Blonde | F75: Blonde | G75: Mixte | H75: Lait | I75: Viande | J75: Viande, mixte, lait
A76: 2017 | C76: U | D76: R | E76: U | F76: R | G76: O | H76: P | I76: U | J76: URO
A77: 1 | B77: 201701 | C77: 4.32 | D77: 3.67 | E77: 4.47 | F77: 3.7 | G77: 3.04 | H77: 2.38 | I77: 3.78
A78: 2 | B78: 201701 | C78: 4.32 | D78: 3.67 | E78: 4.47 | F78: 3.7 | G78: 3.04 | H78: 2.38 | I78: 3.78
A79: 3 | B79: 201701 | C79: 4.32 | D79: 3.67 | E79: 4.47 | F79: 3.7 | G79: 3.04 | H79: 2.38 | I79: 3.78
A80: 4 | B80: 201701 | C80: 4.32 | D80: 3.68 | E80: 4.47 | F80: 3.7 | G80: 3.06 | H80: 2.38 | I80: 3.8 | J80: 2.75
A81: 5 | B81: 201702 | C81: 4.32 | D81: 3.68 | E81: 4.47 | F81: 3.7 | G81: 3.08 | H81: 2.4 | I81: 3.8 | J81: 2.75
A82: 6 | B82: 201702 | C82: 4.32 | D82: 3.71 | E82: 4.47 | F82: 3.7 | G82: 3.11 | H82: 2.43 | I82: 3.82 | J82: 2.78
A83: 7 | B83: 201702 | C83: 4.34 | D83: 3.72 | E83: 4.47 | F83: 3.7 | G83: 3.14 | H83: 2.48 | I83: 3.84 | J83: 2.8
A84: 8 | B84: 201702 | C84: 4.34 | D84: 3.72 | E84: 4.47 | F84: 3.7 | G84: 3.16 | H84: 2.5 | I84: 3.84 | J84: 2.8
A85: 9 | B85: 201703 | C85: 4.34 | D85: 3.72 | E85: 4.47 | F85: 3.7 | G85: 3.18 | H85: 2.53 | I85: 3.84 | J85: 2.8
A86: 10 | B86: 201703 | C86: 4.35 | D86: 3.75 | E86: 4.47 | F86: 3.74 | G86: 3.21 | H86: 2.58 | I86: 3.84 | J86: 2.8
A87: 11 | B87: 201703 | C87: 4.35 | D87: 3.76 | E87: 4.47 | F87: 3.74 | G87: 3.21 | H87: 2.6 | I87: 3.84 | J87: 2.85
A88: 12 | B88: 201703 | C88: 4.35 | D88: 3.79 | E88: 4.47 | F88: 3.74 | G88: 3.23 | H88: 2.63 | I88: 3.84 | J88: 2.9
A89: 13 | B89: 201703 | C89: 4.37 | D89: 3.79 | E89: 4.47 | F89: 3.76 | G89: 3.23 | H89: 2.63 | I89: 3.82 | J89: 2.9
A90: 14 | B90: 201704 | C90: 4.37 | D90: 3.79 | E90: 4.47 | F90: 3.76 | G90: 3.23 | H90: 2.65 | I90: 3.8 | J90: 2.9
A91: 15 | B91: 201704 | C91: 4.37 | D91: 3.79 | E91: 4.47 | F91: 3.76 | G91: 3.25 | H91: 2.67 | I91: 3.8 | J91: 2.9
A92: 16 | B92: 201704 | C92: 4.37 | D92: 3.81 | E92: 4.47 | F92: 3.76 | G92: 3.3 | H92: 2.72 | I92: 3.8 | J92: 2.9
A93: 17 | B93: 201704 | C93: 4.37 | D93: 3.81 | E93: 4.47 | F93: 3.76 | G93: 3.3 | H93: 2.72 | I93: 3.8 | J93: 2.9
A94: 18 | B94: 201705 | C94: 4.37 | D94: 3.81 | E94: 4.47 | F94: 3.76 | G94: 3.3 | H94: 2.72 | I94: 3.8 | J94: 2.9
A95: 19 | B95: 201705 | C95: 4.37 | D95: 3.8 | E95: 4.47 | F95: 3.76 | G95: 3.3 | H95: 2.72 | I95: 3.8 | J95: 2.9
A96: 20 | B96: 201705 | C96: 4.37 | D96: 3.8 | E96: 4.47 | F96: 3.76 | G96: 3.3 | H96: 2.72 | I96: 3.8 | J96: 2.9
A97: 21 | B97: 201705 | C97: 4.37 | D97: 3.82 | E97: 4.49 | F97: 3.78 | G97: 3.3 | H97: 2.72 | I97: 3.8 | J97: 2.9
A98: 22 | B98: 201705 | C98: 4.37 | D98: 3.82 | E98: 4.49 | F98: 3.78 | G98: 3.3 | H98: 2.72 | I98: 3.8 | J98: 2.9
A99: 23 | B99: 201706 | C99: 4.37 | D99: 3.82 | E99: 4.49 | F99: 3.78 | G99: 3.3 | H99: 2.72 | I99: 3.8 | J99: 2.9
A100: 24 | B100: 201706 | C100: 4.35 | D100: 3.79 | E100: 4.49 | F100: 3.75 | G100: 3.3 | H100: 2.72 | I100: 3.8 | J100: 2.9
A101: 25 | B101: 201706 | C101: 4.35 | D101: 3.75 | E101: 4.49 | F101: 3.75 | G101: 3.28 | H101: 2.72 | I101: 3.8 | J101: 2.9
A102: 26 | B102: 201706 | C102: 4.34 | D102: 3.71 | E102: 4.47 | F102: 3.73 | G102: 3.25 | H102: 2.7 | I102: 3.8 | J102: 2.9
A103: 27 | B103: 201707 | C103: 4.33 | D103: 3.7 | E103: 4.44 | F103: 3.7 | G103: 3.22 | H103: 2.67 | I103: 3.8 | J103: 2.85
A104: 28 | B104: 201707 | C104: 4.33 | D104: 3.7 | E104: 4.44 | F104: 3.7 | G104: 3.22 | H104: 2.65 | I104: 3.8 | J104: 2.85
A105: 29 | B105: 201707 | C105: 4.32 | D105: 3.7 | E105: 4.44 | F105: 3.7 | G105: 3.22 | H105: 2.65 | I105: 3.8 | J105: 2.85
A106: 30 | B106: 201707 | C106: 4.31 | D106: 3.7 | E106: 4.42 | F106: 3.7 | G106: 3.25 | H106: 2.67 | I106: 3.82 | J106: 2.85
A107: 31 | B107: 201708 | C107: 4.31 | D107: 3.7 | E107: 4.42 | F107: 3.7 | G107: 3.28 | H107: 2.67 | I107: 3.85 | J107: 2.85
A108: 32 | B108: 201708 | C108: 4.31 | D108: 3.7 | E108: 4.42 | F108: 3.7 | G108: 3.28 | H108: 2.67 | I108: 3.85 | J108: 2.85
A109: 33 | B109: 201708 | C109: 4.31 | D109: 3.71 | E109: 4.42 | F109: 3.7 | G109: 3.3 | H109: 2.7 | I109: 3.9 | J109: 2.85
A110: 34 | B110: 201708 | C110: 4.31 | D110: 3.71 | E110: 4.42 | F110: 3.7 | G110: 3.3 | H110: 2.7 | I110: 3.95 | J110: 2.85
A111: 35 | B111: 201708 | C111: 4.31 | D111: 3.71 | E111: 4.42 | F111: 3.7 | G111: 3.3 | H111: 2.7 | I111: 3.95 | J111: 2.85
A112: 36 | B112: 201709 | C112: 4.31 | D112: 3.7 | E112: 4.42 | F112: 3.7 | G112: 3.3 | H112: 2.68 | I112: 3.95 | J112: 2.85
A113: 37 | B113: 201709 | C113: 4.31 | D113: 3.69 | E113: 4.42 | F113: 3.7 | G113: 3.3 | H113: 2.66 | I113: 3.95 | J113: 2.85
A114: 38 | B114: 201709 | C114: 4.31 | D114: 3.69 | E114: 4.42 | F114: 3.7 | G114: 3.28 | H114: 2.64 | I114: 3.95 | J114: 2.85
A115: 39 | B115: 201709 | C115: 4.31 | D115: 3.69 | E115: 4.42 | F115: 3.7 | G115: 3.26 | H115: 2.62 | I115: 3.95 | J115: 2.85
A116: 40 | B116: 201710 | C116: 4.31 | D116: 3.69 | E116: 4.42 | F116: 3.7 | G116: 3.26 | H116: 2.62 | I116: 3.95 | J116: 2.85
A117: 41 | B117: 201710 | C117: 4.31 | D117: 3.69 | E117: 4.42 | F117: 3.7 | G117: 3.26 | H117: 2.62 | I117: 3.95 | J117: 2.85
A118: 42 | B118: 201710 | C118: 4.31 | D118: 3.69 | E118: 4.42 | F118: 3.7 | G118: 3.3 | H118: 2.67 | I118: 3.98 | J118: 2.85
A119: 43 | B119: 201710 | C119: 4.31 | D119: 3.7 | E119: 4.42 | F119: 3.7 | G119: 3.3 | H119: 2.67 | I119: 4.03 | J119: 2.85
A120: 44 | B120: 201711 | C120: 4.31 | D120: 3.7 | E120: 4.42 | F120: 3.7 | G120: 3.3 | H120: 2.67 | I120: 4.05 | J120: 2.85
A121: 45 | B121: 201711 | C121: 4.31 | D121: 3.7 | E121: 4.42 | F121: 3.7 | G121: 3.25 | H121: 2.62 | I121: 4.08 | J121: 2.85
A122: 46 | B122: 201711 | C122: 4.31 | D122: 3.7 | E122: 4.42 | F122: 3.7 | G122: 3.23 | H122: 2.6 | I122: 4.1 | J122: 2.85
A123: 47 | B123: 201711 | C123: 4.31 | D123: 3.67 | E123: 4.42 | F123: 3.7 | G123: 3.2 | H123: 2.55 | I123: 4.1
A124: 48 | B124: 201711 | C124: 4.31 | D124: 3.66 | E124: 4.42 | F124: 3.7 | G124: 3.15 | H124: 2.5 | I124: 4.1
A125: 49 | B125: 201712 | C125: 4.3 | D125: 3.64 | E125: 4.42 | F125: 3.68 | G125: 3.1 | H125: 2.45 | I125: 4.1
A126: 50 | B126: 201712 | C126: 4.27 | D126: 3.64 | E126: 4.42 | F126: 3.68 | G126: 3.07 | H126: 2.41 | I126: 4.07
A127: 51 | B127: 201712
A128: 52 | B128: 201712 | C128: 4.27 | D128: 3.63 | E128: 4.42 | F128: 3.68 | G128: 3.07 | H128: 2.41 | I128: 4.05

Sheet GrosBovins2016 (hidden)
A1: COTATIONS DES GROS BOVINS
A2: Source : DRAAF Pays de la Loire - SRISE - FranceAgriMer | K2: mise à jour : 13/01/2017
A5: COTATION REGIONALE GRAND OUEST ENTREE ABATTOIR en €/Kg net | AF5: COTATION NATIONALE DES GROS BOVINS VIFS SUR LE MARCHE DE CHOLET (en Euro/Kg Net)
A7: MOYENNE NATIONALE DES BOVINS MAIGRES DESTINES A L'ENGRAISSEMENT CHAROLAIS MALE de 6-12 mois catégorie U (300kg) en €/kg vif
P11: COT. HEBDO | AE11: COT. HEBDO
D12: COTATION REGIONALE ENTREE ABATTOIR GRAND OUEST FRANCEAGRIMER-HEBDOMADAIRE (€/Kg net) | P12: MAIGRE €/kg vif | U12: COTATION REGIONALE ENTREE ABATTOIR GRAND OUEST FRANCEAGRIMER-HEBDOMADAIRE (€/Kg net) | AE12: MAIGRE €/kg vif
P13: Ref. nationale | AE13: Ref. nationale
A14: Année | B14: Sem. | C14: JEUNES BOVINS | F14: BOEUFS | G14: VACHES | L14: GENISSES | P14: Charolais Mâles | T14: JEUNES BOVINS | W14: BOEUFS | X14: VACHES | AC14: GENISSES | AE14: Charolais Mâles | AH14: GENISSES | AJ14: VACHES | AN14: JEUNES BOVINS | AO14: TAUREAUX | AR14: GENISSES | AT14: VACHES | AX14: JEUNES BOVINS | AY14: TAUREAUX
C15: VIANDE | E15: MIXTE | F15: MIXTE | G15: VIANDE | I15: Blonde | J15: MIXTE | K15: LAIT | L15: VIANDES + 350kg | R15: Année | S15: Mois | T15: VIANDE | V15: MIXTE | W15: MIXTE | X15: VIANDE | Z15: Blonde | AA15: MIXTE | AB15: LAIT | AC15: VIANDES + 350kg | AF15: semaines | AG15: année+mois | AH15: Viande, mixte, lait | AI15: Viande, mixte, lait | AJ15: Blonde | AK15: Blonde | AL15: Mixte | AM15: Lait | AN15: Viande | AO15: Viande, mixte, lait | AQ15: année+mois | AR15: Viande, mixte, lait | AS15: Viande, mixte, lait | AT15: Blonde | AU15: Blonde | AV15: Mixte | AW15: Lait | AX15: Viande | AY15: Viande, mixte, lait
C16: U | D16: R | E16: O | F16: O | G16: U | H16: R | I16: U | J16: O | K16: P | L16: U | M16: R | P16: 6/12 mois ( U ) | T16: U | U16: R | V16: O | W16: O | X16: U | Y16: R | Z16: U | AA16: O | AB16: P | AC16: U | AD16: R | AE16: 6/12 mois ( U ) | AF16: 2016 | AH16: U | AI16: R | AJ16: U | AK16: R | AL16: O | AM16: P | AN16: U | AO16: URO | AQ16: 2016 | AR16: U | AS16: R | AT16: U | AU16: R | AV16: O | AW16: P | AX16: U | AY16: URO
A17: 2016 | B17: 1 | C17: 3.94 | D17: 3.76 | E17: 3.41 | F17: 3.21 | G17: 4.55 | H17: 3.82 | I17: 5.26 | J17: 3.18 | K17: 2.59 | L17: 4.76 | M17: 3.89 | P17: 2.69 | R17: 2016 | S17: J | T17: =IF((C20)>0,AVERAGE(C17:C20),"") -> 3.935 | U17: 3.7475 | V17: 3.405 | W17: 3.21 | X17: 4.5225 | Y17: 3.79 | Z17: 5.21 | AA17: 3.1775 | AB17: 2.585 | AC17: 4.805 | AD17: 3.8775 | AE17: =IF((P20)>0,AVERAGE(P17:P20),"") -> 2.72 | AF17: 1 | AG17: 201601 | AH17: 4.48 | AI17: 3.84 | AJ17: 4.73 | AK17: 3.95 | AL17: 3 | AM17: 2.4 | AN17: 3.82 | AQ17: J | AR17: =IF((AH20)>0,AVERAGE(AH17:AH20),"") -> 4.4725 | AS17: 3.8175 | AT17: 4.7075 | AU17: 3.945 | AV17: 3 | AW17: 2.4 | AX17: 3.805
B18: 2 | C18: 3.95 | D18: 3.76 | E18: 3.42 | F18: 3.21 | G18: 4.59 | H18: 3.8 | I18: 5.21 | J18: 3.19 | K18: 2.6 | L18: 4.87 | M18: 3.89 | P18: 2.72 | S18: F | T18: =IF((C24)>0,AVERAGE(C21:C24),"") -> 3.9075 | U18: 3.73 | V18: 3.41 | W18: 3.225 | X18: 4.4375 | Y18: 3.77 | Z18: 5.185 | AA18: 3.1975 | AB18: 2.605 | AC18: 4.8225 | AD18: 3.8475 | AE18: =IF((P24)>0,AVERAGE(P21:P24),"") -> 2.7525 | AF18: 2 | AG18: 201601 | AH18: 4.48 | AI18: 3.82 | AJ18: 4.7 | AK18: 3.95 | AL18: 3 | AM18: 2.4 | AN18: 3.8 | AQ18: F | AR18: =IF((AH24)>0,AVERAGE(AH21:AH24),"") -> 4.4525 | AS18: 3.8 | AT18: 4.65 | AU18: 3.9 | AV18: 3.02 | AW18: 2.425 | AX18: 3.8
B19: 3 | C19: 3.93 | D19: 3.74 | E19: 3.4 | F19: 3.22 | G19: 4.52 | H19: 3.77 | I19: 5.22 | J19: 3.17 | K19: 2.57 | L19: 4.81 | M19: 3.87 | P19: 2.73 | S19: M | T19: =IF((C29)>0,AVERAGE(C25:C29),"") -> 3.91 | U19: 3.732 | V19: 3.43 | W19: 3.322 | X19: 4.634 | Y19: 3.794 | Z19: 5.286 | AA19: 3.288 | AB19: 2.734 | AC19: 4.854 | AD19: 3.86 | AE19: =IF((P29)>0,AVERAGE(P25:P29),"") -> 2.774 | AF19: 3 | AG19: 201601 | AH19: 4.48 | AI19: 3.82 | AJ19: 4.7 | AK19: 3.95 | AL19: 3 | AM19: 2.4 | AN19: 3.8 | AQ19: M | AR19: =IF((AH29)>0,AVERAGE(AH25:AH29),"") -> 4.464 | AS19: 3.832 | AT19: 4.646 | AU19: 3.924 | AV19: 3.112 | AW19: 2.542 | AX19: 3.786
A20: J | B20: 4 | C20: 3.92 | D20: 3.73 | E20: 3.39 | F20: 3.2 | G20: 4.43 | H20: 3.77 | I20: 5.15 | J20: 3.17 | K20: 2.58 | L20: 4.78 | M20: 3.86 | P20: 2.74 | S20: A | T20: =IF((C33)>0,AVERAGE(C30:C33),"") -> 3.82 | U20: 3.6425 | V20: 3.3475 | W20: 3.3025 | X20: 4.5225 | Y20: 3.7325 | Z20: 5.2525 | AA20: 3.275 | AB20: 2.7225 | AC20: 4.8 | AD20: 3.8075 | AE20: =IF((P33)>0,AVERAGE(P30:P33),"") -> 2.765 | AF20: 4 | AG20: 201601 | AH20: 4.45 | AI20: 3.79 | AJ20: 4.7 | AK20: 3.93 | AL20: 3 | AM20: 2.4 | AN20: 3.8 | AQ20: A | AR20: =IF((AH33)>0,AVERAGE(AH30:AH33),"") -> 4.405 | AS20: 3.7625 | AT20: 4.585 | AU20: 3.8875 | AV20: 3.1 | AW20: 2.5225 | AX20: 3.6525
B21: 5 | C21: 3.91 | D21: 3.73 | E21: 3.4 | F21: 3.22 | G21: 4.45 | H21: 3.76 | I21: 5.17 | J21: 3.18 | K21: 2.58 | L21: 4.87 | M21: 3.84 | P21: 2.75 | S21: M | T21: =IF((C37)>0,AVERAGE(C34:C37),"") -> 3.72 | U21: 3.5625 | V21: 3.1975 | W21: 3.275 | X21: 4.4325 | Y21: 3.695 | Z21: 5.215 | AA21: 3.2625 | AB21: 2.725 | AC21: 4.7875 | AD21: 3.8025 | AE21: =IF((P37)>0,AVERAGE(P34:P37),"") -> 2.78 | AF21: 5 | AG21: 201602 | AH21: 4.45 | AI21: 3.79 | AJ21: 4.65 | AK21: 3.9 | AL21: 3 | AM21: 2.4 | AN21: 3.8 | AQ21: M | AR21: =IF((AH37)>0,AVERAGE(AH34:AH37),"") -> 4.385 | AS21: 3.73 | AT21: 4.56 | AU21: 3.85 | AV21: 3.165 | AW21: 2.52 | AX21: 3.58
B22: 6 | C22: 3.9 | D22: 3.72 | E22: 3.41 | F22: 3.21 | G22: 4.37 | H22: 3.78 | I22: 5.14 | J22: 3.19 | K22: 2.59 | L22: 4.8 | M22: 3.84 | P22: 2.74 | S22: J | T22: =IF((C42)>0,AVERAGE(C38:C42),"") -> 3.736 | U22: 3.576 | V22: 3.132 | W22: 3.28 | X22: 4.35 | Y22: 3.672 | Z22: 5.208 | AA22: 3.25 | AB22: 2.706 | AC22: 4.774 | AD22: 3.766 | AE22: =IF((P42)>0,AVERAGE(P38:P42),"") -> 2.834 | AF22: 6 | AG22: 201602 | AH22: 4.45 | AI22: 3.79 | AJ22: 4.65 | AK22: 3.9 | AL22: 3 | AM22: 2.4 | AN22: 3.8 | AQ22: J | AR22: =IF((AH42)>0,AVERAGE(AH38:AH42),"") -> 4.376 | AS22: 3.674 | AT22: 4.56 | AU22: 3.804 | AV22: 3.066 | AW22: 2.504 | AX22: 3.588
B23: 7 | C23: 3.91 | D23: 3.74 | E23: 3.41 | F23: 3.23 | G23: 4.39 | H23: 3.77 | I23: 5.19 | J23: 3.2 | K23: 2.61 | L23: 4.78 | M23: 3.86 | P23: 2.76 | S23: J | T23: =IF((C46)>0,AVERAGE(C43:C46),"") -> 3.775 | U23: 3.6525 | V23: 3.05 | W23: 3.2825 | X23: 4.38 | Y23: 3.675 | Z23: 5.1925 | AA23: 3.265 | AB23: 2.7025 | AC23: 4.7875 | AD23: 3.75 | AE23: =IF((P46)>0,AVERAGE(P43:P46),"") -> 2.8025 | AF23: 7 | AG23: 201602 | AH23: 4.45 | AI23: 3.81 | AJ23: 4.65 | AK23: 3.9 | AL23: 3.03 | AM23: 2.43 | AN23: 3.8 | AQ23: J | AR23: =IF((AH46)>0,AVERAGE(AH43:AH46),"") -> 4.36 | AS23: 3.635 | AT23: 4.535 | AU23: 3.7725 | AV23: 3.065 | AW23: 2.53 | AX23: 3.6175
A24: F | B24: 8 | C24: 3.91 | D24: 3.73 | E24: 3.42 | F24: 3.24 | G24: 4.54 | H24: 3.77 | I24: 5.24 | J24: 3.22 | K24: 2.64 | L24: 4.84 | M24: 3.85 | P24: 2.76 | S24: A | T24: =IF((C50)>0,AVERAGE(C47:C50),"") -> 3.82 | U24: 3.655 | V24: 3.0325 | W24: 3.2925 | X24: 4.465 | Y24: 3.665 | Z24: 5.1675 | AA24: 3.26 | AB24: 2.6925 | AC24: 4.8075 | AD24: 3.755 | AE24: =IF((P50)>0,AVERAGE(P47:P50),"") -> 2.79 | AF24: 8 | AG24: 201602 | AH24: 4.46 | AI24: 3.81 | AJ24: 4.65 | AK24: 3.9 | AL24: 3.05 | AM24: 2.47 | AN24: 3.8 | AQ24: A | AR24: =IF((AH51)>0,AVERAGE(AH47:AH51),"") -> 4.32 | AS24: 3.612 | AT24: 4.5 | AU24: 3.726 | AV24: 3.044 | AW24: 2.476 | AX24: 3.65
B25: 9 | C25: 3.92 | D25: 3.73 | E25: 3.43 | F25: 3.28 | G25: 4.5 | H25: 3.78 | I25: 5.27 | J25: 3.26 | K25: 2.68 | L25: 4.81 | M25: 3.85 | P25: 2.69 | S25: S | T25: =IF((C55)>0,AVERAGE(C51:C55),"") -> 3.798 | U25: 3.6 | V25: 2.9 | W25: 3.134 | X25: 4.492 | Y25: 3.648 | Z25: 5.174 | AA25: 3.116 | AB25: 2.528 | AC25: 4.83 | AD25: 3.73 | AE25: =IF((P55)>0,AVERAGE(P51:P55),"") -> 2.624 | AF25: 9 | AG25: 201603 | AH25: 4.48 | AI25: 3.83 | AJ25: 4.65 | AK25: 3.92 | AL25: 3.07 | AM25: 2.5 | AN25: 3.8 | AQ25: S | AR25: =IF((AH55)>0,AVERAGE(AH52:AH55),"") -> 4.31 | AS25: 3.6 | AT25: 4.5 | AU25: 3.7 | AV25: 2.99 | AW25: 2.37 | AX25: 3.65
B26: 10 | C26: 3.92 | D26: 3.73 | E26: 3.42 | F26: 3.29 | G26: 4.6 | H26: 3.79 | I26: 5.26 | J26: 3.27 | K26: 2.71 | L26: 4.91 | M26: 3.89 | P26: 2.78 | S26: O | T26: =IF((C59)>0,AVERAGE(C56:C59),"") -> 3.79 | U26: 3.6025 | V26: 2.925 | W26: 3.1175 | X26: 4.4925 | Y26: 3.695 | Z26: 5.1425 | AA26: 3.095 | AB26: 2.52 | AC26: 4.7825 | AD26: 3.735 | AE26: =IF((P59)>0,AVERAGE(P56:P59),"") -> 2.54 | AF26: 10 | AG26: 201603 | AH26: 4.48 | AI26: 3.84 | AJ26: 4.65 | AK26: 3.92 | AL26: 3.1 | AM26: 2.53 | AN26: 3.8 | AQ26: O | AR26: =IF((AH59)>0,AVERAGE(AH56:AH59),"") -> 4.315 | AS26: 3.645 | AT26: 4.5 | AU26: 3.7 | AV26: 3.005 | AW26: 2.35 | AX26: 3.65
B27: 11 | C27: 3.91 | D27: 3.75 | E27: 3.43 | F27: 3.34 | G27: 4.88 | H27: 3.81 | I27: 5.4 | J27: 3.29 | K27: 2.75 | L27: 4.88 | M27: 3.87 | P27: 2.79 | S27: N | T27: =IF((C63)>0,AVERAGE(C60:C63),"") -> 3.825 | U27: 3.6375 | V27: 3.0325 | W27: 3.1575 | X27: 4.5275 | Y27: 3.735 | Z27: 5.15 | AA27: 3.1325 | AB27: 2.57 | AC27: 4.7925 | AD27: 3.775 | AE27: =IF((P63)>0,AVERAGE(P60:P63),"") -> 2.53 | AF27: 11 | AG27: 201603 | AH27: 4.46 | AI27: 3.84 | AJ27: 4.65 | AK27: 3.92 | AL27: 3.13 | AM27: 2.56 | AN27: 3.8 | AQ27: N | AR27: =IF((AH64)>0,AVERAGE(AH60:AH64),"") -> 4.324 | AS27: 3.662 | AT27: 4.482 | AU27: 3.7 | AV27: 3.038 | AW27: 2.358 | AX27: 3.734
B28: 12 | C28: 3.91 | D28: 3.72 | E28: 3.44 | F28: 3.36 | G28: 4.64 | H28: 3.8 | I28: 5.28 | J28: 3.31 | K28: 2.76 | L28: 4.87 | M28: 3.85 | P28: 2.8 | S28: D | T28: =IF((C68)>0,AVERAGE(C64:C68),"") -> 3.92 | U28: 3.734 | V28: 3.114 | W28: 3.156 | X28: 4.604 | Y28: 3.742 | Z28: 5.166 | AA28: 3.126 | AB28: 2.54 | AC28: 4.84 | AD28: 3.776 | AE28: =IF((P68)>0,AVERAGE(P64:P68),"") -> 2.546 | AF28: 12 | AG28: 201603 | AH28: 4.46 | AI28: 3.84 | AJ28: 4.65 | AK28: 3.94 | AL28: 3.13 | AM28: 2.56 | AN28: 3.78 | AQ28: D | AR28: =IF((AH68)>0,AVERAGE(AH65:AH68),"") -> 4.32 | AS28: 3.66 | AT28: 4.47 | AU28: 3.7 | AV28: 3.01 | AW28: 2.35 | AX28: 3.8
A29: M | B29: 13 | C29: 3.89 | D29: 3.73 | E29: 3.43 | F29: 3.34 | G29: 4.55 | H29: 3.79 | I29: 5.22 | J29: 3.31 | K29: 2.77 | L29: 4.8 | M29: 3.84 | P29: 2.81 | AF29: 13 | AG29: 201603 | AH29: 4.44 | AI29: 3.81 | AJ29: 4.63 | AK29: 3.92 | AL29: 3.13 | AM29: 2.56 | AN29: 3.75
B30: 14 | C30: 3.87 | D30: 3.7 | E30: 3.41 | F30: 3.34 | G30: 4.58 | H30: 3.77 | I30: 5.29 | J30: 3.31 | K30: 2.76 | L30: 4.77 | M30: 3.81 | P30: 2.76 | AF30: 14 | AG30: 201604 | AH30: 4.42 | AI30: 3.79 | AJ30: 4.6 | AK30: 3.92 | AL30: 3.1 | AM30: 2.55 | AN30: 3.71
B31: 15 | C31: 3.84 | D31: 3.66 | E31: 3.38 | F31: 3.32 | G31: 4.55 | H31: 3.75 | I31: 5.27 | J31: 3.3 | K31: 2.74 | L31: 4.78 | M31: 3.81 | P31: 2.77 | AF31: 15 | AG31: 201604 | AH31: 4.41 | AI31: 3.77 | AJ31: 4.6 | AK31: 3.9 | AL31: 3.1 | AM31: 2.52 | AN31: 3.67
B32: 16 | C32: 3.8 | D32: 3.62 | E32: 3.32 | F32: 3.29 | G32: 4.51 | H32: 3.72 | I32: 5.22 | J32: 3.25 | K32: 2.7 | L32: 4.83 | M32: 3.81 | P32: 2.76 | AF32: 16 | AG32: 201604 | AH32: 4.41 | AI32: 3.76 | AJ32: 4.58 | AK32: 3.88 | AL32: 3.1 | AM32: 2.51 | AN32: 3.63
A33: A | B33: 17 | C33: 3.77 | D33: 3.59 | E33: 3.28 | F33: 3.26 | G33: 4.45 | H33: 3.69 | I33: 5.23 | J33: 3.24 | K33: 2.69 | L33: 4.82 | M33: 3.8 | P33: 2.77 | AF33: 17 | AG33: 201604 | AH33: 4.38 | AI33: 3.73 | AJ33: 4.56 | AK33: 3.85 | AL33: 3.1 | AM33: 2.51 | AN33: 3.6
B34: 18 | C34: 3.74 | D34: 3.57 | E34: 3.24 | F34: 3.25 | G34: 4.4 | H34: 3.68 | I34: 5.24 | J34: 3.24 | K34: 2.69 | L34: 4.78 | M34: 3.82 | P34: 2.76 | AF34: 18 | AG34: 201605 | AH34: 4.38 | AI34: 3.73 | AJ34: 4.56 | AK34: 3.85 | AL34: 3.2 | AM34: 2.51 | AN34: 3.58
B35: 19 | C35: 3.71 | D35: 3.58 | E35: 3.2 | F35: 3.27 | G35: 4.4 | H35: 3.7 | I35: 5.25 | J35: 3.27 | K35: 2.72 | L35: 4.84 | M35: 3.8 | P35: 2.78 | AF35: 19 | AG35: 201605 | AH35: 4.38 | AI35: 3.73 | AJ35: 4.56 | AK35: 3.85 | AL35: 3.2 | AM35: 2.51 | AN35: 3.58
B36: 20 | C36: 3.71 | D36: 3.55 | E36: 3.18 | F36: 3.27 | G36: 4.47 | H36: 3.7 | I36: 5.16 | J36: 3.26 | K36: 2.74 | L36: 4.79 | M36: 3.8 | P36: 2.78 | AF36: 20 | AG36: 201605 | AH36: 4.39 | AI36: 3.73 | AJ36: 4.56 | AK36: 3.85 | AL36: 3.13 | AM36: 2.53 | AN36: 3.58
A37: M | B37: 21 | C37: 3.72 | D37: 3.55 | E37: 3.17 | F37: 3.31 | G37: 4.46 | H37: 3.7 | I37: 5.21 | J37: 3.28 | K37: 2.75 | L37: 4.74 | M37: 3.79 | P37: 2.8 | AF37: 21 | AG37: 201605 | AH37: 4.39 | AI37: 3.73 | AJ37: 4.56 | AK37: 3.85 | AL37: 3.13 | AM37: 2.53 | AN37: 3.58
B38: 22 | C38: 3.72 | D38: 3.57 | E38: 3.18 | F38: 3.3 | G38: 4.45 | H38: 3.7 | I38: 5.19 | J38: 3.29 | K38: 2.76 | L38: 4.76 | M38: 3.77 | P38: 2.82 | AF38: 22 | AG38: 201606 | AH38: 4.39 | AI38: 3.7 | AJ38: 4.56 | AK38: 3.82 | AL38: 3.1 | AM38: 2.51 | AN38: 3.58
B39: 23 | C39: 3.73 | D39: 3.57 | E39: 3.17 | F39: 3.32 | G39: 4.46 | H39: 3.68 | I39: 5.21 | J39: 3.28 | K39: 2.74 | L39: 4.76 | M39: 3.76 | P39: 2.83 | AF39: 23 | AG39: 201606 | AH39: 4.38 | AI39: 3.68 | AJ39: 4.56 | AK39: 3.8 | AL39: 3.08 | AM39: 2.51 | AN39: 3.58
B40: 24 | C40: 3.75 | D40: 3.59 | E40: 3.15 | F40: 3.29 | G40: 4.31 | H40: 3.66 | I40: 5.25 | J40: 3.24 | K40: 2.71 | L40: 4.8 | M40: 3.74 | P40: 2.84 | AF40: 24 | AG40: 201606 | AH40: 4.37 | AI40: 3.67 | AJ40: 4.56 | AK40: 3.8 | AL40: 3.05 | AM40: 2.5 | AN40: 3.58
B41: 25 | C41: 3.74 | D41: 3.56 | E41: 3.09 | F41: 3.25 | G41: 4.25 | H41: 3.66 | I41: 5.23 | J41: 3.22 | K41: 2.67 | L41: 4.85 | M41: 3.8 | P41: 2.84 | AF41: 25 | AG41: 201606 | AH41: 4.37 | AI41: 3.67 | AJ41: 4.56 | AK41: 3.8 | AL41: 3.05 | AM41: 2.5 | AN41: 3.6
A42: J | B42: 26 | C42: 3.74 | D42: 3.59 | E42: 3.07 | F42: 3.24 | G42: 4.28 | H42: 3.66 | I42: 5.16 | J42: 3.22 | K42: 2.65 | L42: 4.7 | M42: 3.76 | P42: 2.84 | AF42: 26 | AG42: 201606 | AH42: 4.37 | AI42: 3.65 | AJ42: 4.56 | AK42: 3.8 | AL42: 3.05 | AM42: 2.5 | AN42: 3.6
B43: 27 | C43: 3.75 | D43: 3.61 | E43: 3.04 | F43: 3.25 | G43: 4.44 | H43: 3.67 | I43: 5.28 | J43: 3.22 | K43: 2.66 | L43: 4.84 | M43: 3.73 | P43: 2.84 | AF43: 27 | AG43: 201607 | AH43: 4.36 | AI43: 3.64 | AJ43: 4.54 | AK43: 3.78 | AL43: 3.05 | AM43: 2.5 | AN43: 3.6
B44: 28 | C44: 3.76 | D44: 3.64 | E44: 3.04 | F44: 3.26 | G44: 4.29 | H44: 3.66 | I44: 5.19 | J44: 3.26 | K44: 2.67 | L44: 4.79 | M44: 3.77 | P44: 2.84 | AF44: 28 | AG44: 201607 | AH44: 4.36 | AI44: 3.64 | AJ44: 4.54 | AK44: 3.78 | AL44: 3.07 | AM44: 2.52 | AN44: 3.6
B45: 29 | C45: 3.78 | D45: 3.67 | E45: 3.07 | F45: 3.29 | G45: 4.36 | H45: 3.68 | I45: 5.14 | J45: 3.28 | K45: 2.72 | L45: 4.72 | M45: 3.74 | P45: 2.78 | AF45: 29 | AG45: 201607 | AH45: 4.36 | AI45: 3.64 | AJ45: 4.54 | AK45: 3.78 | AL45: 3.07 | AM45: 2.55 | AN45: 3.62
A46: J | B46: 30 | C46: 3.81 | D46: 3.69 | E46: 3.05 | F46: 3.33 | G46: 4.43 | H46: 3.69 | I46: 5.16 | J46: 3.3 | K46: 2.76 | L46: 4.8 | M46: 3.76 | P46: 2.75 | AF46: 30 | AG46: 201607 | AH46: 4.36 | AI46: 3.62 | AJ46: 4.52 | AK46: 3.75 | AL46: 3.07 | AM46: 2.55 | AN46: 3.65
B47: 31 | C47: 3.82 | D47: 3.69 | E47: 3.07 | F47: 3.32 | G47: 4.51 | H47: 3.67 | I47: 5.1 | J47: 3.31 | K47: 2.75 | L47: 4.71 | M47: 3.79 | P47: 2.75 | AF47: 31 | AG47: 201608 | AH47: 4.33 | AI47: 3.62 | AJ47: 4.5 | AK47: 3.75 | AL47: 3.05 | AM47: 2.52 | AN47: 3.65
B48: 32 | C48: 3.82 | D48: 3.67 | E48: 3.05 | F48: 3.31 | G48: 4.5 | H48: 3.66 | I48: 5.17 | J48: 3.27 | K48: 2.71 | L48: 4.78 | M48: 3.74 | P48: 2.75 | AF48: 32 | AG48: 201608 | AH48: 4.33 | AI48: 3.62 | AJ48: 4.5 | AK48: 3.75 | AL48: 3.05 | AM48: 2.5 | AN48: 3.65
B49: 33 | C49: 3.82 | D49: 3.63 | E49: 3.02 | F49: 3.28 | G49: 4.42 | H49: 3.66 | I49: 5.19 | J49: 3.25 | K49: 2.69 | L49: 4.86 | M49: 3.75 | P49: 2.93 | AF49: 33 | AG49: 201608 | AH49: 4.32 | AI49: 3.61 | AJ49: 4.5 | AK49: 3.73 | AL49: 3.05 | AM49: 2.48 | AN49: 3.65
A50: A | B50: 34 | C50: 3.82 | D50: 3.63 | E50: 2.99 | F50: 3.26 | G50: 4.43 | H50: 3.67 | I50: 5.21 | J50: 3.21 | K50: 2.62 | L50: 4.88 | M50: 3.74 | P50: 2.73 | AF50: 34 | AG50: 201608 | AH50: 4.31 | AI50: 3.61 | AJ50: 4.5 | AK50: 3.7 | AL50: 3.05 | AM50: 2.46 | AN50: 3.65
B51: 35 | C51: 3.81 | D51: 3.61 | E51: 2.94 | F51: 3.19 | G51: 4.41 | H51: 3.67 | I51: 5.13 | J51: 3.18 | K51: 2.58 | L51: 4.79 | M51: 3.79 | P51: 2.69 | AF51: 35 | AG51: 201608 | AH51: 4.31 | AI51: 3.6 | AJ51: 4.5 | AK51: 3.7 | AL51: 3.02 | AM51: 2.42 | AN51: 3.65
B52: 36 | C52: 3.8 | D52: 3.61 | E52: 2.91 | F52: 3.15 | G52: 4.59 | H52: 3.65 | I52: 5.17 | J52: 3.13 | K52: 2.54 | L52: 4.91 | M52: 3.72 | P52: 2.66 | AF52: 36 | AG52: 201609 | AH52: 4.31 | AI52: 3.6 | AJ52: 4.5 | AK52: 3.7 | AL52: 3 | AM52: 2.4 | AN52: 3.65
B53: 37 | C53: 3.79 | D53: 3.6 | E53: 2.87 | F53: 3.13 | G53: 4.44 | H53: 3.63 | I53: 5.23 | J53: 3.1 | K53: 2.53 | L53: 4.79 | M53: 3.73 | P53: 2.65 | AF53: 37 | AG53: 201609 | AH53: 4.31 | AI53: 3.6 | AJ53: 4.5 | AK53: 3.7 | AL53: 3 | AM53: 2.38 | AN53: 3.65
B54: 38 | C54: 3.8 | D54: 3.59 | E54: 2.89 | F54: 3.11 | G54: 4.49 | H54: 3.64 | I54: 5.22 | J54: 3.09 | K54: 2.5 | L54: 4.81 | M54: 3.72 | P54: 2.57 | AF54: 38 | AG54: 201609 | AH54: 4.31 | AI54: 3.6 | AJ54: 4.5 | AK54: 3.7 | AL54: 2.98 | AM54: 2.35 | AN54: 3.65
A55: S | B55: 39 | C55: 3.79 | D55: 3.59 | E55: 2.89 | F55: 3.09 | G55: 4.53 | H55: 3.65 | I55: 5.12 | J55: 3.08 | K55: 2.49 | L55: 4.85 | M55: 3.69 | P55: 2.55 | AF55: 39 | AG55: 201609 | AH55: 4.31 | AI55: 3.6 | AJ55: 4.5 | AK55: 3.7 | AL55: 2.98 | AM55: 2.35 | AN55: 3.65
B56: 40 | C56: 3.78 | D56: 3.6 | E56: 2.89 | F56: 3.11 | G56: 4.54 | H56: 3.69 | I56: 5.17 | J56: 3.09 | K56: 2.5 | L56: 4.75 | M56: 3.76 | P56: 2.54 | AF56: 40 | AG56: 201610 | AH56: 4.31 | AI56: 3.62 | AJ56: 4.5 | AK56: 3.7 | AL56: 2.95 | AM56: 2.35 | AN56: 3.65
B57: 41 | C57: 3.78 | D57: 3.59 | E57: 2.91 | F57: 3.11 | G57: 4.43 | H57: 3.68 | I57: 5.12 | J57: 3.08 | K57: 2.5 | L57: 4.79 | M57: 3.73 | P57: 2.54 | AF57: 41 | AG57: 201610 | AH57: 4.31 | AI57: 3.64 | AJ57: 4.5 | AK57: 3.7 | AL57: 3 | AM57: 2.35 | AN57: 3.65
B58: 42 | C58: 3.8 | D58: 3.59 | E58: 2.93 | F58: 3.11 | G58: 4.54 | H58: 3.7 | I58: 5.18 | J58: 3.09 | K58: 2.52 | L58: 4.79 | M58: 3.74 | P58: 2.55 | AF58: 42 | AG58: 201610 | AH58: 4.31 | AI58: 3.66 | AJ58: 4.5 | AK58: 3.7 | AL58: 3.02 | AM58: 2.35 | AN58: 3.65
A59: O | B59: 43 | C59: 3.8 | D59: 3.63 | E59: 2.97 | F59: 3.14 | G59: 4.46 | H59: 3.71 | I59: 5.1 | J59: 3.12 | K59: 2.56 | L59: 4.8 | M59: 3.71 | P59: 2.53 | AF59: 43 | AG59: 201610 | AH59: 4.33 | AI59: 3.66 | AJ59: 4.5 | AK59: 3.7 | AL59: 3.05 | AM59: 2.35 | AN59: 3.65
B60: 44 | C60: 3.8 | D60: 3.61 | E60: 3.02 | F60: 3.15 | G60: 4.55 | H60: 3.73 | I60: 5.13 | J60: 3.15 | K60: 2.57 | L60: 4.77 | M60: 3.79 | P60: 2.52 | AF60: 44 | AG60: 201611 | AH60: 4.33 | AI60: 3.66 | AJ60: 4.5 | AK60: 3.7 | AL60: 3.05 | AM60: 2.37 | AN60: 3.67
B61: 45 | C61: 3.81 | D61: 3.62 | E61: 3.02 | F61: 3.16 | G61: 4.55 | H61: 3.74 | I61: 5.13 | J61: 3.13 | K61: 2.59 | L61: 4.78 | M61: 3.75 | P61: 2.54 | AF61: 45 | AG61: 201611 | AH61: 4.33 | AI61: 3.67 | AJ61: 4.5 | AK61: 3.7 | AL61: 3.05 | AM61: 2.37 | AN61: 3.7
B62: 46 | C62: 3.83 | D62: 3.65 | E62: 3.03 | F62: 3.16 | G62: 4.44 | H62: 3.73 | I62: 5.17 | J62: 3.13 | K62: 2.57 | L62: 4.88 | M62: 3.78 | P62: 2.54 | AF62: 46 | AG62: 201611 | AH62: 4.32 | AI62: 3.66 | AJ62: 4.47 | AK62: 3.7 | AL62: 3.05 | AM62: 2.35 | AN62: 3.73
A63: N | B63: 47 | C63: 3.86 | D63: 3.67 | E63: 3.06 | F63: 3.16 | G63: 4.57 | H63: 3.74 | I63: 5.17 | J63: 3.12 | K63: 2.55 | L63: 4.74 | M63: 3.78 | P63: 2.52 | AF63: 47 | AG63: 201611 | AH63: 4.32 | AI63: 3.66 | AJ63: 4.47 | AK63: 3.7 | AL63: 3.03 | AM63: 2.35 | AN63: 3.77
B64: 48 | C64: 3.88 | D64: 3.7 | E64: 3.06 | F64: 3.14 | G64: 4.49 | H64: 3.71 | I64: 5.13 | J64: 3.11 | K64: 2.53 | L64: 4.79 | M64: 3.75 | P64: 2.51 | AF64: 48 | AG64: 201611 | AH64: 4.32 | AI64: 3.66 | AJ64: 4.47 | AK64: 3.7 | AL64: 3.01 | AM64: 2.35 | AN64: 3.8
B65: 49 | C65: 3.91 | D65: 3.72 | E65: 3.09 | F65: 3.14 | G65: 4.71 | H65: 3.76 | I65: 5.19 | J65: 3.11 | K65: 2.52 | L65: 4.88 | M65: 3.77 | P65: 2.53 | AF65: 49 | AG65: 201612 | AH65: 4.32 | AI65: 3.66 | AJ65: 4.47 | AK65: 3.7 | AL65: 3.01 | AM65: 2.35 | AN65: 3.8
B66: 50 | C66: 3.93 | D66: 3.74 | E66: 3.12 | F66: 3.15 | G66: 4.8 | H66: 3.74 | I66: 5.19 | J66: 3.11 | K66: 2.53 | L66: 4.99 | M66: 3.8 | P66: 2.55 | AF66: 50 | AG66: 201612 | AH66: 4.32 | AI66: 3.66 | AJ66: 4.47 | AK66: 3.7 | AL66: 3.01 | AM66: 2.35 | AN66: 3.8
B67: 51 | C67: 3.94 | D67: 3.75 | E67: 3.14 | F67: 3.17 | G67: 4.63 | H67: 3.74 | I67: 5.18 | J67: 3.13 | K67: 2.54 | L67: 4.64 | M67: 3.74 | P67: 2.57 | AF67: 51 | AG67: 201612 | AH67: 4.32 | AI67: 3.66 | AJ67: 4.47 | AK67: 3.7 | AL67: 3.01 | AM67: 2.35 | AN67: 3.8
A68: D | B68: 52 | C68: 3.94 | D68: 3.76 | E68: 3.16 | F68: 3.18 | G68: 4.39 | H68: 3.76 | I68: 5.14 | J68: 3.17 | K68: 2.58 | L68: 4.9 | M68: 3.82 | P68: 2.57 | AF68: 52 | AG68: 201612 | AH68: 4.32 | AI68: 3.66 | AJ68: 4.47 | AK68: 3.7 | AL68: 3.01 | AM68: 2.35 | AN68: 3.8

Sheet GraphGrosBovins
P51: =GrosBovinsAnneeEnCours!P11 -> Mis à jour : 04/06/2024
C52: =GrosBovinsAnneeEnCours!C11 -> 0 | P52: COT. HEBDO
C53: COTATION REGIONALE ENTREE ABATTOIR GRAND OUEST FRANCEAGRIMER-HEBDOMADAIRE (€/Kg net) | P53: MAIGRE €/kg vif
C54: JEUNES BOVINS | F54: BOEUFS | G54: VACHES | L54: GENISSES | P54: Ref. nationale
